Workbook

Sheet INSERIMENTO
C3: MINISTERO DELLA DIFESA - DIREZIONE GENERALE PER IL PERSONALE CIVILE - III REPARTO - DIVISIONI 6^ E 7^
C6: CELLE DI INSERIMENTO SEMPRE OBBLIGATORIO CELLE DI INSERIMENTO OBBLIGATORIO AL VERIFICARSI DELL'EVENTO CELLE DI INSERIMENTO FACOLTATIVO | V6: VERSIONE DEL 14.02.2024
C7: NOMINATIVO: | E7: COLOMBO Cristoforo | I7: =IF(AND(G9>0,E7=""),"DATO OBBLIGATORIO","") ->  | J7: CODICE FISCALE
C9: ASSEGNO PERSONALE RIASSORBIBILE ANNUO INIZIALE: | G9: 10650 | I9: =IF(AND(E7>0,G9=""),"INSERIRE IMPORTO","") ->  | J9: ENTE DI SERVIZIO: | M9: NAVARM (UFF/MAND: 122)
E10: =IF(AND(E11="",G11>0),"DATO OBBLIGATORIO","") ->  | G10: =IF(AND(E11>0,G11=""),"DATA ?",IF(DATE(YEAR(G11),MONTH(G11),DAY(G11))<DATE(YEAR(T11),MONTH(T11),DAY(T11)),"ERRORE","GG/MM/AAAA")) -> GG/MM/AAAA
C11: AREA/FASCIA INIZIALE: | E11: A3F1 (C1) | F11: DAL: | G11: 2003-04-01 | J11: EVENTUALE R.I.A. ANNUA: | T11: =VLOOKUP(E11,RIFERIMENTI!$H$1:$M$17,6,FALSE) -> 1998-07-01
L12: =IF(I11="ASS. RIASS. PARAMETRATO AI TABELLARI PREVIGENTI AL CCNL 2016-2018:","SI/NO","") ->  | N12: =IF(N13="","GG/MM/AAAA",IF(N13<R13,"ERRORE","GG/MM/AAAA")) -> GG/MM/AAAA | R12: MAX
C13: SE, SULLO SCHERMO DEL TUO PC, IL PROSPETTO È TROPPO GRANDE O PICCOLO, VAI SULLA BARRA MULTIFUNZIONE, CLICCA SU "VISUALIZZA - ZOOM" E SCEGLI LA "%" DI VISUALIZZAZIONE | J13: EVENTUALE ULTIMO GIORNO DI SERVIZIO : | R13: =RIFERIMENTI!V69 -> 2021-01-01 | T13: =IF(N13>0,N13,DATE(9999,12,31)) -> 9999-12-31
C15: EVENTUALI CONSEGUIMENTI DI PROGRESSIONI ECONOMICHE | J15: EVENTUALI PERIODI DI COMANDO PRESSO ALTRE AMMINISTRAZIONI | T15: =IF(G11<DATE(2009,1,1),DATE(2009,1,1),G11+1) -> 2009-01-01
E16: =IF(AND(E17="",G17>0),"DATO OBBLIGATORIO",IF(E17="","",IF(E17=VLOOKUP(E11,RIFERIMENTI!$H$1:$J$17,3,FALSE),"","ERRORE"))) ->  | G16: =IF(E16="ERRORE","GG/MM/AAAA",IF(E17="","GG/MM/AAAA",IF(AND(E17>0,G17=""),"DATA ?",IF(G17<=G11,"ERRORE",IF(G17<T17,"ERRORE",IF(G17>$T$13,"ERRORE","GG/MM/AAAA")))))) -> GG/MM/AAAA | J16: SCEGLIERE AMMINISTRAZIONE DA MENÙ A TENDINA | M16: =IF(AND(J17=0,M17=0),"GG/MM/AAAA",IF(AND(J17>0,M17=""),"DATA ?",IF(AND(J17="",M17>0),"AMM.NE ?",IF(M17<T15,"ERRORE",IF(M17>T13,"ERRORE","GG/MM/AAAA"))))) -> GG/MM/AAAA | O16: =IF(AND(J17>0,O17=""),"DATA ?",IF(AND(J17="",O17>0),"AMM.NE ?",IF(O17<M17,"ERRORE",IF(O17>T13,"ERRORE","GG/MM/AAAA")))) -> GG/MM/AAAA
C17: 2^ AREA/FASCIA CONSEGUITA: | E17: A3F2 (C1S) | F17: DAL: | G17: 2016-01-01 | J17: TRANSIZIONE ECOLOGICA | L17: DAL: | M17: 2009-05-05 | N17: AL: | O17: 2013-05-04 | R17: =IF(E11="","",IF(ISNA(VLOOKUP(E11,RIFERIMENTI!$H$2:$J$17,3,FALSE)),"",IF(VLOOKUP(E11,RIFERIMENTI!$H$2:$J$17,3,FALSE)=0,"",VLOOKUP(E11,RIFERIMENTI!$H$2:$J$17,3,FALSE)))) -> A3F2 (C1S) | T17: =IF(E17="","",IF($G$11>VLOOKUP(E17,RIFERIMENTI!$H$1:$M$17,6,FALSE),$G$11,VLOOKUP(E17,RIFERIMENTI!$H$1:$M$17,6,FALSE))) -> 2003-04-01
E18: =IF(AND(E19="",G19>0),"DATO OBBLIGATORIO",IF(E19="","",IF(E17="","",IF(E19=VLOOKUP(E17,RIFERIMENTI!$H$2:$J$17,3,FALSE),"","ERRORE")))) ->  | G18: =IF(E18="ERRORE","GG/MM/AAAA",IF(E19="","GG/MM/AAAA",IF(AND(E19>0,G19=""),"DATA ?",IF(G19<=G17,"ERRORE",IF(G19<T19,"ERRORE",IF(G19>$T$13,"ERRORE","GG/MM/AAAA")))))) -> GG/MM/AAAA | M18: =IF(AND(J19=0,M19=0),"GG/MM/AAAA",IF(AND(J19>0,M19=""),"DATA ?",IF(AND(J19="",M19>0),"AMM.NE ?",IF(M19<=O17,"ERRORE",IF(M19>T13,"ERRORE","GG/MM/AAAA"))))) -> GG/MM/AAAA | O18: =IF(AND(J19>0,O19=""),"DATA ?",IF(AND(J19="",O19>0),"AMM.NE ?",IF(O19<M19,"ERRORE",IF(O19>T13,"ERRORE","GG/MM/AAAA")))) -> GG/MM/AAAA
C19: 3^ AREA/FASCIA CONSEGUITA: | E19: A3F3 (C2) | F19: DAL: | G19: 2021-01-01 | L19: DAL: | N19: AL: | R19: =IF(E17="","",IF(ISNA(VLOOKUP(E17,RIFERIMENTI!$H$2:$J$17,3,FALSE)),"",IF(VLOOKUP(E17,RIFERIMENTI!$H$2:$J$17,3,FALSE)=0,"",VLOOKUP(E17,RIFERIMENTI!$H$2:$J$17,3,FALSE)))) -> A3F3 (C2) | T19: =IF(E19="","",IF(G17+1>VLOOKUP(E19,RIFERIMENTI!$H$1:$M$17,6,FALSE),G17+1,VLOOKUP(E19,RIFERIMENTI!$H$1:$M$17,6,FALSE))) -> 2016-01-02
E20: =IF(AND(E21="",G21>0),"DATO OBBLIGATORIO",IF(E21="","",IF(E19="","",IF(E21=VLOOKUP(E19,RIFERIMENTI!$H$2:$J$17,3,FALSE),"","ERRORE")))) ->  | G20: =IF(E20="ERRORE","GG/MM/AAAA",IF(E21="","GG/MM/AAAA",IF(AND(E21>0,G21=""),"DATA ?",IF(G21<=G19,"ERRORE",IF(G21<T21,"ERRORE",IF(G21>$T$13,"ERRORE","GG/MM/AAAA")))))) -> GG/MM/AAAA | M20: =IF(AND(J21=0,M21=0),"GG/MM/AAAA",IF(AND(J21>0,M21=""),"DATA ?",IF(AND(J21="",M21>0),"AMM.NE ?",IF(M21<=O19,"ERRORE",IF(M21>T13,"ERRORE","GG/MM/AAAA"))))) -> GG/MM/AAAA | O20: =IF(AND(J21>0,O21=""),"DATA ?",IF(AND(J21="",O21>0),"AMM.NE ?",IF(O21<M21,"ERRORE",IF(O21>T13,"ERRORE","GG/MM/AAAA")))) -> GG/MM/AAAA
C21: 4^ AREA/FASCIA CONSEGUITA: | F21: DAL: | L21: DAL: | N21: AL: | R21: =IF(E19="","",IF(ISNA(VLOOKUP(E19,RIFERIMENTI!$H$2:$J$17,3,FALSE)),"",IF(VLOOKUP(E19,RIFERIMENTI!$H$2:$J$17,3,FALSE)=0,"",VLOOKUP(E19,RIFERIMENTI!$H$2:$J$17,3,FALSE)))) -> A3F4 (C3) | T21: =IF(E21="","",IF(G19+1>VLOOKUP(E21,RIFERIMENTI!$H$1:$M$17,6,FALSE),G19+1,VLOOKUP(E21,RIFERIMENTI!$H$1:$M$17,6,FALSE))) -> 
E22: =IF(AND(E23="",G23>0),"DATO OBBLIGATORIO",IF(E23="","",IF(E21="","",IF(E23=VLOOKUP(E21,RIFERIMENTI!$H$2:$J$17,3,FALSE),"","ERRORE")))) ->  | G22: =IF(E22="ERRORE","GG/MM/AAAA",IF(E23="","GG/MM/AAAA",IF(AND(E23>0,G23=""),"DATA ?",IF(G23<=G21,"ERRORE",IF(G23<T23,"ERRORE",IF(G23>$T$13,"ERRORE","GG/MM/AAAA")))))) -> GG/MM/AAAA | M22: =IF(AND(J23=0,M23=0),"GG/MM/AAAA",IF(AND(J23>0,M23=""),"DATA ?",IF(AND(J23="",M23>0),"AMM.NE ?",IF(M23<=O21,"ERRORE",IF(M23>T13,"ERRORE","GG/MM/AAAA"))))) -> GG/MM/AAAA | O22: =IF(AND(J23>0,O23=""),"DATA ?",IF(AND(J23="",O23>0),"AMM.NE ?",IF(O23<M23,"ERRORE",IF(O23>T13,"ERRORE","GG/MM/AAAA")))) -> GG/MM/AAAA
C23: 5^ AREA/FASCIA CONSEGUITA: | F23: DAL: | L23: DAL: | N23: AL: | R23: =IF(E21="","",IF(ISNA(VLOOKUP(E21,RIFERIMENTI!$H$2:$J$17,3,FALSE)),"",IF(VLOOKUP(E21,RIFERIMENTI!$H$2:$J$17,3,FALSE)=0,"",VLOOKUP(E21,RIFERIMENTI!$H$2:$J$17,3,FALSE)))) ->  | T23: =IF(E23="","",IF(G21+1>VLOOKUP(E23,RIFERIMENTI!$H$1:$M$17,6,FALSE),G21+1,VLOOKUP(E23,RIFERIMENTI!$H$1:$M$17,6,FALSE))) -> 
E24: =IF(AND(E25="",G25>0),"DATO OBBLIGATORIO",IF(E25="","",IF(E23="","",IF(E25=VLOOKUP(E23,RIFERIMENTI!$H$2:$J$17,3,FALSE),"","ERRORE")))) ->  | G24: =IF(E24="ERRORE","GG/MM/AAAA",IF(E25="","GG/MM/AAAA",IF(AND(E25>0,G25=""),"DATA ?",IF(G25<=G23,"ERRORE",IF(G25<T25,"ERRORE",IF(G25>$T$13,"ERRORE","GG/MM/AAAA")))))) -> GG/MM/AAAA | M24: =IF(AND(J25=0,M25=0),"GG/MM/AAAA",IF(AND(J25>0,M25=""),"DATA ?",IF(AND(J25="",M25>0),"AMM.NE ?",IF(M25<=O23,"ERRORE",IF(M25>T13,"ERRORE","GG/MM/AAAA"))))) -> GG/MM/AAAA | O24: =IF(AND(J25>0,O25=""),"DATA ?",IF(AND(J25="",O25>0),"AMM.NE ?",IF(O25<M25,"ERRORE",IF(O25>T13,"ERRORE","GG/MM/AAAA")))) -> GG/MM/AAAA
C25: 6^ AREA/FASCIA CONSEGUITA: | F25: DAL: | L25: DAL: | N25: AL: | R25: =IF(E23="","",IF(ISNA(VLOOKUP(E23,RIFERIMENTI!$H$2:$J$17,3,FALSE)),"",IF(VLOOKUP(E23,RIFERIMENTI!$H$2:$J$17,3,FALSE)=0,"",VLOOKUP(E23,RIFERIMENTI!$H$2:$J$17,3,FALSE)))) ->  | T25: =IF(E25="","",IF(G23+1>VLOOKUP(E25,RIFERIMENTI!$H$1:$M$17,6,FALSE),G23+1,VLOOKUP(E25,RIFERIMENTI!$H$1:$M$17,6,FALSE))) -> 
E26: =IF(AND(E27="",G27>0),"DATO OBBLIGATORIO",IF(E27="","",IF(E25="","",IF(E27=VLOOKUP(E25,RIFERIMENTI!$H$2:$J$17,3,FALSE),"","ERRORE")))) ->  | G26: =IF(E26="ERRORE","GG/MM/AAAA",IF(E27="","GG/MM/AAAA",IF(AND(E27>0,G27=""),"DATA ?",IF(G27<=G25,"ERRORE",IF(G27<T27,"ERRORE",IF(G27>$T$13,"ERRORE","GG/MM/AAAA")))))) -> GG/MM/AAAA | M26: =IF(AND(J27=0,M27=0),"GG/MM/AAAA",IF(AND(J27>0,M27=""),"DATA ?",IF(AND(J27="",M27>0),"AMM.NE ?",IF(M27<=O25,"ERRORE",IF(M27>T13,"ERRORE","GG/MM/AAAA"))))) -> GG/MM/AAAA | O26: =IF(AND(J27>0,O27=""),"DATA ?",IF(AND(J27="",O27>0),"AMM.NE ?",IF(O27<M27,"ERRORE",IF(O27>T13,"ERRORE","GG/MM/AAAA")))) -> GG/MM/AAAA
C27: 7^ AREA/FASCIA CONSEGUITA: | F27: DAL: | L27: DAL: | N27: AL: | R27: =IF(E25="","",IF(ISNA(VLOOKUP(E25,RIFERIMENTI!$H$2:$J$17,3,FALSE)),"",IF(VLOOKUP(E25,RIFERIMENTI!$H$2:$J$17,3,FALSE)=0,"",VLOOKUP(E25,RIFERIMENTI!$H$2:$J$17,3,FALSE)))) ->  | T27: =IF(E27="","",IF(G25+1>VLOOKUP(E27,RIFERIMENTI!$H$1:$M$17,6,FALSE),G25+1,VLOOKUP(E27,RIFERIMENTI!$H$1:$M$17,6,FALSE))) -> 

Sheet SVILUPPO
C2: MINISTERO DELLA DIFESA - DIREZIONE GENERALE PER IL PERSONALE CIVILE - III REPARTO - DIVISIONI 6^ E 7^ | U2: EVENTUALI CONSEGUIMENTI DI PROGRESSIONI ECONOMICHE | Z2: EVENTUALI PERIODI DI COMANDO PRESSO ALTRE AMMINISTRAZIONI
X3: GG/MM/AAAA | AB3: GG/MM/AAAA | AD3: GG/MM/AAAA
U4: 2^ AREA/FASCIA CONSEGUITA: | V4: =IF(RIFERIMENTI!Q7=1,"ERRORE",IF(INSERIMENTO!E17="","",INSERIMENTO!E17)) -> A3F2 (C1S) | W4: DAL: | X4: =IF(RIFERIMENTI!Q13=1,"ERRORE",IF(INSERIMENTO!G17="","",INSERIMENTO!G17)) -> 2016-01-01 | Z4: =IF(INSERIMENTO!J17="","",INSERIMENTO!J17) -> TRANSIZIONE ECOLOGICA | AA4: DAL: | AB4: =IF(RIFERIMENTI!Q19=1,"ERRORE",IF(INSERIMENTO!M17="","",INSERIMENTO!M17)) -> 2009-05-05 | AC4: AL: | AD4: =IF(RIFERIMENTI!Q25=1,"ERRORE",IF(INSERIMENTO!O17="","",INSERIMENTO!O17)) -> 2013-05-04
X5: GG/MM/AAAA | AB5: GG/MM/AAAA | AD5: GG/MM/AAAA
C6: NOMINATIVO: | E6: =IF(RIFERIMENTI!Q2=1,"ERRORE",IF(INSERIMENTO!E7="","",INSERIMENTO!E7)) -> COLOMBO Cristoforo | K6: CODICE FISCALE | M6: =IF(INSERIMENTO!M7="","",INSERIMENTO!M7) ->  | U6: 3^ AREA/FASCIA CONSEGUITA: | V6: =IF(RIFERIMENTI!Q8=1,"ERRORE",IF(INSERIMENTO!E19="","",INSERIMENTO!E19)) -> A3F3 (C2) | W6: DAL: | X6: =IF(RIFERIMENTI!Q14=1,"ERRORE",IF(INSERIMENTO!G19="","",INSERIMENTO!G19)) -> 2021-01-01 | Z6: =IF(INSERIMENTO!J19="","",INSERIMENTO!J19) ->  | AA6: DAL: | AB6: =IF(RIFERIMENTI!Q20=1,"ERRORE",IF(INSERIMENTO!M19="","",INSERIMENTO!M19)) ->  | AC6: AL: | AD6: =IF(RIFERIMENTI!Q26=1,"ERRORE",IF(INSERIMENTO!O19="","",INSERIMENTO!O19)) -> 
X7: GG/MM/AAAA | AB7: GG/MM/AAAA | AD7: GG/MM/AAAA
C8: ASSEGNO PERSONALE RIASSORBIBILE ANNUO INIZIALE: | G8: =IF(RIFERIMENTI!Q3=1,"ERRORE",IF(INSERIMENTO!G9="",0,INSERIMENTO!G9)) -> 10650 | K8: ENTE DI SERVIZIO: | M8: =IF(INSERIMENTO!M9="","",INSERIMENTO!M9) -> NAVARM (UFF/MAND: 122) | U8: 4^ AREA/FASCIA CONSEGUITA: | V8: =IF(RIFERIMENTI!Q9=1,"ERRORE",IF(INSERIMENTO!E21="","",INSERIMENTO!E21)) ->  | W8: DAL: | X8: =IF(RIFERIMENTI!Q15=1,"ERRORE",IF(INSERIMENTO!G21="","",INSERIMENTO!G21)) ->  | Z8: =IF(INSERIMENTO!J21="","",INSERIMENTO!J21) ->  | AA8: DAL: | AB8: =IF(RIFERIMENTI!Q21=1,"ERRORE",IF(INSERIMENTO!M21="","",INSERIMENTO!M21)) ->  | AC8: AL: | AD8: =IF(RIFERIMENTI!Q27=1,"ERRORE",IF(INSERIMENTO!O21="","",INSERIMENTO!O21)) -> 
X9: GG/MM/AAAA | AB9: GG/MM/AAAA | AD9: GG/MM/AAAA
C10: AREA/FASCIA INIZIALE: | E10: =IF(RIFERIMENTI!Q4=1,"ERRORE",IF(INSERIMENTO!E11="","",INSERIMENTO!E11)) -> A3F1 (C1) | F10: DAL: | G10: =IF(RIFERIMENTI!Q5=1,"ERRORE",IF(INSERIMENTO!G11="","",INSERIMENTO!G11)) -> 2003-04-01 | K10: EVENTUALE R.I.A. ANNUA: | M10: =IF(INSERIMENTO!M11="",0,INSERIMENTO!M11) -> 0 | U10: 5^ AREA/FASCIA CONSEGUITA: | V10: =IF(RIFERIMENTI!Q10=1,"ERRORE",IF(INSERIMENTO!E23="","",INSERIMENTO!E23)) ->  | W10: DAL: | X10: =IF(RIFERIMENTI!Q16=1,"ERRORE",IF(INSERIMENTO!G23="","",INSERIMENTO!G23)) ->  | Z10: =IF(INSERIMENTO!J23="","",INSERIMENTO!J23) ->  | AA10: DAL: | AB10: =IF(RIFERIMENTI!Q22=1,"ERRORE",IF(INSERIMENTO!M23="","",INSERIMENTO!M23)) ->  | AC10: AL: | AD10: =IF(RIFERIMENTI!Q28=1,"ERRORE",IF(INSERIMENTO!O23="","",INSERIMENTO!O23)) -> 
M11: =IF(J10="ASS. RIASS. PARAMETRATO AI TABELLARI PREVIGENTI AL CCNL 2016-2018:","SI/NO","") ->  | X11: GG/MM/AAAA | AB11: GG/MM/AAAA | AD11: GG/MM/AAAA
C12: EVENTUALI SVILUPPI ECONOMICI E PERIODI DI COMANDO: | G12: =IF(RIFERIMENTI!S31>0,"ERRORE/I","LEGGERE RIEPILOGO A DESTRA") -> LEGGERE RIEPILOGO A DESTRA | K12: EVENTUALE ULTIMO GIORNO DI SERVIZIO : | O12: =IF(INSERIMENTO!N13="","",IF(RIFERIMENTI!Q6=1,"ERRORE",INSERIMENTO!N13)) ->  | U12: 6^ AREA/FASCIA CONSEGUITA: | V12: =IF(RIFERIMENTI!Q11=1,"ERRORE",IF(INSERIMENTO!E25="","",INSERIMENTO!E25)) ->  | W12: DAL: | X12: =IF(RIFERIMENTI!Q17=1,"ERRORE",IF(INSERIMENTO!G25="","",INSERIMENTO!G25)) ->  | Z12: =IF(INSERIMENTO!J25="","",INSERIMENTO!J25) ->  | AA12: DAL: | AB12: =IF(RIFERIMENTI!Q23=1,"ERRORE",IF(INSERIMENTO!M25="","",INSERIMENTO!M25)) ->  | AC12: AL: | AD12: =IF(RIFERIMENTI!Q29=1,"ERRORE",IF(INSERIMENTO!O25="","",INSERIMENTO!O25)) -> 
X13: GG/MM/AAAA | AB13: GG/MM/AAAA | AD13: GG/MM/AAAA
C14: =CONCATENATE("NOMINATIVO: ",E6) -> NOMINATIVO: COLOMBO Cristoforo | F14: =IF(RIFERIMENTI!Q31>0,"ATTENZIONE!! ERRORE/I DI INSERIMENTO","IMPORTI ANNUI PER 12 MENSILITA'") -> IMPORTI ANNUI PER 12 MENSILITA' | U14: 7^ AREA/FASCIA CONSEGUITA: | V14: =IF(RIFERIMENTI!Q12=1,"ERRORE",IF(INSERIMENTO!E27="","",INSERIMENTO!E27)) ->  | W14: DAL: | X14: =IF(RIFERIMENTI!Q18=1,"ERRORE",IF(INSERIMENTO!G27="","",INSERIMENTO!G27)) ->  | Z14: =IF(INSERIMENTO!J27="","",INSERIMENTO!J27) ->  | AA14: DAL: | AB14: =IF(RIFERIMENTI!Q24=1,"ERRORE",IF(INSERIMENTO!M27="","",INSERIMENTO!M27)) ->  | AC14: AL: | AD14: =IF(RIFERIMENTI!Q30=1,"ERRORE",IF(INSERIMENTO!O27="","",INSERIMENTO!O27)) ->  | AH14: =C14 -> NOMINATIVO: COLOMBO Cristoforo | AK14: =F14 -> IMPORTI ANNUI PER 12 MENSILITA'
C15: DAL | D15: AL | E15: A/F | F15: STIP. + I.I.S. | H15: DIFF.LE ART. 52 CCNL 19/21 | I15: VAC. CONTR. con magg.ne D.L. 145/2023 | J15: R.I.A. | K15: differenza retributiva rispetto al periodo precedente | L15: ASS. RIASS. ANNUO | M15: TOTALE | O15: ASS. RIASS. MENSILE (importi in €uro) | Q15: MISURA IND. AMM.NE | U15: RIEPILOGO SCHEDA "INSERIMENTO" | AH15: DAL | AI15: AL | AJ15: A/F | AK15: STIP. + I.I.S. | AL15: IND. AMM. DIFESA | AM15: IND. AMM. EFFETTIVA | AN15: IND. AMM. DIFFERENZA | AO15: DIFF.LE ART. 52 CCNL 19/21 | AP15: VAC. CONTR. | AQ15: R.I.A. | AR15: INCREMENTO DIFESA | AS15: INCREMENTO EFFETTIVO | AT15: ASS. RIASS. DIFESA | AU15: ASS. RIASS. EFFETTIVO | AV15: TOTALE DIFESA | AW15: TOTALE EFFETTIVO | AY15: ASS. RIASS. MENSILE | BF15: MISURA IND. AMM.NE | BH15: TOTALE | BI15: TOTALE | BK15: TOTALE
C16: =IF(RIFERIMENTI!$Q$31>0,"",RIFERIMENTI!AJ2) -> 2003-04-01 | D16: =IF(RIFERIMENTI!$Q$31>0,"",RIFERIMENTI!AK2) -> 2003-12-31 | E16: =IF(C16="","",IF(RIFERIMENTI!$Q$31=1,"",LOOKUP(C16,RIFERIMENTI!$V$49:$V$55,RIFERIMENTI!$W$49:$W$55))) -> A3F1 (C1) | F16: =IF(C16="",0,(LOOKUP(CONCATENATE(E16," ",C16),STIPENDIO!$B$5:$B$391,STIPENDIO!$H$5:$H$391))+(LOOKUP(CONCATENATE(E16," ",C16),'IND. INT. SPEC.'!$B$6:$B$39,'IND. INT. SPEC.'!$H$6:$H$39))) -> 17855.12 | G16: =IF(C16="",0,IF(BC16="DIF",LOOKUP(CONCATENATE(E16," ",C16),'IND. AMM.NE'!$C$6:$C$166,'IND. AMM.NE'!$L$6:$L$166),VLOOKUP(CONCATENATE(BC16," ",BB16),'IND. AMM.NE'!$A$171:$X$253,BD16,TRUE))) -> 2408.88 | H16: =IF(C16="",0,LOOKUP(CONCATENATE(E16," ",C16),'CCNL 2019-2021'!$C$99:$C$130,'CCNL 2019-2021'!$J$99:$J$130)) -> 0 | I16: =IF(C16="",0,LOOKUP(CONCATENATE(E16," ",C16),'VACANZA CONTR.LE'!$B$5:$B$300,'VACANZA CONTR.LE'!$J$5:$J$300)) -> 0 | J16: =IF(C16="",0,$M$10) -> 0 | K16: 0 | L16: =AU16 -> 10650 | M16: =F16+G16+H16+I16+J16+L16 -> 30914 | O16: =ROUND(L16/12,2) -> 887.5 | Q16: =BC16 -> DIF | AH16: =C16 -> 2003-04-01 | AI16: =D16 -> 2003-12-31 | AJ16: =E16 -> A3F1 (C1) | AK16: =F16 -> 17855.12 | AL16: =IF(C16="",0,LOOKUP(CONCATENATE(E16," ",C16),'IND. AMM.NE'!$C$6:$C$166,'IND. AMM.NE'!$L$6:$L$166)) -> 2408.88 | AM16: =G16 -> 2408.88 | AN16: =AM16-AL16 -> 0 | AO16: =H16 -> 0 | AP16: =I16 -> 0 | AQ16: =J16 -> 0 | AR16: =K16 -> 0 | AS16: =K16 -> 0 | AT16: =IF(AH16="",0,G8) -> 10650 | AU16: =AT16 -> 10650 | AV16: =AK16+AL16+AO16+AP16+AQ16+AT16 -> 30914 | AW16: =AK16+AM16+AO16+AP16+AQ16+AU16 -> 30914 | AY16: =ROUND(AT16/12,2) -> 887.5 | BB16: =C16 -> 2003-04-01 | BC16: =IF(C16="","",IF(ISNA(LOOKUP(BB16,RIFERIMENTI!$P$56:$P$70,RIFERIMENTI!$S$56:$S$70)),"DIF",LOOKUP(BB16,RIFERIMENTI!$P$56:$P$70,RIFERIMENTI!$S$56:$S$70))) -> DIF | BD16: =IF(BB16="","",IF(BC16="DIF",0,VLOOKUP(E16,RIFERIMENTI!$H$2:$N$17,7,FALSE))) -> 0 | BF16: =IF(ISNA(VLOOKUP(BC16,'IND. AMM.NE'!$U$4:$V$26,2,FALSE)),"DIFESA",VLOOKUP(BC16,'IND. AMM.NE'!$U$4:$V$26,2,FALSE)) -> DIFESA | BH16: =IF(M16>0,1,0) -> 1 | BI16: >0 | BK16: 0
C17: =IF(RIFERIMENTI!$Q$31>0,"",RIFERIMENTI!AJ3) -> 2004-01-01 | D17: =IF(RIFERIMENTI!$Q$31>0,"",RIFERIMENTI!AK3) -> 2005-01-31 | E17: =IF(C17="","",IF(RIFERIMENTI!$Q$31=1,"",LOOKUP(C17,RIFERIMENTI!$V$49:$V$55,RIFERIMENTI!$W$49:$W$55))) -> A3F1 (C1) | F17: =IF(C17="",0,(LOOKUP(CONCATENATE(E17," ",C17),STIPENDIO!$B$5:$B$391,STIPENDIO!$H$5:$H$391))+(LOOKUP(CONCATENATE(E17," ",C17),'IND. INT. SPEC.'!$B$6:$B$39,'IND. INT. SPEC.'!$H$6:$H$39))) -> 18352.7 | G17: =IF(C17="",0,IF(BC17="DIF",LOOKUP(CONCATENATE(E17," ",C17),'IND. AMM.NE'!$C$6:$C$166,'IND. AMM.NE'!$L$6:$L$166),VLOOKUP(CONCATENATE(BC17," ",BB17),'IND. AMM.NE'!$A$171:$X$253,BD17,TRUE))) -> 2408.88 | H17: =IF(C17="",0,LOOKUP(CONCATENATE(E17," ",C17),'CCNL 2019-2021'!$C$99:$C$130,'CCNL 2019-2021'!$J$99:$J$130)) -> 0 | I17: =IF(C17="",0,LOOKUP(CONCATENATE(E17," ",C17),'VACANZA CONTR.LE'!$B$5:$B$300,'VACANZA CONTR.LE'!$J$5:$J$300)) -> 0 | J17: =IF(C17="",0,$M$10) -> 0 | K17: =IF(C17="",0,SUM(F17:J17)-SUM(F16:J16)) -> 497.58 | L17: 10152.42 | M17: 30914 | O17: 846.04 | Q17: =BC17 -> DIF | AH17: =C17 -> 2004-01-01 | AI17: =D17 -> 2005-01-31 | AJ17: =E17 -> A3F1 (C1) | AK17: =F17 -> 18352.7 | AL17: =IF(C17="",0,LOOKUP(CONCATENATE(E17," ",C17),'IND. AMM.NE'!$C$6:$C$166,'IND. AMM.NE'!$L$6:$L$166)) -> 2408.88 | AM17: =G17 -> 2408.88 | AN17: =AM17-AL17 -> 0 | AO17: =H17 -> 0 | AP17: =I17 -> 0 | AQ17: =J17 -> 0 | AR17: =IF(AH17="",0,(AK17+AL17+AO17+AP17+AQ17)-(AK16+AL16+AO16+AP16+AQ16)) -> 497.58 | AS17: =IF(AH17="",0,(AK17+AM17+AO17+AP17+AQ17)-(AK16+AL16+AO16+AP16+AQ16)) -> 497.58 | AT17: =IF(AH17="",0,IF(AND(Q16="DIF",AH17=DATE(2022,11,1),((AK17+AM17+AO17+AP17+AQ17)+(AT16-AR17))>$AV$16,($AV$16-(AK17+AM17+AO17+AP17+AQ17))<0),0,IF(AND(Q16="DIF",AH17=DATE(2022,11,1),((AK17+AM17+AO17+AP17+AQ17)+(AT16-AR17))>$AV$16),$AV$16-(AK17+AM17+AO17+AP17+AQ17),IF(AND(Q16="DIF",AH17=DATE(2022,11,1)),AT16-AR17,IF(AT16=0,0,IF((AT16-AR17)>0,AT16-AR17,0)))))) -> 10152.42 | AU17: =IF(AH17="",0,IF(AND(Q16="DIF",AH17=DATE(2022,11,1),((AK17+AM17+AO17+AP17+AQ17)+(AT16-AS17))>$AV$16,($AV$16-(AK17+AM17+AO17+AP17+AQ17))<0),0,IF(AND(Q16="DIF",AH17=DATE(2022,11,1),((AK17+AM17+AO17+AP17+AQ17)+(AT16-AS17))>$AV$16),$AV$16-(AK17+AM17+AO17+AP17+AQ17),IF(AND(Q16="DIF",AH17=DATE(2022,11,1)),AT16-AS17,IF(AT16=0,0,IF((AT16-AS17)>0,AT16-AS17,0)))))) -> 10152.42 | AV17: =AK17+AL17+AO17+AP17+AQ17+AT17 -> 30914 | AW17: =AK17+AM17+AO17+AP17+AQ17+AU17 -> 30914 | AY17: 846.04 | BB17: =C17 -> 2004-01-01 | BC17: =IF(C17="","",IF(ISNA(LOOKUP(BB17,RIFERIMENTI!$P$56:$P$70,RIFERIMENTI!$S$56:$S$70)),"DIF",LOOKUP(BB17,RIFERIMENTI!$P$56:$P$70,RIFERIMENTI!$S$56:$S$70))) -> DIF | BD17: =IF(BB17="","",IF(BC17="DIF",0,VLOOKUP(E17,RIFERIMENTI!$H$2:$N$17,7,FALSE))) -> 0 | BF17: =IF(ISNA(VLOOKUP(BC17,'IND. AMM.NE'!$U$4:$V$26,2,FALSE)),"DIFESA",VLOOKUP(BC17,'IND. AMM.NE'!$U$4:$V$26,2,FALSE)) -> DIFESA | BH17: =IF(M17>0,1,0) -> 1 | BK17: >0
C18: =IF(RIFERIMENTI!$Q$31>0,"",RIFERIMENTI!AJ4) -> 2005-02-01 | D18: =IF(RIFERIMENTI!$Q$31>0,"",RIFERIMENTI!AK4) -> 2005-12-30 | E18: =IF(C18="","",IF(RIFERIMENTI!$Q$31=1,"",LOOKUP(C18,RIFERIMENTI!$V$49:$V$55,RIFERIMENTI!$W$49:$W$55))) -> A3F1 (C1) | F18: =IF(C18="",0,(LOOKUP(CONCATENATE(E18," ",C18),STIPENDIO!$B$5:$B$391,STIPENDIO!$H$5:$H$391))+(LOOKUP(CONCATENATE(E18," ",C18),'IND. INT. SPEC.'!$B$6:$B$39,'IND. INT. SPEC.'!$H$6:$H$39))) -> 18995.66 | G18: =IF(C18="",0,IF(BC18="DIF",LOOKUP(CONCATENATE(E18," ",C18),'IND. AMM.NE'!$C$6:$C$166,'IND. AMM.NE'!$L$6:$L$166),VLOOKUP(CONCATENATE(BC18," ",BB18),'IND. AMM.NE'!$A$171:$X$253,BD18,TRUE))) -> 2408.88 | H18: =IF(C18="",0,LOOKUP(CONCATENATE(E18," ",C18),'CCNL 2019-2021'!$C$99:$C$130,'CCNL 2019-2021'!$J$99:$J$130)) -> 0 | I18: =IF(C18="",0,LOOKUP(CONCATENATE(E18," ",C18),'VACANZA CONTR.LE'!$B$5:$B$300,'VACANZA CONTR.LE'!$J$5:$J$300)) -> 0 | J18: 0 | K18: 642.96 | L18: 9509.46 | M18: 30914 | O18: 792.46 | Q18: DIF | AH18: 2005-02-01 | AI18: 2005-12-30 | AJ18: A3F1 (C1) | AK18: 18995.66 | AL18: =IF(C18="",0,LOOKUP(CONCATENATE(E18," ",C18),'IND. AMM.NE'!$C$6:$C$166,'IND. AMM.NE'!$L$6:$L$166)) -> 2408.88 | AM18: 2408.88 | AN18: 0 | AO18: 0 | AP18: 0 | AQ18: 0 | AR18: =IF(AH18="",0,(AK18+AL18+AO18+AP18+AQ18)-(AK17+AL17+AO17+AP17+AQ17)) -> 642.96 | AS18: =IF(AH18="",0,(AK18+AM18+AO18+AP18+AQ18)-(AK17+AL17+AO17+AP17+AQ17)) -> 642.96 | AT18: 9509.46 | AU18: 9509.46 | AV18: 30914 | AW18: 30914 | AY18: 792.46 | BB18: 2005-02-01 | BC18: =IF(C18="","",IF(ISNA(LOOKUP(BB18,RIFERIMENTI!$P$56:$P$70,RIFERIMENTI!$S$56:$S$70)),"DIF",LOOKUP(BB18,RIFERIMENTI!$P$56:$P$70,RIFERIMENTI!$S$56:$S$70))) -> DIF | BD18: =IF(BB18="","",IF(BC18="DIF",0,VLOOKUP(E18,RIFERIMENTI!$H$2:$N$17,7,FALSE))) -> 0 | BF18: =IF(ISNA(VLOOKUP(BC18,'IND. AMM.NE'!$U$4:$V$26,2,FALSE)),"DIFESA",VLOOKUP(BC18,'IND. AMM.NE'!$U$4:$V$26,2,FALSE)) -> DIFESA | BH18: 1
C19: =IF(RIFERIMENTI!$Q$31>0,"",RIFERIMENTI!AJ5) -> 2005-12-31 | D19: =IF(RIFERIMENTI!$Q$31>0,"",RIFERIMENTI!AK5) -> 2005-12-31 | E19: =IF(C19="","",IF(RIFERIMENTI!$Q$31=1,"",LOOKUP(C19,RIFERIMENTI!$V$49:$V$55,RIFERIMENTI!$W$49:$W$55))) -> A3F1 (C1) | F19: =IF(C19="",0,(LOOKUP(CONCATENATE(E19," ",C19),STIPENDIO!$B$5:$B$391,STIPENDIO!$H$5:$H$391))+(LOOKUP(CONCATENATE(E19," ",C19),'IND. INT. SPEC.'!$B$6:$B$39,'IND. INT. SPEC.'!$H$6:$H$39))) -> 19048.62 | G19: =IF(C19="",0,IF(BC19="DIF",LOOKUP(CONCATENATE(E19," ",C19),'IND. AMM.NE'!$C$6:$C$166,'IND. AMM.NE'!$L$6:$L$166),VLOOKUP(CONCATENATE(BC19," ",BB19),'IND. AMM.NE'!$A$171:$X$253,BD19,TRUE))) -> 2408.88 | H19: =IF(C19="",0,LOOKUP(CONCATENATE(E19," ",C19),'CCNL 2019-2021'!$C$99:$C$130,'CCNL 2019-2021'!$J$99:$J$130)) -> 0 | I19: =IF(C19="",0,LOOKUP(CONCATENATE(E19," ",C19),'VACANZA CONTR.LE'!$B$5:$B$300,'VACANZA CONTR.LE'!$J$5:$J$300)) -> 0 | J19: 0 | K19: 52.96 | L19: 9456.5 | M19: 30914 | O19: 788.04 | Q19: DIF | AH19: 2005-12-31 | AI19: 2005-12-31 | AJ19: A3F1 (C1) | AK19: 19048.62 | AL19: =IF(C19="",0,LOOKUP(CONCATENATE(E19," ",C19),'IND. AMM.NE'!$C$6:$C$166,'IND. AMM.NE'!$L$6:$L$166)) -> 2408.88 | AM19: 2408.88 | AN19: 0 | AO19: 0 | AP19: 0 | AQ19: 0 | AR19: 52.96 | AS19: 52.96 | AT19: 9456.5 | AU19: 9456.5 | AV19: 30914 | AW19: 30914 | AY19: 788.04 | BB19: 2005-12-31 | BC19: =IF(C19="","",IF(ISNA(LOOKUP(BB19,RIFERIMENTI!$P$56:$P$70,RIFERIMENTI!$S$56:$S$70)),"DIF",LOOKUP(BB19,RIFERIMENTI!$P$56:$P$70,RIFERIMENTI!$S$56:$S$70))) -> DIF | BD19: =IF(BB19="","",IF(BC19="DIF",0,VLOOKUP(E19,RIFERIMENTI!$H$2:$N$17,7,FALSE))) -> 0 | BF19: =IF(ISNA(VLOOKUP(BC19,'IND. AMM.NE'!$U$4:$V$26,2,FALSE)),"DIFESA",VLOOKUP(BC19,'IND. AMM.NE'!$U$4:$V$26,2,FALSE)) -> DIFESA | BH19: 1
C20: =IF(RIFERIMENTI!$Q$31>0,"",RIFERIMENTI!AJ6) -> 2006-01-01 | D20: =IF(RIFERIMENTI!$Q$31>0,"",RIFERIMENTI!AK6) -> 2006-12-31 | E20: =IF(C20="","",IF(RIFERIMENTI!$Q$31=1,"",LOOKUP(C20,RIFERIMENTI!$V$49:$V$55,RIFERIMENTI!$W$49:$W$55))) -> A3F1 (C1) | F20: =IF(C20="",0,(LOOKUP(CONCATENATE(E20," ",C20),STIPENDIO!$B$5:$B$391,STIPENDIO!$H$5:$H$391))+(LOOKUP(CONCATENATE(E20," ",C20),'IND. INT. SPEC.'!$B$6:$B$39,'IND. INT. SPEC.'!$H$6:$H$39))) -> 19154.34 | G20: =IF(C20="",0,IF(BC20="DIF",LOOKUP(CONCATENATE(E20," ",C20),'IND. AMM.NE'!$C$6:$C$166,'IND. AMM.NE'!$L$6:$L$166),VLOOKUP(CONCATENATE(BC20," ",BB20),'IND. AMM.NE'!$A$171:$X$253,BD20,TRUE))) -> 2408.88 | H20: =IF(C20="",0,LOOKUP(CONCATENATE(E20," ",C20),'CCNL 2019-2021'!$C$99:$C$130,'CCNL 2019-2021'!$J$99:$J$130)) -> 0 | I20: =IF(C20="",0,LOOKUP(CONCATENATE(E20," ",C20),'VACANZA CONTR.LE'!$B$5:$B$300,'VACANZA CONTR.LE'!$J$5:$J$300)) -> 0 | J20: 0 | K20: 105.72 | L20: 9350.78 | M20: 30914 | O20: 779.23 | Q20: DIF | AH20: 2006-01-01 | AI20: 2006-12-31 | AJ20: A3F1 (C1) | AK20: 19154.34 | AL20: =IF(C20="",0,LOOKUP(CONCATENATE(E20," ",C20),'IND. AMM.NE'!$C$6:$C$166,'IND. AMM.NE'!$L$6:$L$166)) -> 2408.88 | AM20: 2408.88 | AN20: 0 | AO20: 0 | AP20: 0 | AQ20: 0 | AR20: 105.72 | AS20: 105.72 | AT20: 9350.78 | AU20: 9350.78 | AV20: 30914 | AW20: 30914 | AY20: 779.23 | BB20: 2006-01-01 | BC20: =IF(C20="","",IF(ISNA(LOOKUP(BB20,RIFERIMENTI!$P$56:$P$70,RIFERIMENTI!$S$56:$S$70)),"DIF",LOOKUP(BB20,RIFERIMENTI!$P$56:$P$70,RIFERIMENTI!$S$56:$S$70))) -> DIF | BD20: =IF(BB20="","",IF(BC20="DIF",0,VLOOKUP(E20,RIFERIMENTI!$H$2:$N$17,7,FALSE))) -> 0 | BF20: =IF(ISNA(VLOOKUP(BC20,'IND. AMM.NE'!$U$4:$V$26,2,FALSE)),"DIFESA",VLOOKUP(BC20,'IND. AMM.NE'!$U$4:$V$26,2,FALSE)) -> DIFESA | BH20: 1
C21: =IF(RIFERIMENTI!$Q$31>0,"",RIFERIMENTI!AJ7) -> 2007-01-01 | D21: =IF(RIFERIMENTI!$Q$31>0,"",RIFERIMENTI!AK7) -> 2007-01-31 | E21: =IF(C21="","",IF(RIFERIMENTI!$Q$31=1,"",LOOKUP(C21,RIFERIMENTI!$V$49:$V$55,RIFERIMENTI!$W$49:$W$55))) -> A3F1 (C1) | F21: =IF(C21="",0,(LOOKUP(CONCATENATE(E21," ",C21),STIPENDIO!$B$5:$B$391,STIPENDIO!$H$5:$H$391))+(LOOKUP(CONCATENATE(E21," ",C21),'IND. INT. SPEC.'!$B$6:$B$39,'IND. INT. SPEC.'!$H$6:$H$39))) -> 19587.18 | G21: =IF(C21="",0,IF(BC21="DIF",LOOKUP(CONCATENATE(E21," ",C21),'IND. AMM.NE'!$C$6:$C$166,'IND. AMM.NE'!$L$6:$L$166),VLOOKUP(CONCATENATE(BC21," ",BB21),'IND. AMM.NE'!$A$171:$X$253,BD21,TRUE))) -> 2408.88 | H21: =IF(C21="",0,LOOKUP(CONCATENATE(E21," ",C21),'CCNL 2019-2021'!$C$99:$C$130,'CCNL 2019-2021'!$J$99:$J$130)) -> 0 | I21: =IF(C21="",0,LOOKUP(CONCATENATE(E21," ",C21),'VACANZA CONTR.LE'!$B$5:$B$300,'VACANZA CONTR.LE'!$J$5:$J$300)) -> 0 | J21: 0 | K21: 432.84 | L21: 8917.94 | M21: 30914 | O21: 743.16 | Q21: DIF | AH21: 2007-01-01 | AI21: 2007-01-31 | AJ21: A3F1 (C1) | AK21: 19587.18 | AL21: =IF(C21="",0,LOOKUP(CONCATENATE(E21," ",C21),'IND. AMM.NE'!$C$6:$C$166,'IND. AMM.NE'!$L$6:$L$166)) -> 2408.88 | AM21: 2408.88 | AN21: 0 | AO21: 0 | AP21: 0 | AQ21: 0 | AR21: 432.84 | AS21: 432.84 | AT21: 8917.94 | AU21: 8917.94 | AV21: 30914 | AW21: 30914 | AY21: 743.16 | BB21: 2007-01-01 | BC21: =IF(C21="","",IF(ISNA(LOOKUP(BB21,RIFERIMENTI!$P$56:$P$70,RIFERIMENTI!$S$56:$S$70)),"DIF",LOOKUP(BB21,RIFERIMENTI!$P$56:$P$70,RIFERIMENTI!$S$56:$S$70))) -> DIF | BD21: =IF(BB21="","",IF(BC21="DIF",0,VLOOKUP(E21,RIFERIMENTI!$H$2:$N$17,7,FALSE))) -> 0 | BF21: =IF(ISNA(VLOOKUP(BC21,'IND. AMM.NE'!$U$4:$V$26,2,FALSE)),"DIFESA",VLOOKUP(BC21,'IND. AMM.NE'!$U$4:$V$26,2,FALSE)) -> DIFESA | BH21: 1
C22: =IF(RIFERIMENTI!$Q$31>0,"",RIFERIMENTI!AJ8) -> 2007-02-01 | D22: =IF(RIFERIMENTI!$Q$31>0,"",RIFERIMENTI!AK8) -> 2007-12-30 | E22: =IF(C22="","",IF(RIFERIMENTI!$Q$31=1,"",LOOKUP(C22,RIFERIMENTI!$V$49:$V$55,RIFERIMENTI!$W$49:$W$55))) -> A3F1 (C1) | F22: =IF(C22="",0,(LOOKUP(CONCATENATE(E22," ",C22),STIPENDIO!$B$5:$B$391,STIPENDIO!$H$5:$H$391))+(LOOKUP(CONCATENATE(E22," ",C22),'IND. INT. SPEC.'!$B$6:$B$39,'IND. INT. SPEC.'!$H$6:$H$39))) -> 20220.66 | G22: =IF(C22="",0,IF(BC22="DIF",LOOKUP(CONCATENATE(E22," ",C22),'IND. AMM.NE'!$C$6:$C$166,'IND. AMM.NE'!$L$6:$L$166),VLOOKUP(CONCATENATE(BC22," ",BB22),'IND. AMM.NE'!$A$171:$X$253,BD22,TRUE))) -> 2408.88 | H22: =IF(C22="",0,LOOKUP(CONCATENATE(E22," ",C22),'CCNL 2019-2021'!$C$99:$C$130,'CCNL 2019-2021'!$J$99:$J$130)) -> 0 | I22: =IF(C22="",0,LOOKUP(CONCATENATE(E22," ",C22),'VACANZA CONTR.LE'!$B$5:$B$300,'VACANZA CONTR.LE'!$J$5:$J$300)) -> 0 | J22: 0 | K22: 633.48 | L22: 8284.46 | M22: 30914 | O22: 690.37 | Q22: DIF | AH22: 2007-02-01 | AI22: 2007-12-30 | AJ22: A3F1 (C1) | AK22: 20220.66 | AL22: =IF(C22="",0,LOOKUP(CONCATENATE(E22," ",C22),'IND. AMM.NE'!$C$6:$C$166,'IND. AMM.NE'!$L$6:$L$166)) -> 2408.88 | AM22: 2408.88 | AN22: 0 | AO22: 0 | AP22: 0 | AQ22: 0 | AR22: 633.48 | AS22: 633.48 | AT22: 8284.46 | AU22: 8284.46 | AV22: 30914 | AW22: 30914 | AY22: 690.37 | BB22: 2007-02-01 | BC22: =IF(C22="","",IF(ISNA(LOOKUP(BB22,RIFERIMENTI!$P$56:$P$70,RIFERIMENTI!$S$56:$S$70)),"DIF",LOOKUP(BB22,RIFERIMENTI!$P$56:$P$70,RIFERIMENTI!$S$56:$S$70))) -> DIF | BD22: =IF(BB22="","",IF(BC22="DIF",0,VLOOKUP(E22,RIFERIMENTI!$H$2:$N$17,7,FALSE))) -> 0 | BF22: =IF(ISNA(VLOOKUP(BC22,'IND. AMM.NE'!$U$4:$V$26,2,FALSE)),"DIFESA",VLOOKUP(BC22,'IND. AMM.NE'!$U$4:$V$26,2,FALSE)) -> DIFESA | BH22: 1
C23: =IF(RIFERIMENTI!$Q$31>0,"",RIFERIMENTI!AJ9) -> 2007-12-31 | D23: =IF(RIFERIMENTI!$Q$31>0,"",RIFERIMENTI!AK9) -> 2007-12-31 | E23: =IF(C23="","",IF(RIFERIMENTI!$Q$31=1,"",LOOKUP(C23,RIFERIMENTI!$V$49:$V$55,RIFERIMENTI!$W$49:$W$55))) -> A3F1 (C1) | F23: =IF(C23="",0,(LOOKUP(CONCATENATE(E23," ",C23),STIPENDIO!$B$5:$B$391,STIPENDIO!$H$5:$H$391))+(LOOKUP(CONCATENATE(E23," ",C23),'IND. INT. SPEC.'!$B$6:$B$39,'IND. INT. SPEC.'!$H$6:$H$39))) -> 20220.66 | G23: =IF(C23="",0,IF(BC23="DIF",LOOKUP(CONCATENATE(E23," ",C23),'IND. AMM.NE'!$C$6:$C$166,'IND. AMM.NE'!$L$6:$L$166),VLOOKUP(CONCATENATE(BC23," ",BB23),'IND. AMM.NE'!$A$171:$X$253,BD23,TRUE))) -> 2772.72 | H23: =IF(C23="",0,LOOKUP(CONCATENATE(E23," ",C23),'CCNL 2019-2021'!$C$99:$C$130,'CCNL 2019-2021'!$J$99:$J$130)) -> 0 | I23: =IF(C23="",0,LOOKUP(CONCATENATE(E23," ",C23),'VACANZA CONTR.LE'!$B$5:$B$300,'VACANZA CONTR.LE'!$J$5:$J$300)) -> 0 | J23: 0 | K23: 363.84 | L23: 7920.62 | M23: 30914 | O23: 660.05 | Q23: DIF | AH23: 2007-12-31 | AI23: 2007-12-31 | AJ23: A3F1 (C1) | AK23: 20220.66 | AL23: =IF(C23="",0,LOOKUP(CONCATENATE(E23," ",C23),'IND. AMM.NE'!$C$6:$C$166,'IND. AMM.NE'!$L$6:$L$166)) -> 2772.72 | AM23: 2772.72 | AN23: 0 | AO23: 0 | AP23: 0 | AQ23: 0 | AR23: 363.84 | AS23: 363.84 | AT23: 7920.62 | AU23: 7920.62 | AV23: 30914 | AW23: 30914 | AY23: 660.05 | BB23: 2007-12-31 | BC23: =IF(C23="","",IF(ISNA(LOOKUP(BB23,RIFERIMENTI!$P$56:$P$70,RIFERIMENTI!$S$56:$S$70)),"DIF",LOOKUP(BB23,RIFERIMENTI!$P$56:$P$70,RIFERIMENTI!$S$56:$S$70))) -> DIF | BD23: =IF(BB23="","",IF(BC23="DIF",0,VLOOKUP(E23,RIFERIMENTI!$H$2:$N$17,7,FALSE))) -> 0 | BF23: =IF(ISNA(VLOOKUP(BC23,'IND. AMM.NE'!$U$4:$V$26,2,FALSE)),"DIFESA",VLOOKUP(BC23,'IND. AMM.NE'!$U$4:$V$26,2,FALSE)) -> DIFESA | BH23: 1
C24: =IF(RIFERIMENTI!$Q$31>0,"",RIFERIMENTI!AJ10) -> 2008-01-01 | D24: =IF(RIFERIMENTI!$Q$31>0,"",RIFERIMENTI!AK10) -> 2008-12-31 | E24: =IF(C24="","",IF(RIFERIMENTI!$Q$31=1,"",LOOKUP(C24,RIFERIMENTI!$V$49:$V$55,RIFERIMENTI!$W$49:$W$55))) -> A3F1 (C1) | F24: =IF(C24="",0,(LOOKUP(CONCATENATE(E24," ",C24),STIPENDIO!$B$5:$B$391,STIPENDIO!$H$5:$H$391))+(LOOKUP(CONCATENATE(E24," ",C24),'IND. INT. SPEC.'!$B$6:$B$39,'IND. INT. SPEC.'!$H$6:$H$39))) -> 20333.7 | G24: =IF(C24="",0,IF(BC24="DIF",LOOKUP(CONCATENATE(E24," ",C24),'IND. AMM.NE'!$C$6:$C$166,'IND. AMM.NE'!$L$6:$L$166),VLOOKUP(CONCATENATE(BC24," ",BB24),'IND. AMM.NE'!$A$171:$X$253,BD24,TRUE))) -> 2772.72 | H24: =IF(C24="",0,LOOKUP(CONCATENATE(E24," ",C24),'CCNL 2019-2021'!$C$99:$C$130,'CCNL 2019-2021'!$J$99:$J$130)) -> 0 | I24: =IF(C24="",0,LOOKUP(CONCATENATE(E24," ",C24),'VACANZA CONTR.LE'!$B$5:$B$300,'VACANZA CONTR.LE'!$J$5:$J$300)) -> 0 | J24: 0 | K24: 113.04 | L24: 7807.58 | M24: 30914 | O24: 650.63 | Q24: DIF | AH24: 2008-01-01 | AI24: 2008-12-31 | AJ24: A3F1 (C1) | AK24: 20333.7 | AL24: =IF(C24="",0,LOOKUP(CONCATENATE(E24," ",C24),'IND. AMM.NE'!$C$6:$C$166,'IND. AMM.NE'!$L$6:$L$166)) -> 2772.72 | AM24: 2772.72 | AN24: 0 | AO24: 0 | AP24: 0 | AQ24: 0 | AR24: 113.04 | AS24: 113.04 | AT24: 7807.58 | AU24: 7807.58 | AV24: 30914 | AW24: 30914 | AY24: 650.63 | BB24: 2008-01-01 | BC24: =IF(C24="","",IF(ISNA(LOOKUP(BB24,RIFERIMENTI!$P$56:$P$70,RIFERIMENTI!$S$56:$S$70)),"DIF",LOOKUP(BB24,RIFERIMENTI!$P$56:$P$70,RIFERIMENTI!$S$56:$S$70))) -> DIF | BD24: =IF(BB24="","",IF(BC24="DIF",0,VLOOKUP(E24,RIFERIMENTI!$H$2:$N$17,7,FALSE))) -> 0 | BF24: =IF(ISNA(VLOOKUP(BC24,'IND. AMM.NE'!$U$4:$V$26,2,FALSE)),"DIFESA",VLOOKUP(BC24,'IND. AMM.NE'!$U$4:$V$26,2,FALSE)) -> DIFESA | BH24: 1
C25: =IF(RIFERIMENTI!$Q$31>0,"",RIFERIMENTI!AJ11) -> 2009-01-01 | D25: =IF(RIFERIMENTI!$Q$31>0,"",RIFERIMENTI!AK11) -> 2009-05-04 | E25: =IF(C25="","",IF(RIFERIMENTI!$Q$31=1,"",LOOKUP(C25,RIFERIMENTI!$V$49:$V$55,RIFERIMENTI!$W$49:$W$55))) -> A3F1 (C1) | F25: =IF(C25="",0,(LOOKUP(CONCATENATE(E25," ",C25),STIPENDIO!$B$5:$B$391,STIPENDIO!$H$5:$H$391))+(LOOKUP(CONCATENATE(E25," ",C25),'IND. INT. SPEC.'!$B$6:$B$39,'IND. INT. SPEC.'!$H$6:$H$39))) -> 21125.34 | G25: =IF(C25="",0,IF(BC25="DIF",LOOKUP(CONCATENATE(E25," ",C25),'IND. AMM.NE'!$C$6:$C$166,'IND. AMM.NE'!$L$6:$L$166),VLOOKUP(CONCATENATE(BC25," ",BB25),'IND. AMM.NE'!$A$171:$X$253,BD25,TRUE))) -> 2772.72 | H25: =IF(C25="",0,LOOKUP(CONCATENATE(E25," ",C25),'CCNL 2019-2021'!$C$99:$C$130,'CCNL 2019-2021'!$J$99:$J$130)) -> 0 | I25: =IF(C25="",0,LOOKUP(CONCATENATE(E25," ",C25),'VACANZA CONTR.LE'!$B$5:$B$300,'VACANZA CONTR.LE'!$J$5:$J$300)) -> 0 | J25: 0 | K25: 791.64 | L25: 7015.94 | M25: 30914 | O25: 584.66 | Q25: DIF | AH25: 2009-01-01 | AI25: 2009-05-04 | AJ25: A3F1 (C1) | AK25: 21125.34 | AL25: =IF(C25="",0,LOOKUP(CONCATENATE(E25," ",C25),'IND. AMM.NE'!$C$6:$C$166,'IND. AMM.NE'!$L$6:$L$166)) -> 2772.72 | AM25: 2772.72 | AN25: 0 | AO25: 0 | AP25: 0 | AQ25: 0 | AR25: 791.64 | AS25: 791.64 | AT25: 7015.94 | AU25: 7015.94 | AV25: 30914 | AW25: 30914 | AY25: 584.66 | BB25: 2009-01-01 | BC25: =IF(C25="","",IF(ISNA(LOOKUP(BB25,RIFERIMENTI!$P$56:$P$70,RIFERIMENTI!$S$56:$S$70)),"DIF",LOOKUP(BB25,RIFERIMENTI!$P$56:$P$70,RIFERIMENTI!$S$56:$S$70))) -> DIF | BD25: =IF(BB25="","",IF(BC25="DIF",0,VLOOKUP(E25,RIFERIMENTI!$H$2:$N$17,7,FALSE))) -> 0 | BF25: =IF(ISNA(VLOOKUP(BC25,'IND. AMM.NE'!$U$4:$V$26,2,FALSE)),"DIFESA",VLOOKUP(BC25,'IND. AMM.NE'!$U$4:$V$26,2,FALSE)) -> DIFESA | BH25: 1
C26: =IF(RIFERIMENTI!$Q$31>0,"",RIFERIMENTI!AJ12) -> 2009-05-05 | D26: =IF(RIFERIMENTI!$Q$31>0,"",RIFERIMENTI!AK12) -> 2010-03-31 | E26: =IF(C26="","",IF(RIFERIMENTI!$Q$31=1,"",LOOKUP(C26,RIFERIMENTI!$V$49:$V$55,RIFERIMENTI!$W$49:$W$55))) -> A3F1 (C1) | F26: =IF(C26="",0,(LOOKUP(CONCATENATE(E26," ",C26),STIPENDIO!$B$5:$B$391,STIPENDIO!$H$5:$H$391))+(LOOKUP(CONCATENATE(E26," ",C26),'IND. INT. SPEC.'!$B$6:$B$39,'IND. INT. SPEC.'!$H$6:$H$39))) -> 21125.34 | G26: =IF(C26="",0,IF(BC26="DIF",LOOKUP(CONCATENATE(E26," ",C26),'IND. AMM.NE'!$C$6:$C$166,'IND. AMM.NE'!$L$6:$L$166),VLOOKUP(CONCATENATE(BC26," ",BB26),'IND. AMM.NE'!$A$171:$X$253,BD26,TRUE))) -> 2772.72 | H26: =IF(C26="",0,LOOKUP(CONCATENATE(E26," ",C26),'CCNL 2019-2021'!$C$99:$C$130,'CCNL 2019-2021'!$J$99:$J$130)) -> 0 | I26: =IF(C26="",0,LOOKUP(CONCATENATE(E26," ",C26),'VACANZA CONTR.LE'!$B$5:$B$300,'VACANZA CONTR.LE'!$J$5:$J$300)) -> 0 | J26: 0 | K26: 0 | L26: 7015.94 | M26: 30914 | O26: 584.66 | Q26: AMB | AH26: 2009-05-05 | AI26: 2010-03-31 | AJ26: A3F1 (C1) | AK26: 21125.34 | AL26: =IF(C26="",0,LOOKUP(CONCATENATE(E26," ",C26),'IND. AMM.NE'!$C$6:$C$166,'IND. AMM.NE'!$L$6:$L$166)) -> 2772.72 | AM26: 2772.72 | AN26: 0 | AO26: 0 | AP26: 0 | AQ26: 0 | AR26: 0 | AS26: 0 | AT26: 7015.94 | AU26: 7015.94 | AV26: 30914 | AW26: 30914 | AY26: 584.66 | BB26: 2009-05-05 | BC26: =IF(C26="","",IF(ISNA(LOOKUP(BB26,RIFERIMENTI!$P$56:$P$70,RIFERIMENTI!$S$56:$S$70)),"DIF",LOOKUP(BB26,RIFERIMENTI!$P$56:$P$70,RIFERIMENTI!$S$56:$S$70))) -> AMB | BD26: =IF(BB26="","",IF(BC26="DIF",0,VLOOKUP(E26,RIFERIMENTI!$H$2:$N$17,7,FALSE))) -> 15 | BF26: =IF(ISNA(VLOOKUP(BC26,'IND. AMM.NE'!$U$4:$V$26,2,FALSE)),"DIFESA",VLOOKUP(BC26,'IND. AMM.NE'!$U$4:$V$26,2,FALSE)) -> TRANSIZIONE ECOLOGICA | BH26: 1
C27: =IF(RIFERIMENTI!$Q$31>0,"",RIFERIMENTI!AJ13) -> 2010-04-01 | D27: =IF(RIFERIMENTI!$Q$31>0,"",RIFERIMENTI!AK13) -> 2010-06-30 | E27: =IF(C27="","",IF(RIFERIMENTI!$Q$31=1,"",LOOKUP(C27,RIFERIMENTI!$V$49:$V$55,RIFERIMENTI!$W$49:$W$55))) -> A3F1 (C1) | F27: =IF(C27="",0,(LOOKUP(CONCATENATE(E27," ",C27),STIPENDIO!$B$5:$B$391,STIPENDIO!$H$5:$H$391))+(LOOKUP(CONCATENATE(E27," ",C27),'IND. INT. SPEC.'!$B$6:$B$39,'IND. INT. SPEC.'!$H$6:$H$39))) -> 21125.34 | G27: =IF(C27="",0,IF(BC27="DIF",LOOKUP(CONCATENATE(E27," ",C27),'IND. AMM.NE'!$C$6:$C$166,'IND. AMM.NE'!$L$6:$L$166),VLOOKUP(CONCATENATE(BC27," ",BB27),'IND. AMM.NE'!$A$171:$X$253,BD27,TRUE))) -> 2772.72 | H27: =IF(C27="",0,LOOKUP(CONCATENATE(E27," ",C27),'CCNL 2019-2021'!$C$99:$C$130,'CCNL 2019-2021'!$J$99:$J$130)) -> 0 | I27: =IF(C27="",0,LOOKUP(CONCATENATE(E27," ",C27),'VACANZA CONTR.LE'!$B$5:$B$300,'VACANZA CONTR.LE'!$J$5:$J$300)) -> 95.04 | J27: 0 | K27: 95.04 | L27: 6920.9 | M27: 30914 | O27: 576.74 | Q27: AMB | AH27: 2010-04-01 | AI27: 2010-06-30 | AJ27: A3F1 (C1) | AK27: 21125.34 | AL27: =IF(C27="",0,LOOKUP(CONCATENATE(E27," ",C27),'IND. AMM.NE'!$C$6:$C$166,'IND. AMM.NE'!$L$6:$L$166)) -> 2772.72 | AM27: 2772.72 | AN27: 0 | AO27: 0 | AP27: 95.04 | AQ27: 0 | AR27: 95.04 | AS27: 95.04 | AT27: 6920.9 | AU27: 6920.9 | AV27: 30914 | AW27: 30914 | AY27: 576.74 | BB27: 2010-04-01 | BC27: =IF(C27="","",IF(ISNA(LOOKUP(BB27,RIFERIMENTI!$P$56:$P$70,RIFERIMENTI!$S$56:$S$70)),"DIF",LOOKUP(BB27,RIFERIMENTI!$P$56:$P$70,RIFERIMENTI!$S$56:$S$70))) -> AMB | BD27: =IF(BB27="","",IF(BC27="DIF",0,VLOOKUP(E27,RIFERIMENTI!$H$2:$N$17,7,FALSE))) -> 15 | BF27: =IF(ISNA(VLOOKUP(BC27,'IND. AMM.NE'!$U$4:$V$26,2,FALSE)),"DIFESA",VLOOKUP(BC27,'IND. AMM.NE'!$U$4:$V$26,2,FALSE)) -> TRANSIZIONE ECOLOGICA | BH27: 1
C28: =IF(RIFERIMENTI!$Q$31>0,"",RIFERIMENTI!AJ14) -> 2010-07-01 | D28: =IF(RIFERIMENTI!$Q$31>0,"",RIFERIMENTI!AK14) -> 2013-05-04 | E28: =IF(C28="","",IF(RIFERIMENTI!$Q$31=1,"",LOOKUP(C28,RIFERIMENTI!$V$49:$V$55,RIFERIMENTI!$W$49:$W$55))) -> A3F1 (C1) | F28: =IF(C28="",0,(LOOKUP(CONCATENATE(E28," ",C28),STIPENDIO!$B$5:$B$391,STIPENDIO!$H$5:$H$391))+(LOOKUP(CONCATENATE(E28," ",C28),'IND. INT. SPEC.'!$B$6:$B$39,'IND. INT. SPEC.'!$H$6:$H$39))) -> 21125.34 | G28: =IF(C28="",0,IF(BC28="DIF",LOOKUP(CONCATENATE(E28," ",C28),'IND. AMM.NE'!$C$6:$C$166,'IND. AMM.NE'!$L$6:$L$166),VLOOKUP(CONCATENATE(BC28," ",BB28),'IND. AMM.NE'!$A$171:$X$253,BD28,TRUE))) -> 2772.72 | H28: =IF(C28="",0,LOOKUP(CONCATENATE(E28," ",C28),'CCNL 2019-2021'!$C$99:$C$130,'CCNL 2019-2021'!$J$99:$J$130)) -> 0 | I28: =IF(C28="",0,LOOKUP(CONCATENATE(E28," ",C28),'VACANZA CONTR.LE'!$B$5:$B$300,'VACANZA CONTR.LE'!$J$5:$J$300)) -> 158.44 | J28: 0 | K28: 63.4 | L28: 6857.5 | M28: 30914 | O28: 571.46 | Q28: AMB | AH28: 2010-07-01 | AI28: 2013-05-04 | AJ28: A3F1 (C1) | AK28: 21125.34 | AL28: =IF(C28="",0,LOOKUP(CONCATENATE(E28," ",C28),'IND. AMM.NE'!$C$6:$C$166,'IND. AMM.NE'!$L$6:$L$166)) -> 2772.72 | AM28: 2772.72 | AN28: 0 | AO28: 0 | AP28: 158.44 | AQ28: 0 | AR28: 63.4 | AS28: 63.4 | AT28: 6857.5 | AU28: 6857.5 | AV28: 30914 | AW28: 30914 | AY28: 571.46 | BB28: 2010-07-01 | BC28: =IF(C28="","",IF(ISNA(LOOKUP(BB28,RIFERIMENTI!$P$56:$P$70,RIFERIMENTI!$S$56:$S$70)),"DIF",LOOKUP(BB28,RIFERIMENTI!$P$56:$P$70,RIFERIMENTI!$S$56:$S$70))) -> AMB | BD28: =IF(BB28="","",IF(BC28="DIF",0,VLOOKUP(E28,RIFERIMENTI!$H$2:$N$17,7,FALSE))) -> 15 | BF28: =IF(ISNA(VLOOKUP(BC28,'IND. AMM.NE'!$U$4:$V$26,2,FALSE)),"DIFESA",VLOOKUP(BC28,'IND. AMM.NE'!$U$4:$V$26,2,FALSE)) -> TRANSIZIONE ECOLOGICA | BH28: 1
C29: =IF(RIFERIMENTI!$Q$31>0,"",RIFERIMENTI!AJ15) -> 2013-05-05 | D29: =IF(RIFERIMENTI!$Q$31>0,"",RIFERIMENTI!AK15) -> 2015-12-31 | E29: =IF(C29="","",IF(RIFERIMENTI!$Q$31=1,"",LOOKUP(C29,RIFERIMENTI!$V$49:$V$55,RIFERIMENTI!$W$49:$W$55))) -> A3F1 (C1) | F29: =IF(C29="",0,(LOOKUP(CONCATENATE(E29," ",C29),STIPENDIO!$B$5:$B$391,STIPENDIO!$H$5:$H$391))+(LOOKUP(CONCATENATE(E29," ",C29),'IND. INT. SPEC.'!$B$6:$B$39,'IND. INT. SPEC.'!$H$6:$H$39))) -> 21125.34 | G29: =IF(C29="",0,IF(BC29="DIF",LOOKUP(CONCATENATE(E29," ",C29),'IND. AMM.NE'!$C$6:$C$166,'IND. AMM.NE'!$L$6:$L$166),VLOOKUP(CONCATENATE(BC29," ",BB29),'IND. AMM.NE'!$A$171:$X$253,BD29,TRUE))) -> 2772.72 | H29: =IF(C29="",0,LOOKUP(CONCATENATE(E29," ",C29),'CCNL 2019-2021'!$C$99:$C$130,'CCNL 2019-2021'!$J$99:$J$130)) -> 0 | I29: =IF(C29="",0,LOOKUP(CONCATENATE(E29," ",C29),'VACANZA CONTR.LE'!$B$5:$B$300,'VACANZA CONTR.LE'!$J$5:$J$300)) -> 158.44 | J29: 0 | K29: 0 | L29: 6857.5 | M29: 30914 | O29: 571.46 | Q29: DIF | AH29: 2013-05-05 | AI29: 2015-12-31 | AJ29: A3F1 (C1) | AK29: 21125.34 | AL29: =IF(C29="",0,LOOKUP(CONCATENATE(E29," ",C29),'IND. AMM.NE'!$C$6:$C$166,'IND. AMM.NE'!$L$6:$L$166)) -> 2772.72 | AM29: 2772.72 | AN29: 0 | AO29: 0 | AP29: 158.44 | AQ29: 0 | AR29: 0 | AS29: 0 | AT29: 6857.5 | AU29: 6857.5 | AV29: 30914 | AW29: 30914 | AY29: 571.46 | BB29: 2013-05-05 | BC29: =IF(C29="","",IF(ISNA(LOOKUP(BB29,RIFERIMENTI!$P$56:$P$70,RIFERIMENTI!$S$56:$S$70)),"DIF",LOOKUP(BB29,RIFERIMENTI!$P$56:$P$70,RIFERIMENTI!$S$56:$S$70))) -> DIF | BD29: =IF(BB29="","",IF(BC29="DIF",0,VLOOKUP(E29,RIFERIMENTI!$H$2:$N$17,7,FALSE))) -> 0 | BF29: =IF(ISNA(VLOOKUP(BC29,'IND. AMM.NE'!$U$4:$V$26,2,FALSE)),"DIFESA",VLOOKUP(BC29,'IND. AMM.NE'!$U$4:$V$26,2,FALSE)) -> DIFESA | BH29: 1
C30: =IF(RIFERIMENTI!$Q$31>0,"",RIFERIMENTI!AJ16) -> 2016-01-01 | D30: =IF(RIFERIMENTI!$Q$31>0,"",RIFERIMENTI!AK16) -> 2016-12-31 | E30: =IF(C30="","",IF(RIFERIMENTI!$Q$31=1,"",LOOKUP(C30,RIFERIMENTI!$V$49:$V$55,RIFERIMENTI!$W$49:$W$55))) -> A3F2 (C1S) | F30: =IF(C30="",0,(LOOKUP(CONCATENATE(E30," ",C30),STIPENDIO!$B$5:$B$391,STIPENDIO!$H$5:$H$391))+(LOOKUP(CONCATENATE(E30," ",C30),'IND. INT. SPEC.'!$B$6:$B$39,'IND. INT. SPEC.'!$H$6:$H$39))) -> 21982.9 | G30: =IF(C30="",0,IF(BC30="DIF",LOOKUP(CONCATENATE(E30," ",C30),'IND. AMM.NE'!$C$6:$C$166,'IND. AMM.NE'!$L$6:$L$166),VLOOKUP(CONCATENATE(BC30," ",BB30),'IND. AMM.NE'!$A$171:$X$253,BD30,TRUE))) -> 2772.72 | H30: =IF(C30="",0,LOOKUP(CONCATENATE(E30," ",C30),'CCNL 2019-2021'!$C$99:$C$130,'CCNL 2019-2021'!$J$99:$J$130)) -> 0 | I30: =IF(C30="",0,LOOKUP(CONCATENATE(E30," ",C30),'VACANZA CONTR.LE'!$B$5:$B$300,'VACANZA CONTR.LE'!$J$5:$J$300)) -> 164.11 | J30: 0 | K30: 863.23 | L30: 5994.27 | M30: 30914 | O30: 499.52 | Q30: DIF | AH30: 2016-01-01 | AI30: 2016-12-31 | AJ30: A3F2 (C1S) | AK30: 21982.9 | AL30: =IF(C30="",0,LOOKUP(CONCATENATE(E30," ",C30),'IND. AMM.NE'!$C$6:$C$166,'IND. AMM.NE'!$L$6:$L$166)) -> 2772.72 | AM30: 2772.72 | AN30: 0 | AO30: 0 | AP30: 164.11 | AQ30: 0 | AR30: 863.23 | AS30: 863.23 | AT30: 5994.27 | AU30: 5994.27 | AV30: 30914 | AW30: 30914 | AY30: 499.52 | BB30: 2016-01-01 | BC30: =IF(C30="","",IF(ISNA(LOOKUP(BB30,RIFERIMENTI!$P$56:$P$70,RIFERIMENTI!$S$56:$S$70)),"DIF",LOOKUP(BB30,RIFERIMENTI!$P$56:$P$70,RIFERIMENTI!$S$56:$S$70))) -> DIF | BD30: =IF(BB30="","",IF(BC30="DIF",0,VLOOKUP(E30,RIFERIMENTI!$H$2:$N$17,7,FALSE))) -> 0 | BF30: =IF(ISNA(VLOOKUP(BC30,'IND. AMM.NE'!$U$4:$V$26,2,FALSE)),"DIFESA",VLOOKUP(BC30,'IND. AMM.NE'!$U$4:$V$26,2,FALSE)) -> DIFESA | BH30: 1
C31: =IF(RIFERIMENTI!$Q$31>0,"",RIFERIMENTI!AJ17) -> 2017-01-01 | D31: =IF(RIFERIMENTI!$Q$31>0,"",RIFERIMENTI!AK17) -> 2018-02-28 | E31: =IF(C31="","",IF(RIFERIMENTI!$Q$31=1,"",LOOKUP(C31,RIFERIMENTI!$V$49:$V$55,RIFERIMENTI!$W$49:$W$55))) -> A3F2 (C1S) | F31: =IF(C31="",0,(LOOKUP(CONCATENATE(E31," ",C31),STIPENDIO!$B$5:$B$391,STIPENDIO!$H$5:$H$391))+(LOOKUP(CONCATENATE(E31," ",C31),'IND. INT. SPEC.'!$B$6:$B$39,'IND. INT. SPEC.'!$H$6:$H$39))) -> 22188.1 | G31: =IF(C31="",0,IF(BC31="DIF",LOOKUP(CONCATENATE(E31," ",C31),'IND. AMM.NE'!$C$6:$C$166,'IND. AMM.NE'!$L$6:$L$166),VLOOKUP(CONCATENATE(BC31," ",BB31),'IND. AMM.NE'!$A$171:$X$253,BD31,TRUE))) -> 2772.72 | H31: =IF(C31="",0,LOOKUP(CONCATENATE(E31," ",C31),'CCNL 2019-2021'!$C$99:$C$130,'CCNL 2019-2021'!$J$99:$J$130)) -> 0 | I31: =IF(C31="",0,LOOKUP(CONCATENATE(E31," ",C31),'VACANZA CONTR.LE'!$B$5:$B$300,'VACANZA CONTR.LE'!$J$5:$J$300)) -> 164.11 | J31: 0 | K31: 205.2 | L31: 5789.07 | M31: =F31+G31+H31+I31+J31+L31 -> 30914 | O31: 482.42 | Q31: DIF | AH31: 2017-01-01 | AI31: 2018-02-28 | AJ31: A3F2 (C1S) | AK31: 22188.1 | AL31: =IF(C31="",0,LOOKUP(CONCATENATE(E31," ",C31),'IND. AMM.NE'!$C$6:$C$166,'IND. AMM.NE'!$L$6:$L$166)) -> 2772.72 | AM31: 2772.72 | AN31: 0 | AO31: 0 | AP31: 164.11 | AQ31: 0 | AR31: 205.2 | AS31: 205.2 | AT31: 5789.07 | AU31: 5789.07 | AV31: 30914 | AW31: 30914 | AY31: 482.42 | BB31: 2017-01-01 | BC31: =IF(C31="","",IF(ISNA(LOOKUP(BB31,RIFERIMENTI!$P$56:$P$70,RIFERIMENTI!$S$56:$S$70)),"DIF",LOOKUP(BB31,RIFERIMENTI!$P$56:$P$70,RIFERIMENTI!$S$56:$S$70))) -> DIF | BD31: =IF(BB31="","",IF(BC31="DIF",0,VLOOKUP(E31,RIFERIMENTI!$H$2:$N$17,7,FALSE))) -> 0 | BF31: =IF(ISNA(VLOOKUP(BC31,'IND. AMM.NE'!$U$4:$V$26,2,FALSE)),"DIFESA",VLOOKUP(BC31,'IND. AMM.NE'!$U$4:$V$26,2,FALSE)) -> DIFESA | BH31: 1
C32: =IF(RIFERIMENTI!$Q$31>0,"",RIFERIMENTI!AJ18) -> 2018-03-01 | D32: =IF(RIFERIMENTI!$Q$31>0,"",RIFERIMENTI!AK18) -> 2018-03-31 | E32: =IF(C32="","",IF(RIFERIMENTI!$Q$31=1,"",LOOKUP(C32,RIFERIMENTI!$V$49:$V$55,RIFERIMENTI!$W$49:$W$55))) -> A3F2 (C1S) | F32: =IF(C32="",0,(LOOKUP(CONCATENATE(E32," ",C32),STIPENDIO!$B$5:$B$391,STIPENDIO!$H$5:$H$391))+(LOOKUP(CONCATENATE(E32," ",C32),'IND. INT. SPEC.'!$B$6:$B$39,'IND. INT. SPEC.'!$H$6:$H$39))) -> 22910.5 | G32: =IF(C32="",0,IF(BC32="DIF",LOOKUP(CONCATENATE(E32," ",C32),'IND. AMM.NE'!$C$6:$C$166,'IND. AMM.NE'!$L$6:$L$166),VLOOKUP(CONCATENATE(BC32," ",BB32),'IND. AMM.NE'!$A$171:$X$253,BD32,TRUE))) -> 2772.72 | H32: =IF(C32="",0,LOOKUP(CONCATENATE(E32," ",C32),'CCNL 2019-2021'!$C$99:$C$130,'CCNL 2019-2021'!$J$99:$J$130)) -> 0 | I32: =IF(C32="",0,LOOKUP(CONCATENATE(E32," ",C32),'VACANZA CONTR.LE'!$B$5:$B$300,'VACANZA CONTR.LE'!$J$5:$J$300)) -> 164.11 | J32: 0 | K32: 722.4 | L32: 5066.67 | M32: =F32+G32+H32+I32+J32+L32 -> 30914 | O32: 422.22 | Q32: DIF | AH32: 2018-03-01 | AI32: 2018-03-31 | AJ32: A3F2 (C1S) | AK32: 22910.5 | AL32: =IF(C32="",0,LOOKUP(CONCATENATE(E32," ",C32),'IND. AMM.NE'!$C$6:$C$166,'IND. AMM.NE'!$L$6:$L$166)) -> 2772.72 | AM32: 2772.72 | AN32: 0 | AO32: 0 | AP32: 164.11 | AQ32: 0 | AR32: 722.4 | AS32: 722.4 | AT32: 5066.67 | AU32: 5066.67 | AV32: 30914 | AW32: 30914 | AY32: 422.22 | BB32: 2018-03-01 | BC32: =IF(C32="","",IF(ISNA(LOOKUP(BB32,RIFERIMENTI!$P$56:$P$70,RIFERIMENTI!$S$56:$S$70)),"DIF",LOOKUP(BB32,RIFERIMENTI!$P$56:$P$70,RIFERIMENTI!$S$56:$S$70))) -> DIF | BD32: =IF(BB32="","",IF(BC32="DIF",0,VLOOKUP(E32,RIFERIMENTI!$H$2:$N$17,7,FALSE))) -> 0 | BF32: =IF(ISNA(VLOOKUP(BC32,'IND. AMM.NE'!$U$4:$V$26,2,FALSE)),"DIFESA",VLOOKUP(BC32,'IND. AMM.NE'!$U$4:$V$26,2,FALSE)) -> DIFESA | BH32: 1
C33: =IF(RIFERIMENTI!$Q$31>0,"",RIFERIMENTI!AJ19) -> 2018-04-01 | D33: =IF(RIFERIMENTI!$Q$31>0,"",RIFERIMENTI!AK19) -> 2018-12-31 | E33: =IF(C33="","",IF(RIFERIMENTI!$Q$31=1,"",LOOKUP(C33,RIFERIMENTI!$V$49:$V$55,RIFERIMENTI!$W$49:$W$55))) -> A3F2 (C1S) | F33: =IF(C33="",0,(LOOKUP(CONCATENATE(E33," ",C33),STIPENDIO!$B$5:$B$391,STIPENDIO!$H$5:$H$391))+(LOOKUP(CONCATENATE(E33," ",C33),'IND. INT. SPEC.'!$B$6:$B$39,'IND. INT. SPEC.'!$H$6:$H$39))) -> 23074.61 | G33: =IF(C33="",0,IF(BC33="DIF",LOOKUP(CONCATENATE(E33," ",C33),'IND. AMM.NE'!$C$6:$C$166,'IND. AMM.NE'!$L$6:$L$166),VLOOKUP(CONCATENATE(BC33," ",BB33),'IND. AMM.NE'!$A$171:$X$253,BD33,TRUE))) -> 2772.72 | H33: =IF(C33="",0,LOOKUP(CONCATENATE(E33," ",C33),'CCNL 2019-2021'!$C$99:$C$130,'CCNL 2019-2021'!$J$99:$J$130)) -> 0 | I33: =IF(C33="",0,LOOKUP(CONCATENATE(E33," ",C33),'VACANZA CONTR.LE'!$B$5:$B$300,'VACANZA CONTR.LE'!$J$5:$J$300)) -> 0 | J33: 0 | K33: 0 | L33: 5066.67 | M33: 30914 | O33: 422.22 | Q33: DIF | AH33: 2018-04-01 | AI33: 2018-12-31 | AJ33: A3F2 (C1S) | AK33: 23074.61 | AL33: =IF(C33="",0,LOOKUP(CONCATENATE(E33," ",C33),'IND. AMM.NE'!$C$6:$C$166,'IND. AMM.NE'!$L$6:$L$166)) -> 2772.72 | AM33: 2772.72 | AN33: 0 | AO33: 0 | AP33: 0 | AQ33: 0 | AR33: 0 | AS33: 0 | AT33: 5066.67 | AU33: 5066.67 | AV33: 30914 | AW33: 30914 | AY33: 422.22 | BB33: 2018-04-01 | BC33: =IF(C33="","",IF(ISNA(LOOKUP(BB33,RIFERIMENTI!$P$56:$P$70,RIFERIMENTI!$S$56:$S$70)),"DIF",LOOKUP(BB33,RIFERIMENTI!$P$56:$P$70,RIFERIMENTI!$S$56:$S$70))) -> DIF | BD33: =IF(BB33="","",IF(BC33="DIF",0,VLOOKUP(E33,RIFERIMENTI!$H$2:$N$17,7,FALSE))) -> 0 | BF33: =IF(ISNA(VLOOKUP(BC33,'IND. AMM.NE'!$U$4:$V$26,2,FALSE)),"DIFESA",VLOOKUP(BC33,'IND. AMM.NE'!$U$4:$V$26,2,FALSE)) -> DIFESA | BH33: 1
C34: =IF(RIFERIMENTI!$Q$31>0,"",RIFERIMENTI!AJ20) -> 2019-01-01 | D34: =IF(RIFERIMENTI!$Q$31>0,"",RIFERIMENTI!AK20) -> 2019-12-31 | E34: =IF(C34="","",IF(RIFERIMENTI!$Q$31=1,"",LOOKUP(C34,RIFERIMENTI!$V$49:$V$55,RIFERIMENTI!$W$49:$W$55))) -> A3F2 (C1S) | F34: =IF(C34="",0,(LOOKUP(CONCATENATE(E34," ",C34),STIPENDIO!$B$5:$B$391,STIPENDIO!$H$5:$H$391))+(LOOKUP(CONCATENATE(E34," ",C34),'IND. INT. SPEC.'!$B$6:$B$39,'IND. INT. SPEC.'!$H$6:$H$39))) -> 23279.81 | G34: =IF(C34="",0,IF(BC34="DIF",LOOKUP(CONCATENATE(E34," ",C34),'IND. AMM.NE'!$C$6:$C$166,'IND. AMM.NE'!$L$6:$L$166),VLOOKUP(CONCATENATE(BC34," ",BB34),'IND. AMM.NE'!$A$171:$X$253,BD34,TRUE))) -> 2772.72 | H34: =IF(C34="",0,LOOKUP(CONCATENATE(E34," ",C34),'CCNL 2019-2021'!$C$99:$C$130,'CCNL 2019-2021'!$J$99:$J$130)) -> 0 | I34: =IF(C34="",0,LOOKUP(CONCATENATE(E34," ",C34),'VACANZA CONTR.LE'!$B$5:$B$300,'VACANZA CONTR.LE'!$J$5:$J$300)) -> 0 | J34: 0 | K34: 205.2 | L34: 4861.47 | M34: 30914 | O34: 405.12 | Q34: DIF | AH34: 2019-01-01 | AI34: 2019-12-31 | AJ34: A3F2 (C1S) | AK34: 23279.81 | AL34: =IF(C34="",0,LOOKUP(CONCATENATE(E34," ",C34),'IND. AMM.NE'!$C$6:$C$166,'IND. AMM.NE'!$L$6:$L$166)) -> 2772.72 | AM34: 2772.72 | AN34: 0 | AO34: 0 | AP34: 0 | AQ34: 0 | AR34: 205.2 | AS34: 205.2 | AT34: 4861.47 | AU34: 4861.47 | AV34: 30914 | AW34: 30914 | AY34: 405.12 | BB34: 2019-01-01 | BC34: =IF(C34="","",IF(ISNA(LOOKUP(BB34,RIFERIMENTI!$P$56:$P$70,RIFERIMENTI!$S$56:$S$70)),"DIF",LOOKUP(BB34,RIFERIMENTI!$P$56:$P$70,RIFERIMENTI!$S$56:$S$70))) -> DIF | BD34: =IF(BB34="","",IF(BC34="DIF",0,VLOOKUP(E34,RIFERIMENTI!$H$2:$N$17,7,FALSE))) -> 0 | BF34: =IF(ISNA(VLOOKUP(BC34,'IND. AMM.NE'!$U$4:$V$26,2,FALSE)),"DIFESA",VLOOKUP(BC34,'IND. AMM.NE'!$U$4:$V$26,2,FALSE)) -> DIFESA | BH34: 1
C35: =IF(RIFERIMENTI!$Q$31>0,"",RIFERIMENTI!AJ21) -> 2020-01-01 | D35: =IF(RIFERIMENTI!$Q$31>0,"",RIFERIMENTI!AK21) -> 2020-12-31 | E35: =IF(C35="","",IF(RIFERIMENTI!$Q$31=1,"",LOOKUP(C35,RIFERIMENTI!$V$49:$V$55,RIFERIMENTI!$W$49:$W$55))) -> A3F2 (C1S) | F35: =IF(C35="",0,(LOOKUP(CONCATENATE(E35," ",C35),STIPENDIO!$B$5:$B$391,STIPENDIO!$H$5:$H$391))+(LOOKUP(CONCATENATE(E35," ",C35),'IND. INT. SPEC.'!$B$6:$B$39,'IND. INT. SPEC.'!$H$6:$H$39))) -> 23489.81 | G35: =IF(C35="",0,IF(BC35="DIF",LOOKUP(CONCATENATE(E35," ",C35),'IND. AMM.NE'!$C$6:$C$166,'IND. AMM.NE'!$L$6:$L$166),VLOOKUP(CONCATENATE(BC35," ",BB35),'IND. AMM.NE'!$A$171:$X$253,BD35,TRUE))) -> 4047.72 | H35: =IF(C35="",0,LOOKUP(CONCATENATE(E35," ",C35),'CCNL 2019-2021'!$C$99:$C$130,'CCNL 2019-2021'!$J$99:$J$130)) -> 0 | I35: =IF(C35="",0,LOOKUP(CONCATENATE(E35," ",C35),'VACANZA CONTR.LE'!$B$5:$B$300,'VACANZA CONTR.LE'!$J$5:$J$300)) -> 0 | J35: 0 | K35: 1485 | L35: 3376.47 | M35: 30914 | O35: 281.37 | Q35: DIF | AH35: 2020-01-01 | AI35: 2020-12-31 | AJ35: A3F2 (C1S) | AK35: 23489.81 | AL35: =IF(C35="",0,LOOKUP(CONCATENATE(E35," ",C35),'IND. AMM.NE'!$C$6:$C$166,'IND. AMM.NE'!$L$6:$L$166)) -> 4047.72 | AM35: 4047.72 | AN35: 0 | AO35: 0 | AP35: 0 | AQ35: 0 | AR35: 1485 | AS35: 1485 | AT35: 3376.47 | AU35: 3376.47 | AV35: 30914 | AW35: 30914 | AY35: 281.37 | BB35: 2020-01-01 | BC35: =IF(C35="","",IF(ISNA(LOOKUP(BB35,RIFERIMENTI!$P$56:$P$70,RIFERIMENTI!$S$56:$S$70)),"DIF",LOOKUP(BB35,RIFERIMENTI!$P$56:$P$70,RIFERIMENTI!$S$56:$S$70))) -> DIF | BD35: =IF(BB35="","",IF(BC35="DIF",0,VLOOKUP(E35,RIFERIMENTI!$H$2:$N$17,7,FALSE))) -> 0 | BF35: =IF(ISNA(VLOOKUP(BC35,'IND. AMM.NE'!$U$4:$V$26,2,FALSE)),"DIFESA",VLOOKUP(BC35,'IND. AMM.NE'!$U$4:$V$26,2,FALSE)) -> DIFESA | BH35: 1
C36: =IF(RIFERIMENTI!$Q$31>0,"",RIFERIMENTI!AJ22) -> 2021-01-01 | D36: =IF(RIFERIMENTI!$Q$31>0,"",RIFERIMENTI!AK22) -> 2022-03-31 | E36: =IF(C36="","",IF(RIFERIMENTI!$Q$31=1,"",LOOKUP(C36,RIFERIMENTI!$V$49:$V$55,RIFERIMENTI!$W$49:$W$55))) -> A3F3 (C2) | F36: =IF(C36="",0,(LOOKUP(CONCATENATE(E36," ",C36),STIPENDIO!$B$5:$B$391,STIPENDIO!$H$5:$H$391))+(LOOKUP(CONCATENATE(E36," ",C36),'IND. INT. SPEC.'!$B$6:$B$39,'IND. INT. SPEC.'!$H$6:$H$39))) -> 25373.64 | G36: =IF(C36="",0,IF(BC36="DIF",LOOKUP(CONCATENATE(E36," ",C36),'IND. AMM.NE'!$C$6:$C$166,'IND. AMM.NE'!$L$6:$L$166),VLOOKUP(CONCATENATE(BC36," ",BB36),'IND. AMM.NE'!$A$171:$X$253,BD36,TRUE))) -> 5467.56 | H36: =IF(C36="",0,LOOKUP(CONCATENATE(E36," ",C36),'CCNL 2019-2021'!$C$99:$C$130,'CCNL 2019-2021'!$J$99:$J$130)) -> 0 | I36: =IF(C36="",0,LOOKUP(CONCATENATE(E36," ",C36),'VACANZA CONTR.LE'!$B$5:$B$300,'VACANZA CONTR.LE'!$J$5:$J$300)) -> 0 | J36: 0 | K36: 3303.67 | L36: 72.8 | M36: 30914 | O36: 6.07 | Q36: DIF | AH36: 2021-01-01 | AI36: 2022-03-31 | AJ36: A3F3 (C2) | AK36: 25373.64 | AL36: =IF(C36="",0,LOOKUP(CONCATENATE(E36," ",C36),'IND. AMM.NE'!$C$6:$C$166,'IND. AMM.NE'!$L$6:$L$166)) -> 5467.56 | AM36: 5467.56 | AN36: 0 | AO36: 0 | AP36: 0 | AQ36: 0 | AR36: 3303.67 | AS36: 3303.67 | AT36: 72.8 | AU36: 72.8 | AV36: 30914 | AW36: 30914 | AY36: 6.07 | BB36: 2021-01-01 | BC36: =IF(C36="","",IF(ISNA(LOOKUP(BB36,RIFERIMENTI!$P$56:$P$70,RIFERIMENTI!$S$56:$S$70)),"DIF",LOOKUP(BB36,RIFERIMENTI!$P$56:$P$70,RIFERIMENTI!$S$56:$S$70))) -> DIF | BD36: =IF(BB36="","",IF(BC36="DIF",0,VLOOKUP(E36,RIFERIMENTI!$H$2:$N$17,7,FALSE))) -> 0 | BF36: =IF(ISNA(VLOOKUP(BC36,'IND. AMM.NE'!$U$4:$V$26,2,FALSE)),"DIFESA",VLOOKUP(BC36,'IND. AMM.NE'!$U$4:$V$26,2,FALSE)) -> DIFESA | BH36: 1
C37: =IF(RIFERIMENTI!$Q$31>0,"",RIFERIMENTI!AJ23) -> 2022-04-01 | D37: =IF(RIFERIMENTI!$Q$31>0,"",RIFERIMENTI!AK23) -> 2022-06-30 | E37: =IF(C37="","",IF(RIFERIMENTI!$Q$31=1,"",LOOKUP(C37,RIFERIMENTI!$V$49:$V$55,RIFERIMENTI!$W$49:$W$55))) -> A3F3 (C2) | F37: =IF(C37="",0,(LOOKUP(CONCATENATE(E37," ",C37),STIPENDIO!$B$5:$B$391,STIPENDIO!$H$5:$H$391))+(LOOKUP(CONCATENATE(E37," ",C37),'IND. INT. SPEC.'!$B$6:$B$39,'IND. INT. SPEC.'!$H$6:$H$39))) -> 25373.64 | G37: =IF(C37="",0,IF(BC37="DIF",LOOKUP(CONCATENATE(E37," ",C37),'IND. AMM.NE'!$C$6:$C$166,'IND. AMM.NE'!$L$6:$L$166),VLOOKUP(CONCATENATE(BC37," ",BB37),'IND. AMM.NE'!$A$171:$X$253,BD37,TRUE))) -> 5467.56 | H37: =IF(C37="",0,LOOKUP(CONCATENATE(E37," ",C37),'CCNL 2019-2021'!$C$99:$C$130,'CCNL 2019-2021'!$J$99:$J$130)) -> 0 | I37: =IF(C37="",0,LOOKUP(CONCATENATE(E37," ",C37),'VACANZA CONTR.LE'!$B$5:$B$300,'VACANZA CONTR.LE'!$J$5:$J$300)) -> 76.12 | J37: 0 | K37: 76.12 | L37: 0 | M37: 30917.32 | O37: 0 | Q37: DIF | AH37: 2022-04-01 | AI37: 2022-06-30 | AJ37: A3F3 (C2) | AK37: 25373.64 | AL37: =IF(C37="",0,LOOKUP(CONCATENATE(E37," ",C37),'IND. AMM.NE'!$C$6:$C$166,'IND. AMM.NE'!$L$6:$L$166)) -> 5467.56 | AM37: 5467.56 | AN37: 0 | AO37: 0 | AP37: 76.12 | AQ37: 0 | AR37: 76.12 | AS37: 76.12 | AT37: 0 | AU37: 0 | AV37: 30917.32 | AW37: 30917.32 | AY37: 0 | BB37: 2022-04-01 | BC37: =IF(C37="","",IF(ISNA(LOOKUP(BB37,RIFERIMENTI!$P$56:$P$70,RIFERIMENTI!$S$56:$S$70)),"DIF",LOOKUP(BB37,RIFERIMENTI!$P$56:$P$70,RIFERIMENTI!$S$56:$S$70))) -> DIF | BD37: =IF(BB37="","",IF(BC37="DIF",0,VLOOKUP(E37,RIFERIMENTI!$H$2:$N$17,7,FALSE))) -> 0 | BF37: =IF(ISNA(VLOOKUP(BC37,'IND. AMM.NE'!$U$4:$V$26,2,FALSE)),"DIFESA",VLOOKUP(BC37,'IND. AMM.NE'!$U$4:$V$26,2,FALSE)) -> DIFESA | BH37: 1
C38: =IF(RIFERIMENTI!$Q$31>0,"",RIFERIMENTI!AJ24) -> 2022-07-01 | D38: =IF(RIFERIMENTI!$Q$31>0,"",RIFERIMENTI!AK24) -> 2022-10-31 | E38: =IF(C38="","",IF(RIFERIMENTI!$Q$31=1,"",LOOKUP(C38,RIFERIMENTI!$V$49:$V$55,RIFERIMENTI!$W$49:$W$55))) -> A3F3 (C2) | F38: =IF(C38="",0,(LOOKUP(CONCATENATE(E38," ",C38),STIPENDIO!$B$5:$B$391,STIPENDIO!$H$5:$H$391))+(LOOKUP(CONCATENATE(E38," ",C38),'IND. INT. SPEC.'!$B$6:$B$39,'IND. INT. SPEC.'!$H$6:$H$39))) -> 25373.64 | G38: =IF(C38="",0,IF(BC38="DIF",LOOKUP(CONCATENATE(E38," ",C38),'IND. AMM.NE'!$C$6:$C$166,'IND. AMM.NE'!$L$6:$L$166),VLOOKUP(CONCATENATE(BC38," ",BB38),'IND. AMM.NE'!$A$171:$X$253,BD38,TRUE))) -> 5467.56 | H38: =IF(C38="",0,LOOKUP(CONCATENATE(E38," ",C38),'CCNL 2019-2021'!$C$99:$C$130,'CCNL 2019-2021'!$J$99:$J$130)) -> 0 | I38: =IF(C38="",0,LOOKUP(CONCATENATE(E38," ",C38),'VACANZA CONTR.LE'!$B$5:$B$300,'VACANZA CONTR.LE'!$J$5:$J$300)) -> 126.87 | J38: 0 | K38: 50.75 | L38: 0 | M38: 30968.07 | O38: 0 | Q38: DIF | AH38: 2022-07-01 | AI38: 2022-10-31 | AJ38: A3F3 (C2) | AK38: 25373.64 | AL38: =IF(C38="",0,LOOKUP(CONCATENATE(E38," ",C38),'IND. AMM.NE'!$C$6:$C$166,'IND. AMM.NE'!$L$6:$L$166)) -> 5467.56 | AM38: 5467.56 | AN38: 0 | AO38: 0 | AP38: 126.87 | AQ38: 0 | AR38: 50.75 | AS38: 50.75 | AT38: 0 | AU38: 0 | AV38: 30968.07 | AW38: 30968.07 | AY38: 0 | BB38: 2022-07-01 | BC38: =IF(C38="","",IF(ISNA(LOOKUP(BB38,RIFERIMENTI!$P$56:$P$70,RIFERIMENTI!$S$56:$S$70)),"DIF",LOOKUP(BB38,RIFERIMENTI!$P$56:$P$70,RIFERIMENTI!$S$56:$S$70))) -> DIF | BD38: =IF(BB38="","",IF(BC38="DIF",0,VLOOKUP(E38,RIFERIMENTI!$H$2:$N$17,7,FALSE))) -> 0 | BF38: =IF(ISNA(VLOOKUP(BC38,'IND. AMM.NE'!$U$4:$V$26,2,FALSE)),"DIFESA",VLOOKUP(BC38,'IND. AMM.NE'!$U$4:$V$26,2,FALSE)) -> DIFESA | BH38: 1
C39: =IF(RIFERIMENTI!$Q$31>0,"",RIFERIMENTI!AJ25) -> 2022-11-01 | D39: =IF(RIFERIMENTI!$Q$31>0,"",RIFERIMENTI!AK25) -> 2023-12-31 | E39: =IF(C39="","",IF(RIFERIMENTI!$Q$31=1,"",LOOKUP(C39,RIFERIMENTI!$V$49:$V$55,RIFERIMENTI!$W$49:$W$55))) -> A3F3 (C2) | F39: =IF(C39="",0,(LOOKUP(CONCATENATE(E39," ",C39),STIPENDIO!$B$5:$B$391,STIPENDIO!$H$5:$H$391))+(LOOKUP(CONCATENATE(E39," ",C39),'IND. INT. SPEC.'!$B$6:$B$39,'IND. INT. SPEC.'!$H$6:$H$39))) -> 23501.88 | G39: =IF(C39="",0,IF(BC39="DIF",LOOKUP(CONCATENATE(E39," ",C39),'IND. AMM.NE'!$C$6:$C$166,'IND. AMM.NE'!$L$6:$L$166),VLOOKUP(CONCATENATE(BC39," ",BB39),'IND. AMM.NE'!$A$171:$X$253,BD39,TRUE))) -> 4638 | H39: =IF(C39="",0,LOOKUP(CONCATENATE(E39," ",C39),'CCNL 2019-2021'!$C$99:$C$130,'CCNL 2019-2021'!$J$99:$J$130)) -> 2637.48 | I39: =IF(C39="",0,LOOKUP(CONCATENATE(E39," ",C39),'VACANZA CONTR.LE'!$B$5:$B$300,'VACANZA CONTR.LE'!$J$5:$J$300)) -> 126.87 | J39: 0 | K39: -63.84 | L39: 9.77 | M39: 30914 | O39: 0.81 | Q39: DIF | AH39: 2022-11-01 | AI39: 2023-12-31 | AJ39: A3F3 (C2) | AK39: 23501.88 | AL39: =IF(C39="",0,LOOKUP(CONCATENATE(E39," ",C39),'IND. AMM.NE'!$C$6:$C$166,'IND. AMM.NE'!$L$6:$L$166)) -> 4638 | AM39: 4638 | AN39: 0 | AO39: 2637.48 | AP39: 126.87 | AQ39: 0 | AR39: -63.84 | AS39: -63.84 | AT39: 9.77 | AU39: 9.77 | AV39: 30914 | AW39: 30914 | AY39: 0.81 | BB39: 2022-11-01 | BC39: =IF(C39="","",IF(ISNA(LOOKUP(BB39,RIFERIMENTI!$P$56:$P$70,RIFERIMENTI!$S$56:$S$70)),"DIF",LOOKUP(BB39,RIFERIMENTI!$P$56:$P$70,RIFERIMENTI!$S$56:$S$70))) -> DIF | BD39: =IF(BB39="","",IF(BC39="DIF",0,VLOOKUP(E39,RIFERIMENTI!$H$2:$N$17,7,FALSE))) -> 0 | BF39: =IF(ISNA(VLOOKUP(BC39,'IND. AMM.NE'!$U$4:$V$26,2,FALSE)),"DIFESA",VLOOKUP(BC39,'IND. AMM.NE'!$U$4:$V$26,2,FALSE)) -> DIFESA | BH39: 1
C40: =IF(RIFERIMENTI!$Q$31>0,"",RIFERIMENTI!AJ26) -> 2024-01-01 | D40: =IF(RIFERIMENTI!$Q$31>0,"",RIFERIMENTI!AK26) -> 9999-12-31 | E40: =IF(C40="","",IF(RIFERIMENTI!$Q$31=1,"",LOOKUP(C40,RIFERIMENTI!$V$49:$V$55,RIFERIMENTI!$W$49:$W$55))) -> A3F3 (C2) | F40: =IF(C40="",0,(LOOKUP(CONCATENATE(E40," ",C40),STIPENDIO!$B$5:$B$391,STIPENDIO!$H$5:$H$391))+(LOOKUP(CONCATENATE(E40," ",C40),'IND. INT. SPEC.'!$B$6:$B$39,'IND. INT. SPEC.'!$H$6:$H$39))) -> 23501.88 | G40: =IF(C40="",0,IF(BC40="DIF",LOOKUP(CONCATENATE(E40," ",C40),'IND. AMM.NE'!$C$6:$C$166,'IND. AMM.NE'!$L$6:$L$166),VLOOKUP(CONCATENATE(BC40," ",BB40),'IND. AMM.NE'!$A$171:$X$253,BD40,TRUE))) -> 4638 | H40: =IF(C40="",0,LOOKUP(CONCATENATE(E40," ",C40),'CCNL 2019-2021'!$C$99:$C$130,'CCNL 2019-2021'!$J$99:$J$130)) -> 2637.48 | I40: =IF(C40="",0,LOOKUP(CONCATENATE(E40," ",C40),'VACANZA CONTR.LE'!$B$5:$B$300,'VACANZA CONTR.LE'!$J$5:$J$300)) -> 976.7 | J40: 0 | K40: 849.83 | L40: 0 | M40: 31754.06 | O40: 0 | Q40: DIF | AH40: 2024-01-01 | AI40: 9999-12-31 | AJ40: A3F3 (C2) | AK40: 23501.88 | AL40: =IF(C40="",0,LOOKUP(CONCATENATE(E40," ",C40),'IND. AMM.NE'!$C$6:$C$166,'IND. AMM.NE'!$L$6:$L$166)) -> 4638 | AM40: 4638 | AN40: 0 | AO40: 2637.48 | AP40: 976.7 | AQ40: 0 | AR40: 849.83 | AS40: 849.83 | AT40: 0 | AU40: 0 | AV40: 31754.06 | AW40: 31754.06 | AY40: 0 | BB40: 2024-01-01 | BC40: =IF(C40="","",IF(ISNA(LOOKUP(BB40,RIFERIMENTI!$P$56:$P$70,RIFERIMENTI!$S$56:$S$70)),"DIF",LOOKUP(BB40,RIFERIMENTI!$P$56:$P$70,RIFERIMENTI!$S$56:$S$70))) -> DIF | BD40: =IF(BB40="","",IF(BC40="DIF",0,VLOOKUP(E40,RIFERIMENTI!$H$2:$N$17,7,FALSE))) -> 0 | BF40: =IF(ISNA(VLOOKUP(BC40,'IND. AMM.NE'!$U$4:$V$26,2,FALSE)),"DIFESA",VLOOKUP(BC40,'IND. AMM.NE'!$U$4:$V$26,2,FALSE)) -> DIFESA | BH40: 1
C41: =IF(RIFERIMENTI!$Q$31>0,"",RIFERIMENTI!AJ27) ->  | D41: =IF(RIFERIMENTI!$Q$31>0,"",RIFERIMENTI!AK27) ->  | E41: =IF(C41="","",IF(RIFERIMENTI!$Q$31=1,"",LOOKUP(C41,RIFERIMENTI!$V$49:$V$55,RIFERIMENTI!$W$49:$W$55))) ->  | F41: =IF(C41="",0,(LOOKUP(CONCATENATE(E41," ",C41),STIPENDIO!$B$5:$B$391,STIPENDIO!$H$5:$H$391))+(LOOKUP(CONCATENATE(E41," ",C41),'IND. INT. SPEC.'!$B$6:$B$39,'IND. INT. SPEC.'!$H$6:$H$39))) -> 0 | G41: =IF(C41="",0,IF(BC41="DIF",LOOKUP(CONCATENATE(E41," ",C41),'IND. AMM.NE'!$C$6:$C$166,'IND. AMM.NE'!$L$6:$L$166),VLOOKUP(CONCATENATE(BC41," ",BB41),'IND. AMM.NE'!$A$171:$X$253,BD41,TRUE))) -> 0 | H41: =IF(C41="",0,LOOKUP(CONCATENATE(E41," ",C41),'CCNL 2019-2021'!$C$99:$C$130,'CCNL 2019-2021'!$J$99:$J$130)) -> 0 | I41: =IF(C41="",0,LOOKUP(CONCATENATE(E41," ",C41),'VACANZA CONTR.LE'!$B$5:$B$300,'VACANZA CONTR.LE'!$J$5:$J$300)) -> 0 | J41: 0 | K41: 0 | L41: 0 | M41: 0 | O41: 0 | AK41: 0 | AL41: =IF(C41="",0,LOOKUP(CONCATENATE(E41," ",C41),'IND. AMM.NE'!$C$6:$C$166,'IND. AMM.NE'!$L$6:$L$166)) -> 0 | AM41: 0 | AN41: 0 | AO41: 0 | AP41: 0 | AQ41: 0 | AR41: 0 | AS41: 0 | AT41: 0 | AU41: 0 | AV41: 0 | AW41: 0 | AY41: 0 | BC41: =IF(C41="","",IF(ISNA(LOOKUP(BB41,RIFERIMENTI!$P$56:$P$70,RIFERIMENTI!$S$56:$S$70)),"DIF",LOOKUP(BB41,RIFERIMENTI!$P$56:$P$70,RIFERIMENTI!$S$56:$S$70))) ->  | BD41: =IF(BB41="","",IF(BC41="DIF",0,VLOOKUP(E41,RIFERIMENTI!$H$2:$N$17,7,FALSE))) ->  | BF41: =IF(ISNA(VLOOKUP(BC41,'IND. AMM.NE'!$U$4:$V$26,2,FALSE)),"DIFESA",VLOOKUP(BC41,'IND. AMM.NE'!$U$4:$V$26,2,FALSE)) -> DIFESA | BH41: 0
C42: =IF(RIFERIMENTI!$Q$31>0,"",RIFERIMENTI!AJ28) ->  | D42: =IF(RIFERIMENTI!$Q$31>0,"",RIFERIMENTI!AK28) ->  | E42: =IF(C42="","",IF(RIFERIMENTI!$Q$31=1,"",LOOKUP(C42,RIFERIMENTI!$V$49:$V$55,RIFERIMENTI!$W$49:$W$55))) ->  | F42: =IF(C42="",0,(LOOKUP(CONCATENATE(E42," ",C42),STIPENDIO!$B$5:$B$391,STIPENDIO!$H$5:$H$391))+(LOOKUP(CONCATENATE(E42," ",C42),'IND. INT. SPEC.'!$B$6:$B$39,'IND. INT. SPEC.'!$H$6:$H$39))) -> 0 | G42: =IF(C42="",0,IF(BC42="DIF",LOOKUP(CONCATENATE(E42," ",C42),'IND. AMM.NE'!$C$6:$C$166,'IND. AMM.NE'!$L$6:$L$166),VLOOKUP(CONCATENATE(BC42," ",BB42),'IND. AMM.NE'!$A$171:$X$253,BD42,TRUE))) -> 0 | H42: =IF(C42="",0,LOOKUP(CONCATENATE(E42," ",C42),'CCNL 2019-2021'!$C$99:$C$130,'CCNL 2019-2021'!$J$99:$J$130)) -> 0 | I42: =IF(C42="",0,LOOKUP(CONCATENATE(E42," ",C42),'VACANZA CONTR.LE'!$B$5:$B$300,'VACANZA CONTR.LE'!$J$5:$J$300)) -> 0 | J42: 0 | K42: 0 | L42: 0 | M42: 0 | O42: 0 | AK42: 0 | AL42: =IF(C42="",0,LOOKUP(CONCATENATE(E42," ",C42),'IND. AMM.NE'!$C$6:$C$166,'IND. AMM.NE'!$L$6:$L$166)) -> 0 | AM42: 0 | AN42: 0 | AO42: 0 | AP42: 0 | AQ42: 0 | AR42: 0 | AS42: 0 | AT42: 0 | AU42: 0 | AV42: 0 | AW42: 0 | AY42: 0 | BC42: =IF(C42="","",IF(ISNA(LOOKUP(BB42,RIFERIMENTI!$P$56:$P$70,RIFERIMENTI!$S$56:$S$70)),"DIF",LOOKUP(BB42,RIFERIMENTI!$P$56:$P$70,RIFERIMENTI!$S$56:$S$70))) ->  | BD42: =IF(BB42="","",IF(BC42="DIF",0,VLOOKUP(E42,RIFERIMENTI!$H$2:$N$17,7,FALSE))) ->  | BF42: =IF(ISNA(VLOOKUP(BC42,'IND. AMM.NE'!$U$4:$V$26,2,FALSE)),"DIFESA",VLOOKUP(BC42,'IND. AMM.NE'!$U$4:$V$26,2,FALSE)) -> DIFESA | BH42: 0
C43: =IF(RIFERIMENTI!$Q$31>0,"",RIFERIMENTI!AJ29) ->  | D43: =IF(RIFERIMENTI!$Q$31>0,"",RIFERIMENTI!AK29) ->  | E43: =IF(C43="","",IF(RIFERIMENTI!$Q$31=1,"",LOOKUP(C43,RIFERIMENTI!$V$49:$V$55,RIFERIMENTI!$W$49:$W$55))) ->  | F43: =IF(C43="",0,(LOOKUP(CONCATENATE(E43," ",C43),STIPENDIO!$B$5:$B$391,STIPENDIO!$H$5:$H$391))+(LOOKUP(CONCATENATE(E43," ",C43),'IND. INT. SPEC.'!$B$6:$B$39,'IND. INT. SPEC.'!$H$6:$H$39))) -> 0 | G43: =IF(C43="",0,IF(BC43="DIF",LOOKUP(CONCATENATE(E43," ",C43),'IND. AMM.NE'!$C$6:$C$166,'IND. AMM.NE'!$L$6:$L$166),VLOOKUP(CONCATENATE(BC43," ",BB43),'IND. AMM.NE'!$A$171:$X$253,BD43,TRUE))) -> 0 | H43: =IF(C43="",0,LOOKUP(CONCATENATE(E43," ",C43),'CCNL 2019-2021'!$C$99:$C$130,'CCNL 2019-2021'!$J$99:$J$130)) -> 0 | I43: =IF(C43="",0,LOOKUP(CONCATENATE(E43," ",C43),'VACANZA CONTR.LE'!$B$5:$B$300,'VACANZA CONTR.LE'!$J$5:$J$300)) -> 0 | J43: 0 | K43: 0 | L43: 0 | M43: 0 | O43: 0 | AK43: 0 | AL43: =IF(C43="",0,LOOKUP(CONCATENATE(E43," ",C43),'IND. AMM.NE'!$C$6:$C$166,'IND. AMM.NE'!$L$6:$L$166)) -> 0 | AM43: 0 | AN43: 0 | AO43: 0 | AP43: 0 | AQ43: 0 | AR43: 0 | AS43: 0 | AT43: 0 | AU43: 0 | AV43: 0 | AW43: 0 | AY43: 0 | BC43: =IF(C43="","",IF(ISNA(LOOKUP(BB43,RIFERIMENTI!$P$56:$P$70,RIFERIMENTI!$S$56:$S$70)),"DIF",LOOKUP(BB43,RIFERIMENTI!$P$56:$P$70,RIFERIMENTI!$S$56:$S$70))) ->  | BD43: =IF(BB43="","",IF(BC43="DIF",0,VLOOKUP(E43,RIFERIMENTI!$H$2:$N$17,7,FALSE))) ->  | BF43: =IF(ISNA(VLOOKUP(BC43,'IND. AMM.NE'!$U$4:$V$26,2,FALSE)),"DIFESA",VLOOKUP(BC43,'IND. AMM.NE'!$U$4:$V$26,2,FALSE)) -> DIFESA | BH43: 0
C44: =IF(RIFERIMENTI!$Q$31>0,"",RIFERIMENTI!AJ30) ->  | D44: =IF(RIFERIMENTI!$Q$31>0,"",RIFERIMENTI!AK30) ->  | E44: =IF(C44="","",IF(RIFERIMENTI!$Q$31=1,"",LOOKUP(C44,RIFERIMENTI!$V$49:$V$55,RIFERIMENTI!$W$49:$W$55))) ->  | F44: =IF(C44="",0,(LOOKUP(CONCATENATE(E44," ",C44),STIPENDIO!$B$5:$B$391,STIPENDIO!$H$5:$H$391))+(LOOKUP(CONCATENATE(E44," ",C44),'IND. INT. SPEC.'!$B$6:$B$39,'IND. INT. SPEC.'!$H$6:$H$39))) -> 0 | G44: =IF(C44="",0,IF(BC44="DIF",LOOKUP(CONCATENATE(E44," ",C44),'IND. AMM.NE'!$C$6:$C$166,'IND. AMM.NE'!$L$6:$L$166),VLOOKUP(CONCATENATE(BC44," ",BB44),'IND. AMM.NE'!$A$171:$X$253,BD44,TRUE))) -> 0 | H44: =IF(C44="",0,LOOKUP(CONCATENATE(E44," ",C44),'CCNL 2019-2021'!$C$99:$C$130,'CCNL 2019-2021'!$J$99:$J$130)) -> 0 | I44: =IF(C44="",0,LOOKUP(CONCATENATE(E44," ",C44),'VACANZA CONTR.LE'!$B$5:$B$300,'VACANZA CONTR.LE'!$J$5:$J$300)) -> 0 | J44: 0 | K44: 0 | L44: 0 | M44: 0 | O44: 0 | AK44: 0 | AL44: =IF(C44="",0,LOOKUP(CONCATENATE(E44," ",C44),'IND. AMM.NE'!$C$6:$C$166,'IND. AMM.NE'!$L$6:$L$166)) -> 0 | AM44: 0 | AN44: 0 | AO44: 0 | AP44: 0 | AQ44: 0 | AR44: 0 | AS44: 0 | AT44: 0 | AU44: 0 | AV44: 0 | AW44: 0 | AY44: 0 | BC44: =IF(C44="","",IF(ISNA(LOOKUP(BB44,RIFERIMENTI!$P$56:$P$70,RIFERIMENTI!$S$56:$S$70)),"DIF",LOOKUP(BB44,RIFERIMENTI!$P$56:$P$70,RIFERIMENTI!$S$56:$S$70))) ->  | BD44: =IF(BB44="","",IF(BC44="DIF",0,VLOOKUP(E44,RIFERIMENTI!$H$2:$N$17,7,FALSE))) ->  | BF44: =IF(ISNA(VLOOKUP(BC44,'IND. AMM.NE'!$U$4:$V$26,2,FALSE)),"DIFESA",VLOOKUP(BC44,'IND. AMM.NE'!$U$4:$V$26,2,FALSE)) -> DIFESA | BH44: 0
C45: =IF(RIFERIMENTI!$Q$31>0,"",RIFERIMENTI!AJ31) ->  | D45: =IF(RIFERIMENTI!$Q$31>0,"",RIFERIMENTI!AK31) ->  | E45: =IF(C45="","",IF(RIFERIMENTI!$Q$31=1,"",LOOKUP(C45,RIFERIMENTI!$V$49:$V$55,RIFERIMENTI!$W$49:$W$55))) ->  | F45: =IF(C45="",0,(LOOKUP(CONCATENATE(E45," ",C45),STIPENDIO!$B$5:$B$391,STIPENDIO!$H$5:$H$391))+(LOOKUP(CONCATENATE(E45," ",C45),'IND. INT. SPEC.'!$B$6:$B$39,'IND. INT. SPEC.'!$H$6:$H$39))) -> 0 | G45: =IF(C45="",0,IF(BC45="DIF",LOOKUP(CONCATENATE(E45," ",C45),'IND. AMM.NE'!$C$6:$C$166,'IND. AMM.NE'!$L$6:$L$166),VLOOKUP(CONCATENATE(BC45," ",BB45),'IND. AMM.NE'!$A$171:$X$253,BD45,TRUE))) -> 0 | H45: =IF(C45="",0,LOOKUP(CONCATENATE(E45," ",C45),'CCNL 2019-2021'!$C$99:$C$130,'CCNL 2019-2021'!$J$99:$J$130)) -> 0 | I45: =IF(C45="",0,LOOKUP(CONCATENATE(E45," ",C45),'VACANZA CONTR.LE'!$B$5:$B$300,'VACANZA CONTR.LE'!$J$5:$J$300)) -> 0 | J45: 0 | K45: 0 | L45: 0 | M45: 0 | O45: 0 | AK45: 0 | AL45: =IF(C45="",0,LOOKUP(CONCATENATE(E45," ",C45),'IND. AMM.NE'!$C$6:$C$166,'IND. AMM.NE'!$L$6:$L$166)) -> 0 | AM45: 0 | AN45: 0 | AO45: 0 | AP45: 0 | AQ45: 0 | AR45: 0 | AS45: 0 | AT45: 0 | AU45: 0 | AV45: 0 | AW45: 0 | AY45: 0 | BC45: =IF(C45="","",IF(ISNA(LOOKUP(BB45,RIFERIMENTI!$P$56:$P$70,RIFERIMENTI!$S$56:$S$70)),"DIF",LOOKUP(BB45,RIFERIMENTI!$P$56:$P$70,RIFERIMENTI!$S$56:$S$70))) ->  | BD45: =IF(BB45="","",IF(BC45="DIF",0,VLOOKUP(E45,RIFERIMENTI!$H$2:$N$17,7,FALSE))) ->  | BF45: =IF(ISNA(VLOOKUP(BC45,'IND. AMM.NE'!$U$4:$V$26,2,FALSE)),"DIFESA",VLOOKUP(BC45,'IND. AMM.NE'!$U$4:$V$26,2,FALSE)) -> DIFESA | BH45: 0
C46: =IF(RIFERIMENTI!$Q$31>0,"",RIFERIMENTI!AJ32) ->  | D46: =IF(RIFERIMENTI!$Q$31>0,"",RIFERIMENTI!AK32) ->  | E46: =IF(C46="","",IF(RIFERIMENTI!$Q$31=1,"",LOOKUP(C46,RIFERIMENTI!$V$49:$V$55,RIFERIMENTI!$W$49:$W$55))) ->  | F46: =IF(C46="",0,(LOOKUP(CONCATENATE(E46," ",C46),STIPENDIO!$B$5:$B$391,STIPENDIO!$H$5:$H$391))+(LOOKUP(CONCATENATE(E46," ",C46),'IND. INT. SPEC.'!$B$6:$B$39,'IND. INT. SPEC.'!$H$6:$H$39))) -> 0 | G46: =IF(C46="",0,IF(BC46="DIF",LOOKUP(CONCATENATE(E46," ",C46),'IND. AMM.NE'!$C$6:$C$166,'IND. AMM.NE'!$L$6:$L$166),VLOOKUP(CONCATENATE(BC46," ",BB46),'IND. AMM.NE'!$A$171:$X$253,BD46,TRUE))) -> 0 | H46: =IF(C46="",0,LOOKUP(CONCATENATE(E46," ",C46),'CCNL 2019-2021'!$C$99:$C$130,'CCNL 2019-2021'!$J$99:$J$130)) -> 0 | I46: =IF(C46="",0,LOOKUP(CONCATENATE(E46," ",C46),'VACANZA CONTR.LE'!$B$5:$B$300,'VACANZA CONTR.LE'!$J$5:$J$300)) -> 0 | J46: 0 | K46: 0 | L46: 0 | M46: 0 | O46: 0 | AK46: 0 | AL46: =IF(C46="",0,LOOKUP(CONCATENATE(E46," ",C46),'IND. AMM.NE'!$C$6:$C$166,'IND. AMM.NE'!$L$6:$L$166)) -> 0 | AM46: 0 | AN46: 0 | AO46: 0 | AP46: 0 | AQ46: 0 | AR46: 0 | AS46: 0 | AT46: 0 | AU46: 0 | AV46: 0 | AW46: 0 | AY46: 0 | BC46: =IF(C46="","",IF(ISNA(LOOKUP(BB46,RIFERIMENTI!$P$56:$P$70,RIFERIMENTI!$S$56:$S$70)),"DIF",LOOKUP(BB46,RIFERIMENTI!$P$56:$P$70,RIFERIMENTI!$S$56:$S$70))) ->  | BD46: =IF(BB46="","",IF(BC46="DIF",0,VLOOKUP(E46,RIFERIMENTI!$H$2:$N$17,7,FALSE))) ->  | BF46: =IF(ISNA(VLOOKUP(BC46,'IND. AMM.NE'!$U$4:$V$26,2,FALSE)),"DIFESA",VLOOKUP(BC46,'IND. AMM.NE'!$U$4:$V$26,2,FALSE)) -> DIFESA | BH46: 0
C47: =IF(RIFERIMENTI!$Q$31>0,"",RIFERIMENTI!AJ33) ->  | D47: =IF(RIFERIMENTI!$Q$31>0,"",RIFERIMENTI!AK33) ->  | E47: =IF(C47="","",IF(RIFERIMENTI!$Q$31=1,"",LOOKUP(C47,RIFERIMENTI!$V$49:$V$55,RIFERIMENTI!$W$49:$W$55))) ->  | F47: =IF(C47="",0,(LOOKUP(CONCATENATE(E47," ",C47),STIPENDIO!$B$5:$B$391,STIPENDIO!$H$5:$H$391))+(LOOKUP(CONCATENATE(E47," ",C47),'IND. INT. SPEC.'!$B$6:$B$39,'IND. INT. SPEC.'!$H$6:$H$39))) -> 0 | G47: =IF(C47="",0,IF(BC47="DIF",LOOKUP(CONCATENATE(E47," ",C47),'IND. AMM.NE'!$C$6:$C$166,'IND. AMM.NE'!$L$6:$L$166),VLOOKUP(CONCATENATE(BC47," ",BB47),'IND. AMM.NE'!$A$171:$X$253,BD47,TRUE))) -> 0 | H47: =IF(C47="",0,LOOKUP(CONCATENATE(E47," ",C47),'CCNL 2019-2021'!$C$99:$C$130,'CCNL 2019-2021'!$J$99:$J$130)) -> 0 | I47: =IF(C47="",0,LOOKUP(CONCATENATE(E47," ",C47),'VACANZA CONTR.LE'!$B$5:$B$300,'VACANZA CONTR.LE'!$J$5:$J$300)) -> 0 | J47: 0 | K47: 0 | L47: 0 | M47: 0 | O47: 0 | AK47: 0 | AL47: =IF(C47="",0,LOOKUP(CONCATENATE(E47," ",C47),'IND. AMM.NE'!$C$6:$C$166,'IND. AMM.NE'!$L$6:$L$166)) -> 0 | AM47: 0 | AN47: 0 | AO47: 0 | AP47: 0 | AQ47: 0 | AR47: 0 | AS47: 0 | AT47: 0 | AU47: 0 | AV47: 0 | AW47: 0 | AY47: 0 | BC47: =IF(C47="","",IF(ISNA(LOOKUP(BB47,RIFERIMENTI!$P$56:$P$70,RIFERIMENTI!$S$56:$S$70)),"DIF",LOOKUP(BB47,RIFERIMENTI!$P$56:$P$70,RIFERIMENTI!$S$56:$S$70))) ->  | BD47: =IF(BB47="","",IF(BC47="DIF",0,VLOOKUP(E47,RIFERIMENTI!$H$2:$N$17,7,FALSE))) ->  | BF47: =IF(ISNA(VLOOKUP(BC47,'IND. AMM.NE'!$U$4:$V$26,2,FALSE)),"DIFESA",VLOOKUP(BC47,'IND. AMM.NE'!$U$4:$V$26,2,FALSE)) -> DIFESA | BH47: 0
C48: =IF(RIFERIMENTI!$Q$31>0,"",RIFERIMENTI!AJ34) ->  | D48: =IF(RIFERIMENTI!$Q$31>0,"",RIFERIMENTI!AK34) ->  | E48: =IF(C48="","",IF(RIFERIMENTI!$Q$31=1,"",LOOKUP(C48,RIFERIMENTI!$V$49:$V$55,RIFERIMENTI!$W$49:$W$55))) ->  | F48: =IF(C48="",0,(LOOKUP(CONCATENATE(E48," ",C48),STIPENDIO!$B$5:$B$391,STIPENDIO!$H$5:$H$391))+(LOOKUP(CONCATENATE(E48," ",C48),'IND. INT. SPEC.'!$B$6:$B$39,'IND. INT. SPEC.'!$H$6:$H$39))) -> 0 | G48: =IF(C48="",0,IF(BC48="DIF",LOOKUP(CONCATENATE(E48," ",C48),'IND. AMM.NE'!$C$6:$C$166,'IND. AMM.NE'!$L$6:$L$166),VLOOKUP(CONCATENATE(BC48," ",BB48),'IND. AMM.NE'!$A$171:$X$253,BD48,TRUE))) -> 0 | H48: =IF(C48="",0,LOOKUP(CONCATENATE(E48," ",C48),'CCNL 2019-2021'!$C$99:$C$130,'CCNL 2019-2021'!$J$99:$J$130)) -> 0 | I48: =IF(C48="",0,LOOKUP(CONCATENATE(E48," ",C48),'VACANZA CONTR.LE'!$B$5:$B$300,'VACANZA CONTR.LE'!$J$5:$J$300)) -> 0 | J48: 0 | K48: 0 | L48: 0 | M48: 0 | O48: 0 | AK48: 0 | AL48: =IF(C48="",0,LOOKUP(CONCATENATE(E48," ",C48),'IND. AMM.NE'!$C$6:$C$166,'IND. AMM.NE'!$L$6:$L$166)) -> 0 | AM48: 0 | AN48: 0 | AO48: 0 | AP48: 0 | AQ48: 0 | AR48: 0 | AS48: 0 | AT48: 0 | AU48: 0 | AV48: 0 | AW48: 0 | AY48: 0 | BC48: =IF(C48="","",IF(ISNA(LOOKUP(BB48,RIFERIMENTI!$P$56:$P$70,RIFERIMENTI!$S$56:$S$70)),"DIF",LOOKUP(BB48,RIFERIMENTI!$P$56:$P$70,RIFERIMENTI!$S$56:$S$70))) ->  | BD48: =IF(BB48="","",IF(BC48="DIF",0,VLOOKUP(E48,RIFERIMENTI!$H$2:$N$17,7,FALSE))) ->  | BF48: =IF(ISNA(VLOOKUP(BC48,'IND. AMM.NE'!$U$4:$V$26,2,FALSE)),"DIFESA",VLOOKUP(BC48,'IND. AMM.NE'!$U$4:$V$26,2,FALSE)) -> DIFESA | BH48: 0
C49: =IF(RIFERIMENTI!$Q$31>0,"",RIFERIMENTI!AJ35) ->  | D49: =IF(RIFERIMENTI!$Q$31>0,"",RIFERIMENTI!AK35) ->  | E49: =IF(C49="","",IF(RIFERIMENTI!$Q$31=1,"",LOOKUP(C49,RIFERIMENTI!$V$49:$V$55,RIFERIMENTI!$W$49:$W$55))) ->  | F49: =IF(C49="",0,(LOOKUP(CONCATENATE(E49," ",C49),STIPENDIO!$B$5:$B$391,STIPENDIO!$H$5:$H$391))+(LOOKUP(CONCATENATE(E49," ",C49),'IND. INT. SPEC.'!$B$6:$B$39,'IND. INT. SPEC.'!$H$6:$H$39))) -> 0 | G49: =IF(C49="",0,IF(BC49="DIF",LOOKUP(CONCATENATE(E49," ",C49),'IND. AMM.NE'!$C$6:$C$166,'IND. AMM.NE'!$L$6:$L$166),VLOOKUP(CONCATENATE(BC49," ",BB49),'IND. AMM.NE'!$A$171:$X$253,BD49,TRUE))) -> 0 | H49: =IF(C49="",0,LOOKUP(CONCATENATE(E49," ",C49),'CCNL 2019-2021'!$C$99:$C$130,'CCNL 2019-2021'!$J$99:$J$130)) -> 0 | I49: =IF(C49="",0,LOOKUP(CONCATENATE(E49," ",C49),'VACANZA CONTR.LE'!$B$5:$B$300,'VACANZA CONTR.LE'!$J$5:$J$300)) -> 0 | J49: 0 | K49: 0 | L49: 0 | M49: 0 | O49: 0 | AK49: 0 | AL49: =IF(C49="",0,LOOKUP(CONCATENATE(E49," ",C49),'IND. AMM.NE'!$C$6:$C$166,'IND. AMM.NE'!$L$6:$L$166)) -> 0 | AM49: 0 | AN49: 0 | AO49: 0 | AP49: 0 | AQ49: 0 | AR49: 0 | AS49: 0 | AT49: 0 | AU49: 0 | AV49: 0 | AW49: 0 | AY49: 0 | BC49: =IF(C49="","",IF(ISNA(LOOKUP(BB49,RIFERIMENTI!$P$56:$P$70,RIFERIMENTI!$S$56:$S$70)),"DIF",LOOKUP(BB49,RIFERIMENTI!$P$56:$P$70,RIFERIMENTI!$S$56:$S$70))) ->  | BD49: =IF(BB49="","",IF(BC49="DIF",0,VLOOKUP(E49,RIFERIMENTI!$H$2:$N$17,7,FALSE))) ->  | BF49: =IF(ISNA(VLOOKUP(BC49,'IND. AMM.NE'!$U$4:$V$26,2,FALSE)),"DIFESA",VLOOKUP(BC49,'IND. AMM.NE'!$U$4:$V$26,2,FALSE)) -> DIFESA | BH49: 0
C50: =IF(RIFERIMENTI!$Q$31>0,"",RIFERIMENTI!AJ36) ->  | D50: =IF(RIFERIMENTI!$Q$31>0,"",RIFERIMENTI!AK36) ->  | E50: =IF(C50="","",IF(RIFERIMENTI!$Q$31=1,"",LOOKUP(C50,RIFERIMENTI!$V$49:$V$55,RIFERIMENTI!$W$49:$W$55))) ->  | F50: =IF(C50="",0,(LOOKUP(CONCATENATE(E50," ",C50),STIPENDIO!$B$5:$B$391,STIPENDIO!$H$5:$H$391))+(LOOKUP(CONCATENATE(E50," ",C50),'IND. INT. SPEC.'!$B$6:$B$39,'IND. INT. SPEC.'!$H$6:$H$39))) -> 0 | G50: =IF(C50="",0,IF(BC50="DIF",LOOKUP(CONCATENATE(E50," ",C50),'IND. AMM.NE'!$C$6:$C$166,'IND. AMM.NE'!$L$6:$L$166),VLOOKUP(CONCATENATE(BC50," ",BB50),'IND. AMM.NE'!$A$171:$X$253,BD50,TRUE))) -> 0 | H50: =IF(C50="",0,LOOKUP(CONCATENATE(E50," ",C50),'CCNL 2019-2021'!$C$99:$C$130,'CCNL 2019-2021'!$J$99:$J$130)) -> 0 | I50: =IF(C50="",0,LOOKUP(CONCATENATE(E50," ",C50),'VACANZA CONTR.LE'!$B$5:$B$300,'VACANZA CONTR.LE'!$J$5:$J$300)) -> 0 | J50: 0 | K50: 0 | L50: 0 | M50: 0 | O50: 0 | AK50: 0 | AL50: =IF(C50="",0,LOOKUP(CONCATENATE(E50," ",C50),'IND. AMM.NE'!$C$6:$C$166,'IND. AMM.NE'!$L$6:$L$166)) -> 0 | AM50: 0 | AN50: 0 | AO50: 0 | AP50: 0 | AQ50: 0 | AR50: 0 | AS50: 0 | AT50: 0 | AU50: 0 | AV50: 0 | AW50: 0 | AY50: 0 | BC50: =IF(C50="","",IF(ISNA(LOOKUP(BB50,RIFERIMENTI!$P$56:$P$70,RIFERIMENTI!$S$56:$S$70)),"DIF",LOOKUP(BB50,RIFERIMENTI!$P$56:$P$70,RIFERIMENTI!$S$56:$S$70))) ->  | BD50: =IF(BB50="","",IF(BC50="DIF",0,VLOOKUP(E50,RIFERIMENTI!$H$2:$N$17,7,FALSE))) ->  | BF50: =IF(ISNA(VLOOKUP(BC50,'IND. AMM.NE'!$U$4:$V$26,2,FALSE)),"DIFESA",VLOOKUP(BC50,'IND. AMM.NE'!$U$4:$V$26,2,FALSE)) -> DIFESA | BH50: 0
C51: =IF(RIFERIMENTI!$Q$31>0,"",RIFERIMENTI!AJ38) ->  | D51: =IF(RIFERIMENTI!$Q$31>0,"",RIFERIMENTI!AK38) ->  | E51: =IF(C51="","",IF(RIFERIMENTI!$Q$31=1,"",LOOKUP(C51,RIFERIMENTI!$V$49:$V$55,RIFERIMENTI!$W$49:$W$55))) ->  | F51: =IF(C51="",0,(LOOKUP(CONCATENATE(E51," ",C51),STIPENDIO!$B$5:$B$391,STIPENDIO!$H$5:$H$391))+(LOOKUP(CONCATENATE(E51," ",C51),'IND. INT. SPEC.'!$B$6:$B$39,'IND. INT. SPEC.'!$H$6:$H$39))) -> 0 | G51: =IF(C51="",0,IF(BC51="DIF",LOOKUP(CONCATENATE(E51," ",C51),'IND. AMM.NE'!$C$6:$C$166,'IND. AMM.NE'!$L$6:$L$166),VLOOKUP(CONCATENATE(BC51," ",BB51),'IND. AMM.NE'!$A$171:$X$253,BD51,TRUE))) -> 0 | H51: =IF(C51="",0,LOOKUP(CONCATENATE(E51," ",C51),'CCNL 2019-2021'!$C$99:$C$130,'CCNL 2019-2021'!$J$99:$J$130)) -> 0 | I51: =IF(C51="",0,LOOKUP(CONCATENATE(E51," ",C51),'VACANZA CONTR.LE'!$B$5:$B$300,'VACANZA CONTR.LE'!$J$5:$J$300)) -> 0 | J51: 0 | K51: 0 | L51: 0 | M51: 0 | O51: 0 | AK51: 0 | AL51: =IF(C51="",0,LOOKUP(CONCATENATE(E51," ",C51),'IND. AMM.NE'!$C$6:$C$166,'IND. AMM.NE'!$L$6:$L$166)) -> 0 | AM51: 0 | AN51: 0 | AO51: 0 | AP51: 0 | AQ51: 0 | AR51: 0 | AS51: 0 | AT51: =IF(AH51="",0,IF(AND(Q50="DIF",AH51=DATE(2022,11,1),((AK51+AM51+AO51+AP51+AQ51)+(AT50-AR51))>$AV$16,($AV$16-(AK51+AM51+AO51+AP51+AQ51))<0),0,IF(AND(Q50="DIF",AH51=DATE(2022,11,1),((AK51+AM51+AO51+AP51+AQ51)+(AT50-AR51))>$AV$16),$AV$16-(AK51+AM51+AO51+AP51+AQ51),IF(AND(Q50="DIF",AH51=DATE(2022,11,1)),AT50-AR51,IF(AT50=0,0,IF((AT50-AR51)>0,AT50-AR51,0)))))) -> 0 | AU51: =IF(AH51="",0,IF(AND(Q50="DIF",AH51=DATE(2022,11,1),((AK51+AM51+AO51+AP51+AQ51)+(AT50-AS51))>$AV$16,($AV$16-(AK51+AM51+AO51+AP51+AQ51))<0),0,IF(AND(Q50="DIF",AH51=DATE(2022,11,1),((AK51+AM51+AO51+AP51+AQ51)+(AT50-AS51))>$AV$16),$AV$16-(AK51+AM51+AO51+AP51+AQ51),IF(AND(Q50="DIF",AH51=DATE(2022,11,1)),AT50-AS51,IF(AT50=0,0,IF((AT50-AS51)>0,AT50-AS51,0)))))) -> 0 | AV51: 0 | AW51: 0 | AY51: 0 | BC51: =IF(C51="","",IF(ISNA(LOOKUP(BB51,RIFERIMENTI!$P$56:$P$70,RIFERIMENTI!$S$56:$S$70)),"DIF",LOOKUP(BB51,RIFERIMENTI!$P$56:$P$70,RIFERIMENTI!$S$56:$S$70))) ->  | BD51: =IF(BB51="","",IF(BC51="DIF",0,VLOOKUP(E51,RIFERIMENTI!$H$2:$N$17,7,FALSE))) ->  | BF51: =IF(ISNA(VLOOKUP(BC51,'IND. AMM.NE'!$U$4:$V$26,2,FALSE)),"DIFESA",VLOOKUP(BC51,'IND. AMM.NE'!$U$4:$V$26,2,FALSE)) -> DIFESA | BH51: 0
C52: =IF(RIFERIMENTI!$Q$31>0,"",RIFERIMENTI!AJ39) ->  | D52: =IF(RIFERIMENTI!$Q$31>0,"",RIFERIMENTI!AK39) ->  | E52: =IF(C52="","",IF(RIFERIMENTI!$Q$31=1,"",LOOKUP(C52,RIFERIMENTI!$V$49:$V$55,RIFERIMENTI!$W$49:$W$55))) ->  | F52: =IF(C52="",0,(LOOKUP(CONCATENATE(E52," ",C52),STIPENDIO!$B$5:$B$391,STIPENDIO!$H$5:$H$391))+(LOOKUP(CONCATENATE(E52," ",C52),'IND. INT. SPEC.'!$B$6:$B$39,'IND. INT. SPEC.'!$H$6:$H$39))) -> 0 | G52: =IF(C52="",0,IF(BC52="DIF",LOOKUP(CONCATENATE(E52," ",C52),'IND. AMM.NE'!$C$6:$C$166,'IND. AMM.NE'!$L$6:$L$166),VLOOKUP(CONCATENATE(BC52," ",BB52),'IND. AMM.NE'!$A$171:$X$253,BD52,TRUE))) -> 0 | H52: =IF(C52="",0,LOOKUP(CONCATENATE(E52," ",C52),'CCNL 2019-2021'!$C$99:$C$130,'CCNL 2019-2021'!$J$99:$J$130)) -> 0 | I52: =IF(C52="",0,LOOKUP(CONCATENATE(E52," ",C52),'VACANZA CONTR.LE'!$B$5:$B$300,'VACANZA CONTR.LE'!$J$5:$J$300)) -> 0 | J52: 0 | K52: 0 | L52: 0 | M52: 0 | O52: 0 | AK52: 0 | AL52: =IF(C52="",0,LOOKUP(CONCATENATE(E52," ",C52),'IND. AMM.NE'!$C$6:$C$166,'IND. AMM.NE'!$L$6:$L$166)) -> 0 | AM52: 0 | AN52: 0 | AO52: 0 | AP52: 0 | AQ52: 0 | AR52: 0 | AS52: 0 | AT52: 0 | AU52: 0 | AV52: 0 | AW52: 0 | AY52: 0 | BC52: =IF(C52="","",IF(ISNA(LOOKUP(BB52,RIFERIMENTI!$P$56:$P$70,RIFERIMENTI!$S$56:$S$70)),"DIF",LOOKUP(BB52,RIFERIMENTI!$P$56:$P$70,RIFERIMENTI!$S$56:$S$70))) ->  | BD52: =IF(BB52="","",IF(BC52="DIF",0,VLOOKUP(E52,RIFERIMENTI!$H$2:$N$17,7,FALSE))) ->  | BF52: =IF(ISNA(VLOOKUP(BC52,'IND. AMM.NE'!$U$4:$V$26,2,FALSE)),"DIFESA",VLOOKUP(BC52,'IND. AMM.NE'!$U$4:$V$26,2,FALSE)) -> DIFESA | BH52: 0
C53: =IF(RIFERIMENTI!$Q$31>0,"",RIFERIMENTI!AJ40) ->  | D53: =IF(RIFERIMENTI!$Q$31>0,"",RIFERIMENTI!AK40) ->  | E53: =IF(C53="","",IF(RIFERIMENTI!$Q$31=1,"",LOOKUP(C53,RIFERIMENTI!$V$49:$V$55,RIFERIMENTI!$W$49:$W$55))) ->  | F53: =IF(C53="",0,(LOOKUP(CONCATENATE(E53," ",C53),STIPENDIO!$B$5:$B$391,STIPENDIO!$H$5:$H$391))+(LOOKUP(CONCATENATE(E53," ",C53),'IND. INT. SPEC.'!$B$6:$B$39,'IND. INT. SPEC.'!$H$6:$H$39))) -> 0 | G53: =IF(C53="",0,IF(BC53="DIF",LOOKUP(CONCATENATE(E53," ",C53),'IND. AMM.NE'!$C$6:$C$166,'IND. AMM.NE'!$L$6:$L$166),VLOOKUP(CONCATENATE(BC53," ",BB53),'IND. AMM.NE'!$A$171:$X$253,BD53,TRUE))) -> 0 | H53: =IF(C53="",0,LOOKUP(CONCATENATE(E53," ",C53),'CCNL 2019-2021'!$C$99:$C$130,'CCNL 2019-2021'!$J$99:$J$130)) -> 0 | I53: =IF(C53="",0,LOOKUP(CONCATENATE(E53," ",C53),'VACANZA CONTR.LE'!$B$5:$B$300,'VACANZA CONTR.LE'!$J$5:$J$300)) -> 0 | J53: 0 | K53: 0 | L53: 0 | M53: 0 | O53: 0 | AK53: 0 | AL53: =IF(C53="",0,LOOKUP(CONCATENATE(E53," ",C53),'IND. AMM.NE'!$C$6:$C$166,'IND. AMM.NE'!$L$6:$L$166)) -> 0 | AM53: 0 | AN53: 0 | AO53: 0 | AP53: 0 | AQ53: 0 | AR53: 0 | AS53: 0 | AT53: 0 | AU53: 0 | AV53: 0 | AW53: 0 | AY53: 0 | BC53: =IF(C53="","",IF(ISNA(LOOKUP(BB53,RIFERIMENTI!$P$56:$P$70,RIFERIMENTI!$S$56:$S$70)),"DIF",LOOKUP(BB53,RIFERIMENTI!$P$56:$P$70,RIFERIMENTI!$S$56:$S$70))) ->  | BD53: =IF(BB53="","",IF(BC53="DIF",0,VLOOKUP(E53,RIFERIMENTI!$H$2:$N$17,7,FALSE))) ->  | BF53: =IF(ISNA(VLOOKUP(BC53,'IND. AMM.NE'!$U$4:$V$26,2,FALSE)),"DIFESA",VLOOKUP(BC53,'IND. AMM.NE'!$U$4:$V$26,2,FALSE)) -> DIFESA | BH53: 0
C54: =IF(RIFERIMENTI!$Q$31>0,"",RIFERIMENTI!AJ41) ->  | D54: =IF(RIFERIMENTI!$Q$31>0,"",RIFERIMENTI!AK41) ->  | E54: =IF(C54="","",IF(RIFERIMENTI!$Q$31=1,"",LOOKUP(C54,RIFERIMENTI!$V$49:$V$55,RIFERIMENTI!$W$49:$W$55))) ->  | F54: =IF(C54="",0,(LOOKUP(CONCATENATE(E54," ",C54),STIPENDIO!$B$5:$B$391,STIPENDIO!$H$5:$H$391))+(LOOKUP(CONCATENATE(E54," ",C54),'IND. INT. SPEC.'!$B$6:$B$39,'IND. INT. SPEC.'!$H$6:$H$39))) -> 0 | G54: =IF(C54="",0,IF(BC54="DIF",LOOKUP(CONCATENATE(E54," ",C54),'IND. AMM.NE'!$C$6:$C$166,'IND. AMM.NE'!$L$6:$L$166),VLOOKUP(CONCATENATE(BC54," ",BB54),'IND. AMM.NE'!$A$171:$X$253,BD54,TRUE))) -> 0 | H54: =IF(C54="",0,LOOKUP(CONCATENATE(E54," ",C54),'CCNL 2019-2021'!$C$99:$C$130,'CCNL 2019-2021'!$J$99:$J$130)) -> 0 | I54: =IF(C54="",0,LOOKUP(CONCATENATE(E54," ",C54),'VACANZA CONTR.LE'!$B$5:$B$300,'VACANZA CONTR.LE'!$J$5:$J$300)) -> 0 | J54: 0 | K54: 0 | L54: 0 | M54: 0 | O54: 0 | AK54: 0 | AL54: =IF(C54="",0,LOOKUP(CONCATENATE(E54," ",C54),'IND. AMM.NE'!$C$6:$C$166,'IND. AMM.NE'!$L$6:$L$166)) -> 0 | AM54: 0 | AN54: 0 | AO54: 0 | AP54: 0 | AQ54: 0 | AR54: 0 | AS54: 0 | AT54: 0 | AU54: 0 | AV54: 0 | AW54: 0 | AY54: 0 | BC54: =IF(C54="","",IF(ISNA(LOOKUP(BB54,RIFERIMENTI!$P$56:$P$70,RIFERIMENTI!$S$56:$S$70)),"DIF",LOOKUP(BB54,RIFERIMENTI!$P$56:$P$70,RIFERIMENTI!$S$56:$S$70))) ->  | BD54: =IF(BB54="","",IF(BC54="DIF",0,VLOOKUP(E54,RIFERIMENTI!$H$2:$N$17,7,FALSE))) ->  | BF54: =IF(ISNA(VLOOKUP(BC54,'IND. AMM.NE'!$U$4:$V$26,2,FALSE)),"DIFESA",VLOOKUP(BC54,'IND. AMM.NE'!$U$4:$V$26,2,FALSE)) -> DIFESA | BH54: 0
C55: =IF(RIFERIMENTI!$Q$31>0,"",RIFERIMENTI!AJ42) ->  | D55: =IF(RIFERIMENTI!$Q$31>0,"",RIFERIMENTI!AK42) ->  | E55: =IF(C55="","",IF(RIFERIMENTI!$Q$31=1,"",LOOKUP(C55,RIFERIMENTI!$V$49:$V$55,RIFERIMENTI!$W$49:$W$55))) ->  | F55: =IF(C55="",0,(LOOKUP(CONCATENATE(E55," ",C55),STIPENDIO!$B$5:$B$391,STIPENDIO!$H$5:$H$391))+(LOOKUP(CONCATENATE(E55," ",C55),'IND. INT. SPEC.'!$B$6:$B$39,'IND. INT. SPEC.'!$H$6:$H$39))) -> 0 | G55: =IF(C55="",0,IF(BC55="DIF",LOOKUP(CONCATENATE(E55," ",C55),'IND. AMM.NE'!$C$6:$C$166,'IND. AMM.NE'!$L$6:$L$166),VLOOKUP(CONCATENATE(BC55," ",BB55),'IND. AMM.NE'!$A$171:$X$253,BD55,TRUE))) -> 0 | H55: =IF(C55="",0,LOOKUP(CONCATENATE(E55," ",C55),'CCNL 2019-2021'!$C$99:$C$130,'CCNL 2019-2021'!$J$99:$J$130)) -> 0 | I55: =IF(C55="",0,LOOKUP(CONCATENATE(E55," ",C55),'VACANZA CONTR.LE'!$B$5:$B$300,'VACANZA CONTR.LE'!$J$5:$J$300)) -> 0 | J55: 0 | K55: 0 | L55: 0 | M55: 0 | O55: 0 | AK55: 0 | AL55: =IF(C55="",0,LOOKUP(CONCATENATE(E55," ",C55),'IND. AMM.NE'!$C$6:$C$166,'IND. AMM.NE'!$L$6:$L$166)) -> 0 | AM55: 0 | AN55: 0 | AO55: 0 | AP55: 0 | AQ55: 0 | AR55: 0 | AS55: 0 | AT55: 0 | AU55: 0 | AV55: 0 | AW55: 0 | AY55: 0 | BC55: =IF(C55="","",IF(ISNA(LOOKUP(BB55,RIFERIMENTI!$P$56:$P$70,RIFERIMENTI!$S$56:$S$70)),"DIF",LOOKUP(BB55,RIFERIMENTI!$P$56:$P$70,RIFERIMENTI!$S$56:$S$70))) ->  | BD55: =IF(BB55="","",IF(BC55="DIF",0,VLOOKUP(E55,RIFERIMENTI!$H$2:$N$17,7,FALSE))) ->  | BF55: =IF(ISNA(VLOOKUP(BC55,'IND. AMM.NE'!$U$4:$V$26,2,FALSE)),"DIFESA",VLOOKUP(BC55,'IND. AMM.NE'!$U$4:$V$26,2,FALSE)) -> DIFESA | BH55: 0
C56: =IF(RIFERIMENTI!$Q$31>0,"",RIFERIMENTI!AJ43) ->  | D56: =IF(RIFERIMENTI!$Q$31>0,"",RIFERIMENTI!AK43) ->  | E56: =IF(C56="","",IF(RIFERIMENTI!$Q$31=1,"",LOOKUP(C56,RIFERIMENTI!$V$49:$V$55,RIFERIMENTI!$W$49:$W$55))) ->  | F56: =IF(C56="",0,(LOOKUP(CONCATENATE(E56," ",C56),STIPENDIO!$B$5:$B$391,STIPENDIO!$H$5:$H$391))+(LOOKUP(CONCATENATE(E56," ",C56),'IND. INT. SPEC.'!$B$6:$B$39,'IND. INT. SPEC.'!$H$6:$H$39))) -> 0 | G56: =IF(C56="",0,IF(BC56="DIF",LOOKUP(CONCATENATE(E56," ",C56),'IND. AMM.NE'!$C$6:$C$166,'IND. AMM.NE'!$L$6:$L$166),VLOOKUP(CONCATENATE(BC56," ",BB56),'IND. AMM.NE'!$A$171:$X$253,BD56,TRUE))) -> 0 | H56: =IF(C56="",0,LOOKUP(CONCATENATE(E56," ",C56),'CCNL 2019-2021'!$C$99:$C$130,'CCNL 2019-2021'!$J$99:$J$130)) -> 0 | I56: =IF(C56="",0,LOOKUP(CONCATENATE(E56," ",C56),'VACANZA CONTR.LE'!$B$5:$B$300,'VACANZA CONTR.LE'!$J$5:$J$300)) -> 0 | J56: 0 | K56: 0 | L56: 0 | M56: 0 | O56: 0 | AK56: 0 | AL56: =IF(C56="",0,LOOKUP(CONCATENATE(E56," ",C56),'IND. AMM.NE'!$C$6:$C$166,'IND. AMM.NE'!$L$6:$L$166)) -> 0 | AM56: 0 | AN56: 0 | AO56: 0 | AP56: 0 | AQ56: 0 | AR56: 0 | AS56: 0 | AT56: 0 | AU56: 0 | AV56: 0 | AW56: 0 | AY56: 0 | BC56: =IF(C56="","",IF(ISNA(LOOKUP(BB56,RIFERIMENTI!$P$56:$P$70,RIFERIMENTI!$S$56:$S$70)),"DIF",LOOKUP(BB56,RIFERIMENTI!$P$56:$P$70,RIFERIMENTI!$S$56:$S$70))) ->  | BD56: =IF(BB56="","",IF(BC56="DIF",0,VLOOKUP(E56,RIFERIMENTI!$H$2:$N$17,7,FALSE))) ->  | BF56: =IF(ISNA(VLOOKUP(BC56,'IND. AMM.NE'!$U$4:$V$26,2,FALSE)),"DIFESA",VLOOKUP(BC56,'IND. AMM.NE'!$U$4:$V$26,2,FALSE)) -> DIFESA | BH56: 0
C57: =IF(RIFERIMENTI!$Q$31>0,"",RIFERIMENTI!AJ44) ->  | D57: =IF(RIFERIMENTI!$Q$31>0,"",RIFERIMENTI!AK44) ->  | E57: =IF(C57="","",IF(RIFERIMENTI!$Q$31=1,"",LOOKUP(C57,RIFERIMENTI!$V$49:$V$55,RIFERIMENTI!$W$49:$W$55))) ->  | F57: =IF(C57="",0,(LOOKUP(CONCATENATE(E57," ",C57),STIPENDIO!$B$5:$B$391,STIPENDIO!$H$5:$H$391))+(LOOKUP(CONCATENATE(E57," ",C57),'IND. INT. SPEC.'!$B$6:$B$39,'IND. INT. SPEC.'!$H$6:$H$39))) -> 0 | G57: =IF(C57="",0,IF(BC57="DIF",LOOKUP(CONCATENATE(E57," ",C57),'IND. AMM.NE'!$C$6:$C$166,'IND. AMM.NE'!$L$6:$L$166),VLOOKUP(CONCATENATE(BC57," ",BB57),'IND. AMM.NE'!$A$171:$X$253,BD57,TRUE))) -> 0 | H57: =IF(C57="",0,LOOKUP(CONCATENATE(E57," ",C57),'CCNL 2019-2021'!$C$99:$C$130,'CCNL 2019-2021'!$J$99:$J$130)) -> 0 | I57: =IF(C57="",0,LOOKUP(CONCATENATE(E57," ",C57),'VACANZA CONTR.LE'!$B$5:$B$300,'VACANZA CONTR.LE'!$J$5:$J$300)) -> 0 | J57: 0 | K57: 0 | L57: 0 | M57: 0 | O57: 0 | AK57: 0 | AL57: =IF(C57="",0,LOOKUP(CONCATENATE(E57," ",C57),'IND. AMM.NE'!$C$6:$C$166,'IND. AMM.NE'!$L$6:$L$166)) -> 0 | AM57: 0 | AN57: 0 | AO57: 0 | AP57: 0 | AQ57: 0 | AR57: 0 | AS57: 0 | AT57: 0 | AU57: 0 | AV57: 0 | AW57: 0 | AY57: 0 | BC57: =IF(C57="","",IF(ISNA(LOOKUP(BB57,RIFERIMENTI!$P$56:$P$70,RIFERIMENTI!$S$56:$S$70)),"DIF",LOOKUP(BB57,RIFERIMENTI!$P$56:$P$70,RIFERIMENTI!$S$56:$S$70))) ->  | BD57: =IF(BB57="","",IF(BC57="DIF",0,VLOOKUP(E57,RIFERIMENTI!$H$2:$N$17,7,FALSE))) ->  | BF57: =IF(ISNA(VLOOKUP(BC57,'IND. AMM.NE'!$U$4:$V$26,2,FALSE)),"DIFESA",VLOOKUP(BC57,'IND. AMM.NE'!$U$4:$V$26,2,FALSE)) -> DIFESA | BH57: 0
C58: =IF(RIFERIMENTI!$Q$31>0,"",RIFERIMENTI!AJ45) ->  | D58: =IF(RIFERIMENTI!$Q$31>0,"",RIFERIMENTI!AK45) ->  | E58: =IF(C58="","",IF(RIFERIMENTI!$Q$31=1,"",LOOKUP(C58,RIFERIMENTI!$V$49:$V$55,RIFERIMENTI!$W$49:$W$55))) ->  | F58: =IF(C58="",0,(LOOKUP(CONCATENATE(E58," ",C58),STIPENDIO!$B$5:$B$391,STIPENDIO!$H$5:$H$391))+(LOOKUP(CONCATENATE(E58," ",C58),'IND. INT. SPEC.'!$B$6:$B$39,'IND. INT. SPEC.'!$H$6:$H$39))) -> 0 | G58: =IF(C58="",0,IF(BC58="DIF",LOOKUP(CONCATENATE(E58," ",C58),'IND. AMM.NE'!$C$6:$C$166,'IND. AMM.NE'!$L$6:$L$166),VLOOKUP(CONCATENATE(BC58," ",BB58),'IND. AMM.NE'!$A$171:$X$253,BD58,TRUE))) -> 0 | H58: =IF(C58="",0,LOOKUP(CONCATENATE(E58," ",C58),'CCNL 2019-2021'!$C$99:$C$130,'CCNL 2019-2021'!$J$99:$J$130)) -> 0 | I58: =IF(C58="",0,LOOKUP(CONCATENATE(E58," ",C58),'VACANZA CONTR.LE'!$B$5:$B$300,'VACANZA CONTR.LE'!$J$5:$J$300)) -> 0 | J58: 0 | K58: 0 | L58: 0 | M58: 0 | O58: 0 | AK58: 0 | AL58: =IF(C58="",0,LOOKUP(CONCATENATE(E58," ",C58),'IND. AMM.NE'!$C$6:$C$166,'IND. AMM.NE'!$L$6:$L$166)) -> 0 | AM58: 0 | AN58: 0 | AO58: 0 | AP58: 0 | AQ58: 0 | AR58: 0 | AS58: 0 | AT58: 0 | AU58: 0 | AV58: 0 | AW58: 0 | AY58: 0 | BC58: =IF(C58="","",IF(ISNA(LOOKUP(BB58,RIFERIMENTI!$P$56:$P$70,RIFERIMENTI!$S$56:$S$70)),"DIF",LOOKUP(BB58,RIFERIMENTI!$P$56:$P$70,RIFERIMENTI!$S$56:$S$70))) ->  | BD58: =IF(BB58="","",IF(BC58="DIF",0,VLOOKUP(E58,RIFERIMENTI!$H$2:$N$17,7,FALSE))) ->  | BF58: =IF(ISNA(VLOOKUP(BC58,'IND. AMM.NE'!$U$4:$V$26,2,FALSE)),"DIFESA",VLOOKUP(BC58,'IND. AMM.NE'!$U$4:$V$26,2,FALSE)) -> DIFESA | BH58: 0
C59: =IF(RIFERIMENTI!$Q$31>0,"",RIFERIMENTI!AJ46) ->  | D59: =IF(RIFERIMENTI!$Q$31>0,"",RIFERIMENTI!AK46) ->  | E59: =IF(C59="","",IF(RIFERIMENTI!$Q$31=1,"",LOOKUP(C59,RIFERIMENTI!$V$49:$V$55,RIFERIMENTI!$W$49:$W$55))) ->  | F59: =IF(C59="",0,(LOOKUP(CONCATENATE(E59," ",C59),STIPENDIO!$B$5:$B$391,STIPENDIO!$H$5:$H$391))+(LOOKUP(CONCATENATE(E59," ",C59),'IND. INT. SPEC.'!$B$6:$B$39,'IND. INT. SPEC.'!$H$6:$H$39))) -> 0 | G59: =IF(C59="",0,IF(BC59="DIF",LOOKUP(CONCATENATE(E59," ",C59),'IND. AMM.NE'!$C$6:$C$166,'IND. AMM.NE'!$L$6:$L$166),VLOOKUP(CONCATENATE(BC59," ",BB59),'IND. AMM.NE'!$A$171:$X$253,BD59,TRUE))) -> 0 | H59: =IF(C59="",0,LOOKUP(CONCATENATE(E59," ",C59),'CCNL 2019-2021'!$C$99:$C$130,'CCNL 2019-2021'!$J$99:$J$130)) -> 0 | I59: =IF(C59="",0,LOOKUP(CONCATENATE(E59," ",C59),'VACANZA CONTR.LE'!$B$5:$B$300,'VACANZA CONTR.LE'!$J$5:$J$300)) -> 0 | J59: 0 | K59: 0 | L59: 0 | M59: 0 | O59: 0 | AK59: 0 | AL59: =IF(C59="",0,LOOKUP(CONCATENATE(E59," ",C59),'IND. AMM.NE'!$C$6:$C$166,'IND. AMM.NE'!$L$6:$L$166)) -> 0 | AM59: 0 | AN59: 0 | AO59: 0 | AP59: 0 | AQ59: 0 | AR59: 0 | AS59: 0 | AT59: 0 | AU59: 0 | AV59: 0 | AW59: 0 | AY59: 0 | BC59: =IF(C59="","",IF(ISNA(LOOKUP(BB59,RIFERIMENTI!$P$56:$P$70,RIFERIMENTI!$S$56:$S$70)),"DIF",LOOKUP(BB59,RIFERIMENTI!$P$56:$P$70,RIFERIMENTI!$S$56:$S$70))) ->  | BD59: =IF(BB59="","",IF(BC59="DIF",0,VLOOKUP(E59,RIFERIMENTI!$H$2:$N$17,7,FALSE))) ->  | BF59: =IF(ISNA(VLOOKUP(BC59,'IND. AMM.NE'!$U$4:$V$26,2,FALSE)),"DIFESA",VLOOKUP(BC59,'IND. AMM.NE'!$U$4:$V$26,2,FALSE)) -> DIFESA | BH59: 0
C60: =IF(RIFERIMENTI!$Q$31>0,"",RIFERIMENTI!AJ47) ->  | D60: =IF(RIFERIMENTI!$Q$31>0,"",RIFERIMENTI!AK47) ->  | E60: =IF(C60="","",IF(RIFERIMENTI!$Q$31=1,"",LOOKUP(C60,RIFERIMENTI!$V$49:$V$55,RIFERIMENTI!$W$49:$W$55))) ->  | F60: =IF(C60="",0,(LOOKUP(CONCATENATE(E60," ",C60),STIPENDIO!$B$5:$B$391,STIPENDIO!$H$5:$H$391))+(LOOKUP(CONCATENATE(E60," ",C60),'IND. INT. SPEC.'!$B$6:$B$39,'IND. INT. SPEC.'!$H$6:$H$39))) -> 0 | G60: =IF(C60="",0,IF(BC60="DIF",LOOKUP(CONCATENATE(E60," ",C60),'IND. AMM.NE'!$C$6:$C$166,'IND. AMM.NE'!$L$6:$L$166),VLOOKUP(CONCATENATE(BC60," ",BB60),'IND. AMM.NE'!$A$171:$X$253,BD60,TRUE))) -> 0 | H60: =IF(C60="",0,LOOKUP(CONCATENATE(E60," ",C60),'CCNL 2019-2021'!$C$99:$C$130,'CCNL 2019-2021'!$J$99:$J$130)) -> 0 | I60: =IF(C60="",0,LOOKUP(CONCATENATE(E60," ",C60),'VACANZA CONTR.LE'!$B$5:$B$300,'VACANZA CONTR.LE'!$J$5:$J$300)) -> 0 | J60: 0 | K60: 0 | L60: 0 | M60: 0 | O60: 0 | AK60: 0 | AL60: =IF(C60="",0,LOOKUP(CONCATENATE(E60," ",C60),'IND. AMM.NE'!$C$6:$C$166,'IND. AMM.NE'!$L$6:$L$166)) -> 0 | AM60: 0 | AN60: 0 | AO60: 0 | AP60: 0 | AQ60: 0 | AR60: 0 | AS60: 0 | AT60: 0 | AU60: 0 | AV60: 0 | AW60: 0 | AY60: 0 | BC60: =IF(C60="","",IF(ISNA(LOOKUP(BB60,RIFERIMENTI!$P$56:$P$70,RIFERIMENTI!$S$56:$S$70)),"DIF",LOOKUP(BB60,RIFERIMENTI!$P$56:$P$70,RIFERIMENTI!$S$56:$S$70))) ->  | BD60: =IF(BB60="","",IF(BC60="DIF",0,VLOOKUP(E60,RIFERIMENTI!$H$2:$N$17,7,FALSE))) ->  | BF60: =IF(ISNA(VLOOKUP(BC60,'IND. AMM.NE'!$U$4:$V$26,2,FALSE)),"DIFESA",VLOOKUP(BC60,'IND. AMM.NE'!$U$4:$V$26,2,FALSE)) -> DIFESA | BH60: 0
C61: =IF(RIFERIMENTI!$Q$31>0,"",RIFERIMENTI!AJ48) ->  | D61: =IF(RIFERIMENTI!$Q$31>0,"",RIFERIMENTI!AK48) ->  | E61: =IF(C61="","",IF(RIFERIMENTI!$Q$31=1,"",LOOKUP(C61,RIFERIMENTI!$V$49:$V$55,RIFERIMENTI!$W$49:$W$55))) ->  | F61: =IF(C61="",0,(LOOKUP(CONCATENATE(E61," ",C61),STIPENDIO!$B$5:$B$391,STIPENDIO!$H$5:$H$391))+(LOOKUP(CONCATENATE(E61," ",C61),'IND. INT. SPEC.'!$B$6:$B$39,'IND. INT. SPEC.'!$H$6:$H$39))) -> 0 | G61: =IF(C61="",0,IF(BC61="DIF",LOOKUP(CONCATENATE(E61," ",C61),'IND. AMM.NE'!$C$6:$C$166,'IND. AMM.NE'!$L$6:$L$166),VLOOKUP(CONCATENATE(BC61," ",BB61),'IND. AMM.NE'!$A$171:$X$253,BD61,TRUE))) -> 0 | H61: =IF(C61="",0,LOOKUP(CONCATENATE(E61," ",C61),'CCNL 2019-2021'!$C$99:$C$130,'CCNL 2019-2021'!$J$99:$J$130)) -> 0 | I61: =IF(C61="",0,LOOKUP(CONCATENATE(E61," ",C61),'VACANZA CONTR.LE'!$B$5:$B$300,'VACANZA CONTR.LE'!$J$5:$J$300)) -> 0 | J61: 0 | K61: 0 | L61: 0 | M61: 0 | O61: 0 | AK61: 0 | AL61: =IF(C61="",0,LOOKUP(CONCATENATE(E61," ",C61),'IND. AMM.NE'!$C$6:$C$166,'IND. AMM.NE'!$L$6:$L$166)) -> 0 | AM61: 0 | AN61: 0 | AO61: 0 | AP61: 0 | AQ61: 0 | AR61: 0 | AS61: 0 | AT61: 0 | AU61: 0 | AV61: 0 | AW61: 0 | AY61: 0 | BC61: =IF(C61="","",IF(ISNA(LOOKUP(BB61,RIFERIMENTI!$P$56:$P$70,RIFERIMENTI!$S$56:$S$70)),"DIF",LOOKUP(BB61,RIFERIMENTI!$P$56:$P$70,RIFERIMENTI!$S$56:$S$70))) ->  | BD61: =IF(BB61="","",IF(BC61="DIF",0,VLOOKUP(E61,RIFERIMENTI!$H$2:$N$17,7,FALSE))) ->  | BF61: =IF(ISNA(VLOOKUP(BC61,'IND. AMM.NE'!$U$4:$V$26,2,FALSE)),"DIFESA",VLOOKUP(BC61,'IND. AMM.NE'!$U$4:$V$26,2,FALSE)) -> DIFESA | BH61: 0
C62: =IF(RIFERIMENTI!$Q$31>0,"",RIFERIMENTI!AJ49) ->  | D62: =IF(RIFERIMENTI!$Q$31>0,"",RIFERIMENTI!AK49) ->  | E62: =IF(C62="","",IF(RIFERIMENTI!$Q$31=1,"",LOOKUP(C62,RIFERIMENTI!$V$49:$V$55,RIFERIMENTI!$W$49:$W$55))) ->  | F62: =IF(C62="",0,(LOOKUP(CONCATENATE(E62," ",C62),STIPENDIO!$B$5:$B$391,STIPENDIO!$H$5:$H$391))+(LOOKUP(CONCATENATE(E62," ",C62),'IND. INT. SPEC.'!$B$6:$B$39,'IND. INT. SPEC.'!$H$6:$H$39))) -> 0 | G62: =IF(C62="",0,IF(BC62="DIF",LOOKUP(CONCATENATE(E62," ",C62),'IND. AMM.NE'!$C$6:$C$166,'IND. AMM.NE'!$L$6:$L$166),VLOOKUP(CONCATENATE(BC62," ",BB62),'IND. AMM.NE'!$A$171:$X$253,BD62,TRUE))) -> 0 | H62: =IF(C62="",0,LOOKUP(CONCATENATE(E62," ",C62),'CCNL 2019-2021'!$C$99:$C$130,'CCNL 2019-2021'!$J$99:$J$130)) -> 0 | I62: =IF(C62="",0,LOOKUP(CONCATENATE(E62," ",C62),'VACANZA CONTR.LE'!$B$5:$B$300,'VACANZA CONTR.LE'!$J$5:$J$300)) -> 0 | J62: 0 | K62: 0 | L62: 0 | M62: 0 | O62: 0 | AK62: 0 | AL62: =IF(C62="",0,LOOKUP(CONCATENATE(E62," ",C62),'IND. AMM.NE'!$C$6:$C$166,'IND. AMM.NE'!$L$6:$L$166)) -> 0 | AM62: 0 | AN62: 0 | AO62: 0 | AP62: 0 | AQ62: 0 | AR62: 0 | AS62: 0 | AT62: 0 | AU62: 0 | AV62: 0 | AW62: 0 | AY62: 0 | BC62: =IF(C62="","",IF(ISNA(LOOKUP(BB62,RIFERIMENTI!$P$56:$P$70,RIFERIMENTI!$S$56:$S$70)),"DIF",LOOKUP(BB62,RIFERIMENTI!$P$56:$P$70,RIFERIMENTI!$S$56:$S$70))) ->  | BD62: =IF(BB62="","",IF(BC62="DIF",0,VLOOKUP(E62,RIFERIMENTI!$H$2:$N$17,7,FALSE))) ->  | BF62: =IF(ISNA(VLOOKUP(BC62,'IND. AMM.NE'!$U$4:$V$26,2,FALSE)),"DIFESA",VLOOKUP(BC62,'IND. AMM.NE'!$U$4:$V$26,2,FALSE)) -> DIFESA | BH62: 0

Sheet STIPENDIO (hidden)
D2: STIPENDIO SENZA I.I.S.
D3: DAL | E3: AL | F3: POS. ECON. | G3: FASCE NELLE AREE | H3: ANNUO LORDO | I3: MENSILE LORDO | P3: £IRE | U3: €uro
D4: A1 | E4: A1F1
B5: =CONCATENATE(G5," (",F5,") ",D5) -> A1F1 (A1) 35977 | D5: 1998-07-01 | E5: 1998-10-31 | F5: A1 | G5: A1F1 | H5: =ROUND(K5/1936.27,2) -> 5925.31 | I5: =ROUND(H5/12,2) -> 493.78 | K5: 11473000 | N5: DAL | P5: 1998-07-01 | Q5: 1998-11-01 | R5: 1999-06-01 | S5: 2000-07-01 | T5: 2001-01-01 | U5: 2002-01-01 | V5: 2003-01-01 | W5: 2004-01-01 | X5: 2005-02-01 | Y5: 2015-12-31 | Z5: 2006-01-01 | AA5: 2007-01-01 | AB5: 2007-02-01 | AC5: 2007-12-31 | AD5: 2008-01-01 | AE5: 2009-01-01 | AF5: 2010-04-01 | AG5: 2010-07-01 | AH5: 2016-01-01 | AI5: 2017-01-01 | AJ5: 2018-03-01 | AK5: 2018-04-01 | AL5: 2019-01-01 | AM5: 2020-01-01 | AN5: 2021-01-01 | AO5: 2022-07-01 | AP5: 2022-10-01
B6: =CONCATENATE(G6," (",F6,") ",D6) -> A1F1 (A1) 36100 | D6: 1998-11-01 | E6: 1999-05-31 | F6: A1 | G6: A1F1 | H6: =ROUND(K6/1936.27,2) -> 6142.22 | I6: =ROUND(H6/12,2) -> 511.85 | K6: 11893000
B7: A1F1 (A1) 36312 | D7: 1999-06-01 | E7: 2000-06-30 | F7: A1 | G7: A1F1 | H7: 6321.95 | I7: 526.83 | K7: 12241000 | N7: A1 | O7: A1 F1 | P7: 11473000 | Q7: 11893000 | R7: 12241000 | S7: 12601000 | T7: 13213000 | U7: 7194.75 | V7: 13843.31 | W7: 14229.09 | X7: 14727.59 | Y7: 14768.65 | Z7: 14850.61 | AA7: 15189.01 | AB7: 15682.93 | AC7: 15682.93 | AD7: 15770.65 | AE7: 16384.57 | AF7: 16384.57 | AG7: 16384.57 | AH7: 16460.17 | AI7: 16614.97 | AJ7: 17140.57 | AK7: 17263.45 | AL7: 17417.05 | AM7: 17574.25 | AN7: 18019.45 | AO7: 18243.61 | AP7: 18255.88
B8: A1F1 (A1) 36708 | D8: 2000-07-01 | E8: 2000-12-31 | F8: A1 | G8: A1F1 | H8: 6507.87 | I8: 542.32 | K8: 12601000 | N8: A1S | O8: A1F2 | P8: 12500000 | Q8: 12920000 | R8: 13268000 | S8: 13628000 | T8: 14240000 | U8: 7725.15 | V8: 14373.71 | W8: 14759.49 | X8: 15257.99 | Y8: 15.299.05 | Z8: 15384.01 | AA8: 15734.53 | AB8: 16246.21 | AC8: 16246.21 | AD8: 16337.05 | AE8: 16973.05 | AF8: 16973.05 | AG8: 16973.05 | AH8: 17052.25 | AI8: 17211.85 | AJ8: 17741.05 | AK8: 17868.35 | AL8: 18026.75 | AM8: 18189.95 | AN8: 18636.35 | AO8: 18864.71 | AP8: 18876.98
B9: A1F1 (A1) 36892 | D9: 2001-01-01 | E9: 2001-12-31 | F9: A1 | G9: A1F1 | H9: 6823.95 | I9: 568.66 | K9: 13213000 | O9: A1F3 | AC9: 16846.21 | AD9: 16938.85 | AE9: 17599.93 | AF9: 17599.93 | AG9: 17599.93 | AH9: 17681.53 | AI9: 17847.13 | AJ9: 18391.93 | AK9: 18523.93 | AL9: 18688.33 | AM9: 18857.53 | AN9: 19315.93 | AO9: 19550.65 | AP9: 19562.92
B10: A1F1 (A1) 37257 | D10: 2002-01-01 | E10: 2002-12-31 | F10: A1 | G10: A1F1 | H10: =K10 -> 7194.75 | I10: 599.56 | K10: 7194.75 | N10: B1 | O10: A2F1 | P10: 12703000 | Q10: 13147000 | R10: 13519000 | S10: 13903000 | T10: 14551000 | U10: 7906.16 | V10: 14619.38 | W10: 15026.79 | X10: 15553.23 | Y10: 15596.59 | Z10: 15683.11 | AA10: 16040.47 | AB10: 16562.11 | AC10: 16562.11 | AD10: 16654.75 | AE10: 17303.11 | AF10: 17303.11 | AG10: 17303.11 | AH10: 17383.51 | AI10: 17545.51 | AJ10: 18073.51 | AK10: 18203.28 | AL10: 18365.28 | AM10: 18530.88 | AN10: 18973.68 | AO10: 19202.04 | AP10: 19214.54
B11: A1F1 (A1) 37622 | D11: 2003-01-01 | E11: 2003-12-31 | F11: A1 | G11: A1F1 | H11: =K11-VLOOKUP(G11,$AB$26:$AC$43,2,FALSE) -> 7607.55 | I11: 633.96 | K11: 13843.31 | N11: B2 | O11: A2F2 | P11: 13921000 | Q11: 14389000 | R11: 14773000 | S11: 15181000 | T11: 15853000 | U11: 8598.99 | V11: 15375.22 | W11: 15803.69 | X11: 16357.35 | Y11: 16402.95 | Z11: 16494.03 | AA11: 16869.87 | AB11: 17418.39 | AC11: 17418.39 | AD11: 17515.83 | AE11: 18197.67 | AF11: 18197.67 | AG11: 18197.67 | AH11: 18281.67 | AI11: 18453.27 | AJ11: 18995.67 | AK11: 19132.15 | AL11: 19302.55 | AM11: 19476.55 | AN11: 19930.15 | AO11: 20167.03 | AP11: 20179.53
B12: A1F1 (A1) 37987 | D12: 2004-01-01 | E12: 2005-01-31 | F12: A1 | G12: A1F1 | H12: 7993.33 | I12: 666.11 | K12: 14229.09 | N12: B3 | O12: A2F3 | P12: 15447000 | Q12: 15951000 | R12: 16371000 | S12: 16803000 | T12: 17523000 | U12: 9487.87 | V12: 16346.23 | W12: 16801.76 | X12: 17390.39 | Y12: 17438.87 | Z12: 17535.71 | AA12: 17929.19 | AB12: 18530.99 | AC12: 18530.99 | AD12: 18634.67 | AE12: 19372.07 | AF12: 19372.07 | AG12: 19372.07 | AH12: 19462.07 | AI12: 19644.47 | AJ12: 20213.27 | AK12: 20358.56 | AL12: 20539.76 | AM12: 20725.76 | AN12: 21199.76 | AO12: 21449.36 | AP12: 21461.86
B13: A1F1 (A1) 38384 | D13: 2005-02-01 | E13: 2005-12-30 | F13: A1 | G13: A1F1 | H13: 8491.83 | I13: 707.65 | K13: 14727.59 | N13: B3S | O13: A2F4 | P13: 17500000 | Q13: 18004000 | R13: 18424000 | S13: 18856000 | T13: 19576000 | U13: 10548.16 | V13: 17406.52 | W13: 17862.05 | X13: 18450.68 | Y13: 18499.16 | Z13: 18601.88 | AA13: 19022.12 | AB13: 19638.44 | AC13: 19638.44 | AD13: 19748.24 | AE13: 20517.08 | AF13: 20517.08 | AG13: 20517.08 | AH13: 20611.88 | AI13: 20805.08 | AJ13: 21441.08 | AK13: 21594.96 | AL13: 21786.96 | AM13: 21983.76 | AN13: 22518.96 | AO13: 22793.04 | AP13: 22805.54
B14: A1F1 (A1) 38717 | D14: 2005-12-31 | E14: 2005-12-31 | F14: A1 | G14: A1F1 | H14: 8532.89 | I14: 711.07 | K14: 14768.65 | O14: A2F5 | AC14: 20301.11 | AD14: 20414.63 | AE14: 21209.39 | AF14: 21209.39 | AG14: 21209.39 | AH14: 21307.79 | AI14: 21506.99 | AJ14: 22218.59 | AK14: 22377.66 | AL14: 22576.86 | AM14: 22780.86 | AN14: 23386.86 | AO14: 23386.86 | AP14: 23399.36
B15: A1F1 (A1) 38718 | D15: 2006-01-01 | E15: 2006-12-31 | F15: A1 | G15: A1F1 | H15: 8614.85 | I15: 717.9 | K15: 14850.61 | O15: A2F6 | AC15: 20888.3 | AD15: 21005.06 | AE15: 21822.86 | AF15: 21822.86 | AG15: 21822.86 | AH15: 21923.66 | AI15: 22128.86 | AJ15: 22851.26 | AK15: 23014.93 | AL15: 23220.13 | AM15: 23430.13 | AN15: 24043.33 | AO15: 24043.33 | AP15: 24055.83
B16: A1F1 (A1) 39083 | D16: 2007-01-01 | E16: 2007-01-31 | F16: A1 | G16: A1F1 | H16: 8953.25 | I16: 746.1 | K16: 15189.01 | N16: C1 | O16: A3F1 | P16: 17879000 | Q16: 18419000 | R16: 18875000 | S16: 19343000 | T16: 20135000 | U16: 10876.46 | V16: 17855.12 | W16: 18352.7 | X16: 18995.66 | Y16: 19048.62 | Z16: 19154.34 | AA16: 19587.18 | AB16: 20220.66 | AC16: 20220.66 | AD16: 20333.7 | AE16: 21125.34 | AF16: 21125.34 | AG16: 21125.34 | AH16: 21223.74 | AI16: 21421.74 | AJ16: 22133.34 | AK16: 22291.78 | AL16: 22489.78 | AM16: 22693.78 | AN16: 23299.78 | AO16: 23299.78 | AP16: 23316.63
B17: A1F1 (A1) 39114 | D17: 2007-02-01 | E17: 2007-12-30 | F17: A1 | G17: A1F1 | H17: 9447.17 | I17: 787.26 | K17: 15682.93 | N17: C1S | O17: A3F2 | P17: 19200000 | Q17: 19740000 | R17: 20196000 | S17: 20664000 | T17: 21456000 | U17: 11558.7 | V17: 18537.36 | W17: 19034.94 | X17: 19677.9 | Y17: 19730.86 | Z17: 19840.42 | AA17: 20287.66 | AB17: 20943.94 | AC17: 20943.94 | AD17: 21061.06 | AE17: 21880.9 | AF17: 21880.9 | AG17: 21880.9 | AH17: 21982.9 | AI17: 22188.1 | AJ17: 22910.5 | AK17: 23074.61 | AL17: 23279.81 | AM17: 23489.81 | AN17: 24104.21 | AO17: 24104.21 | AP17: 24121.06
B18: A1F1 (A1) 39447 | D18: 2007-12-31 | E18: 2007-12-31 | F18: =F17 -> A1 | G18: =G17 -> A1F1 | H18: 9447.17 | I18: 787.26 | K18: 15682.93 | N18: C2 | O18: A3F3 | P18: 20571000 | Q18: 21159000 | R18: 21651000 | S18: 22167000 | T18: 23031000 | U18: 12417.72 | V18: 19546.16 | W18: 20090.87 | X18: 20794.72 | Y18: 20852.7 | Z18: 20968.38 | AA18: 21441.42 | AB18: 22134.06 | AC18: 22134.06 | AD18: 22257.78 | AE18: 23112.3 | AF18: 23112.3 | AG18: 23112.3 | AH18: 23219.1 | AI18: 23436.3 | AJ18: 24156.3 | AK18: 24329.64 | AL18: 24545.64 | AM18: 24767.64 | AN18: 25373.64 | AO18: 25373.64 | AP18: 25390.49
B19: A1F1 (A1) 39448 | D19: 2008-01-01 | E19: 2008-12-31 | F19: A1 | G19: A1F1 | H19: 9534.89 | I19: 794.57 | K19: 15770.65 | N19: C3 | O19: A3F4 | P19: 23639000 | Q19: 24299000 | R19: 24851000 | S19: 25415000 | T19: 26363000 | U19: 14190.15 | V19: 21472.38 | W19: 22070.77 | X19: 22843.98 | Y19: 22907.68 | Z19: 23034.87 | AA19: 23553.63 | AB19: 24315.03 | AC19: 24315.03 | AD19: 24450.99 | AE19: 25388.43 | AF19: 25388.43 | AG19: 25388.43 | AH19: 25506.03 | AI19: 25744.83 | AJ19: 26528.43 | AK19: 26718.84 | AL19: 26956.44 | AM19: 27200.04 | AN19: 27858.84 | AO19: 27858.84 | AP19: 27875.69
B20: A1F1 (A1) 39814 | D20: 2009-01-01 | E20: 2010-03-31 | F20: A1 | G20: A1F1 | H20: 10148.81 | I20: 845.73 | K20: 16384.57 | N20: C3S | O20: A3F5 | P20: 26500000 | Q20: 27160000 | R20: 27712000 | S20: 28276000 | T20: 29224000 | U20: 15667.74 | V20: 22949.97 | W20: 23548.36 | X20: 24321.57 | Y20: 24,385,26 | Z20: 24520.62 | AA20: 25073.34 | AB20: 25882.86 | AC20: 25882.86 | AD20: 26027.58 | AE20: 27040.86 | AF20: 27040.86 | AG20: 27040.86 | AH20: 27165.66 | AI20: 27420.06 | AJ20: 28246.86 | AK20: 28449.67 | AL20: 28702.87 | AM20: 28962.07 | AN20: 29655.67 | AO20: 29655.67 | AP20: 29672.52
B21: A1F1 (A1) 40269 | D21: 2010-04-01 | E21: 2010-06-30 | F21: =F20 -> A1 | G21: A1F1 | H21: 10148.81 | I21: 845.73 | K21: 16384.57 | O21: A3F6 | AC21: 27643.68 | AD21: 27798.24 | AE21: 28880.4 | AF21: 28880.4 | AG21: 28880.4 | AH21: 29014.8 | AI21: 29286 | AJ21: 30152.4 | AK21: 30369 | AL21: 30639 | AM21: 30916.2 | AN21: 31641 | AO21: 31641 | AP21: 31657.85
B22: A1F1 (A1) 40360 | D22: 2010-07-01 | E22: 2015-12-31 | F22: A1 | G22: A1F1 | H22: 10148.81 | I22: 845.73 | K22: 16384.57 | O22: A3F7 | AC22: 29336.18 | AD22: 29500.22 | AE22: 30648.62 | AF22: 30648.62 | AG22: 30648.62 | AH22: 30790.22 | AI22: 31079.42 | AJ22: 32016.62 | AK22: 32246.48 | AL22: 32533.28 | AM22: 32827.28 | AN22: 33614.48 | AO22: 33614.48 | AP22: 33631.33
B23: A1F1 (A1) 42370 | D23: 2016-01-01 | E23: 2016-12-31 | F23: =F22 -> A1 | G23: =G22 -> A1F1 | H23: 10224.41 | I23: 852.03 | K23: 16460.17
B24: A1F1 (A1) 42736 | D24: 2017-01-01 | E24: 2018-02-28 | F24: =F23 -> A1 | G24: =G23 -> A1F1 | H24: 10379.21 | I24: 864.93 | K24: 16614.97 | Y24: IND. INT. SPECIALE FINO AL 31 OTTOBRE 2022 | AF24: TABELLARI NOIPA DAL 01.11.2022 | AI24: DAL 1° NOVEMBRE 2022
B25: A1F1 (A1) 43160 | D25: 2018-03-01 | E25: 2018-03-31 | F25: A1 | G25: A1F1 | H25: 10904.81 | I25: 908.73 | K25: 17140.57 | Y25: A | Z25: A1 | AA25: CCNL_INTEGRATIVO_16-05-2001 | AI25: ART. 52 CCNL 19 - 21 | AJ25: CCNL INT. 16.05.2001 | AK25: TOTALE ANNUO
B26: A1F1 (A1) 43191 | D26: 2018-04-01 | E26: 2018-12-31 | F26: A1 | G26: A1F1 | H26: 11027.69 | I26: 918.97 | K26: 17263.45 | Y26: 1991-11-01 | Z26: 9999-01-01 | AA26: A1 | AB26: A1F1 | AC26: 6235.76 | AD26: 519.65 | AF26: AREA | AG26: FASCIA RETRIBUTIVA | AH26: AREA/ FASCIA
B27: A1F1 (A1) 43466 | D27: 2019-01-01 | E27: 2019-12-31 | F27: A1 | G27: A1F1 | H27: 11181.29 | I27: =ROUND(H27/12,2) -> 931.77 | K27: =HLOOKUP(G27,'CCNL 2019-2021'!$M$22:$AB$27,'CCNL 2019-2021'!$K$23,FALSE) -> 17417.05 | Y27: 1991-11-01 | Z27: 9999-01-01 | AA27: A1S | AB27: A1F2 | AC27: 6235.76 | AD27: 519.65 | AI27: STIPENDIO | AJ27: IND. INT. SPEC.
B28: A1F1 (A1) 43831 | D28: 2020-01-01 | E28: 2020-12-31 | F28: A1 | G28: A1F1 | H28: 11338.49 | I28: 944.87 | K28: =HLOOKUP(G28,'CCNL 2019-2021'!$M$22:$AB$27,'CCNL 2019-2021'!$K$24,FALSE) -> 17574.25 | Y28: 2007-12-31 | Z28: 9999-01-01 | AA28: -------- | AB28: A1F3 | AC28: 6235.76 | AD28: 519.65 | AF28: FUNZIONARI | AG28: F7 | AH28: A3F7 | AI28: 16860.48 | AJ28: 6641.4 | AK28: 23501.88
B29: A1F1 (A1) 44197 | D29: 2021-01-01 | E29: 2022-06-30 | F29: A1 | G29: A1F1 | H29: 11783.69 | I29: 981.97 | K29: =HLOOKUP(G29,'CCNL 2019-2021'!$M$22:$AB$27,'CCNL 2019-2021'!$K$25,FALSE) -> 18019.45 | Y29: B | Z29: A2 | AF29: FUNZIONARI | AG29: F6 | AH29: A3F6 | AI29: 16860.48 | AJ29: 6641.4 | AK29: 23501.88
B30: A1F1 (A1) 44743 | D30: 2022-07-01 | E30: 2022-10-31 | F30: A1 | G30: A1F1 | H30: 12007.85 | I30: =ROUND(H30/12,2) -> 1000.65 | K30: =HLOOKUP(G30,'CCNL 2019-2021'!$M$22:$AB$27,'CCNL 2019-2021'!$K$26,FALSE) -> 18243.61 | Y30: 1991-11-01 | Z30: 9999-01-01 | AA30: B1 | AB30: A2F1 | AC30: 6277.62 | AD30: 523.14 | AF30: FUNZIONARI | AG30: F5 | AH30: A3F5 | AI30: 16860.48 | AJ30: 6641.4 | AK30: 23501.88
B31: A1F1 (A1) 44866 | D31: 2022-11-01 | E31: 9999-01-01 | F31: A1 | G31: A1F1 | H31: =VLOOKUP(G31,$AH$28:$AI$43,2,FALSE) -> 12155.04 | I31: 1012.92 | Y31: 1991-11-01 | Z31: 9999-01-01 | AA31: B2 | AB31: A2F2 | AC31: 6317.83 | AD31: 526.49 | AF31: FUNZIONARI | AG31: F4 | AH31: A3F4 | AI31: 16860.48 | AJ31: 6641.4 | AK31: 23501.88
D32: A1S | E32: A1F2 | Y32: 1991-11-01 | Z32: 9999-01-01 | AA32: B3 | AB32: A2F3 | AC32: 6371.04 | AD32: 530.92 | AF32: FUNZIONARI | AG32: F3 | AH32: A3F3 | AI32: 16956.6 | AJ32: 6545.28 | AK32: 23501.88
B33: =CONCATENATE(G33," (",F33,") ",D33) -> A1F2 (A1S) 35977 | D33: 1998-07-01 | E33: 1998-10-31 | F33: A1S | G33: A1F2 | H33: =ROUND(K33/1936.27,2) -> 6455.71 | I33: =ROUND(H33/12,2) -> 537.98 | K33: 12500000 | Y33: 1991-11-01 | Z33: 9999-01-01 | AA33: B3S | AB33: A2F4 | AC33: 6371.04 | AD33: 530.92 | AF33: FUNZIONARI | AG33: F2 | AH33: A3F2 | AI33: 17056.08 | AJ33: 6445.8 | AK33: 23501.88
B34: A1F2 (A1S) 36100 | D34: 1998-11-01 | E34: 1999-05-31 | F34: A1S | G34: A1F2 | H34: =ROUND(K34/1936.27,2) -> 6672.62 | I34: 556.05 | K34: 12920000 | Y34: 2007-12-31 | Z34: 9999-01-01 | AA34: -------- | AB34: A2F5 | AC34: 6371.04 | AD34: 530.92 | AF34: FUNZIONARI | AG34: F1 | AH34: A3F1 | AI34: 17056.08 | AJ34: 6445.8 | AK34: 23501.88
B35: A1F2 (A1S) 36312 | D35: 1999-06-01 | E35: 2000-06-30 | F35: A1S | G35: A1F2 | H35: 6852.35 | I35: 571.03 | K35: 13268000 | Y35: 2007-12-31 | Z35: 9999-01-01 | AA35: -------- | AB35: A2F6 | AC35: 6371.04 | AD35: 530.92 | AF35: ASSISTENTI | AG35: F6 | AH35: A2F6 | AI35: 12980.88 | AJ35: 6371.04 | AK35: 19351.92
B36: A1F2 (A1S) 36708 | D36: 2000-07-01 | E36: 2000-12-31 | F36: A1S | G36: A1F2 | H36: 7038.27 | I36: 586.52 | K36: 13628000 | Y36: C | Z36: A3 | AF36: ASSISTENTI | AG36: F5 | AH36: A2F5 | AI36: 12980.88 | AJ36: 6371.04 | AK36: 19351.92
B37: A1F2 (A1S) 36892 | D37: 2001-01-01 | E37: 2001-12-31 | F37: A1S | G37: A1F2 | H37: 7354.35 | I37: 612.86 | K37: 14240000 | Y37: 1991-11-01 | Z37: 9999-01-01 | AA37: C1 | AB37: A3F1 | AC37: 6445.86 | AD37: 537.16 | AF37: ASSISTENTI | AG37: F4 | AH37: A2F4 | AI37: 12980.88 | AJ37: 6371.04 | AK37: 19351.92
B38: A1F2 (A1S) 37257 | D38: 2002-01-01 | E38: 2002-12-31 | F38: A1S | G38: A1F2 | H38: =K38 -> 7725.15 | I38: 643.76 | K38: 7725.15 | Y38: 1991-11-01 | Z38: 9999-01-01 | AA38: C1S | AB38: A3F2 | AC38: 6445.86 | AD38: 537.16 | AF38: ASSISTENTI | AG38: F3 | AH38: A2F3 | AI38: 12980.88 | AJ38: 6371.04 | AK38: 19351.92
B39: A1F2 (A1S) 37622 | D39: 2003-01-01 | E39: 2003-12-31 | F39: A1S | G39: A1F2 | H39: =K39-VLOOKUP(G39,$AB$26:$AC$43,2,FALSE) -> 8137.95 | I39: 678.16 | K39: 14373.71 | Y39: 1991-11-01 | Z39: 9999-01-01 | AA39: C2 | AB39: A3F3 | AC39: 6545.23 | AD39: 545.44 | AF39: ASSISTENTI | AG39: F2 | AH39: A2F2 | AI39: 13034.04 | AJ39: 6317.88 | AK39: 19351.92
B40: A1F2 (A1S) 37987 | D40: 2004-01-01 | E40: 2005-01-31 | F40: A1S | G40: A1F2 | H40: 8523.73 | I40: 710.31 | K40: 14759.49 | Y40: 1991-11-01 | Z40: 9999-01-01 | AA40: C3 | AB40: A3F4 | AC40: 6641.43 | AD40: 553.45 | AF40: ASSISTENTI | AG40: F1 | AH40: A2F1 | AI40: 13074.36 | AJ40: 6277.56 | AK40: 19351.92
B41: A1F2 (A1S) 38384 | D41: 2005-02-01 | E41: 2005-12-30 | F41: A1S | G41: A1F2 | H41: 9022.23 | I41: 751.85 | K41: 15257.99 | Y41: 1991-11-01 | Z41: 9999-01-01 | AA41: C3S | AB41: A3F5 | AC41: 6641.43 | AD41: 553.45 | AF41: OPERATORI | AG41: F3 | AH41: A1F3 | AI41: 12155.04 | AJ41: 6235.8 | AK41: 18390.84
B42: A1F2 (A1S) 38717 | D42: 2005-12-31 | E42: 2005-12-31 | F42: A1S | G42: A1F2 | H42: 9063.29 | I42: 755.27 | K42: 15299.05 | Y42: 2007-12-31 | Z42: 9999-01-01 | AA42: -------- | AB42: A3F6 | AC42: 6641.43 | AD42: 553.45 | AF42: OPERATORI | AG42: F2 | AH42: A1F2 | AI42: 12155.04 | AJ42: 6235.8 | AK42: 18390.84
B43: A1F2 (A1S) 38718 | D43: 2006-01-01 | E43: 2006-12-31 | F43: A1S | G43: A1F2 | H43: 9148.25 | I43: 762.35 | K43: 15384.01 | Y43: 2007-12-31 | Z43: 9999-01-01 | AA43: -------- | AB43: A3F7 | AC43: 6641.43 | AD43: 553.45 | AF43: OPERATORI | AG43: F1 | AH43: A1F1 | AI43: 12155.04 | AJ43: 6235.8 | AK43: 18390.84
B44: A1F2 (A1S) 39083 | D44: 2007-01-01 | E44: 2007-01-31 | F44: A1S | G44: A1F2 | H44: 9498.77 | I44: 791.56 | K44: 15734.53
B45: A1F2 (A1S) 39114 | D45: 2007-02-01 | E45: 2007-12-30 | F45: A1S | G45: A1F2 | H45: 10010.45 | I45: 834.2 | K45: 16246.21
B46: A1F2 (A1S) 39447 | D46: 2007-12-31 | E46: 2007-12-31 | F46: A1S | G46: =G45 -> A1F2 | H46: 10010.45 | I46: 834.2 | K46: 16246.21
B47: A1F2 (A1S) 39448 | D47: 2008-01-01 | E47: 2008-12-31 | F47: A1S | G47: A1F2 | H47: 10101.29 | I47: 841.77 | K47: 16337.05
B48: A1F2 (A1S) 39814 | D48: 2009-01-01 | E48: 2010-03-31 | F48: A1S | G48: A1F2 | H48: 10737.29 | I48: 894.77 | K48: 16973.05
B49: A1F2 (A1S) 40269 | D49: 2010-04-01 | E49: 2010-06-30 | F49: A1S | G49: =G48 -> A1F2 | H49: 10737.29 | I49: 894.77 | K49: 16973.05
B50: A1F2 (A1S) 40360 | D50: 2010-07-01 | E50: 2015-12-31 | F50: A1S | G50: A1F2 | H50: 10737.29 | I50: 894.77 | K50: 16973.05
B51: A1F2 (A1S) 42370 | D51: 2016-01-01 | E51: 2016-12-31 | F51: A1S | G51: =G50 -> A1F2 | H51: 10816.49 | I51: 901.37 | K51: 17052.25
B52: A1F2 (A1S) 42736 | D52: 2017-01-01 | E52: 2018-02-28 | F52: A1S | G52: =G51 -> A1F2 | H52: 10976.09 | I52: 914.67 | K52: 17211.85
B53: A1F2 (A1S) 43160 | D53: 2018-03-01 | E53: 2018-03-31 | F53: A1S | G53: =G52 -> A1F2 | H53: 11505.29 | I53: 958.77 | K53: 17741.05
B54: A1F2 (A1S) 43191 | D54: 2018-04-01 | E54: 2018-12-31 | F54: =F53 -> A1S | G54: A1F2 | H54: 11632.59 | I54: 969.38 | K54: 17868.35
B55: A1F2 (A1S) 43466 | D55: 2019-01-01 | E55: 2019-12-31 | F55: =F54 -> A1S | G55: A1F2 | H55: 11790.99 | I55: =ROUND(H55/12,2) -> 982.58 | K55: =HLOOKUP(G55,'CCNL 2019-2021'!$M$22:$AB$27,'CCNL 2019-2021'!$K$23,FALSE) -> 18026.75
B56: A1F2 (A1S) 43831 | D56: 2020-01-01 | E56: 2020-12-31 | F56: =F55 -> A1S | G56: A1F2 | H56: 11954.19 | I56: 996.18 | K56: =HLOOKUP(G56,'CCNL 2019-2021'!$M$22:$AB$27,'CCNL 2019-2021'!$K$24,FALSE) -> 18189.95
B57: A1F2 (A1S) 44197 | D57: 2021-01-01 | E57: 2022-06-30 | F57: =F56 -> A1S | G57: A1F2 | H57: 12400.59 | I57: 1033.38 | K57: =HLOOKUP(G57,'CCNL 2019-2021'!$M$22:$AB$27,'CCNL 2019-2021'!$K$25,FALSE) -> 18636.35
B58: A1F2 (A1S) 44743 | D58: 2022-07-01 | E58: 2022-10-31 | F58: =F57 -> A1S | G58: A1F2 | H58: 12628.95 | I58: 1052.41 | K58: =HLOOKUP(G58,'CCNL 2019-2021'!$M$22:$AB$27,'CCNL 2019-2021'!$K$26,FALSE) -> 18864.71
B59: A1F2 (A1S) 44866 | D59: 2022-11-01 | E59: 9999-01-01 | F59: A1S | G59: A1F2 | H59: =VLOOKUP(G59,$AH$28:$AI$43,2,FALSE) -> 12155.04 | I59: 1012.92
D60: -------- | E60: A1F3
B61: =CONCATENATE(G61," ",D61) -> A1F3 36100 | D61: 1998-11-01 | E61: 2007-12-30 | F61: -------- | G61: A1F3 | H61: 0 | I61: =ROUND(H61/12,2) -> 0
B62: =CONCATENATE(G62," ",D62) -> A1F3 39447 | D62: 2007-12-31 | E62: 2007-12-31 | F62: -------- | G62: A1F3 | H62: =K62-VLOOKUP(G62,$AB$26:$AC$43,2,FALSE) -> 10610.45 | I62: 884.2 | K62: 16846.21
B63: A1F3 39448 | D63: 2008-01-01 | E63: 2008-12-31 | F63: -------- | G63: A1F3 | H63: 10703.09 | I63: 891.92 | K63: 16938.85
B64: A1F3 39814 | D64: 2009-01-01 | E64: 2010-03-31 | F64: -------- | G64: A1F3 | H64: 11364.17 | I64: 947.01 | K64: 17599.93
B65: A1F3 40269 | D65: 2010-04-01 | E65: 2010-06-30 | F65: =F64 -> -------- | G65: A1F3 | H65: 11364.17 | I65: 947.01 | K65: 17599.93
B66: A1F3 40360 | D66: 2010-07-01 | E66: 2015-12-31 | F66: -------- | G66: A1F3 | H66: 11364.17 | I66: 947.01 | K66: 17599.93
B67: A1F3 42370 | D67: 2016-01-01 | E67: 2016-12-31 | F67: =F66 -> -------- | G67: =G66 -> A1F3 | H67: 11445.77 | I67: 953.81 | K67: 17681.53
B68: A1F3 42736 | D68: 2017-01-01 | E68: 2018-02-28 | F68: =F67 -> -------- | G68: =G67 -> A1F3 | H68: 11611.37 | I68: 967.61 | K68: 17847.13
B69: A1F3 43160 | D69: 2018-03-01 | E69: 2018-03-31 | F69: -------- | G69: A1F3 | H69: 12156.17 | I69: 1013.01 | K69: 18391.93
B70: A1F3 43191 | D70: 2018-04-01 | E70: 2018-12-31 | F70: -------- | G70: A1F3 | H70: 12288.17 | I70: 1024.01 | K70: 18523.93
B71: A1F3 43466 | D71: 2019-01-01 | E71: 2019-12-31 | F71: -------- | G71: A1F3 | H71: 12452.57 | I71: =ROUND(H71/12,2) -> 1037.71 | K71: =HLOOKUP(G71,'CCNL 2019-2021'!$M$22:$AB$27,'CCNL 2019-2021'!$K$23,FALSE) -> 18688.33
B72: A1F3 43831 | D72: 2020-01-01 | E72: 2020-12-31 | F72: -------- | G72: A1F3 | H72: 12621.77 | I72: 1051.81 | K72: =HLOOKUP(G72,'CCNL 2019-2021'!$M$22:$AB$27,'CCNL 2019-2021'!$K$24,FALSE) -> 18857.53
B73: A1F3 44197 | D73: 2021-01-01 | E73: 2022-06-30 | F73: -------- | G73: A1F3 | H73: 13080.17 | I73: 1090.01 | K73: =HLOOKUP(G73,'CCNL 2019-2021'!$M$22:$AB$27,'CCNL 2019-2021'!$K$25,FALSE) -> 19315.93
B74: A1F3 44743 | D74: 2022-07-01 | E74: 2022-10-31 | F74: -------- | G74: A1F3 | H74: 13314.89 | I74: 1109.57 | K74: =HLOOKUP(G74,'CCNL 2019-2021'!$M$22:$AB$27,'CCNL 2019-2021'!$K$26,FALSE) -> 19550.65
B75: A1F3 44866 | D75: 2022-11-01 | E75: 9999-01-01 | F75: -------- | G75: A1F3 | H75: =VLOOKUP(G75,$AH$28:$AI$43,2,FALSE) -> 12155.04 | I75: 1012.92
D76: B1 | E76: A2F1
B77: =CONCATENATE(G77," (",F77,") ",D77) -> A2F1 (B1) 35977 | D77: 1998-07-01 | E77: 1998-10-31 | F77: B1 | G77: A2F1 | H77: =ROUND(K77/1936.27,2) -> 6560.55 | I77: =ROUND(H77/12,2) -> 546.71 | K77: 12703000
B78: A2F1 (B1) 36100 | D78: 1998-11-01 | E78: 1999-05-31 | F78: B1 | G78: A2F1 | H78: =ROUND(K78/1936.27,2) -> 6789.86 | I78: 565.82 | K78: 13147000
B79: A2F1 (B1) 36312 | D79: 1999-06-01 | E79: 2000-06-30 | F79: B1 | G79: A2F1 | H79: 6981.98 | I79: 581.83 | K79: 13519000
B80: A2F1 (B1) 36708 | D80: 2000-07-01 | E80: 2000-12-31 | F80: B1 | G80: A2F1 | H80: 7180.3 | I80: 598.36 | K80: 13903000
B81: A2F1 (B1) 36892 | D81: 2001-01-01 | E81: 2001-12-31 | F81: B1 | G81: A2F1 | H81: 7514.96 | I81: 626.25 | K81: 14551000
B82: A2F1 (B1) 37257 | D82: 2002-01-01 | E82: 2002-12-31 | F82: B1 | G82: A2F1 | H82: =K82 -> 7906.16 | I82: 658.85 | K82: 7906.16
B83: A2F1 (B1) 37622 | D83: 2003-01-01 | E83: 2003-12-31 | F83: B1 | G83: A2F1 | H83: =K83-VLOOKUP(G83,$AB$26:$AC$43,2,FALSE) -> 8341.76 | I83: 695.15 | K83: 14619.38
B84: A2F1 (B1) 37987 | D84: 2004-01-01 | E84: 2005-01-31 | F84: B1 | G84: A2F1 | H84: 8749.17 | I84: 729.1 | K84: 15026.79
B85: A2F1 (B1) 38384 | D85: 2005-02-01 | E85: 2005-12-30 | F85: B1 | G85: A2F1 | H85: 9275.61 | I85: 772.97 | K85: 15553.23
B86: A2F1 (B1) 38717 | D86: 2005-12-31 | E86: 2005-12-31 | F86: B1 | G86: A2F1 | H86: 9318.97 | I86: 776.58 | K86: 15596.59
B87: A2F1 (B1) 38718 | D87: 2006-01-01 | E87: 2006-12-31 | F87: B1 | G87: A2F1 | H87: 9405.49 | I87: 783.79 | K87: 15683.11
B88: A2F1 (B1) 39083 | D88: 2007-01-01 | E88: 2007-01-31 | F88: B1 | G88: A2F1 | H88: 9762.85 | I88: 813.57 | K88: 16040.47
B89: A2F1 (B1) 39114 | D89: 2007-02-01 | E89: 2007-12-30 | F89: B1 | G89: A2F1 | H89: 10284.49 | I89: 857.04 | K89: 16562.11
B90: A2F1 (B1) 39447 | D90: 2007-12-31 | E90: 2007-12-31 | F90: =F89 -> B1 | G90: =G89 -> A2F1 | H90: 10284.49 | I90: 857.04 | K90: 16562.11
B91: A2F1 (B1) 39448 | D91: 2008-01-01 | E91: 2008-12-31 | F91: B1 | G91: A2F1 | H91: 10377.13 | I91: 864.76 | K91: 16654.75
B92: A2F1 (B1) 39814 | D92: 2009-01-01 | E92: 2010-03-31 | F92: B1 | G92: A2F1 | H92: 11025.49 | I92: 918.79 | K92: 17303.11
B93: A2F1 (B1) 40269 | D93: 2010-04-01 | E93: 2010-06-30 | F93: =F92 -> B1 | G93: A2F1 | H93: 11025.49 | I93: 918.79 | K93: 17303.11
B94: A2F1 (B1) 40360 | D94: 2010-07-01 | E94: 2015-12-31 | F94: B1 | G94: A2F1 | H94: 11025.49 | I94: 918.79 | K94: 17303.11
B95: A2F1 (B1) 42370 | D95: 2016-01-01 | E95: 2016-12-31 | F95: =F94 -> B1 | G95: =G94 -> A2F1 | H95: 11105.89 | I95: 925.49 | K95: 17383.51
B96: A2F1 (B1) 42736 | D96: 2017-01-01 | E96: 2018-02-28 | F96: =F95 -> B1 | G96: =G95 -> A2F1 | H96: 11267.89 | I96: 938.99 | K96: 17545.51
B97: A2F1 (B1) 43160 | D97: 2018-03-01 | E97: 2018-03-31 | F97: B1 | G97: A2F1 | H97: 11795.89 | I97: 982.99 | K97: 18073.51
B98: A2F1 (B1) 43191 | D98: 2018-04-01 | E98: 2018-12-31 | F98: B1 | G98: A2F1 | H98: 11925.66 | I98: 993.81 | K98: 18203.28
B99: =CONCATENATE(G99," (",F99,") ",D99) -> A2F1 (B1) 43466 | D99: 2019-01-01 | E99: 2019-12-31 | F99: B1 | G99: A2F1 | H99: 12087.66 | I99: 1007.31 | K99: =HLOOKUP(G99,'CCNL 2019-2021'!$M$22:$AB$27,'CCNL 2019-2021'!$K$23,FALSE) -> 18365.28
B100: A2F1 (B1) 43831 | D100: 2020-01-01 | E100: 2020-12-31 | F100: B1 | G100: A2F1 | H100: 12253.26 | I100: 1021.11 | K100: =HLOOKUP(G100,'CCNL 2019-2021'!$M$22:$AB$27,'CCNL 2019-2021'!$K$24,FALSE) -> 18530.88
B101: A2F1 (B1) 44197 | D101: 2021-01-01 | E101: 2022-06-30 | F101: B1 | G101: A2F1 | H101: 12696.06 | I101: 1058.01 | K101: =HLOOKUP(G101,'CCNL 2019-2021'!$M$22:$AB$27,'CCNL 2019-2021'!$K$25,FALSE) -> 18973.68
B102: A2F1 (B1) 44743 | D102: 2022-07-01 | E102: 2022-10-31 | F102: B1 | G102: A2F1 | H102: 12924.42 | I102: 1077.04 | K102: =HLOOKUP(G102,'CCNL 2019-2021'!$M$22:$AB$27,'CCNL 2019-2021'!$K$26,FALSE) -> 19202.04
B103: A2F1 (B1) 44866 | D103: 2022-11-01 | E103: 9999-01-01 | F103: B1 | G103: A2F1 | H103: =VLOOKUP(G103,$AH$28:$AI$43,2,FALSE) -> 13074.36 | I103: 1089.53
D104: B2 | E104: A2F2
B105: =CONCATENATE(G105," (",F105,") ",D105) -> A2F2 (B2) 35977 | D105: 1998-07-01 | E105: 1998-10-31 | F105: B2 | G105: A2F2 | H105: =ROUND(K105/1936.27,2) -> 7189.6 | I105: =ROUND(H105/12,2) -> 599.13 | K105: 13921000
B106: A2F2 (B2) 36100 | D106: 1998-11-01 | E106: 1999-05-31 | F106: B2 | G106: A2F2 | H106: =ROUND(K106/1936.27,2) -> 7431.3 | I106: 619.28 | K106: 14389000
B107: A2F2 (B2) 36312 | D107: 1999-06-01 | E107: 2000-06-30 | F107: B2 | G107: A2F2 | H107: 7629.62 | I107: 635.8 | K107: 14773000
B108: A2F2 (B2) 36708 | D108: 2000-07-01 | E108: 2000-12-31 | F108: B2 | G108: A2F2 | H108: 7840.33 | I108: 653.36 | K108: 15181000
B109: A2F2 (B2) 36892 | D109: 2001-01-01 | E109: 2001-12-31 | F109: B2 | G109: A2F2 | H109: 8187.39 | I109: 682.28 | K109: 15853000
B110: A2F2 (B2) 37257 | D110: 2002-01-01 | E110: 2002-12-31 | F110: B2 | G110: A2F2 | H110: =K110 -> 8598.99 | I110: 716.58 | K110: 8598.99
B111: A2F2 (B2) 37622 | D111: 2003-01-01 | E111: 2003-12-31 | F111: B2 | G111: A2F2 | H111: =K111-VLOOKUP(G111,$AB$26:$AC$43,2,FALSE) -> 9057.39 | I111: 754.78 | K111: 15375.22
B112: A2F2 (B2) 37987 | D112: 2004-01-01 | E112: 2005-01-31 | F112: B2 | G112: A2F2 | H112: 9485.86 | I112: 790.49 | K112: 15803.69
B113: A2F2 (B2) 38384 | D113: 2005-02-01 | E113: 2005-12-30 | F113: B2 | G113: A2F2 | H113: 10039.52 | I113: 836.63 | K113: 16357.35
B114: A2F2 (B2) 38717 | D114: 2005-12-31 | E114: 2005-12-31 | F114: B2 | G114: A2F2 | H114: 10085.12 | I114: 840.43 | K114: 16402.95
B115: A2F2 (B2) 38718 | D115: 2006-01-01 | E115: 2006-12-31 | F115: B2 | G115: A2F2 | H115: 10176.2 | I115: 848.02 | K115: 16494.03
B116: A2F2 (B2) 39083 | D116: 2007-01-01 | E116: 2007-01-31 | F116: B2 | G116: A2F2 | H116: 10552.04 | I116: 879.34 | K116: 16869.87
B117: A2F2 (B2) 39114 | D117: 2007-02-01 | E117: 2007-12-30 | F117: B2 | G117: A2F2 | H117: 11100.56 | I117: 925.05 | K117: 17418.39
B118: A2F2 (B2) 39447 | D118: 2007-12-31 | E118: 2007-12-31 | F118: =F117 -> B2 | G118: =G117 -> A2F2 | H118: 11100.56 | I118: 925.05 | K118: 17418.39
B119: A2F2 (B2) 39448 | D119: 2008-01-01 | E119: 2008-12-31 | F119: B2 | G119: A2F2 | H119: 11198 | I119: 933.17 | K119: 17515.83
B120: A2F2 (B2) 39814 | D120: 2009-01-01 | E120: 2010-03-31 | F120: B2 | G120: A2F2 | H120: 11879.84 | I120: 989.99 | K120: 18197.67
B121: A2F2 (B2) 40269 | D121: 2010-04-01 | E121: 2010-06-30 | F121: =F120 -> B2 | G121: A2F2 | H121: 11879.84 | I121: 989.99 | K121: 18197.67
B122: A2F2 (B2) 40360 | D122: 2010-07-01 | E122: 2015-12-31 | F122: B2 | G122: A2F2 | H122: 11879.84 | I122: 989.99 | K122: 18197.67
B123: A2F2 (B2) 42370 | D123: 2016-01-01 | E123: 2016-12-31 | F123: =F122 -> B2 | G123: =G122 -> A2F2 | H123: 11963.84 | I123: 996.99 | K123: 18281.67
B124: A2F2 (B2) 42736 | D124: 2017-01-01 | E124: 2018-02-28 | F124: =F123 -> B2 | G124: =G123 -> A2F2 | H124: 12135.44 | I124: 1011.29 | K124: 18453.27
B125: A2F2 (B2) 43160 | D125: 2018-03-01 | E125: 2018-03-31 | F125: B2 | G125: A2F2 | H125: 12677.84 | I125: 1056.49 | K125: 18995.67
B126: A2F2 (B2) 43191 | D126: 2018-04-01 | E126: 2018-12-31 | F126: B2 | G126: A2F2 | H126: 12814.32 | I126: 1067.86 | K126: 19132.15
B127: A2F2 (B2) 43466 | D127: 2019-01-01 | E127: 2019-12-31 | F127: B2 | G127: A2F2 | H127: 12984.72 | I127: 1082.06 | K127: =HLOOKUP(G127,'CCNL 2019-2021'!$M$22:$AB$27,'CCNL 2019-2021'!$K$23,FALSE) -> 19302.55
B128: A2F2 (B2) 43831 | D128: 2020-01-01 | E128: 2020-12-31 | F128: B2 | G128: A2F2 | H128: 13158.72 | I128: 1096.56 | K128: =HLOOKUP(G128,'CCNL 2019-2021'!$M$22:$AB$27,'CCNL 2019-2021'!$K$24,FALSE) -> 19476.55
B129: A2F2 (B2) 44197 | D129: 2021-01-01 | E129: 2022-06-30 | F129: B2 | G129: A2F2 | H129: 13612.32 | I129: 1134.36 | K129: =HLOOKUP(G129,'CCNL 2019-2021'!$M$22:$AB$27,'CCNL 2019-2021'!$K$25,FALSE) -> 19930.15
B130: A2F2 (B2) 44743 | D130: 2022-07-01 | E130: 2022-10-31 | F130: B2 | G130: A2F2 | H130: 13849.2 | I130: 1154.1 | K130: =HLOOKUP(G130,'CCNL 2019-2021'!$M$22:$AB$27,'CCNL 2019-2021'!$K$26,FALSE) -> 20167.03
B131: A2F2 (B2) 44866 | D131: 2022-11-01 | E131: 9999-01-01 | F131: B2 | G131: A2F2 | H131: =VLOOKUP(G131,$AH$28:$AI$43,2,FALSE) -> 13034.04 | I131: 1086.17
D132: B3 | E132: A2F3
B133: =CONCATENATE(G133," (",F133,") ",D133) -> A2F3 (B3) 35977 | D133: 1998-07-01 | E133: 1998-10-31 | F133: B3 | G133: A2F3 | H133: =ROUND(K133/1936.27,2) -> 7977.71 | I133: =ROUND(H133/12,2) -> 664.81 | K133: 15447000
B134: A2F3 (B3) 36100 | D134: 1998-11-01 | E134: 1999-05-31 | F134: B3 | G134: A2F3 | H134: =ROUND(K134/1936.27,2) -> 8238 | I134: 686.5 | K134: 15951000
B135: A2F3 (B3) 36312 | D135: 1999-06-01 | E135: 2000-06-30 | F135: B3 | G135: A2F3 | H135: 8454.92 | I135: 704.58 | K135: 16371000
B136: A2F3 (B3) 36708 | D136: 2000-07-01 | E136: 2000-12-31 | F136: B3 | G136: A2F3 | H136: 8678.03 | I136: 723.17 | K136: 16803000
B137: A2F3 (B3) 36892 | D137: 2001-01-01 | E137: 2001-12-31 | F137: B3 | G137: A2F3 | H137: 9049.87 | I137: 754.16 | K137: 17523000
B138: A2F3 (B3) 37257 | D138: 2002-01-01 | E138: 2002-12-31 | F138: B3 | G138: A2F3 | H138: =K138 -> 9487.87 | I138: 790.66 | K138: 9487.87
B139: A2F3 (B3) 37622 | D139: 2003-01-01 | E139: 2003-12-31 | F139: B3 | G139: A2F3 | H139: =K139-VLOOKUP(G139,$AB$26:$AC$43,2,FALSE) -> 9975.19 | I139: 831.27 | K139: 16346.23
B140: A2F3 (B3) 37987 | D140: 2004-01-01 | E140: 2005-01-31 | F140: B3 | G140: A2F3 | H140: 10430.72 | I140: 869.23 | K140: 16801.76
B141: A2F3 (B3) 38384 | D141: 2005-02-01 | E141: 2005-12-30 | F141: B3 | G141: A2F3 | H141: 11019.35 | I141: 918.28 | K141: 17390.39
B142: A2F3 (B3) 38717 | D142: 2005-12-31 | E142: 2005-12-31 | F142: B3 | G142: A2F3 | H142: 11067.83 | I142: 922.32 | K142: 17438.87
B143: A2F3 (B3) 38718 | D143: 2006-01-01 | E143: 2006-12-31 | F143: B3 | G143: A2F3 | H143: 11164.67 | I143: 930.39 | K143: 17535.71
B144: A2F3 (B3) 39083 | D144: 2007-01-01 | E144: 2007-01-31 | F144: B3 | G144: A2F3 | H144: 11558.15 | I144: 963.18 | K144: 17929.19
B145: A2F3 (B3) 39114 | D145: 2007-02-01 | E145: 2007-12-30 | F145: B3 | G145: A2F3 | H145: 12159.95 | I145: 1013.33 | K145: 18530.99
B146: A2F3 (B3) 39447 | D146: 2007-12-31 | E146: 2007-12-31 | F146: =F145 -> B3 | G146: =G145 -> A2F3 | H146: 12159.95 | I146: 1013.33 | K146: 18530.99
B147: A2F3 (B3) 39448 | D147: 2008-01-01 | E147: 2008-12-31 | F147: B3 | G147: A2F3 | H147: 12263.63 | I147: 1021.97 | K147: 18634.67
B148: A2F3 (B3) 39814 | D148: 2009-01-01 | E148: 2010-03-31 | F148: B3 | G148: A2F3 | H148: 13001.03 | I148: 1083.42 | K148: 19372.07
B149: A2F3 (B3) 40269 | D149: 2010-04-01 | E149: 2010-06-30 | F149: =F148 -> B3 | G149: A2F3 | H149: 13001.03 | I149: 1083.42 | K149: 19372.07
B150: A2F3 (B3) 40360 | D150: 2010-07-01 | E150: 2015-12-31 | F150: B3 | G150: A2F3 | H150: 13001.03 | I150: 1083.42 | K150: 19372.07
B151: A2F3 (B3) 42370 | D151: 2016-01-01 | E151: 2016-12-31 | F151: =F150 -> B3 | G151: =G150 -> A2F3 | H151: 13091.03 | I151: 1090.92 | K151: 19462.07
B152: A2F3 (B3) 42736 | D152: 2017-01-01 | E152: 2018-02-28 | F152: =F151 -> B3 | G152: =G151 -> A2F3 | H152: 13273.43 | I152: 1106.12 | K152: 19644.47
B153: A2F3 (B3) 43160 | D153: 2018-03-01 | E153: 2018-03-31 | F153: B3 | G153: A2F3 | H153: 13842.23 | I153: 1153.52 | K153: 20213.27
B154: A2F3 (B3) 43191 | D154: 2018-04-01 | E154: 2018-12-31 | F154: B3 | G154: A2F3 | H154: 13987.52 | I154: 1165.63 | K154: 20358.56
B155: A2F3 (B3) 43466 | D155: 2019-01-01 | E155: 2019-12-31 | F155: B3 | G155: A2F3 | H155: 14168.72 | I155: 1180.73 | K155: =HLOOKUP(G155,'CCNL 2019-2021'!$M$22:$AB$27,'CCNL 2019-2021'!$K$23,FALSE) -> 20539.76
B156: A2F3 (B3) 43831 | D156: 2020-01-01 | E156: 2020-12-31 | F156: B3 | G156: A2F3 | H156: 14354.72 | I156: 1196.23 | K156: =HLOOKUP(G156,'CCNL 2019-2021'!$M$22:$AB$27,'CCNL 2019-2021'!$K$24,FALSE) -> 20725.76
B157: A2F3 (B3) 44197 | D157: 2021-01-01 | E157: 2022-06-30 | F157: B3 | G157: A2F3 | H157: 14828.72 | I157: 1235.73 | K157: =HLOOKUP(G157,'CCNL 2019-2021'!$M$22:$AB$27,'CCNL 2019-2021'!$K$25,FALSE) -> 21199.76
B158: A2F3 (B3) 44743 | D158: 2022-07-01 | E158: 2022-10-31 | F158: B3 | G158: A2F3 | H158: 15078.32 | I158: 1256.53 | K158: =HLOOKUP(G158,'CCNL 2019-2021'!$M$22:$AB$27,'CCNL 2019-2021'!$K$26,FALSE) -> 21449.36
B159: A2F3 (B3) 44866 | D159: 2022-11-01 | E159: 9999-01-01 | F159: B3 | G159: A2F3 | H159: =VLOOKUP(G159,$AH$28:$AI$43,2,FALSE) -> 12980.88 | I159: 1081.74
D160: B3S | E160: A2F4
B161: =CONCATENATE(G161," (",F161,") ",D161) -> A2F4 (B3S) 35977 | D161: 1998-07-01 | E161: 1998-10-31 | F161: B3S | G161: A2F4 | H161: =ROUND(K161/1936.27,2) -> 9038 | I161: =ROUND(H161/12,2) -> 753.17 | K161: 17500000
B162: A2F4 (B3S) 36100 | D162: 1998-11-01 | E162: 1999-05-31 | F162: B3S | G162: A2F4 | H162: =ROUND(K162/1936.27,2) -> 9298.29 | I162: 774.86 | K162: 18004000
B163: A2F4 (B3S) 36312 | D163: 1999-06-01 | E163: 2000-06-30 | F163: B3S | G163: A2F4 | H163: 9515.2 | I163: 792.93 | K163: 18424000
B164: A2F4 (B3S) 36708 | D164: 2000-07-01 | E164: 2000-12-31 | F164: B3S | G164: A2F4 | H164: 9738.31 | I164: 811.53 | K164: 18856000
B165: A2F4 (B3S) 36892 | D165: 2001-01-01 | E165: 2001-12-31 | F165: B3S | G165: A2F4 | H165: 10110.16 | I165: 842.51 | K165: 19576000
B166: A2F4 (B3S) 37257 | D166: 2002-01-01 | E166: 2002-12-31 | F166: B3S | G166: A2F4 | H166: =K166 -> 10548.16 | I166: 879.01 | K166: 10548.16
B167: A2F4 (B3S) 37622 | D167: 2003-01-01 | E167: 2003-12-31 | F167: B3S | G167: A2F4 | H167: =K167-VLOOKUP(G167,$AB$26:$AC$43,2,FALSE) -> 11035.48 | I167: 919.62 | K167: 17406.52
B168: A2F4 (B3S) 37987 | D168: 2004-01-01 | E168: 2005-01-31 | F168: B3S | G168: A2F4 | H168: 11491.01 | I168: 957.58 | K168: 17862.05
B169: A2F4 (B3S) 38384 | D169: 2005-02-01 | E169: 2005-12-30 | F169: B3S | G169: A2F4 | H169: 12079.64 | I169: 1006.64 | K169: 18450.68
B170: A2F4 (B3S) 38717 | D170: 2005-12-31 | E170: 2005-12-31 | F170: B3S | G170: A2F4 | H170: 12128.12 | I170: 1010.68 | K170: 18499.16
B171: A2F4 (B3S) 38718 | D171: 2006-01-01 | E171: 2006-12-31 | F171: B3S | G171: A2F4 | H171: 12230.84 | I171: 1019.24 | K171: 18601.88
B172: A2F4 (B3S) 39083 | D172: 2007-01-01 | E172: 2007-01-31 | F172: B3S | G172: A2F4 | H172: 12651.08 | I172: 1054.26 | K172: 19022.12
B173: A2F4 (B3S) 39114 | D173: 2007-02-01 | E173: 2007-12-30 | F173: B3S | G173: A2F4 | H173: 13267.4 | I173: 1105.62 | K173: 19638.44
B174: A2F4 (B3S) 39447 | D174: 2007-12-31 | E174: 2007-12-31 | F174: B3S | G174: =G173 -> A2F4 | H174: 13267.4 | I174: 1105.62 | K174: 19638.44
B175: A2F4 (B3S) 39448 | D175: 2008-01-01 | E175: 2008-12-31 | F175: B3S | G175: A2F4 | H175: 13377.2 | I175: 1114.77 | K175: 19748.24
B176: A2F4 (B3S) 39814 | D176: 2009-01-01 | E176: 2010-03-31 | F176: B3S | G176: A2F4 | H176: 14146.04 | I176: 1178.84 | K176: 20517.08
B177: A2F4 (B3S) 40269 | D177: 2010-04-01 | E177: 2010-06-30 | F177: B3S | G177: =G176 -> A2F4 | H177: 14146.04 | I177: 1178.84 | K177: 20517.08
B178: A2F4 (B3S) 40360 | D178: 2010-07-01 | E178: 2015-12-31 | F178: B3S | G178: A2F4 | H178: 14146.04 | I178: 1178.84 | K178: 20517.08
B179: A2F4 (B3S) 42370 | D179: 2016-01-01 | E179: 2016-12-31 | F179: B3S | G179: =G178 -> A2F4 | H179: 14240.84 | I179: 1186.74 | K179: 20611.88
B180: A2F4 (B3S) 42736 | D180: 2017-01-01 | E180: 2018-02-28 | F180: B3S | G180: =G179 -> A2F4 | H180: 14434.04 | I180: 1202.84 | K180: 20805.08
B181: A2F4 (B3S) 43160 | D181: 2018-03-01 | E181: 2018-03-31 | F181: B3S | G181: A2F4 | H181: 15070.04 | I181: 1255.84 | K181: 21441.08
B182: A2F4 (B3S) 43191 | D182: 2018-04-01 | E182: 2018-12-31 | F182: =F181 -> B3S | G182: A2F4 | H182: 15223.92 | I182: 1268.66 | K182: 21594.96
B183: =CONCATENATE(G183," (",F183,") ",D183) -> A2F4 (B3S) 43466 | D183: 2019-01-01 | E183: 2019-12-31 | F183: B3S | G183: A2F4 | H183: 15415.92 | I183: 1284.66 | K183: =HLOOKUP(G183,'CCNL 2019-2021'!$M$22:$AB$27,'CCNL 2019-2021'!$K$23,FALSE) -> 21786.96
B184: =CONCATENATE(G184," (",F184,") ",D184) -> A2F4 (B3S) 43831 | D184: 2020-01-01 | E184: 2020-12-31 | F184: B3S | G184: A2F4 | H184: 15612.72 | I184: 1301.06 | K184: =HLOOKUP(G184,'CCNL 2019-2021'!$M$22:$AB$27,'CCNL 2019-2021'!$K$24,FALSE) -> 21983.76
B185: A2F4 (B3S) 44197 | D185: 2021-01-01 | E185: 2022-06-30 | F185: B3S | G185: A2F4 | H185: 16147.92 | I185: 1345.66 | K185: =HLOOKUP(G185,'CCNL 2019-2021'!$M$22:$AB$27,'CCNL 2019-2021'!$K$25,FALSE) -> 22518.96
B186: A2F4 (B3S) 44743 | D186: 2022-07-01 | E186: 2022-10-31 | F186: B3S | G186: A2F4 | H186: 16422 | I186: 1368.5 | K186: =HLOOKUP(G186,'CCNL 2019-2021'!$M$22:$AB$27,'CCNL 2019-2021'!$K$26,FALSE) -> 22793.04
B187: A2F4 (B3S) 44866 | D187: 2022-11-01 | E187: 9999-01-01 | F187: B3S | G187: A2F4 | H187: =VLOOKUP(G187,$AH$28:$AI$43,2,FALSE) -> 12980.88 | I187: 1081.74
D188: -------- | E188: A2F5
B189: =CONCATENATE(G189," ",D189) -> A2F5 36100 | D189: 1998-11-01 | E189: 2007-12-30 | F189: -------- | G189: A2F5 | H189: 0 | I189: =ROUND(H189/12,2) -> 0
B190: A2F5 39447 | D190: 2007-12-31 | E190: 2007-12-31 | F190: -------- | G190: A2F5 | H190: =K190-VLOOKUP(G190,$AB$26:$AC$43,2,FALSE) -> 13930.07 | I190: 1160.84 | K190: 20301.11
B191: A2F5 39448 | D191: 2008-01-01 | E191: 2008-12-31 | F191: -------- | G191: A2F5 | H191: 14043.59 | I191: 1170.3 | K191: 20414.63
B192: A2F5 39814 | D192: 2009-01-01 | E192: 2010-03-31 | F192: -------- | G192: A2F5 | H192: 14838.35 | I192: 1236.53 | K192: 21209.39
B193: A2F5 40269 | D193: 2010-04-01 | E193: 2010-06-30 | F193: =F192 -> -------- | G193: A2F5 | H193: 14838.35 | I193: 1236.53 | K193: 21209.39
B194: A2F5 40360 | D194: 2010-07-01 | E194: 2015-12-31 | F194: -------- | G194: A2F5 | H194: 14838.35 | I194: 1236.53 | K194: 21209.39
B195: A2F5 42370 | D195: 2016-01-01 | E195: 2016-12-31 | F195: =F194 -> -------- | G195: =G194 -> A2F5 | H195: 14936.75 | I195: 1244.73 | K195: 21307.79
B196: A2F5 42736 | D196: 2017-01-01 | E196: 2018-02-28 | F196: =F195 -> -------- | G196: =G195 -> A2F5 | H196: 15135.95 | I196: 1261.33 | K196: 21506.99
B197: A2F5 43160 | D197: 2018-03-01 | E197: 2018-03-31 | F197: -------- | G197: A2F5 | H197: 15847.55 | I197: 1320.63 | K197: 22218.59
B198: A2F5 43191 | D198: 2018-04-01 | E198: 2018-12-31 | F198: -------- | G198: A2F5 | H198: 16006.62 | I198: 1333.89 | K198: 22377.66
B199: A2F5 43466 | D199: 2019-01-01 | E199: 2019-12-31 | F199: -------- | G199: A2F5 | H199: 16205.82 | I199: 1350.49 | K199: =HLOOKUP(G199,'CCNL 2019-2021'!$M$22:$AB$27,'CCNL 2019-2021'!$K$23,FALSE) -> 22576.86
B200: A2F5 43831 | D200: 2020-01-01 | E200: 2020-12-31 | F200: -------- | G200: A2F5 | H200: 16409.82 | I200: 1367.49 | K200: =HLOOKUP(G200,'CCNL 2019-2021'!$M$22:$AB$27,'CCNL 2019-2021'!$K$24,FALSE) -> 22780.86
B201: A2F5 44197 | D201: 2021-01-01 | E201: 2022-06-30 | F201: -------- | G201: A2F5 | H201: 17015.82 | I201: 1417.99 | K201: =HLOOKUP(G201,'CCNL 2019-2021'!$M$22:$AB$27,'CCNL 2019-2021'!$K$25,FALSE) -> 23386.86
... 190 more rows

Sheet CCNL 2019-2021 (hidden)
B1: IMPORTI ESPRESSI IN €URO
B2: POSIZIONE ECONOMICA | C2: RETRIBUZIONE TABELLARE ANNUA C.C.N.L. 2016/2018 | E2: POSIZIONE ECONOMICA | F2: RETRIBUZIONE TABELLARE ANNUA CCNL 2019/2021 | L2: STIPENDIO ANNUO LORDO RAP CCNL 2019 - 2021 | U2: Ulteriori incrementi mensili della retribuzione tabellare. Valori da corrispondere per 13 mensilità. | Y2: ELEMENTO PEREQUATIVO dal 1°.03.2018 al 30.06.2022 | AE2: STIPENDIO ANNUO LORDO RAP - CCNL 2019 - 2021 con conglobamento Elemento Perequativo
F3: TABELLA B1 | G3: TABELLA B1 | H3: TABELLA B1 | I3: TABELLA C1 | J3: TABELLA F
C4: FINO AL 31/12/2018 | F4: DAL 1° GENNAIO 2019 | G4: DAL 1° GENNAIO 2020 | H4: DAL 1° GENNAIO 2021 | I4: DAL 1° LUGLIO 2022 | J4: DAL 1° NOVEMBRE 2022 | O4: 01.01.2019 | P4: 01.01.2020 | Q4: 01.01.2021 | R4: 01.07.2022 | S4: 01.11.2022 | U4: Ministeri | W4: Incrementi (1) € | AB4: mensile x 12 mesi (no 13^) | AC4: annuo x 12 mesi (no 13^) | AH4: 01.01.2021 | AI4: ELEMENTO PEREQUATIVO dal 01.01.2019 (1) | AJ4: 01.07.2022
B5: A3F7 | C5: 32246.48 | E5: A3F7 | F5: =O5 -> 32533.28 | G5: =P5 -> 32827.28 | H5: =Q5 -> 33614.48 | I5: =R5 -> 33614.48 | J5: =S5 -> 23501.88 | L5: III | M5: F | N5: 7 | O5: 32533.28 | P5: 32827.28 | Q5: 33614.48 | R5: =Q5+AI5 -> 33614.48 | S5: 23501.88 | U5: Area | V5: III | W5: 16.85 | AE5: III | AF5: F | AG5: 7 | AH5: 33614.48 | AI5: 0 | AJ5: 33614.48
B6: A3F6 | C6: 30369 | E6: A3F6 | F6: =O6 -> 30639 | G6: 30916.2 | H6: 31641 | I6: 31641 | J6: 23501.88 | L6: III | M6: F | N6: 6 | O6: 30639 | P6: 30916.2 | Q6: 31641 | R6: =Q6+AI6 -> 31641 | S6: 23501.88 | U6: Area | V6: II | W6: 12.5 | AE6: III | AF6: F | AG6: 6 | AH6: 31641 | AI6: 0 | AJ6: 31641
B7: A3F5 | C7: 28449.67 | E7: A3F5 | F7: 28702.87 | G7: 28962.07 | H7: 29655.67 | I7: 29655.67 | J7: 23501.88 | L7: III | M7: F | N7: 5 | O7: 28702.87 | P7: 28962.07 | Q7: 29655.67 | R7: 29655.67 | S7: 23501.88 | U7: Area | V7: I | W7: 12.27 | AE7: III | AF7: F | AG7: 5 | AH7: 29655.67 | AI7: 0 | AJ7: 29655.67
B8: A3F4 | C8: 26718.84 | E8: A3F4 | F8: 26956.44 | G8: 27200.04 | H8: 27858.84 | I8: 27858.84 | J8: 23501.88 | L8: III | M8: F | N8: 4 | O8: 26956.44 | P8: 27200.04 | Q8: 27858.84 | R8: 27858.84 | S8: 23501.88 | U8: (1) Decorrenti dalla data di applicazione del nuovo sistema di classificazione professionale | AE8: III | AF8: F | AG8: 4 | AH8: 27858.84 | AI8: 0 | AJ8: 27858.84
B9: A3F3 | C9: 24329.64 | E9: A3F3 | F9: 24545.64 | G9: 24767.64 | H9: 25373.64 | I9: 25373.64 | J9: 23501.88 | L9: III | M9: F | N9: 3 | O9: 24545.64 | P9: 24767.64 | Q9: 25373.64 | R9: 25373.64 | S9: 23501.88 | AE9: III | AF9: F | AG9: 3 | AH9: 25373.64 | AI9: 0 | AJ9: 25373.64
B10: A3F2 | C10: 23074.61 | E10: A3F2 | F10: 23279.81 | G10: 23489.81 | H10: 24104.21 | I10: 24104.21 | J10: 23501.88 | L10: III | M10: F | N10: 2 | O10: 23279.81 | P10: 23489.81 | Q10: 24104.21 | R10: 24104.21 | S10: 23501.88 | AE10: III | AF10: F | AG10: 2 | AH10: 24104.21 | AI10: 0 | AJ10: 24104.21
B11: A3F1 | C11: 22291.78 | E11: A3F1 | F11: 22489.78 | G11: 22693.78 | H11: 23299.78 | I11: 23299.78 | J11: 23501.88 | L11: III | M11: F | N11: 1 | O11: 22489.78 | P11: 22693.78 | Q11: 23299.78 | R11: 23299.78 | S11: 23501.88 | AE11: III | AF11: F | AG11: 1 | AH11: 23299.78 | AI11: 0 | AJ11: 23299.78
B12: A2F6 | C12: 23014.93 | E12: A2F6 | F12: 23220.13 | G12: 23430.13 | H12: 24043.33 | I12: 24043.33 | J12: 19351.92 | L12: II | M12: F | N12: 6 | O12: 23220.13 | P12: 23430.13 | Q12: 24043.33 | R12: 24043.33 | S12: 19351.92 | AE12: II | AF12: F | AG12: 6 | AH12: 24043.33 | AI12: 0 | AJ12: 24043.33
B13: A2F5 | C13: 22377.66 | E13: A2F5 | F13: 22576.86 | G13: 22780.86 | H13: 23386.86 | I13: 23386.86 | J13: 19351.92 | L13: II | M13: F | N13: 5 | O13: 22576.86 | P13: 22780.86 | Q13: 23386.86 | R13: 23386.86 | S13: 19351.92 | AE13: II | AF13: F | AG13: 5 | AH13: 23386.86 | AI13: 0 | AJ13: 23386.86
B14: A2F4 | C14: 21594.96 | E14: A2F4 | F14: 21786.96 | G14: 21983.76 | H14: 22518.96 | I14: 22793.04 | J14: 19351.92 | L14: II | M14: F | N14: 4 | O14: 21786.96 | P14: 21983.76 | Q14: 22518.96 | R14: 22793.04 | S14: 19351.92 | Y14: II | Z14: F | AA14: 4 | AB14: 25.8 | AC14: =ROUND(AB14*12,2) -> 309.6 | AE14: II | AF14: F | AG14: 4 | AH14: 22518.96 | AI14: 274.08 | AJ14: 22793.04
B15: A2F3 | C15: 20358.56 | E15: A2F3 | F15: 20539.76 | G15: 20725.76 | H15: 21199.76 | I15: 21449.36 | J15: 19351.92 | L15: II | M15: F | N15: 3 | O15: 20539.76 | P15: 20725.76 | Q15: 21199.76 | R15: 21449.36 | S15: 19351.92 | Y15: II | Z15: F | AA15: 3 | AB15: 23.5 | AC15: =ROUND(AB15*12,2) -> 282 | AE15: II | AF15: F | AG15: 3 | AH15: 21199.76 | AI15: 249.6 | AJ15: 21449.36
B16: A2F2 | C16: 19132.15 | E16: A2F2 | F16: 19302.55 | G16: 19476.55 | H16: 19930.15 | I16: 20167.03 | J16: 19351.92 | L16: II | M16: F | N16: 2 | O16: 19302.55 | P16: 19476.55 | Q16: 19930.15 | R16: 20167.03 | S16: 19351.92 | Y16: II | Z16: F | AA16: 2 | AB16: 22.3 | AC16: 267.6 | AE16: II | AF16: F | AG16: 2 | AH16: 19930.15 | AI16: 236.88 | AJ16: 20167.03
B17: A2F1 | C17: 18203.28 | E17: A2F1 | F17: 18365.28 | G17: 18530.88 | H17: 18973.68 | I17: 19202.04 | J17: 19351.92 | L17: II | M17: F | N17: 1 | O17: 18365.28 | P17: 18530.88 | Q17: 18973.68 | R17: 19202.04 | S17: 19351.92 | Y17: II | Z17: F | AA17: 1 | AB17: 21.5 | AC17: 258 | AE17: II | AF17: F | AG17: 1 | AH17: 18973.68 | AI17: 228.36 | AJ17: 19202.04
B18: A1F3 | C18: 18523.93 | E18: A1F3 | F18: 18688.33 | G18: 18857.53 | H18: 19315.93 | I18: 19550.65 | J18: 18390.84 | L18: I | M18: F | N18: 3 | O18: 18688.33 | P18: 18857.53 | Q18: 19315.93 | R18: 19550.65 | S18: 18390.84 | Y18: I | Z18: F | AA18: 3 | AB18: 22.1 | AC18: 265.2 | AE18: I | AF18: F | AG18: 3 | AH18: 19315.93 | AI18: 234.72 | AJ18: 19550.65
B19: A1F2 | C19: 17868.35 | E19: A1F2 | F19: 18026.75 | G19: 18189.95 | H19: 18636.35 | I19: 18864.71 | J19: 18390.84 | L19: I | M19: F | N19: 2 | O19: 18026.75 | P19: 18189.95 | Q19: 18636.35 | R19: 18864.71 | S19: 18390.84 | Y19: I | Z19: F | AA19: 2 | AB19: 21.5 | AC19: 258 | AE19: I | AF19: F | AG19: 2 | AH19: 18636.35 | AI19: 228.36 | AJ19: 18864.71
B20: A1F1 | C20: 17263.45 | E20: A1F1 | F20: 17417.05 | G20: 17574.25 | H20: 18019.45 | I20: 18243.61 | J20: 18390.84 | L20: I | M20: F | N20: 1 | O20: 17417.05 | P20: 17574.25 | Q20: 18019.45 | R20: 18243.61 | S20: 18390.84 | Y20: I | Z20: F | AA20: 1 | AB20: 21.1 | AC20: 253.2 | AE20: I | AF20: F | AG20: 1 | AH20: 18019.45 | AI20: 224.16 | AJ20: 18243.61
AE21: (1) I valori dell'elemento perequativo conglobati nello stipendio tabellare sono stati calcolati al netto dei maggiori oneri per le amministrazioni derivanti dalla loro inclusione nello stipendio tabellare. A seguito del conglobamento, l'elemento perequativo cessa di essere corrisposto.
K22: 1 | L22: dal | M22: A3F7 | N22: A3F6 | O22: A3F5 | P22: A3F4 | Q22: A3F3 | R22: A3F2 | S22: A3F1 | T22: A2F6 | U22: A2F5 | V22: A2F4 | W22: A2F3 | X22: A2F2 | Y22: A2F1 | Z22: A1F3 | AA22: A1F2 | AB22: A1F1
K23: 2 | L23: 01.01.2019 | M23: =VLOOKUP(M22,$E$5:$J$20,$K$23,FALSE) -> 32533.28 | N23: =VLOOKUP(N22,$E$5:$J$20,$K$23,FALSE) -> 30639 | O23: 28702.87 | P23: 26956.44 | Q23: 24545.64 | R23: 23279.81 | S23: 22489.78 | T23: 23220.13 | U23: 22576.86 | V23: 21786.96 | W23: 20539.76 | X23: 19302.55 | Y23: 18365.28 | Z23: 18688.33 | AA23: 18026.75 | AB23: 17417.05
K24: 3 | L24: 01.01.2020 | M24: =VLOOKUP(M22,$E$5:$J$20,$K$24,FALSE) -> 32827.28 | N24: =VLOOKUP(N22,$E$5:$J$20,$K$24,FALSE) -> 30916.2 | O24: 28962.07 | P24: 27200.04 | Q24: 24767.64 | R24: 23489.81 | S24: 22693.78 | T24: 23430.13 | U24: 22780.86 | V24: 21983.76 | W24: 20725.76 | X24: 19476.55 | Y24: 18530.88 | Z24: 18857.53 | AA24: 18189.95 | AB24: 17574.25
K25: 4 | L25: 01.01.2021 | M25: =VLOOKUP(M22,$E$5:$J$20,$K$25,FALSE) -> 33614.48 | N25: =VLOOKUP(N22,$E$5:$J$20,$K$25,FALSE) -> 31641 | O25: 29655.67 | P25: 27858.84 | Q25: 25373.64 | R25: 24104.21 | S25: 23299.78 | T25: 24043.33 | U25: 23386.86 | V25: 22518.96 | W25: 21199.76 | X25: 19930.15 | Y25: 18973.68 | Z25: 19315.93 | AA25: 18636.35 | AB25: 18019.45
K26: 5 | L26: 01.07.2022 | M26: =VLOOKUP(M22,$E$5:$J$20,$K$26,FALSE) -> 33614.48 | N26: =VLOOKUP(N22,$E$5:$J$20,$K$26,FALSE) -> 31641 | O26: 29655.67 | P26: 27858.84 | Q26: 25373.64 | R26: 24104.21 | S26: 23299.78 | T26: 24043.33 | U26: 23386.86 | V26: 22793.04 | W26: 21449.36 | X26: 20167.03 | Y26: 19202.04 | Z26: 19550.65 | AA26: 18864.71 | AB26: 18243.61
K27: 6 | L27: 01.11.2022 | M27: =VLOOKUP(M22,$E$5:$J$20,$K$27,FALSE) -> 23501.88 | N27: =VLOOKUP(N22,$E$5:$J$20,$K$27,FALSE) -> 23501.88 | O27: 23501.88 | P27: 23501.88 | Q27: 23501.88 | R27: 23501.88 | S27: 23501.88 | T27: 19351.92 | U27: 19351.92 | V27: 19351.92 | W27: 19351.92 | X27: 19351.92 | Y27: 19351.92 | Z27: 18390.84 | AA27: 18390.84 | AB27: 18390.84
B29: POSIZIONE ECONOMICA | C29: POSIZIONE ECONOMICA | E29: VACANZA CONTRATTUALE ANNUA | H29: VACANZA CONTRATTUALE MENSILE | L29: MINISTERO DELL'ECONOMIA E DELLE FINANZE DIPARTIMENTO DELL’AMMINISTRAZIONE GENERALE, DEL PERSONALE E DEI SERVIZI DIREZIONE DEI SISTEMI INFORMATIVI E DELL’INNOVAZIONE
E31: DAL 1° APRILE 2022 | F31: DAL 1° LUGLIO 2022 | G31: DAL 1° GENNAIO 2024 | H31: DAL 1° APRILE 2022 | I31: DAL 1° LUGLIO 2022 | J31: DAL 1° GENNAIO 2024 | L31: QUALIFICA | M31: AREA | N31: FASCIA | O31: CODICE ASSEGNO IVC | P31: SOTTOCODICE IVC | Q31: IMPORTO DAL 01/04/2022 | R31: IMPORTO DAL 01/07/2022 | T31: NUOVO CODICE QUALIFICA | U31: AMMINISTRAZIONE | V31: NUOVA AREA | W31: EX POSIZIONE ECONOMICA | X31: FASCIA | Y31: NUOVA POSIZIONE ECONOMICA | AA31: Codice assegno | AB31: Sottocodice assegno | AC31: Descrizione assegno con imponibile contributivo x 13 mensilità | AE31: Isolamento Imponibile lordo RAP x 13 mensilità | AG31: Isolamento Imponibile lordo RAP x 12 mensilità | AH31: Isolamento Imponibile lordo RAP x 1 mensilità
B32: XXC7 | C32: A3F7 | E32: =ROUND(H5*0.3%,2) -> 100.84 | F32: =ROUND(I5*0.5%,2) -> 168.07 | G32: =AG32 -> 1126.4 | H32: =ROUND(E32/12,2) -> 8.4 | I32: =ROUND(F32/12,2) -> 14.01 | J32: =AH32 -> 93.87 | L32: XXC7 | M32: III | N32: F7 | O32: 119 | P32: X17 | Q32: 8.06 | R32: 13.44 | T32: X001 | U32: DIFESA | V32: FUNZIONARI | W32: III F 7 | X32: F7 | Y32: =CONCATENATE(V32," ",X32) -> FUNZIONARI F7 | AA32: 976 | AB32: X17 | AC32: ANTICIPO RINNOVO CCNL 2022 - 2024 - 1220,27 Euro | AE32: 1220.27 | AG32: =ROUND(AE32/13*12,2) -> 1126.4 | AH32: =ROUND(AG32/12,2) -> 93.87
B33: XXC6 | C33: A3F6 | E33: 94.92 | F33: 158.21 | G33: 1059.67 | H33: 7.91 | I33: 13.18 | J33: =AH33 -> 88.31 | L33: XXC6 | M33: III | N33: F6 | O33: 119 | P33: X15 | Q33: 7.59 | R33: 12.65 | T33: X002 | U33: DIFESA | V33: FUNZIONARI | W33: III F 6 | X33: F6 | Y33: =CONCATENATE(V33," ",X33) -> FUNZIONARI F6 | AA33: 976 | AB33: X15 | AC33: ANTICIPO RINNOVO CCNL 2022 - 2024 - 1147,98 Euro | AE33: 1147.98 | AG33: =ROUND(AE33/13*12,2) -> 1059.67 | AH33: =ROUND(AG33/12,2) -> 88.31
B34: XSC3 | C34: A3F5 | E34: 88.97 | F34: 148.28 | G34: 993.75 | H34: 7.41 | I34: 12.36 | J34: =AH34 -> 82.81 | L34: XSC3 | M34: III | N34: F5 | O34: 119 | P34: X14 | Q34: 7.11 | R34: 11.85 | T34: X003 | U34: DIFESA | V34: FUNZIONARI | W34: III F 5 | X34: F5 | Y34: FUNZIONARI F5 | AA34: 976 | AB34: X14 | AC34: ANTICIPO RINNOVO CCNL 2022 - 2024 - 1076,56 Euro | AE34: 1076.56 | AG34: 993.75 | AH34: 82.81
B35: XXC3 | C35: A3F4 | E35: 83.58 | F35: 139.29 | G35: 933.44 | H35: 6.97 | I35: 11.61 | J35: =AH35 -> 77.79 | L35: XXC3 | M35: III | N35: F4 | O35: 119 | P35: X13 | Q35: 6.68 | R35: 11.13 | T35: X004 | U35: DIFESA | V35: FUNZIONARI | W35: III F 4 | X35: F4 | Y35: FUNZIONARI F4 | AA35: 976 | AB35: X13 | AC35: ANTICIPO RINNOVO CCNL 2022 - 2024 - 1011,23 Euro | AE35: 1011.23 | AG35: 933.44 | AH35: 77.79
B36: XXC2 | C36: A3F3 | E36: 76.12 | F36: 126.87 | G36: 849.83 | H36: 6.34 | I36: 10.57 | J36: 70.82 | L36: XXC2 | M36: III | N36: F3 | O36: 119 | P36: X12 | Q36: 6.08 | R36: 10.14 | T36: X005 | U36: DIFESA | V36: FUNZIONARI | W36: III F 3 | X36: F3 | Y36: FUNZIONARI F3 | AA36: 976 | AB36: X12 | AC36: ANTICIPO RINNOVO CCNL 2022 - 2024 - 920,65 Euro | AE36: 920.65 | AG36: 849.83 | AH36: 70.82
B37: XSC1 | C37: A3F2 | E37: 72.31 | F37: 120.52 | G37: 807.21 | H37: 6.03 | I37: 10.04 | J37: 67.27 | L37: XSC1 | M37: III | N37: F2 | O37: 119 | P37: X11 | Q37: 5.77 | R37: 9.61 | T37: X006 | U37: DIFESA | V37: FUNZIONARI | W37: III F 2 | X37: F2 | Y37: FUNZIONARI F2 | AA37: 976 | AB37: X11 | AC37: ANTICIPO RINNOVO CCNL 2022 - 2024 - 874,48 Euro | AE37: 874.48 | AG37: 807.21 | AH37: 67.27
B38: XXC1 | C38: A3F1 | E38: 69.9 | F38: 116.5 | G38: 780.68 | H38: 5.83 | I38: 9.71 | J38: 65.06 | L38: XXC1 | M38: III | N38: F1 | O38: 119 | P38: X08 | Q38: 5.57 | R38: 9.29 | T38: X007 | U38: DIFESA | V38: FUNZIONARI | W38: III F 1 | X38: F1 | Y38: FUNZIONARI F1 | AA38: 976 | AB38: X08 | AC38: ANTICIPO RINNOVO CCNL 2022 - 2024 - 845,74 Euro | AE38: 845.74 | AG38: 780.68 | AH38: 65.06
B39: XXB6 | C39: A2F6 | E39: 72.13 | F39: 120.22 | G39: 805.61 | H39: 6.01 | I39: 10.02 | J39: 67.13 | L39: XXB6 | M39: II | N39: F6 | O39: 119 | P39: X10 | Q39: 5.75 | R39: 9.59 | T39: X008 | U39: DIFESA | V39: ASSISTENTI | W39: II F 6 | X39: F6 | Y39: ASSISTENTI F6 | AA39: 976 | AB39: X10 | AC39: ANTICIPO RINNOVO CCNL 2022 - 2024 - 872,74 Euro | AE39: 872.74 | AG39: 805.61 | AH39: 67.13
B40: XXB5 | C40: A2F5 | E40: 70.16 | F40: 116.93 | G40: 783.09 | H40: 5.85 | I40: 9.74 | J40: 65.26 | L40: XXB5 | M40: II | N40: F5 | O40: 119 | P40: X09 | Q40: 5.59 | R40: 9.32 | T40: X009 | U40: DIFESA | V40: ASSISTENTI | W40: II F 5 | X40: F5 | Y40: ASSISTENTI F5 | AA40: 976 | AB40: X09 | AC40: ANTICIPO RINNOVO CCNL 2022 - 2024 - 848,35 Euro | AE40: 848.35 | AG40: 783.09 | AH40: 65.26
B41: XSB3 | C41: A2F4 | E41: 67.56 | F41: 113.97 | G41: 763.8 | H41: 5.63 | I41: 9.5 | J41: 63.65 | L41: XSB3 | M41: II | N41: F4 | O41: 119 | P41: X07 | Q41: 5.4 | R41: 9 | T41: X010 | U41: DIFESA | V41: ASSISTENTI | W41: II F 4 | X41: F4 | Y41: ASSISTENTI F4 | AA41: 976 | AB41: X07 | AC41: ANTICIPO RINNOVO CCNL 2022 - 2024 - 827,45 Euro | AE41: 827.45 | AG41: 763.8 | AH41: 63.65
B42: XXB3 | C42: A2F3 | E42: 63.6 | F42: 107.25 | G42: 718.77 | H42: 5.3 | I42: 8.94 | J42: 59.9 | L42: XXB3 | M42: II | N42: F3 | O42: 119 | P42: X05 | Q42: 5.09 | R42: 8.48 | T42: X011 | U42: DIFESA | V42: ASSISTENTI | W42: II F 3 | X42: F3 | Y42: ASSISTENTI F3 | AA42: 976 | AB42: X05 | AC42: ANTICIPO RINNOVO CCNL 2022 - 2024 - 778,67 Euro | AE42: 778.67 | AG42: 718.77 | AH42: 59.9
B43: XXB2 | C43: A2F2 | E43: 59.79 | F43: 100.84 | G43: 675.36 | H43: 4.98 | I43: 8.4 | J43: 56.28 | L43: XXB2 | M43: II | N43: F2 | O43: 119 | P43: X04 | Q43: 4.78 | R43: 7.97 | T43: X012 | U43: DIFESA | V43: ASSISTENTI | W43: II F 2 | X43: F2 | Y43: ASSISTENTI F2 | AA43: 976 | AB43: X04 | AC43: ANTICIPO RINNOVO CCNL 2022 - 2024 - 731,64 Euro | AE43: 731.64 | AG43: 675.36 | AH43: 56.28
B44: XXB1 | C44: A2F1 | E44: 56.92 | F44: 96.01 | G44: 643.2 | H44: 4.74 | I44: 8 | J44: 53.6 | L44: XXB1 | M44: II | N44: F1 | O44: 119 | P44: X03 | Q44: 4.55 | R44: 7.58 | T44: X013 | U44: DIFESA | V44: ASSISTENTI | W44: II F 1 | X44: F1 | Y44: ASSISTENTI F1 | AA44: 976 | AB44: X03 | AC44: ANTICIPO RINNOVO CCNL 2022 - 2024 - 696,8 Euro | AE44: 696.8 | AG44: 643.2 | AH44: 53.6
B45: XXA3 | C45: A1F3 | E45: 57.95 | F45: 97.75 | G45: 655.26 | H45: 4.83 | I45: 8.15 | J45: 54.61 | L45: XXA3 | M45: I | N45: F3 | O45: 119 | P45: X06 | Q45: 4.63 | R45: 7.72 | T45: X014 | U45: DIFESA | V45: OPERATORI | W45: I F 3 | X45: F3 | Y45: OPERATORI F3 | AA45: 976 | AB45: X06 | AC45: ANTICIPO RINNOVO CCNL 2022 - 2024 - 709,87 Euro | AE45: 709.87 | AG45: 655.26 | AH45: 54.61
B46: XSA1 | C46: A1F2 | E46: 55.91 | F46: 94.32 | G46: 631.95 | H46: 4.66 | I46: 7.86 | J46: 52.66 | L46: XSA1 | M46: I | N46: F2 | O46: 119 | P46: X02 | Q46: 4.47 | R46: 7.45 | T46: X015 | U46: DIFESA | V46: OPERATORI | W46: I F 2 | X46: F2 | Y46: OPERATORI F2 | AA46: 976 | AB46: X02 | AC46: ANTICIPO RINNOVO CCNL 2022 - 2024 - 684,61 Euro | AE46: 684.61 | AG46: 631.95 | AH46: 52.66
B47: XXA1 | C47: A1F1 | E47: 54.06 | F47: 91.22 | G47: 611.04 | H47: 4.51 | I47: 7.6 | J47: =AH47 -> 50.92 | L47: XXA1 | M47: I | N47: F1 | O47: 119 | P47: X01 | Q47: 4.32 | R47: 7.19 | T47: X016 | U47: DIFESA | V47: OPERATORI | W47: I F 1 | X47: F1 | Y47: OPERATORI F1 | AA47: 976 | AB47: X01 | AC47: ANTICIPO RINNOVO CCNL 2022 - 2024 - 661,96 Euro | AE47: 661.96 | AG47: 611.04 | AH47: 50.92
K49: 1 | L49: dal | M49: A3F7 | N49: A3F6 | O49: A3F5 | P49: A3F4 | Q49: A3F3 | R49: A3F2 | S49: A3F1 | T49: A2F6 | U49: A2F5 | V49: A2F4 | W49: A2F3 | X49: A2F2 | Y49: A2F1 | Z49: A1F3 | AA49: A1F2 | AB49: A1F1
K50: 2 | L50: 01.04.2022 | M50: =VLOOKUP(M49,$C$32:$F$47,$K$50,FALSE) -> 0 | N50: 0 | O50: 0 | P50: 0 | Q50: 0 | R50: 0 | S50: 0 | T50: 0 | U50: 0 | V50: 0 | W50: 0 | X50: 0 | Y50: 0 | Z50: 0 | AA50: 0 | AB50: 0
K51: 3 | L51: 01.07.2022 | M51: =VLOOKUP(M49,$C$32:$F$47,$K$51,FALSE) -> 100.84 | N51: 94.92 | O51: 88.97 | P51: 83.58 | Q51: 76.12 | R51: 72.31 | S51: 69.9 | T51: 72.13 | U51: 70.16 | V51: 67.56 | W51: 63.6 | X51: 59.79 | Y51: 56.92 | Z51: 57.95 | AA51: 55.91 | AB51: 54.06
B53: POSIZIONE ECONOMICA | C53: NDENNITA' DI AMM.NE ANNUA TABELLA "F" CCNL 2006/2009 | E53: POSIZIONE ECONOMICA | F53: INDENNITA' DI AMMINISTRAZIONE ANNUA | L53: Ministero dell’Economia e delle Finanze Dipartimento dell’Amministrazione Generale, del Personale e dei Servizi Direzione dei Sistemi Informativi e dell'Innovazione - Ufficio IV | V53: CCNL 2019 - 2021 INCREMENTO MENSILE MININISTERO DELLA DIFESA | Y53: DAL 01.01.2021
F54: DPCM 23.12.2021 | H54: DPCM 23.12.2021 | I54: INCREMENTO CCNL 2019 - 2021 | J54: DPCM 23.12.2021 + CCNL 2019 - 2021
C55: FINO AL 31/12/2019 | F55: DAL 1° GENNAIO 2020 | H55: INIZIALE DAL 1° GENNAIO 2021 | I55: INCREMENTO DAL 1° GENNAIO 2021 | J55: DAL 1° GENNAIO 2021 | L55: CODICE ASSEGNO | M55: SUBCODICE ASSEGNO | N55: DESCRIZIONE ASSEGNO | O55: DECORRENZA TABELLARE | P55: SCADENZA TABELLARE | Q55: IMPORTO | R55: DECORRENZA TABELLARE | S55: SCADENZA TABELLARE | T55: IMPORTO
B56: A3F7 | C56: 3370.44 | E56: A3F7 | F56: =ROUND(Q56*12,2) -> 4741.44 | H56: =ROUND(T56*12,2) -> 4636.44 | I56: =ROUND(Y56*12,2) -> 1082.52 | J56: =H56+I56 -> 5718.96 | L56: 667 | M56: R09 | N56: IND. AMM. MIN. DIFESA AREA III F4-F5-F6-F7- BASE | O56: 2020-01-01 | P56: 2020-12-31 | Q56: 395.12 | R56: 2021-01-01 | S56: 9999-01-01 | T56: 386.37 | V56: III | W56: F | X56: 7 | Y56: 90.21
B57: A3F6 | C57: 3370.44 | E57: A3F6 | F57: =ROUND(Q57*12,2) -> 4741.44 | H57: =ROUND(T57*12,2) -> 4636.44 | I57: =ROUND(Y57*12,2) -> 1082.52 | J57: =H57+I57 -> 5718.96 | L57: 667 | M57: R09 | N57: IND. AMM. MIN. DIFESA AREA III F4-F5-F6-F7- BASE | O57: 2020-01-01 | P57: 2020-12-31 | Q57: 395.12 | R57: 2021-01-01 | S57: 9999-01-01 | T57: 386.37 | V57: III | W57: F | X57: 6 | Y57: 90.21
B58: A3F5 | C58: 3370.44 | E58: A3F5 | F58: 4741.44 | H58: 4636.44 | I58: 1082.52 | J58: 5718.96 | L58: 667 | M58: R09 | N58: IND. AMM. MIN. DIFESA AREA III F4-F5-F6-F7- BASE | O58: 2020-01-01 | P58: 2020-12-31 | Q58: 395.12 | R58: 2021-01-01 | S58: 9999-01-01 | T58: 386.37 | V58: III | W58: F | X58: 5 | Y58: 90.21
B59: A3F4 | C59: 3370.44 | E59: A3F4 | F59: 4741.44 | H59: 4636.44 | I59: 1082.52 | J59: 5718.96 | L59: 667 | M59: R09 | N59: IND. AMM. MIN. DIFESA AREA III F4-F5-F6-F7- BASE | O59: 2020-01-01 | P59: 2020-12-31 | Q59: 395.12 | R59: 2021-01-01 | S59: 9999-01-01 | T59: 386.37 | V59: III | W59: F | X59: 4 | Y59: 90.21
B60: A3F3 | C60: 3112.08 | E60: A3F3 | F60: 4463.04 | H60: 4385.04 | I60: 1082.52 | J60: 5467.56 | L60: 667 | M60: R08 | N60: IND. AMM. MIN. DIFESA AREA III F3- BASE | O60: 2020-01-01 | P60: 2020-12-31 | Q60: 371.92 | R60: 2021-01-01 | S60: 9999-01-01 | T60: 365.42 | V60: III | W60: F | X60: 3 | Y60: 90.21
B61: A3F2 | C61: 2772.72 | E61: A3F2 | F61: 4047.72 | H61: 3993.72 | I61: 1082.52 | J61: 5076.24 | L61: 667 | M61: R07 | N61: IND. AMM. MIN. DIFESA AREA III F1-F2- BASE | O61: 2020-01-01 | P61: 2020-12-31 | Q61: 337.31 | R61: 2021-01-01 | S61: 9999-01-01 | T61: 332.81 | V61: III | W61: F | X61: 2 | Y61: 90.21
B62: A3F1 | C62: 2772.72 | E62: A3F1 | F62: 4047.72 | H62: 3993.72 | I62: 1082.52 | J62: 5076.24 | L62: 667 | M62: R07 | N62: IND. AMM. MIN. DIFESA AREA III F1-F2- BASE | O62: 2020-01-01 | P62: 2020-12-31 | Q62: 337.31 | R62: 2021-01-01 | S62: 9999-01-01 | T62: 332.81 | V62: III | W62: F | X62: 1 | Y62: 90.21
B63: A2F6 | C63: 2483.28 | E63: A2F6 | F63: 3486.24 | H63: 3407.28 | I63: 866.28 | J63: 4273.56 | L63: 667 | M63: R06 | N63: IND. AMM. MIN. DIFESA AREA II F3-F4-F5-F6- BASE | O63: 2020-01-01 | P63: 2020-12-31 | Q63: 290.52 | R63: 2021-01-01 | S63: 9999-01-01 | T63: 283.94 | V63: II | W63: F | X63: 6 | Y63: 72.19
B64: A2F5 | C64: 2483.28 | E64: A2F5 | F64: 3486.24 | H64: 3407.28 | I64: 866.28 | J64: 4273.56 | L64: 667 | M64: R06 | N64: IND. AMM. MIN. DIFESA AREA II F3-F4-F5-F6- BASE | O64: 2020-01-01 | P64: 2020-12-31 | Q64: 290.52 | R64: 2021-01-01 | S64: 9999-01-01 | T64: 283.94 | V64: II | W64: F | X64: 5 | Y64: 72.19
B65: A2F4 | C65: 2483.28 | E65: A2F4 | F65: 3486.24 | H65: 3407.28 | I65: 866.28 | J65: 4273.56 | L65: 667 | M65: R06 | N65: IND. AMM. MIN. DIFESA AREA II F3-F4-F5-F6- BASE | O65: 2020-01-01 | P65: 2020-12-31 | Q65: 290.52 | R65: 2021-01-01 | S65: 9999-01-01 | T65: 283.94 | V65: II | W65: F | X65: 4 | Y65: 72.19
B66: A2F3 | C66: 2483.28 | E66: A2F3 | F66: 3486.24 | H66: 3407.28 | I66: 866.28 | J66: 4273.56 | L66: 667 | M66: R06 | N66: IND. AMM. MIN. DIFESA AREA II F3-F4-F5-F6- BASE | O66: 2020-01-01 | P66: 2020-12-31 | Q66: 290.52 | R66: 2021-01-01 | S66: 9999-01-01 | T66: 283.94 | V66: II | W66: F | X66: 3 | Y66: 72.19
B67: A2F2 | C67: 2246.4 | E67: A2F2 | F67: 3195.36 | H67: 3133.44 | I67: 866.28 | J67: 3999.72 | L67: 667 | M67: R05 | N67: IND. AMM. MIN. DIFESA AREA II F2- BASE | O67: 2020-01-01 | P67: 2020-12-31 | Q67: 266.28 | R67: 2021-01-01 | S67: 9999-01-01 | T67: 261.12 | V67: II | W67: F | X67: 2 | Y67: 72.19
B68: A2F1 | C68: 2045.76 | E68: A2F1 | F68: 2996.76 | H68: 2958.72 | I68: 866.28 | J68: 3825 | L68: 667 | M68: R04 | N68: IND. AMM. MIN. DIFESA AREA II F1- BASE | O68: 2020-01-01 | P68: 2020-12-31 | Q68: 249.73 | R68: 2021-01-01 | S68: 9999-01-01 | T68: 246.56 | V68: II | W68: F | X68: 1 | Y68: 72.19
B69: A1F3 | C69: 1834.2 | E69: A1F3 | F69: 2737.2 | H69: 2715.24 | I69: 644.16 | J69: 3359.4 | L69: 667 | M69: R02 | N69: IND. AMM. MIN. DIFESA AREA I F1-F2-F3- BASE | O69: 2020-01-01 | P69: 2020-12-31 | Q69: 228.1 | R69: 2021-01-01 | S69: 9999-01-01 | T69: 226.27 | V69: I | W69: F | X69: 3 | Y69: 53.68
B70: A1F2 | C70: 1834.2 | E70: A1F2 | F70: 2737.2 | H70: 2715.24 | I70: 644.16 | J70: 3359.4 | L70: 667 | M70: R02 | N70: IND. AMM. MIN. DIFESA AREA I F1-F2-F3- BASE | O70: 2020-01-01 | P70: 2020-12-31 | Q70: 228.1 | R70: 2021-01-01 | S70: 9999-01-01 | T70: 226.27 | V70: I | W70: F | X70: 2 | Y70: 53.68
B71: A1F1 | C71: 1834.2 | E71: A1F1 | F71: 2737.2 | H71: 2715.24 | I71: 644.16 | J71: 3359.4 | L71: 667 | M71: R02 | N71: IND. AMM. MIN. DIFESA AREA I F1-F2-F3- BASE | O71: 2020-01-01 | P71: 2020-12-31 | Q71: 228.1 | R71: 2021-01-01 | S71: 9999-01-01 | T71: 226.27 | V71: I | W71: F | X71: 1 | Y71: 53.68
J73: 1 | K73: 1 | L73: dal | M73: A3F7 | N73: A3F6 | O73: A3F5 | P73: A3F4 | Q73: A3F3 | R73: A3F2 | S73: A3F1 | T73: A2F6 | U73: A2F5 | V73: A2F4 | W73: A2F3 | X73: A2F2 | Y73: A2F1 | Z73: A1F3 | AA73: A1F2 | AB73: A1F1
J74: 2 | K74: 2 | L74: 01.01.2020 | M74: =VLOOKUP(M73,$E$56:$J$71,$K$74,FALSE) -> 4741.44 | N74: =VLOOKUP(N73,$E$56:$J$71,$K$74,FALSE) -> 4741.44 | O74: 4741.44 | P74: 4741.44 | Q74: 4463.04 | R74: 4047.72 | S74: 4047.72 | T74: 3486.24 | U74: 3486.24 | V74: 3486.24 | W74: 3486.24 | X74: 3195.36 | Y74: 2996.76 | Z74: 2737.2 | AA74: 2737.2 | AB74: 2737.2
J75: 3 | K75: 6 | L75: 01.01.2021 | M75: =VLOOKUP(M73,$E$56:$J$71,$K$75,FALSE) -> 5718.96 | N75: =VLOOKUP(N73,$E$56:$J$71,$K$75,FALSE) -> 5718.96 | O75: 5718.96 | P75: 5718.96 | Q75: 5467.56 | R75: 5076.24 | S75: 5076.24 | T75: 4273.56 | U75: 4273.56 | V75: 4273.56 | W75: 4273.56 | X75: 3999.72 | Y75: 3825 | Z75: 3359.4 | AA75: 3359.4 | AB75: 3359.4
C77: DIFFERENZIALE ART. 52 CCNL 2019/2021 E INDENNITA' DI AMMINISTRAZIONE | I77: DPCM 23.12.2021 + CCNL 2019 - 2021 | J77: ART. 52 CCNL 2019 - 2021
C78: DAL 1° NOVEMBRE 2022 | I78: IND. AMM.NE DIFESA | J78: DIFFERENZIALE DIFESA
C79: =CONCATENATE(H79," ",E79) -> A3F7 44866 | E79: 2022-11-01 | F79: 9999-01-01 | G79: -------- | H79: A3F7 | I79: 4638 | J79: 11110.44
C80: =CONCATENATE(H80," ",E80) -> A3F6 44866 | E80: 2022-11-01 | F80: 9999-01-01 | G80: -------- | H80: A3F6 | I80: 4638 | J80: 9136.92
C81: =CONCATENATE(H81," (",G81,") ",E81) -> A3F5 (C3S) 44866 | E81: 2022-11-01 | F81: 9999-01-01 | G81: C3S | H81: A3F5 | I81: 4638 | J81: 7151.64
C82: =CONCATENATE(H82," (",G82,") ",E82) -> A3F4 (C3) 44866 | E82: 2022-11-01 | F82: 9999-01-01 | G82: C3 | H82: A3F4 | I82: 4638 | J82: 5354.76
C83: A3F3 (C2) 44866 | E83: 2022-11-01 | F83: 9999-01-01 | G83: C2 | H83: A3F3 | I83: 4638 | J83: 2637.48
C84: A3F2 (C1S) 44866 | E84: 2022-11-01 | F84: 9999-01-01 | G84: C1S | H84: A3F2 | I84: 4638 | J84: 1006.8
C85: A3F1 (C1) 44866 | E85: 2022-11-01 | F85: 9999-01-01 | G85: C1 | H85: A3F1 | I85: 4638 | J85: 202.44
C86: =CONCATENATE(H86," ",E86) -> A2F6 44866 | E86: 2022-11-01 | F86: 9999-01-01 | G86: -------- | H86: A2F6 | I86: 3500.04 | J86: 5405.4
C87: A2F5 44866 | E87: 2022-11-01 | F87: 9999-01-01 | G87: -------- | H87: A2F5 | I87: 3500.04 | J87: 4749
C88: =CONCATENATE(H88," (",G88,") ",E88) -> A2F4 (B3S) 44866 | E88: 2022-11-01 | F88: 9999-01-01 | G88: B3S | H88: A2F4 | I88: 3500.04 | J88: 4155.12
C89: A2F3 (B3) 44866 | E89: 2022-11-01 | F89: 9999-01-01 | G89: B3 | H89: A2F3 | I89: 3500.04 | J89: 2811.48
C90: A2F2 (B2) 44866 | E90: 2022-11-01 | F90: 9999-01-01 | G90: B2 | H90: A2F2 | I90: 3500.04 | J90: 1276.44
C91: A2F1 (B1) 44866 | E91: 2022-11-01 | F91: 9999-01-01 | G91: B1 | H91: A2F1 | I91: 3500.04 | J91: 150.12
C92: =CONCATENATE(H92," ",E92) -> A1F3 44866 | E92: 2022-11-01 | F92: 9999-01-01 | G92: -------- | H92: A1F3 | I92: 3040.32 | J92: 1454.28
C93: =CONCATENATE(H93," (",G93,") ",E93) -> A1F2 (A1S) 44866 | E93: 2022-11-01 | F93: 9999-01-01 | G93: A1S | H93: A1F2 | I93: 3040.32 | J93: 768.36
C94: A1F1 (A1) 44866 | E94: 2022-11-01 | F94: 9999-01-01 | G94: A1 | H94: A1F1 | I94: 3040.32 | J94: 147.24
C97: DIFFERENZIALE ART. 52 CCNL 2019/2021 E INDENNITA' DI AMMINISTRAZIONE | J97: ART. 52 CCNL 2019 - 2021
C98: DAL 1° NOVEMBRE 2022 | J98: DIFFERENZIALE DIFESA
C99: =CONCATENATE(H99," (",G99,") ",E99) -> A1F1 (A1) 35977 | E99: 1998-07-01 | F99: 2022-10-31 | G99: =G100 -> A1 | H99: =H100 -> A1F1 | J99: 0
C100: =CONCATENATE(H100," (",G100,") ",E100) -> A1F1 (A1) 44866 | E100: 2022-11-01 | F100: 9999-01-01 | G100: A1 | H100: A1F1 | J100: 147.24
C101: =CONCATENATE(H101," (",G101,") ",E101) -> A1F2 (A1S) 35977 | E101: 1998-07-01 | F101: 2022-10-31 | G101: =G102 -> A1S | H101: =H102 -> A1F2 | J101: 0
C102: =CONCATENATE(H102," (",G102,") ",E102) -> A1F2 (A1S) 44866 | E102: 2022-11-01 | F102: 9999-01-01 | G102: A1S | H102: A1F2 | J102: 768.36
C103: =CONCATENATE(H103," ",E103) -> A1F3 35977 | E103: 1998-07-01 | F103: 2022-10-31 | G103: =G104 -> -------- | H103: =H104 -> A1F3 | J103: 0
C104: =CONCATENATE(H104," ",E104) -> A1F3 44866 | E104: 2022-11-01 | F104: 9999-01-01 | G104: -------- | H104: A1F3 | J104: 1454.28
C105: =CONCATENATE(H105," (",G105,") ",E105) -> A2F1 (B1) 35977 | E105: 1998-07-01 | F105: 2022-10-31 | G105: =G106 -> B1 | H105: =H106 -> A2F1 | J105: 0
C106: A2F1 (B1) 44866 | E106: 2022-11-01 | F106: 9999-01-01 | G106: B1 | H106: A2F1 | J106: 150.12
C107: A2F2 (B2) 35977 | E107: 1998-07-01 | F107: 2022-10-31 | G107: =G108 -> B2 | H107: =H108 -> A2F2 | J107: 0
C108: A2F2 (B2) 44866 | E108: 2022-11-01 | F108: 9999-01-01 | G108: B2 | H108: A2F2 | J108: 1276.44
C109: A2F3 (B3) 35977 | E109: 1998-07-01 | F109: 2022-10-31 | G109: =G110 -> B3 | H109: =H110 -> A2F3 | J109: 0
C110: A2F3 (B3) 44866 | E110: 2022-11-01 | F110: 9999-01-01 | G110: B3 | H110: A2F3 | J110: 2811.48
C111: =CONCATENATE(H111," (",G111,") ",E111) -> A2F4 (B3S) 35977 | E111: 1998-07-01 | F111: 2022-10-31 | G111: =G112 -> B3S | H111: =H112 -> A2F4 | J111: 0
C112: =CONCATENATE(H112," (",G112,") ",E112) -> A2F4 (B3S) 44866 | E112: 2022-11-01 | F112: 9999-01-01 | G112: B3S | H112: A2F4 | J112: 4155.12
C113: =CONCATENATE(H113," ",E113) -> A2F5 35977 | E113: 1998-07-01 | F113: 2022-10-31 | G113: =G114 -> -------- | H113: =H114 -> A2F5 | J113: 0
C114: =CONCATENATE(H114," ",E114) -> A2F5 44866 | E114: 2022-11-01 | F114: 9999-01-01 | G114: -------- | H114: A2F5 | J114: 4749
C115: =CONCATENATE(H115," ",E115) -> A2F6 35977 | E115: 1998-07-01 | F115: 2022-10-31 | G115: =G116 -> -------- | H115: =H116 -> A2F6 | J115: 0
C116: =CONCATENATE(H116," ",E116) -> A2F6 44866 | E116: 2022-11-01 | F116: 9999-01-01 | G116: -------- | H116: A2F6 | J116: 5405.4
C117: =CONCATENATE(H117," (",G117,") ",E117) -> A3F1 (C1) 35977 | E117: 1998-07-01 | F117: 2022-10-31 | G117: =G118 -> C1 | H117: =H118 -> A3F1 | J117: 0
C118: =CONCATENATE(H118," (",G118,") ",E118) -> A3F1 (C1) 44866 | E118: 2022-11-01 | F118: 9999-01-01 | G118: C1 | H118: A3F1 | J118: 202.44
C119: =CONCATENATE(H119," (",G119,") ",E119) -> A3F2 (C1S) 35977 | E119: 1998-07-01 | F119: 2022-10-31 | G119: =G120 -> C1S | H119: =H120 -> A3F2 | J119: 0
C120: =CONCATENATE(H120," (",G120,") ",E120) -> A3F2 (C1S) 44866 | E120: 2022-11-01 | F120: 9999-01-01 | G120: C1S | H120: A3F2 | J120: 1006.8
C121: =CONCATENATE(H121," (",G121,") ",E121) -> A3F3 (C2) 35977 | E121: 1998-07-01 | F121: 2022-10-31 | G121: =G122 -> C2 | H121: =H122 -> A3F3 | J121: 0
C122: =CONCATENATE(H122," (",G122,") ",E122) -> A3F3 (C2) 44866 | E122: 2022-11-01 | F122: 9999-01-01 | G122: C2 | H122: A3F3 | J122: 2637.48
C123: =CONCATENATE(H123," (",G123,") ",E123) -> A3F4 (C3) 35977 | E123: 1998-07-01 | F123: 2022-10-31 | G123: =G124 -> C3 | H123: =H124 -> A3F4 | J123: 0
C124: =CONCATENATE(H124," (",G124,") ",E124) -> A3F4 (C3) 44866 | E124: 2022-11-01 | F124: 9999-01-01 | G124: C3 | H124: A3F4 | J124: 5354.76
C125: =CONCATENATE(H125," (",G125,") ",E125) -> A3F5 (C3S) 35977 | E125: 1998-07-01 | F125: 2022-10-31 | G125: =G126 -> C3S | H125: =H126 -> A3F5 | J125: 0
C126: =CONCATENATE(H126," (",G126,") ",E126) -> A3F5 (C3S) 44866 | E126: 2022-11-01 | F126: 9999-01-01 | G126: C3S | H126: A3F5 | J126: 7151.64
C127: =CONCATENATE(H127," ",E127) -> A3F6 35977 | E127: 1998-07-01 | F127: 2022-10-31 | G127: =G128 -> -------- | H127: =H128 -> A3F6 | J127: 0
C128: =CONCATENATE(H128," ",E128) -> A3F6 44866 | E128: 2022-11-01 | F128: 9999-01-01 | G128: -------- | H128: A3F6 | J128: 9136.92
C129: =CONCATENATE(H129," ",E129) -> A3F7 35977 | E129: 1998-07-01 | F129: 2022-10-31 | G129: =G130 -> -------- | H129: =H130 -> A3F7 | J129: 0
C130: =CONCATENATE(H130," ",E130) -> A3F7 44866 | E130: 2022-11-01 | F130: 9999-01-01 | G130: -------- | H130: A3F7 | J130: 11110.44

Sheet IND. INT. SPEC. (hidden)
B2: CCNL INTEGRATIVO 16-05-2001 | D2: IND. INT. SPEC.
D3: PER L E POSIZIONI "SUPER", STESSI IMPORTI DELLE POSIZIONI "NORMALI"
D4: DAL | E4: AL | F4: POS. ECON. | G4: FASCE NELLE AREE | H4: ANNUO LORDO | I4: MENSILE LORDO
D5: A | E5: A1 | M5: TABELLA "A"
B6: =CONCATENATE(G6," (",F6,") ",D6) -> A1F1 (A1) 33543 | D6: 1991-11-01 | E6: 2022-10-31 | F6: A1 | G6: A1F1 | H6: =ROUND(ROUND(VLOOKUP(G6,$O$8:$P$35,2,FALSE)/1936.27,2)/13*12,2) -> 6235.76 | I6: =ROUND(H6/12,2) -> 519.65 | M6: INDENNITA' INTEGRATIVA SPECIALE * | U6: =ROUND(VLOOKUP(G6,$O$8:$P$35,2,FALSE)/1936.27/13*12,2) -> 6235.76 | V6: =EXACT(U6,H6) -> TRUE
B7: =CONCATENATE(G7," (",F7,") ",D7) -> A1F1 (A1) 44866 | D7: 2022-11-01 | E7: 9999-01-01 | F7: =F6 -> A1 | G7: =G6 -> A1F1 | H7: =VLOOKUP(G7,$F$46:$H$61,3,FALSE) -> 6235.8 | I7: =ROUND(H7/12,2) -> 519.65
B8: =CONCATENATE(G8," (",F8,") ",D8) -> A1F2 (A1S) 33543 | D8: 1991-11-01 | E8: 2022-10-31 | F8: A1S | G8: A1F2 | H8: =ROUND(ROUND(VLOOKUP(G8,$O$8:$P$35,2,FALSE)/1936.27,2)/13*12,2) -> 6235.76 | I8: =ROUND(H8/12,2) -> 519.65 | M8: C | O8: A3F7 | P8: =P9 -> 13931229 | U8: =ROUND(VLOOKUP(G8,$O$8:$P$35,2,FALSE)/1936.27/13*12,2) -> 6235.76 | V8: =EXACT(U8,H8) -> TRUE
B9: =CONCATENATE(G9," (",F9,") ",D9) -> A1F2 (A1S) 44866 | D9: 2022-11-01 | E9: 9999-01-01 | F9: =F8 -> A1S | G9: =G8 -> A1F2 | H9: =VLOOKUP(G9,$F$46:$H$61,3,FALSE) -> 6235.8 | I9: =ROUND(H9/12,2) -> 519.65 | O9: A3F6 | P9: =P10 -> 13931229
B10: =CONCATENATE(G10," ",D10) -> A1F3 39447 | D10: 2007-12-31 | E10: 2022-10-31 | F10: -------- | G10: A1F3 | H10: =ROUND(ROUND(VLOOKUP(G10,$O$8:$P$35,2,FALSE)/1936.27,2)/13*12,2) -> 6235.76 | I10: 519.65 | O10: A3F5 | P10: =P11 -> 13931229 | U10: =ROUND(VLOOKUP(G10,$O$8:$P$35,2,FALSE)/1936.27/13*12,2) -> 6235.76 | V10: =EXACT(U10,H10) -> TRUE
B11: A1F3 44866 | D11: 2022-11-01 | E11: 9999-01-01 | F11: =F10 -> -------- | G11: =G10 -> A1F3 | H11: =VLOOKUP(G11,$F$46:$H$61,3,FALSE) -> 6235.8 | I11: =ROUND(H11/12,2) -> 519.65 | N11: C3 | O11: A3F4 | P11: 13931229
D12: B | E12: A2 | N12: C2 | O12: A3F3 | P12: 13729456
B13: =CONCATENATE(G13," (",F13,") ",D13) -> A2F1 (B1) 33543 | D13: 1991-11-01 | E13: 2022-10-31 | F13: B1 | G13: A2F1 | H13: =ROUND(ROUND(VLOOKUP(G13,$O$8:$P$35,2,FALSE)/1936.27,2)/13*12,2) -> 6277.62 | I13: =ROUND(H13/12,2) -> 523.14 | O13: A3F2 | P13: =P14 -> 13521001 | U13: =ROUND(VLOOKUP(G13,$O$8:$P$35,2,FALSE)/1936.27/13*12,2) -> 6277.62 | V13: =EXACT(U13,H13) -> TRUE
B14: =CONCATENATE(G14," (",F14,") ",D14) -> A2F1 (B1) 44866 | D14: 2022-11-01 | E14: 9999-01-01 | F14: =F13 -> B1 | G14: =G13 -> A2F1 | H14: =VLOOKUP(G14,$F$46:$H$61,3,FALSE) -> 6277.56 | I14: =ROUND(H14/12,2) -> 523.13 | N14: C1 | O14: A3F1 | P14: 13521001
B15: A2F2 (B2) 33543 | D15: 1991-11-01 | E15: 2022-10-31 | F15: B2 | G15: A2F2 | H15: =ROUND(ROUND(VLOOKUP(G15,$O$8:$P$35,2,FALSE)/1936.27,2)/13*12,2) -> 6317.83 | I15: 526.49 | M15: B | O15: A2F6 | P15: =P16 -> 13364065 | U15: =ROUND(VLOOKUP(G15,$O$8:$P$35,2,FALSE)/1936.27/13*12,2) -> 6317.83 | V15: =EXACT(U15,H15) -> TRUE
B16: =CONCATENATE(G16," (",F16,") ",D16) -> A2F2 (B2) 44866 | D16: 2022-11-01 | E16: 9999-01-01 | F16: =F15 -> B2 | G16: =G15 -> A2F2 | H16: =VLOOKUP(G16,$F$46:$H$61,3,FALSE) -> 6317.88 | I16: =ROUND(H16/12,2) -> 526.49 | O16: A2F5 | P16: =P17 -> 13364065
B17: A2F3 (B3) 33543 | D17: 1991-11-01 | E17: 2022-10-31 | F17: B3 | G17: A2F3 | H17: =ROUND(ROUND(VLOOKUP(G17,$O$8:$P$35,2,FALSE)/1936.27,2)/13*12,2) -> 6371.04 | I17: 530.92 | O17: A2F4 | P17: =P18 -> 13364065 | U17: =ROUND(VLOOKUP(G17,$O$8:$P$35,2,FALSE)/1936.27/13*12,2) -> 6371.04 | V17: =EXACT(U17,H17) -> TRUE
B18: =CONCATENATE(G18," (",F18,") ",D18) -> A2F3 (B3) 44866 | D18: 2022-11-01 | E18: 9999-01-01 | F18: =F17 -> B3 | G18: =G17 -> A2F3 | H18: =VLOOKUP(G18,$F$46:$H$61,3,FALSE) -> 6371.04 | I18: =ROUND(H18/12,2) -> 530.92 | N18: B3 | O18: A2F3 | P18: 13364065
B19: A2F4 (B3S) 33543 | D19: 1991-11-01 | E19: 2022-10-31 | F19: B3S | G19: A2F4 | H19: =ROUND(ROUND(VLOOKUP(G19,$O$8:$P$35,2,FALSE)/1936.27,2)/13*12,2) -> 6371.04 | I19: 530.92 | N19: B2 | O19: A2F2 | P19: 13252447 | U19: =ROUND(VLOOKUP(G19,$O$8:$P$35,2,FALSE)/1936.27/13*12,2) -> 6371.04 | V19: =EXACT(U19,H19) -> TRUE
B20: =CONCATENATE(G20," (",F20,") ",D20) -> A2F4 (B3S) 44866 | D20: 2022-11-01 | E20: 9999-01-01 | F20: =F19 -> B3S | G20: =G19 -> A2F4 | H20: =VLOOKUP(G20,$F$46:$H$61,3,FALSE) -> 6371.04 | I20: =ROUND(H20/12,2) -> 530.92 | N20: B1 | O20: A2F1 | P20: 13168103
B21: =CONCATENATE(G21," ",D21) -> A2F5 39447 | D21: 2007-12-31 | E21: 2022-10-31 | F21: -------- | G21: A2F5 | H21: =ROUND(ROUND(VLOOKUP(G21,$O$8:$P$35,2,FALSE)/1936.27,2)/13*12,2) -> 6371.04 | I21: 530.92 | M21: A | O21: A1F3 | P21: =P22 -> 13080301 | U21: =ROUND(VLOOKUP(G21,$O$8:$P$35,2,FALSE)/1936.27/13*12,2) -> 6371.04 | V21: =EXACT(U21,H21) -> TRUE
B22: A2F5 44866 | D22: 2022-11-01 | E22: 9999-01-01 | F22: =F21 -> -------- | G22: =G21 -> A2F5 | H22: =VLOOKUP(G22,$F$46:$H$61,3,FALSE) -> 6371.04 | I22: =ROUND(H22/12,2) -> 530.92 | O22: A1F2 | P22: =P23 -> 13080301
B23: A2F6 39447 | D23: 2007-12-31 | E23: 2022-10-31 | F23: -------- | G23: A2F6 | H23: =ROUND(ROUND(VLOOKUP(G23,$O$8:$P$35,2,FALSE)/1936.27,2)/13*12,2) -> 6371.04 | I23: 530.92 | N23: A1 | O23: A1F1 | P23: 13080301 | U23: =ROUND(VLOOKUP(G23,$O$8:$P$35,2,FALSE)/1936.27/13*12,2) -> 6371.04 | V23: =EXACT(U23,H23) -> TRUE
B24: A2F6 44866 | D24: 2022-11-01 | E24: 9999-01-01 | F24: =F23 -> -------- | G24: =G23 -> A2F6 | H24: =VLOOKUP(G24,$F$46:$H$61,3,FALSE) -> 6371.04 | I24: =ROUND(H24/12,2) -> 530.92
D25: C | E25: A3 | M25: *(annua lorda comprensiva del rateo della tredicesima mensilità)
B26: =CONCATENATE(G26," (",F26,") ",D26) -> A3F1 (C1) 33543 | D26: 1991-11-01 | E26: 2022-10-31 | F26: C1 | G26: A3F1 | H26: =ROUND(ROUND(VLOOKUP(G26,$O$8:$P$35,2,FALSE)/1936.27,2)/13*12,2) -> 6445.86 | I26: =ROUND(H26/12,2) -> 537.16 | U26: =ROUND(VLOOKUP(G26,$O$8:$P$35,2,FALSE)/1936.27/13*12,2) -> 6445.86 | V26: =EXACT(U26,H26) -> TRUE
B27: =CONCATENATE(G27," (",F27,") ",D27) -> A3F1 (C1) 44866 | D27: 2022-11-01 | E27: 9999-01-01 | F27: =F26 -> C1 | G27: =G26 -> A3F1 | H27: =VLOOKUP(G27,$F$46:$H$61,3,FALSE) -> 6445.8 | I27: =ROUND(H27/12,2) -> 537.15
B28: A3F2 (C1S) 33543 | D28: 1991-11-01 | E28: 2022-10-31 | F28: C1S | G28: A3F2 | H28: =ROUND(ROUND(VLOOKUP(G28,$O$8:$P$35,2,FALSE)/1936.27,2)/13*12,2) -> 6445.86 | I28: 537.16 | U28: =ROUND(VLOOKUP(G28,$O$8:$P$35,2,FALSE)/1936.27/13*12,2) -> 6445.86 | V28: =EXACT(U28,H28) -> TRUE
B29: =CONCATENATE(G29," (",F29,") ",D29) -> A3F2 (C1S) 44866 | D29: 2022-11-01 | E29: 9999-01-01 | F29: =F28 -> C1S | G29: =G28 -> A3F2 | H29: =VLOOKUP(G29,$F$46:$H$61,3,FALSE) -> 6445.8 | I29: =ROUND(H29/12,2) -> 537.15
B30: A3F3 (C2) 33543 | D30: 1991-11-01 | E30: 2022-10-31 | F30: C2 | G30: A3F3 | H30: =ROUND(ROUND(VLOOKUP(G30,$O$8:$P$35,2,FALSE)/1936.27,2)/13*12,2) -> 6545.23 | I30: 545.44 | U30: =ROUND(VLOOKUP(G30,$O$8:$P$35,2,FALSE)/1936.27/13*12,2) -> 6545.24 | V30: =EXACT(U30,H30) -> FALSE
B31: =CONCATENATE(G31," (",F31,") ",D31) -> A3F3 (C2) 44866 | D31: 2022-11-01 | E31: 9999-01-01 | F31: =F30 -> C2 | G31: =G30 -> A3F3 | H31: =VLOOKUP(G31,$F$46:$H$61,3,FALSE) -> 6545.28 | I31: =ROUND(H31/12,2) -> 545.44
B32: A3F4 (C3) 33543 | D32: 1991-11-01 | E32: 2022-10-31 | F32: C3 | G32: A3F4 | H32: =ROUND(ROUND(VLOOKUP(G32,$O$8:$P$35,2,FALSE)/1936.27,2)/13*12,2) -> 6641.43 | I32: 553.45 | U32: =ROUND(VLOOKUP(G32,$O$8:$P$35,2,FALSE)/1936.27/13*12,2) -> 6641.43 | V32: =EXACT(U32,H32) -> TRUE
B33: =CONCATENATE(G33," (",F33,") ",D33) -> A3F4 (C3) 44866 | D33: 2022-11-01 | E33: 9999-01-01 | F33: =F32 -> C3 | G33: =G32 -> A3F4 | H33: =VLOOKUP(G33,$F$46:$H$61,3,FALSE) -> 6641.4 | I33: =ROUND(H33/12,2) -> 553.45
B34: A3F5 (C3S) 33543 | D34: 1991-11-01 | E34: 2022-10-31 | F34: C3S | G34: A3F5 | H34: =ROUND(ROUND(VLOOKUP(G34,$O$8:$P$35,2,FALSE)/1936.27,2)/13*12,2) -> 6641.43 | I34: 553.45 | U34: =ROUND(VLOOKUP(G34,$O$8:$P$35,2,FALSE)/1936.27/13*12,2) -> 6641.43 | V34: =EXACT(U34,H34) -> TRUE
B35: =CONCATENATE(G35," (",F35,") ",D35) -> A3F5 (C3S) 44866 | D35: 2022-11-01 | E35: 9999-01-01 | F35: =F34 -> C3S | G35: =G34 -> A3F5 | H35: =VLOOKUP(G35,$F$46:$H$61,3,FALSE) -> 6641.4 | I35: =ROUND(H35/12,2) -> 553.45
B36: =CONCATENATE(G36," ",D36) -> A3F6 39447 | D36: 2007-12-31 | E36: 2022-10-31 | F36: -------- | G36: A3F6 | H36: =ROUND(ROUND(VLOOKUP(G36,$O$8:$P$35,2,FALSE)/1936.27,2)/13*12,2) -> 6641.43 | I36: 553.45 | U36: =ROUND(VLOOKUP(G36,$O$8:$P$35,2,FALSE)/1936.27/13*12,2) -> 6641.43 | V36: =EXACT(U36,H36) -> TRUE
B37: A3F6 44866 | D37: 2022-11-01 | E37: 9999-01-01 | F37: =F36 -> -------- | G37: =G36 -> A3F6 | H37: =VLOOKUP(G37,$F$46:$H$61,3,FALSE) -> 6641.4 | I37: =ROUND(H37/12,2) -> 553.45
B38: A3F7 39447 | D38: 2007-12-31 | E38: 2022-10-31 | F38: -------- | G38: A3F7 | H38: =ROUND(ROUND(VLOOKUP(G38,$O$8:$P$35,2,FALSE)/1936.27,2)/13*12,2) -> 6641.43 | I38: 553.45 | U38: =ROUND(VLOOKUP(G38,$O$8:$P$35,2,FALSE)/1936.27/13*12,2) -> 6641.43 | V38: =EXACT(U38,H38) -> TRUE
B39: A3F7 44866 | D39: 2022-11-01 | E39: 9999-01-01 | F39: =F38 -> -------- | G39: =G38 -> A3F7 | H39: =VLOOKUP(G39,$F$46:$H$61,3,FALSE) -> 6641.4 | I39: =ROUND(H39/12,2) -> 553.45
D42: TABELLARI NOIPA DAL 01.11.2022 | G42: DAL 1° NOVEMBRE 2022
G43: ART. 52 CCNL 19 - 21 | H43: CCNL INT. 16.05.2001 | I43: TOTALE ANNUO
D44: AREA | E44: FASCIA RETRIBUTIVA | F44: AREA/ FASCIA
G45: STIPENDIO | H45: IND. INT. SPEC.
D46: FUNZIONARI | E46: F7 | F46: A3F7 | G46: 16860.48 | H46: 6641.4 | I46: 23501.88
D47: FUNZIONARI | E47: F6 | F47: A3F6 | G47: 16860.48 | H47: 6641.4 | I47: 23501.88
D48: FUNZIONARI | E48: F5 | F48: A3F5 | G48: 16860.48 | H48: 6641.4 | I48: 23501.88
D49: FUNZIONARI | E49: F4 | F49: A3F4 | G49: 16860.48 | H49: 6641.4 | I49: 23501.88
D50: FUNZIONARI | E50: F3 | F50: A3F3 | G50: 16956.6 | H50: 6545.28 | I50: 23501.88
D51: FUNZIONARI | E51: F2 | F51: A3F2 | G51: 17056.08 | H51: 6445.8 | I51: 23501.88
D52: FUNZIONARI | E52: F1 | F52: A3F1 | G52: 17056.08 | H52: 6445.8 | I52: 23501.88
D53: ASSISTENTI | E53: F6 | F53: A2F6 | G53: 12980.88 | H53: 6371.04 | I53: 19351.92
D54: ASSISTENTI | E54: F5 | F54: A2F5 | G54: 12980.88 | H54: 6371.04 | I54: 19351.92
D55: ASSISTENTI | E55: F4 | F55: A2F4 | G55: 12980.88 | H55: 6371.04 | I55: 19351.92
D56: ASSISTENTI | E56: F3 | F56: A2F3 | G56: 12980.88 | H56: 6371.04 | I56: 19351.92
D57: ASSISTENTI | E57: F2 | F57: A2F2 | G57: 13034.04 | H57: 6317.88 | I57: 19351.92
D58: ASSISTENTI | E58: F1 | F58: A2F1 | G58: 13074.36 | H58: 6277.56 | I58: 19351.92
D59: OPERATORI | E59: F3 | F59: A1F3 | G59: 12155.04 | H59: 6235.8 | I59: 18390.84
D60: OPERATORI | E60: F2 | F60: A1F2 | G60: 12155.04 | H60: 6235.8 | I60: 18390.84
D61: OPERATORI | E61: F1 | F61: A1F1 | G61: 12155.04 | H61: 6235.8 | I61: 18390.84

Sheet IND. AMM.NE (hidden)
E2: IND. AMM.NE | L2: Importi NoiPA | N2: Importi Calcolati | V2: ELENCO DINAMICO: ALTRE_AMM.NI | AD2: ELENCO DINAMICO: ALTRE_AMM.NI_2 | AK2: ELENCO DINAMICO: ALTRE_AMM.NI_3 | AR2: ELENCO DINAMICO: ALTRE_AMM.NI_4 | AY2: ELENCO DINAMICO: ALTRE_AMM.NI_5 | BF2: ELENCO DINAMICO: ALTRE_AMM.NI_6
E3: PER L E POSIZIONI "SUPER", STESSI IMPORTI DELLE POSIZIONI "NORMALI" | I3: BASE | J3: OP.VA | K3: IND.LE | L3: BASE | N3: BASE | U3: SIGLA | V3: AMMINISTRAZIONI | AB3: SIGLA | AD3: AMMINISTRAZIONI | AK3: AMMINISTRAZIONI | AR3: AMMINISTRAZIONI | AY3: AMMINISTRAZIONI | BF3: AMMINISTRAZIONI
E4: DAL | F4: AL | G4: POS. ECON. | H4: FASCE NELLE AREE | I4: MENSILE LORDO | J4: MENSILE LORDO | K4: MENSILE LORDO | L4: ANNUO LORDO | N4: MENSILE LORDO | O4: ANNUO LORDO | U4: MAE | V4: AFFARI ESTERI E COOPERAZIONE INTERNAZIONALE | AB4: MAE | AD4: =IF(INSERIMENTO!$J$17>0,V4,"") -> AFFARI ESTERI E COOPERAZIONE INTERNAZIONALE | AK4: =IF(INSERIMENTO!$J$19>0,AD4,"") ->  | AR4: =IF(INSERIMENTO!$J$21>0,AK4,"") ->  | AY4: =IF(INSERIMENTO!$J$23>0,AR4,"") ->  | BF4: =IF(INSERIMENTO!$J$25>0,AY4,"") -> 
E5: A1 | F5: A1F1 | U5: AVV | V5: AVVOCATURA | AB5: AVV | AD5: =IF(INSERIMENTO!$J$17>0,V5,"") -> AVVOCATURA | AK5: =IF(INSERIMENTO!$J$19>0,AD5,"") ->  | AR5: =IF(INSERIMENTO!$J$21>0,AK5,"") ->  | AY5: =IF(INSERIMENTO!$J$23>0,AR5,"") ->  | BF5: =IF(INSERIMENTO!$J$25>0,AY5,"") -> 
B6: =CONCATENATE(H6," ",E6) -> A1F1 34700 | C6: =CONCATENATE(H6," (",G6,") ",E6) -> A1F1 (A1) 34700 | E6: 1995-01-01 | F6: 1997-06-30 | G6: A1 | H6: A1F1 | I6: 83.15 | J6: 88.31 | K6: 90.9 | L6: =ROUND(I6*12,2) -> 997.8 | O6: =ROUND(I6*12,2) -> 997.8 | U6: CDS | V6: CONSIGLIO DI STATO | AB6: CDS | AD6: =IF(INSERIMENTO!$J$17>0,V6,"") -> CONSIGLIO DI STATO | AK6: =IF(INSERIMENTO!$J$19>0,AD6,"") ->  | AR6: =IF(INSERIMENTO!$J$21>0,AK6,"") ->  | AY6: =IF(INSERIMENTO!$J$23>0,AR6,"") ->  | BF6: =IF(INSERIMENTO!$J$25>0,AY6,"") -> 
B7: =CONCATENATE(H7," ",E7) -> A1F1 35612 | C7: A1F1 (A1) 35612 | E7: 1997-07-01 | F7: 1999-12-31 | G7: A1 | H7: A1F1 | I7: 107.42 | J7: 112.58 | K7: 115.17 | L7: =ROUND(I7*12,2) -> 1289.04 | O7: 1289.04 | U7: CDC | V7: CORTE DEI CONTI | AB7: CDC | AD7: =IF(INSERIMENTO!$J$17>0,V7,"") -> CORTE DEI CONTI | AK7: =IF(INSERIMENTO!$J$19>0,AD7,"") ->  | AR7: =IF(INSERIMENTO!$J$21>0,AK7,"") ->  | AY7: =IF(INSERIMENTO!$J$23>0,AR7,"") ->  | BF7: =IF(INSERIMENTO!$J$25>0,AY7,"") -> 
B8: A1F1 36526 | C8: A1F1 (A1) 36526 | E8: 2000-01-01 | F8: 2000-06-30 | G8: A1 | H8: A1F1 | I8: 114.65 | J8: 119.81 | K8: 122.4 | L8: 1375.8 | O8: 1375.8 | U8: CUL | V8: CULTURA | AB8: CUL | AD8: =IF(INSERIMENTO!$J$17>0,V8,"") -> CULTURA | AK8: =IF(INSERIMENTO!$J$19>0,AD8,"") ->  | AR8: =IF(INSERIMENTO!$J$21>0,AK8,"") ->  | AY8: =IF(INSERIMENTO!$J$23>0,AR8,"") ->  | BF8: =IF(INSERIMENTO!$J$25>0,AY8,"") -> 
B9: A1F1 36708 | C9: A1F1 (A1) 36708 | E9: 2000-07-01 | F9: 2000-12-31 | G9: A1 | H9: A1F1 | I9: 119.3 | J9: 124.46 | K9: 127.05 | L9: 1431.6 | O9: 1431.6 | U9: DEM | V9: DEMANIO - AGENZIA | AB9: DEM | AD9: =IF(INSERIMENTO!$J$17>0,V9,"") -> DEMANIO - AGENZIA | AK9: =IF(INSERIMENTO!$J$19>0,AD9,"") ->  | AR9: =IF(INSERIMENTO!$J$21>0,AK9,"") ->  | AY9: =IF(INSERIMENTO!$J$23>0,AR9,"") ->  | BF9: =IF(INSERIMENTO!$J$25>0,AY9,"") -> 
B10: A1F1 36892 | C10: A1F1 (A1) 36892 | E10: 2001-01-01 | F10: 2001-12-31 | G10: A1 | H10: A1F1 | I10: 121.36 | J10: 126.52 | K10: 129.11 | L10: 1456.32 | O10: 1456.32 | U10: DIG | V10: DIGITALE ITALIA - AGENZIA | AB10: DIG | AD10: =IF(INSERIMENTO!$J$17>0,V10,"") -> DIGITALE ITALIA - AGENZIA | AK10: =IF(INSERIMENTO!$J$19>0,AD10,"") ->  | AR10: =IF(INSERIMENTO!$J$21>0,AK10,"") ->  | AY10: =IF(INSERIMENTO!$J$23>0,AR10,"") ->  | BF10: =IF(INSERIMENTO!$J$25>0,AY10,"") -> 
B11: A1F1 37257 | C11: A1F1 (A1) 37257 | E11: 2002-01-01 | F11: 2002-12-31 | G11: A1 | H11: A1F1 | I11: 131.96 | J11: 137.12 | K11: 139.71 | L11: 1583.52 | O11: 1583.52 | P11: INCREMENTI ANNUI POST 31/12/2019 | U11: DOG | V11: DOGANE E MONOPOLI- AGENZIA | AB11: DOG | AD11: =IF(INSERIMENTO!$J$17>0,V11,"") -> DOGANE E MONOPOLI- AGENZIA | AK11: =IF(INSERIMENTO!$J$19>0,AD11,"") ->  | AR11: =IF(INSERIMENTO!$J$21>0,AK11,"") ->  | AY11: =IF(INSERIMENTO!$J$23>0,AR11,"") ->  | BF11: =IF(INSERIMENTO!$J$25>0,AY11,"") -> 
B12: A1F1 37622 | C12: A1F1 (A1) 37622 | E12: 2003-01-01 | F12: 2007-12-30 | G12: A1 | H12: A1F1 | I12: 132.57 | J12: 137.73 | K12: 140.31 | L12: 1590.84 | O12: 1590.84 | P12: DPCM 23.12.2021 | S12: CCNL 2019 -2021 | U12: MEF | V12: ECONOMIA E FINANZE | AB12: MEF | AD12: =IF(INSERIMENTO!$J$17>0,V12,"") -> ECONOMIA E FINANZE | AK12: =IF(INSERIMENTO!$J$19>0,AD12,"") ->  | AR12: =IF(INSERIMENTO!$J$21>0,AK12,"") ->  | AY12: =IF(INSERIMENTO!$J$23>0,AR12,"") ->  | BF12: =IF(INSERIMENTO!$J$25>0,AY12,"") -> 
B13: A1F1 39447 | C13: A1F1 (A1) 39447 | E13: 2007-12-31 | F13: 2019-12-31 | G13: A1 | H13: A1F1 | I13: 152.85 | J13: 152.85 | K13: 152.85 | L13: 1834.2 | O13: 1834.2 | P13: dal 2020 | Q13: dal 2021 | S13: dal 2021 | U13: ENT | V13: ENTRATE - AGENZIA | AB13: ENT | AD13: =IF(INSERIMENTO!$J$17>0,V13,"") -> ENTRATE - AGENZIA | AK13: =IF(INSERIMENTO!$J$19>0,AD13,"") ->  | AR13: =IF(INSERIMENTO!$J$21>0,AK13,"") ->  | AY13: =IF(INSERIMENTO!$J$23>0,AR13,"") ->  | BF13: =IF(INSERIMENTO!$J$25>0,AY13,"") -> 
B14: A1F1 43831 | C14: A1F1 (A1) 43831 | E14: 2020-01-01 | F14: 2020-12-31 | G14: A1 | H14: A1F1 | I14: =ROUND(L14/12,2) -> 228.1 | J14: =I14 -> 228.1 | K14: =J14 -> 228.1 | L14: =HLOOKUP(H14,'CCNL 2019-2021'!$M$73:$AB$75,'CCNL 2019-2021'!$J$74,FALSE) -> 2737.2 | N14: =ROUND(O14/12,2) -> 228.1 | O14: =O13+P14 -> 2737.2 | P14: =HLOOKUP(H14,$E$270:$T$277,8,FALSE) -> 903 | Q14: =HLOOKUP(H14,$E$291:$T$298,8,FALSE) -> 881 | U14: GIU | V14: GIUSTIZIA | AB14: GIU | AD14: =IF(INSERIMENTO!$J$17>0,V14,"") -> GIUSTIZIA | AK14: =IF(INSERIMENTO!$J$19>0,AD14,"") ->  | AR14: =IF(INSERIMENTO!$J$21>0,AK14,"") ->  | AY14: =IF(INSERIMENTO!$J$23>0,AR14,"") ->  | BF14: =IF(INSERIMENTO!$J$25>0,AY14,"") -> 
B15: A1F1 44197 | C15: A1F1 (A1) 44197 | E15: 2021-01-01 | F15: 2022-10-31 | G15: A1 | H15: A1F1 | I15: =ROUND(L15/12,2) -> 279.95 | J15: =I15 -> 279.95 | K15: 279.95 | L15: =HLOOKUP(H15,'CCNL 2019-2021'!$M$73:$AB$75,'CCNL 2019-2021'!$J$75,FALSE) -> 3359.4 | N15: =ROUND(O15/12,2) -> 279.95 | O15: =O13+Q14+S15 -> 3359.36 | S15: =ROUND(VLOOKUP(H15,$V$291:$W$306,2,FALSE)*12,2) -> 644.16 | U15: TRA | V15: INFRASTRUTTURE E MOBILITA' SOSTENIBILE | AB15: TRA | AD15: =IF(INSERIMENTO!$J$17>0,V15,"") -> INFRASTRUTTURE E MOBILITA' SOSTENIBILE | AK15: =IF(INSERIMENTO!$J$19>0,AD15,"") ->  | AR15: =IF(INSERIMENTO!$J$21>0,AK15,"") ->  | AY15: =IF(INSERIMENTO!$J$23>0,AR15,"") ->  | BF15: =IF(INSERIMENTO!$J$25>0,AY15,"") -> 
B16: =CONCATENATE(H16," ",E16) -> A1F1 44866 | C16: =CONCATENATE(H16," (",G16,") ",E16) -> A1F1 (A1) 44866 | E16: 2022-11-01 | F16: 9999-01-01 | G16: =G15 -> A1 | H16: =H15 -> A1F1 | I16: =ROUND(L16/12,2) -> 253.36 | J16: =I16 -> 253.36 | K16: =J16 -> 253.36 | L16: =VLOOKUP(H16,'CCNL 2019-2021'!$H$79:$I$94,2,FALSE) -> 3040.32 | U16: INT | V16: INTERNO | AB16: INT | AD16: =IF(INSERIMENTO!$J$17>0,V16,"") -> INTERNO | AK16: =IF(INSERIMENTO!$J$19>0,AD16,"") ->  | AR16: =IF(INSERIMENTO!$J$21>0,AK16,"") ->  | AY16: =IF(INSERIMENTO!$J$23>0,AR16,"") ->  | BF16: =IF(INSERIMENTO!$J$25>0,AY16,"") -> 
E17: A1S | F17: A1F2 | U17: IST | V17: ISTRUZIONE | AB17: IST | AD17: =IF(INSERIMENTO!$J$17>0,V17,"") -> ISTRUZIONE | AK17: =IF(INSERIMENTO!$J$19>0,AD17,"") ->  | AR17: =IF(INSERIMENTO!$J$21>0,AK17,"") ->  | AY17: =IF(INSERIMENTO!$J$23>0,AR17,"") ->  | BF17: =IF(INSERIMENTO!$J$25>0,AY17,"") -> 
B18: A1F2 34700 | C18: =CONCATENATE(H18," (",G18,") ",E18) -> A1F2 (A1S) 34700 | E18: 1995-01-01 | F18: 1997-06-30 | G18: A1S | H18: A1F2 | I18: 83.15 | J18: 88.31 | K18: 90.9 | L18: =ROUND(I18*12,2) -> 997.8 | O18: =ROUND(I18*12,2) -> 997.8 | U18: LAV | V18: LAVORO E POLITICHE SOCIALI | AB18: LAV | AD18: =IF(INSERIMENTO!$J$17>0,V18,"") -> LAVORO E POLITICHE SOCIALI | AK18: =IF(INSERIMENTO!$J$19>0,AD18,"") ->  | AR18: =IF(INSERIMENTO!$J$21>0,AK18,"") ->  | AY18: =IF(INSERIMENTO!$J$23>0,AR18,"") ->  | BF18: =IF(INSERIMENTO!$J$25>0,AY18,"") -> 
B19: A1F2 35612 | C19: A1F2 (A1S) 35612 | E19: 1997-07-01 | F19: 1999-12-31 | G19: A1S | H19: A1F2 | I19: 107.42 | J19: 112.58 | K19: 115.17 | L19: 1289.04 | O19: 1289.04 | U19: AGR | V19: POLITICHE AGRICOLE, ALIMENTARI E FORESTALI | AB19: AGR | AD19: =IF(INSERIMENTO!$J$17>0,V19,"") -> POLITICHE AGRICOLE, ALIMENTARI E FORESTALI | AK19: =IF(INSERIMENTO!$J$19>0,AD19,"") ->  | AR19: =IF(INSERIMENTO!$J$21>0,AK19,"") ->  | AY19: =IF(INSERIMENTO!$J$23>0,AR19,"") ->  | BF19: =IF(INSERIMENTO!$J$25>0,AY19,"") -> 
B20: A1F2 36526 | C20: A1F2 (A1S) 36526 | E20: 2000-01-01 | F20: 2000-06-30 | G20: A1S | H20: A1F2 | I20: 114.65 | J20: 119.81 | K20: 122.4 | L20: 1375.8 | O20: 1375.8 | U20: PCM | V20: PRESIDENZA CONSIGLIO MINISTRI | AB20: PCM | AD20: =IF(INSERIMENTO!$J$17>0,V20,"") -> PRESIDENZA CONSIGLIO MINISTRI | AK20: =IF(INSERIMENTO!$J$19>0,AD20,"") ->  | AR20: =IF(INSERIMENTO!$J$21>0,AK20,"") ->  | AY20: =IF(INSERIMENTO!$J$23>0,AR20,"") ->  | BF20: =IF(INSERIMENTO!$J$25>0,AY20,"") -> 
B21: A1F2 36708 | C21: A1F2 (A1S) 36708 | E21: 2000-07-01 | F21: 2000-12-31 | G21: A1S | H21: A1F2 | I21: 119.3 | J21: 124.46 | K21: 127.05 | L21: 1431.6 | O21: 1431.6 | U21: SAL | V21: SALUTE | AB21: SAL | AD21: =IF(INSERIMENTO!$J$17>0,V21,"") -> SALUTE | AK21: =IF(INSERIMENTO!$J$19>0,AD21,"") ->  | AR21: =IF(INSERIMENTO!$J$21>0,AK21,"") ->  | AY21: =IF(INSERIMENTO!$J$23>0,AR21,"") ->  | BF21: =IF(INSERIMENTO!$J$25>0,AY21,"") -> 
B22: A1F2 36892 | C22: A1F2 (A1S) 36892 | E22: 2001-01-01 | F22: 2001-12-31 | G22: A1S | H22: A1F2 | I22: 121.36 | J22: 126.52 | K22: 129.11 | L22: 1456.32 | O22: 1456.32 | U22: SVI | V22: SVILUPPO ECONOMICO | AB22: SVI | AD22: =IF(INSERIMENTO!$J$17>0,V22,"") -> SVILUPPO ECONOMICO | AK22: =IF(INSERIMENTO!$J$19>0,AD22,"") ->  | AR22: =IF(INSERIMENTO!$J$21>0,AK22,"") ->  | AY22: =IF(INSERIMENTO!$J$23>0,AR22,"") ->  | BF22: =IF(INSERIMENTO!$J$25>0,AY22,"") -> 
B23: A1F2 37257 | C23: A1F2 (A1S) 37257 | E23: 2002-01-01 | F23: 2002-12-31 | G23: A1S | H23: A1F2 | I23: 131.96 | J23: 137.12 | K23: 139.71 | L23: 1583.52 | O23: 1583.52 | P23: INCREMENTI ANNUI POST 31/12/2019 | U23: TAR | V23: TAR | AB23: TAR | AD23: =IF(INSERIMENTO!$J$17>0,V23,"") -> TAR | AK23: =IF(INSERIMENTO!$J$19>0,AD23,"") ->  | AR23: =IF(INSERIMENTO!$J$21>0,AK23,"") ->  | AY23: =IF(INSERIMENTO!$J$23>0,AR23,"") ->  | BF23: =IF(INSERIMENTO!$J$25>0,AY23,"") -> 
B24: A1F2 37622 | C24: A1F2 (A1S) 37622 | E24: 2003-01-01 | F24: 2007-12-30 | G24: A1S | H24: A1F2 | I24: 132.57 | J24: 137.73 | K24: 140.31 | L24: 1590.84 | O24: 1590.84 | P24: DPCM 23.12.2021 | S24: CCNL 2019 -2021 | U24: AMB | V24: TRANSIZIONE ECOLOGICA | AB24: AMB | AD24: =IF(INSERIMENTO!$J$17>0,V24,"") -> TRANSIZIONE ECOLOGICA | AK24: =IF(INSERIMENTO!$J$19>0,AD24,"") ->  | AR24: =IF(INSERIMENTO!$J$21>0,AK24,"") ->  | AY24: =IF(INSERIMENTO!$J$23>0,AR24,"") ->  | BF24: =IF(INSERIMENTO!$J$25>0,AY24,"") -> 
B25: A1F2 39447 | C25: A1F2 (A1S) 39447 | E25: 2007-12-31 | F25: 2019-12-31 | G25: A1S | H25: A1F2 | I25: 152.85 | J25: 152.85 | K25: 152.85 | L25: 1834.2 | O25: 1834.2 | P25: dal 2020 | Q25: dal 2021 | S25: dal 2021 | U25: TUR | V25: TURISMO | AB25: TUR | AD25: =IF(INSERIMENTO!$J$17>0,V25,"") -> TURISMO | AK25: =IF(INSERIMENTO!$J$19>0,AD25,"") ->  | AR25: =IF(INSERIMENTO!$J$21>0,AK25,"") ->  | AY25: =IF(INSERIMENTO!$J$23>0,AR25,"") ->  | BF25: =IF(INSERIMENTO!$J$25>0,AY25,"") -> 
B26: A1F2 43831 | C26: A1F2 (A1S) 43831 | E26: 2020-01-01 | F26: 2020-12-31 | G26: A1S | H26: A1F2 | I26: =ROUND(L26/12,2) -> 228.1 | J26: =I26 -> 228.1 | K26: =J26 -> 228.1 | L26: =HLOOKUP(H26,'CCNL 2019-2021'!$M$73:$AB$75,'CCNL 2019-2021'!$J$74,FALSE) -> 2737.2 | N26: =ROUND(O26/12,2) -> 228.1 | O26: =O25+P26 -> 2737.2 | P26: =HLOOKUP(H26,$E$270:$T$277,8,FALSE) -> 903 | Q26: =HLOOKUP(H26,$E$291:$T$298,8,FALSE) -> 881 | U26: URI | V26: UNIVERSITÀ E RICERCA | AB26: URI | AD26: =IF(INSERIMENTO!$J$17>0,V26,"") -> UNIVERSITÀ E RICERCA | AK26: =IF(INSERIMENTO!$J$19>0,AD26,"") ->  | AR26: =IF(INSERIMENTO!$J$21>0,AK26,"") ->  | AY26: =IF(INSERIMENTO!$J$23>0,AR26,"") ->  | BF26: =IF(INSERIMENTO!$J$25>0,AY26,"") -> 
B27: A1F2 44197 | C27: A1F2 (A1S) 44197 | E27: 2021-01-01 | F27: 2022-10-31 | G27: A1S | H27: A1F2 | I27: =ROUND(L27/12,2) -> 279.95 | J27: =I27 -> 279.95 | K27: =J27 -> 279.95 | L27: =HLOOKUP(H27,'CCNL 2019-2021'!$M$73:$AB$75,'CCNL 2019-2021'!$J$75,FALSE) -> 3359.4 | N27: =ROUND(O27/12,2) -> 279.95 | O27: =O25+Q26+S27 -> 3359.36 | S27: =ROUND(VLOOKUP(H27,$V$291:$W$306,2,FALSE)*12,2) -> 644.16
B28: =CONCATENATE(H28," ",E28) -> A1F2 44866 | C28: =CONCATENATE(H28," (",G28,") ",E28) -> A1F2 (A1S) 44866 | E28: 2022-11-01 | F28: 9999-01-01 | G28: =G27 -> A1S | H28: =H27 -> A1F2 | I28: =ROUND(L28/12,2) -> 253.36 | J28: =I28 -> 253.36 | K28: =J28 -> 253.36 | L28: =VLOOKUP(H28,'CCNL 2019-2021'!$H$79:$I$94,2,FALSE) -> 3040.32
E29: -------- | F29: A1F3 | P29: INCREMENTI ANNUI POST 31/12/2019
B30: A1F3 34700 | C30: =CONCATENATE($F$29," ",E30) -> A1F3 34700 | E30: 1995-01-01 | F30: 2007-12-30 | G30: -------- | H30: A1F3 | I30: 132.57 | J30: 137.73 | K30: 0 | L30: =ROUND(I30*12,2) -> 1590.84 | O30: =ROUND(I30*12,2) -> 1590.84 | P30: DPCM 23.12.2021 | S30: CCNL 2019 -2021 | U30: ICE | V30: COMMERCIO ESTERO (EX) | AB30: ICE
B31: A1F3 39447 | C31: =CONCATENATE($F$29," ",E31) -> A1F3 39447 | E31: 2007-12-31 | F31: 2019-12-31 | G31: -------- | H31: A1F3 | I31: 152.85 | J31: 152.85 | K31: 152.85 | L31: 1834.2 | O31: =ROUND(I31*12,2) -> 1834.2 | P31: dal 2020 | Q31: dal 2021 | S31: dal 2021 | U31: COM | V31: COMUNICAZIONI (EX) | AB31: COM
B32: A1F3 43831 | C32: A1F3 43831 | E32: 2020-01-01 | F32: 2020-12-31 | G32: -------- | H32: A1F3 | I32: =ROUND(L32/12,2) -> 228.1 | J32: =I32 -> 228.1 | K32: =J32 -> 228.1 | L32: =HLOOKUP(H32,'CCNL 2019-2021'!$M$73:$AB$75,'CCNL 2019-2021'!$J$74,FALSE) -> 2737.2 | N32: =ROUND(O32/12,2) -> 228.1 | O32: =O31+P32 -> 2737.2 | P32: =HLOOKUP(H32,$E$270:$T$277,8,FALSE) -> 903 | Q32: =HLOOKUP(H32,$E$291:$T$298,8,FALSE) -> 881 | U32: IND | V32: INDUSTRIA (EX) | AB32: IND
B33: A1F3 44197 | C33: A1F3 44197 | E33: 2021-01-01 | F33: 2022-10-31 | G33: -------- | H33: A1F3 | I33: =ROUND(L33/12,2) -> 279.95 | J33: =I33 -> 279.95 | K33: =J33 -> 279.95 | L33: =HLOOKUP(H33,'CCNL 2019-2021'!$M$73:$AB$75,'CCNL 2019-2021'!$J$75,FALSE) -> 3359.4 | N33: =ROUND(O33/12,2) -> 279.95 | O33: =O31+Q32+S33 -> 3359.36 | S33: =ROUND(VLOOKUP(H33,$V$291:$W$306,2,FALSE)*12,2) -> 644.16 | U33: PEN | V33: PENITENZIARIA | AB33: PEN
B34: A1F3 44866 | C34: =B34 -> A1F3 44866 | E34: 2022-11-01 | F34: 9999-01-01 | G34: =G33 -> -------- | H34: =H33 -> A1F3 | I34: =ROUND(L34/12,2) -> 253.36 | J34: =I34 -> 253.36 | K34: =J34 -> 253.36 | L34: =VLOOKUP(H34,'CCNL 2019-2021'!$H$79:$I$94,2,FALSE) -> 3040.32
E35: B1 | F35: A2F1
B36: A2F1 34700 | C36: =CONCATENATE(H36," (",G36,") ",E36) -> A2F1 (B1) 34700 | E36: 1995-01-01 | F36: 1997-06-30 | G36: B1 | H36: A2F1 | I36: 94.51 | J36: 100.71 | K36: 103.29 | L36: =ROUND(I36*12,2) -> 1134.12 | O36: =ROUND(I36*12,2) -> 1134.12
B37: A2F1 35612 | C37: A2F1 (B1) 35612 | E37: 1997-07-01 | F37: 1999-12-31 | G37: B1 | H37: A2F1 | I37: 119.82 | J37: 126.02 | K37: 128.6 | L37: 1437.84 | O37: 1437.84
B38: A2F1 36526 | C38: A2F1 (B1) 36526 | E38: 2000-01-01 | F38: 2000-06-30 | G38: B1 | H38: A2F1 | I38: 127.57 | J38: 133.77 | K38: 136.35 | L38: 1530.84 | O38: 1530.84
B39: A2F1 36708 | C39: A2F1 (B1) 36708 | E39: 2000-07-01 | F39: 2000-12-31 | G39: B1 | H39: A2F1 | I39: 132.73 | J39: 138.93 | K39: 141.51 | L39: 1592.76 | O39: 1592.76
B40: A2F1 36892 | C40: A2F1 (B1) 36892 | E40: 2001-01-01 | F40: 2001-12-31 | G40: B1 | H40: A2F1 | I40: 135.32 | J40: 141.52 | K40: 144.1 | L40: 1623.84 | O40: 1623.84
B41: A2F1 37257 | C41: A2F1 (B1) 37257 | E41: 2002-01-01 | F41: 2002-12-31 | G41: B1 | H41: A2F1 | I41: 147.12 | J41: 153.32 | K41: 155.9 | L41: 1765.44 | O41: 1765.44 | P41: INCREMENTI ANNUI POST 31/12/2019
B42: A2F1 37622 | C42: A2F1 (B1) 37622 | E42: 2003-01-01 | F42: 2007-12-30 | G42: B1 | H42: A2F1 | I42: 147.71 | J42: 153.91 | K42: 156.49 | L42: 1772.52 | O42: 1772.52 | P42: DPCM 23.12.2021 | S42: CCNL 2019 -2021
B43: A2F1 39447 | C43: A2F1 (B1) 39447 | E43: 2007-12-31 | F43: 2019-12-31 | G43: B1 | H43: A2F1 | I43: 170.48 | J43: 170.48 | K43: 170.48 | L43: 2045.76 | O43: 2045.76 | P43: dal 2020 | Q43: dal 2021 | S43: dal 2021
B44: A2F1 43831 | C44: A2F1 (B1) 43831 | E44: 2020-01-01 | F44: 2020-12-31 | G44: B1 | H44: A2F1 | I44: =ROUND(L44/12,2) -> 249.73 | J44: =I44 -> 249.73 | K44: =J44 -> 249.73 | L44: =HLOOKUP(H44,'CCNL 2019-2021'!$M$73:$AB$75,'CCNL 2019-2021'!$J$74,FALSE) -> 2996.76 | N44: =ROUND(O44/12,2) -> 249.73 | O44: =O43+P44 -> 2996.76 | P44: =HLOOKUP(H44,$E$270:$T$277,8,FALSE) -> 951 | Q44: =HLOOKUP(H44,$E$291:$T$298,8,FALSE) -> 913
B45: A2F1 44197 | C45: A2F1 (B1) 44197 | E45: 2021-01-01 | F45: 2022-10-31 | G45: B1 | H45: A2F1 | I45: =ROUND(L45/12,2) -> 318.75 | J45: =I45 -> 318.75 | K45: =J45 -> 318.75 | L45: =HLOOKUP(H45,'CCNL 2019-2021'!$M$73:$AB$75,'CCNL 2019-2021'!$J$75,FALSE) -> 3825 | N45: =ROUND(O45/12,2) -> 318.75 | O45: =O43+Q44+S45 -> 3825.04 | S45: =ROUND(VLOOKUP(H45,$V$291:$W$306,2,FALSE)*12,2) -> 866.28
B46: A2F1 44866 | C46: A2F1 (B1) 44866 | E46: 2022-11-01 | F46: 9999-01-01 | G46: =G45 -> B1 | H46: =H45 -> A2F1 | I46: =ROUND(L46/12,2) -> 291.67 | J46: =I46 -> 291.67 | K46: =J46 -> 291.67 | L46: =VLOOKUP(H46,'CCNL 2019-2021'!$H$79:$I$94,2,FALSE) -> 3500.04
E47: B2 | F47: A2F2
B48: A2F2 34700 | C48: =CONCATENATE(H48," (",G48,") ",E48) -> A2F2 (B2) 34700 | E48: 1995-01-01 | F48: 1997-06-30 | G48: B2 | H48: A2F2 | I48: 104.32 | J48: 111.04 | K48: 114.14 | L48: =ROUND(I48*12,2) -> 1251.84 | O48: =ROUND(I48*12,2) -> 1251.84
B49: A2F2 35612 | C49: A2F2 (B2) 35612 | E49: 1997-07-01 | F49: 1999-12-31 | G49: B2 | H49: A2F2 | I49: 131.18 | J49: 137.9 | K49: 141 | L49: 1574.16 | O49: 1574.16
B50: A2F2 36526 | C50: A2F2 (B2) 36526 | E50: 2000-01-01 | F50: 2000-06-30 | G50: B2 | H50: A2F2 | I50: 139.96 | J50: 146.68 | K50: 149.78 | L50: 1679.52 | O50: 1679.52
B51: A2F2 36708 | C51: A2F2 (B2) 36708 | E51: 2000-07-01 | F51: 2000-12-31 | G51: B2 | H51: A2F2 | I51: 145.64 | J51: 152.36 | K51: 155.46 | L51: 1747.68 | O51: 1747.68
B52: A2F2 36892 | C52: A2F2 (B2) 36892 | E52: 2001-01-01 | F52: 2001-12-31 | G52: B2 | H52: A2F2 | I52: 148.22 | J52: 154.94 | K52: 158.04 | L52: 1778.64 | O52: 1778.64
B53: A2F2 37257 | C53: A2F2 (B2) 37257 | E53: 2002-01-01 | F53: 2002-12-31 | G53: B2 | H53: A2F2 | I53: 161.42 | J53: 168.14 | K53: 171.24 | L53: 1937.04 | O53: 1937.04 | P53: INCREMENTI ANNUI POST 31/12/2019
B54: A2F2 37622 | C54: A2F2 (B2) 37622 | E54: 2003-01-01 | F54: 2007-12-30 | G54: B2 | H54: A2F2 | I54: 162.02 | J54: 168.74 | K54: 171.84 | L54: 1944.24 | O54: 1944.24 | P54: DPCM 23.12.2021 | S54: CCNL 2019 -2021
B55: A2F2 39447 | C55: A2F2 (B2) 39447 | E55: 2007-12-31 | F55: 2019-12-31 | G55: B2 | H55: A2F2 | I55: 187.2 | J55: 187.2 | K55: 187.2 | L55: 2246.4 | O55: 2246.4 | P55: dal 2020 | Q55: dal 2021 | S55: dal 2021
B56: A2F2 43831 | C56: A2F2 (B2) 43831 | E56: 2020-01-01 | F56: 2020-12-31 | G56: B2 | H56: A2F2 | I56: =ROUND(L56/12,2) -> 266.28 | J56: =I56 -> 266.28 | K56: =J56 -> 266.28 | L56: =HLOOKUP(H56,'CCNL 2019-2021'!$M$73:$AB$75,'CCNL 2019-2021'!$J$74,FALSE) -> 3195.36 | N56: =ROUND(O56/12,2) -> 266.28 | O56: =O55+P56 -> 3195.4 | P56: =HLOOKUP(H56,$E$270:$T$277,8,FALSE) -> 949 | Q56: =HLOOKUP(H56,$E$291:$T$298,8,FALSE) -> 887
B57: A2F2 44197 | C57: A2F2 (B2) 44197 | E57: 2021-01-01 | F57: 2022-10-31 | G57: B2 | H57: A2F2 | I57: =ROUND(L57/12,2) -> 333.31 | J57: =I57 -> 333.31 | K57: =J57 -> 333.31 | L57: =HLOOKUP(H57,'CCNL 2019-2021'!$M$73:$AB$75,'CCNL 2019-2021'!$J$75,FALSE) -> 3999.72 | N57: =ROUND(O57/12,2) -> 333.31 | O57: =O55+Q56+S57 -> 3999.68 | S57: =ROUND(VLOOKUP(H57,$V$291:$W$306,2,FALSE)*12,2) -> 866.28
B58: A2F2 44866 | C58: A2F2 (B2) 44866 | E58: 2022-11-01 | F58: 9999-01-01 | G58: =G57 -> B2 | H58: =H57 -> A2F2 | I58: =ROUND(L58/12,2) -> 291.67 | J58: =I58 -> 291.67 | K58: =J58 -> 291.67 | L58: =VLOOKUP(H58,'CCNL 2019-2021'!$H$79:$I$94,2,FALSE) -> 3500.04
E59: B3 | F59: A2F3
B60: A2F3 34700 | C60: =CONCATENATE(H60," (",G60,") ",E60) -> A2F3 (B3) 34700 | E60: 1995-01-01 | F60: 1997-06-30 | G60: B3 | H60: A2F3 | I60: 117.24 | J60: 123.95 | K60: 127.56 | L60: =ROUND(I60*12,2) -> 1406.88 | O60: =ROUND(I60*12,2) -> 1406.88
B61: A2F3 35612 | C61: A2F3 (B3) 35612 | E61: 1997-07-01 | F61: 1999-12-31 | G61: B3 | H61: A2F3 | I61: 145.65 | J61: 152.36 | K61: 155.97 | L61: 1747.8 | O61: 1747.8
B62: A2F3 36526 | C62: A2F3 (B3) 36526 | E62: 2000-01-01 | F62: 2000-06-30 | G62: B3 | H62: A2F3 | I62: 154.95 | J62: 161.66 | K62: 165.27 | L62: 1859.4 | O62: 1859.4
B63: A2F3 36708 | C63: A2F3 (B3) 36708 | E63: 2000-07-01 | F63: 2000-12-31 | G63: B3 | H63: A2F3 | I63: 161.66 | J63: 168.37 | K63: 171.98 | L63: 1939.92 | O63: 1939.92
B64: A2F3 36892 | C64: A2F3 (B3) 36892 | E64: 2001-01-01 | F64: 2001-12-31 | G64: B3 | H64: A2F3 | I64: 164.25 | J64: 170.96 | K64: 174.57 | L64: 1971 | O64: 1971
B65: A2F3 37257 | C65: A2F3 (B3) 37257 | E65: 2002-01-01 | F65: 2002-12-31 | G65: B3 | H65: A2F3 | I65: 178.85 | J65: 185.56 | K65: 189.17 | L65: 2146.2 | O65: 2146.2 | P65: INCREMENTI ANNUI POST 31/12/2019
B66: A2F3 37622 | C66: A2F3 (B3) 37622 | E66: 2003-01-01 | F66: 2007-12-30 | G66: B3 | H66: A2F3 | I66: 179.63 | J66: 186.35 | K66: 189.96 | L66: 2155.56 | O66: 2155.56 | P66: DPCM 23.12.2021 | S66: CCNL 2019 -2021
B67: A2F3 39447 | C67: A2F3 (B3) 39447 | E67: 2007-12-31 | F67: 2019-12-31 | G67: B3 | H67: A2F3 | I67: 206.94 | J67: 206.94 | K67: 206.94 | L67: 2483.28 | O67: 2483.28 | P67: dal 2020 | Q67: dal 2021 | S67: dal 2021
B68: A2F3 43831 | C68: A2F3 (B3) 43831 | E68: 2020-01-01 | F68: 2020-12-31 | G68: B3 | H68: A2F3 | I68: =ROUND(L68/12,2) -> 290.52 | J68: =I68 -> 290.52 | K68: =J68 -> 290.52 | L68: =HLOOKUP(H68,'CCNL 2019-2021'!$M$73:$AB$75,'CCNL 2019-2021'!$J$74,FALSE) -> 3486.24 | N68: =ROUND(O68/12,2) -> 290.52 | O68: =O67+P68 -> 3486.28 | P68: =HLOOKUP(H68,$E$270:$T$277,8,FALSE) -> 1003 | Q68: =HLOOKUP(H68,$E$291:$T$298,8,FALSE) -> 924
B69: A2F3 44197 | C69: A2F3 (B3) 44197 | E69: 2021-01-01 | F69: 2022-10-31 | G69: B3 | H69: A2F3 | I69: =ROUND(L69/12,2) -> 356.13 | J69: =I69 -> 356.13 | K69: =J69 -> 356.13 | L69: =HLOOKUP(H69,'CCNL 2019-2021'!$M$73:$AB$75,'CCNL 2019-2021'!$J$75,FALSE) -> 4273.56 | N69: =ROUND(O69/12,2) -> 356.13 | O69: =O67+Q68+S69 -> 4273.56 | S69: =ROUND(VLOOKUP(H69,$V$291:$W$306,2,FALSE)*12,2) -> 866.28
B70: A2F3 44866 | C70: A2F3 (B3) 44866 | E70: 2022-11-01 | F70: 9999-01-01 | G70: =G69 -> B3 | H70: =H69 -> A2F3 | I70: =ROUND(L70/12,2) -> 291.67 | J70: =I70 -> 291.67 | K70: =J70 -> 291.67 | L70: =VLOOKUP(H70,'CCNL 2019-2021'!$H$79:$I$94,2,FALSE) -> 3500.04
E71: B3S | F71: A2F4
B72: A2F4 34700 | C72: =CONCATENATE(H72," (",G72,") ",E72) -> A2F4 (B3S) 34700 | E72: 1995-01-01 | F72: 1997-06-30 | G72: B3S | H72: A2F4 | I72: 117.24 | J72: 123.95 | K72: 127.56 | L72: =ROUND(I72*12,2) -> 1406.88 | O72: =ROUND(I72*12,2) -> 1406.88
B73: A2F4 35612 | C73: A2F4 (B3S) 35612 | E73: 1997-07-01 | F73: 1999-12-31 | G73: B3S | H73: A2F4 | I73: 145.65 | J73: 152.36 | K73: 155.97 | L73: 1747.8 | O73: 1747.8
B74: A2F4 36526 | C74: A2F4 (B3S) 36526 | E74: 2000-01-01 | F74: 2000-06-30 | G74: B3S | H74: A2F4 | I74: 154.95 | J74: 161.66 | K74: 165.27 | L74: 1859.4 | O74: 1859.4
B75: A2F4 36708 | C75: A2F4 (B3S) 36708 | E75: 2000-07-01 | F75: 2000-12-31 | G75: B3S | H75: A2F4 | I75: 161.66 | J75: 168.37 | K75: 171.98 | L75: 1939.92 | O75: 1939.92
B76: A2F4 36892 | C76: A2F4 (B3S) 36892 | E76: 2001-01-01 | F76: 2001-12-31 | G76: B3S | H76: A2F4 | I76: 164.25 | J76: 170.96 | K76: 174.57 | L76: 1971 | O76: 1971
B77: =CONCATENATE(H77," ",E77) -> A2F4 37257 | C77: A2F4 (B3S) 37257 | E77: 2002-01-01 | F77: 2002-12-31 | G77: B3S | H77: A2F4 | I77: 178.85 | J77: 185.56 | K77: 189.17 | L77: 2146.2 | O77: 2146.2 | P77: INCREMENTI ANNUI POST 31/12/2019
B78: A2F4 37622 | C78: A2F4 (B3S) 37622 | E78: 2003-01-01 | F78: 2007-12-30 | G78: B3S | H78: A2F4 | I78: 179.63 | J78: 186.35 | K78: 189.96 | L78: 2155.56 | O78: 2155.56 | P78: DPCM 23.12.2021 | S78: CCNL 2019 -2021
B79: A2F4 39447 | C79: A2F4 (B3S) 39447 | E79: 2007-12-31 | F79: 2019-12-31 | G79: B3S | H79: A2F4 | I79: 206.94 | J79: 206.94 | K79: 206.94 | L79: 2483.28 | O79: 2483.28 | P79: dal 2020 | Q79: dal 2021 | S79: dal 2021
B80: A2F4 43831 | C80: A2F4 (B3S) 43831 | E80: 2020-01-01 | F80: 2020-12-31 | G80: B3S | H80: A2F4 | I80: =ROUND(L80/12,2) -> 290.52 | J80: =I80 -> 290.52 | K80: =J80 -> 290.52 | L80: =HLOOKUP(H80,'CCNL 2019-2021'!$M$73:$AB$75,'CCNL 2019-2021'!$J$74,FALSE) -> 3486.24 | N80: =ROUND(O80/12,2) -> 290.52 | O80: =O79+P80 -> 3486.28 | P80: =HLOOKUP(H80,$E$270:$T$277,8,FALSE) -> 1003 | Q80: =HLOOKUP(H80,$E$291:$T$298,8,FALSE) -> 924
B81: A2F4 44197 | C81: A2F4 (B3S) 44197 | E81: 2021-01-01 | F81: 2022-10-31 | G81: B3S | H81: A2F4 | I81: =ROUND(L81/12,2) -> 356.13 | J81: =I81 -> 356.13 | K81: =J81 -> 356.13 | L81: =HLOOKUP(H81,'CCNL 2019-2021'!$M$73:$AB$75,'CCNL 2019-2021'!$J$75,FALSE) -> 4273.56 | N81: =ROUND(O81/12,2) -> 356.13 | O81: =O79+Q80+S81 -> 4273.56 | S81: =ROUND(VLOOKUP(H81,$V$291:$W$306,2,FALSE)*12,2) -> 866.28
B82: A2F4 44866 | C82: A2F4 (B3S) 44866 | E82: 2022-11-01 | F82: 9999-01-01 | G82: =G81 -> B3S | H82: =H81 -> A2F4 | I82: =ROUND(L82/12,2) -> 291.67 | J82: =I82 -> 291.67 | K82: =J82 -> 291.67 | L82: =VLOOKUP(H82,'CCNL 2019-2021'!$H$79:$I$94,2,FALSE) -> 3500.04
E83: -------- | F83: A2F5 | P83: INCREMENTI ANNUI POST 31/12/2019
B84: A2F5 34700 | C84: =CONCATENATE($F$83," ",E84) -> A2F5 34700 | E84: 1995-01-01 | F84: 2007-12-30 | G84: -------- | H84: A2F5 | I84: 179.63 | J84: 186.35 | K84: 0 | L84: =ROUND(I84*12,2) -> 2155.56 | O84: =ROUND(I84*12,2) -> 2155.56 | P84: DPCM 23.12.2021 | S84: CCNL 2019 -2021
B85: A2F5 39447 | C85: =CONCATENATE($F$83," ",E85) -> A2F5 39447 | E85: 2007-12-31 | F85: 2019-12-31 | G85: -------- | H85: A2F5 | I85: 206.94 | J85: 206.94 | K85: 206.94 | L85: 2483.28 | O85: =ROUND(I85*12,2) -> 2483.28 | P85: dal 2020 | Q85: dal 2021 | S85: dal 2021
B86: A2F5 43831 | C86: A2F5 43831 | E86: 2020-01-01 | F86: 2020-12-31 | G86: -------- | H86: A2F5 | I86: =ROUND(L86/12,2) -> 290.52 | J86: =I86 -> 290.52 | K86: =J86 -> 290.52 | L86: =HLOOKUP(H86,'CCNL 2019-2021'!$M$73:$AB$75,'CCNL 2019-2021'!$J$74,FALSE) -> 3486.24 | N86: =ROUND(O86/12,2) -> 290.52 | O86: =O85+P86 -> 3486.28 | P86: =HLOOKUP(H86,$E$270:$T$277,8,FALSE) -> 1003 | Q86: =HLOOKUP(H86,$E$291:$T$298,8,FALSE) -> 924
B87: A2F5 44197 | C87: A2F5 44197 | E87: 2021-01-01 | F87: 2022-10-31 | G87: -------- | H87: A2F5 | I87: =ROUND(L87/12,2) -> 356.13 | J87: =I87 -> 356.13 | K87: =J87 -> 356.13 | L87: =HLOOKUP(H87,'CCNL 2019-2021'!$M$73:$AB$75,'CCNL 2019-2021'!$J$75,FALSE) -> 4273.56 | N87: =ROUND(O87/12,2) -> 356.13 | O87: =O85+Q86+S87 -> 4273.56 | S87: =ROUND(VLOOKUP(H87,$V$291:$W$306,2,FALSE)*12,2) -> 866.28
B88: A2F5 44866 | C88: =B88 -> A2F5 44866 | E88: 2022-11-01 | F88: 9999-01-01 | G88: =G87 -> -------- | H88: =H87 -> A2F5 | I88: =ROUND(L88/12,2) -> 291.67 | J88: 291.67 | K88: 291.67 | L88: =VLOOKUP(H88,'CCNL 2019-2021'!$H$79:$I$94,2,FALSE) -> 3500.04
E89: -------- | F89: A2F6 | P89: INCREMENTI ANNUI POST 31/12/2019
B90: A2F6 34700 | C90: =CONCATENATE($F$89," ",E90) -> A2F6 34700 | E90: 1995-01-01 | F90: 2007-12-30 | G90: -------- | H90: A2F6 | I90: 179.63 | J90: 186.35 | K90: 0 | L90: =ROUND(I90*12,2) -> 2155.56 | O90: =ROUND(I90*12,2) -> 2155.56 | P90: DPCM 23.12.2021 | S90: CCNL 2019 -2021
B91: A2F6 39447 | C91: =CONCATENATE($F$89," ",E91) -> A2F6 39447 | E91: 2007-12-31 | F91: 2019-12-31 | G91: -------- | H91: A2F6 | I91: 206.94 | J91: 206.94 | K91: 206.94 | L91: 2483.28 | O91: =ROUND(I91*12,2) -> 2483.28 | P91: dal 2020 | Q91: dal 2021 | S91: dal 2021
B92: A2F6 43831 | C92: A2F6 43831 | E92: 2020-01-01 | F92: 2020-12-31 | G92: -------- | H92: A2F6 | I92: =ROUND(L92/12,2) -> 290.52 | J92: =I92 -> 290.52 | K92: =J92 -> 290.52 | L92: =HLOOKUP(H92,'CCNL 2019-2021'!$M$73:$AB$75,'CCNL 2019-2021'!$J$74,FALSE) -> 3486.24 | N92: =ROUND(O92/12,2) -> 290.52 | O92: =O91+P92 -> 3486.28 | P92: =HLOOKUP(H92,$E$270:$T$277,8,FALSE) -> 1003 | Q92: =HLOOKUP(H92,$E$291:$T$298,8,FALSE) -> 924
B93: A2F6 44197 | C93: A2F6 44197 | E93: 2021-01-01 | F93: 2022-10-31 | G93: -------- | H93: A2F6 | I93: =ROUND(L93/12,2) -> 356.13 | J93: =I93 -> 356.13 | K93: =J93 -> 356.13 | L93: =HLOOKUP(H93,'CCNL 2019-2021'!$M$73:$AB$75,'CCNL 2019-2021'!$J$75,FALSE) -> 4273.56 | N93: =ROUND(O93/12,2) -> 356.13 | O93: =O91+Q92+S93 -> 4273.56 | S93: =ROUND(VLOOKUP(H93,$V$291:$W$306,2,FALSE)*12,2) -> 866.28
B94: A2F6 44866 | C94: =B94 -> A2F6 44866 | E94: 2022-11-01 | F94: 9999-01-01 | G94: =G93 -> -------- | H94: =H93 -> A2F6 | I94: =ROUND(L94/12,2) -> 291.67 | J94: =I94 -> 291.67 | K94: =J94 -> 291.67 | L94: =VLOOKUP(H94,'CCNL 2019-2021'!$H$79:$I$94,2,FALSE) -> 3500.04
E95: C1 | F95: A3F1
B96: A3F1 34700 | C96: =CONCATENATE(H96," (",G96,") ",E96) -> A3F1 (C1) 34700 | E96: 1995-01-01 | F96: 1997-06-30 | G96: C1 | H96: A3F1 | I96: 131.18 | J96: 138.93 | K96: 142.54 | L96: =ROUND(I96*12,2) -> 1574.16 | O96: =ROUND(I96*12,2) -> 1574.16
B97: A3F1 35612 | C97: A3F1 (C1) 35612 | E97: 1997-07-01 | F97: 1999-12-31 | G97: C1 | H97: A3F1 | I97: 162.17 | J97: 169.92 | K97: 173.53 | L97: 1946.04 | O97: 1946.04
B98: A3F1 36526 | C98: A3F1 (C1) 36526 | E98: 2000-01-01 | F98: 2000-06-30 | G98: C1 | H98: A3F1 | I98: 173.02 | J98: 180.77 | K98: 184.38 | L98: 2076.24 | O98: 2076.24
B99: A3F1 36708 | C99: A3F1 (C1) 36708 | E99: 2000-07-01 | F99: 2000-12-31 | G99: C1 | H99: A3F1 | I99: 180.25 | J99: 188 | K99: 191.61 | L99: 2163 | O99: 2163
B100: A3F1 36892 | C100: A3F1 (C1) 36892 | E100: 2001-01-01 | F100: 2001-12-31 | G100: C1 | H100: A3F1 | I100: 183.35 | J100: 191.1 | K100: 194.71 | L100: 2200.2 | O100: 2200.2
B101: A3F1 37257 | C101: A3F1 (C1) 37257 | E101: 2002-01-01 | F101: 2002-12-31 | G101: C1 | H101: A3F1 | I101: 199.95 | J101: 207.7 | K101: 211.31 | L101: 2399.4 | O101: 2399.4 | P101: INCREMENTI ANNUI POST 31/12/2019
B102: A3F1 37622 | C102: A3F1 (C1) 37622 | E102: 2003-01-01 | F102: 2007-12-30 | G102: C1 | H102: A3F1 | I102: 200.74 | J102: 208.49 | K102: 212.1 | L102: 2408.88 | O102: 2408.88 | P102: DPCM 23.12.2021 | S102: CCNL 2019 -2021
B103: A3F1 39447 | C103: A3F1 (C1) 39447 | E103: 2007-12-31 | F103: 2019-12-31 | G103: C1 | H103: A3F1 | I103: 231.06 | J103: 231.06 | K103: 231.06 | L103: 2772.72 | O103: 2772.72 | P103: dal 2020 | Q103: dal 2021 | S103: dal 2021
B104: A3F1 43831 | C104: A3F1 (C1) 43831 | E104: 2020-01-01 | F104: 2020-12-31 | G104: C1 | H104: A3F1 | I104: =ROUND(L104/12,2) -> 337.31 | J104: =I104 -> 337.31 | K104: =J104 -> 337.31 | L104: =HLOOKUP(H104,'CCNL 2019-2021'!$M$73:$AB$75,'CCNL 2019-2021'!$J$74,FALSE) -> 4047.72 | N104: =ROUND(O104/12,2) -> 337.31 | O104: =O103+P104 -> 4047.72 | P104: =HLOOKUP(H104,$E$270:$T$277,8,FALSE) -> 1275 | Q104: =HLOOKUP(H104,$E$291:$T$298,8,FALSE) -> 1221
B105: A3F1 44197 | C105: A3F1 (C1) 44197 | E105: 2021-01-01 | F105: 2022-10-31 | G105: C1 | H105: A3F1 | I105: =ROUND(L105/12,2) -> 423.02 | J105: =I105 -> 423.02 | K105: =J105 -> 423.02 | L105: =HLOOKUP(H105,'CCNL 2019-2021'!$M$73:$AB$75,'CCNL 2019-2021'!$J$75,FALSE) -> 5076.24 | N105: =ROUND(O105/12,2) -> 423.02 | O105: =O103+Q104+S105 -> 5076.24 | S105: =ROUND(VLOOKUP(H105,$V$291:$W$306,2,FALSE)*12,2) -> 1082.52
B106: A3F1 44866 | C106: A3F1 (C1) 44866 | E106: 2022-11-01 | F106: 9999-01-01 | G106: =G105 -> C1 | H106: =H105 -> A3F1 | I106: =ROUND(L106/12,2) -> 386.5 | J106: =I106 -> 386.5 | K106: =J106 -> 386.5 | L106: =VLOOKUP(H106,'CCNL 2019-2021'!$H$79:$I$94,2,FALSE) -> 4638
E107: C1S | F107: A3F2
B108: A3F2 34700 | C108: =CONCATENATE(H108," (",G108,") ",E108) -> A3F2 (C1S) 34700 | E108: 1995-01-01 | F108: 1997-06-30 | G108: C1S | H108: A3F2 | I108: 131.18 | J108: 138.93 | K108: 142.54 | L108: =ROUND(I108*12,2) -> 1574.16 | O108: =ROUND(I108*12,2) -> 1574.16
B109: A3F2 35612 | C109: A3F2 (C1S) 35612 | E109: 1997-07-01 | F109: 1999-12-31 | G109: C1S | H109: A3F2 | I109: 162.17 | J109: 169.92 | K109: 173.53 | L109: 1946.04 | O109: 1946.04
B110: A3F2 36526 | C110: A3F2 (C1S) 36526 | E110: 2000-01-01 | F110: 2000-06-30 | G110: C1S | H110: A3F2 | I110: 173.02 | J110: 180.77 | K110: 184.38 | L110: 2076.24 | O110: 2076.24
B111: A3F2 36708 | C111: A3F2 (C1S) 36708 | E111: 2000-07-01 | F111: 2000-12-31 | G111: C1S | H111: A3F2 | I111: 180.25 | J111: 188 | K111: 191.61 | L111: 2163 | O111: 2163
B112: A3F2 36892 | C112: A3F2 (C1S) 36892 | E112: 2001-01-01 | F112: 2001-12-31 | G112: C1S | H112: A3F2 | I112: 183.35 | J112: 191.1 | K112: 194.71 | L112: 2200.2 | O112: 2200.2
B113: A3F2 37257 | C113: A3F2 (C1S) 37257 | E113: 2002-01-01 | F113: 2002-12-31 | G113: C1S | H113: A3F2 | I113: 199.95 | J113: 207.7 | K113: 211.31 | L113: 2399.4 | O113: 2399.4 | P113: INCREMENTI ANNUI POST 31/12/2019
B114: A3F2 37622 | C114: A3F2 (C1S) 37622 | E114: 2003-01-01 | F114: 2007-12-30 | G114: C1S | H114: A3F2 | I114: 200.74 | J114: 208.49 | K114: 212.1 | L114: 2408.88 | O114: 2408.88 | P114: DPCM 23.12.2021 | S114: CCNL 2019 -2021
B115: A3F2 39447 | C115: A3F2 (C1S) 39447 | E115: 2007-12-31 | F115: 2019-12-31 | G115: C1S | H115: A3F2 | I115: 231.06 | J115: 231.06 | K115: 231.06 | L115: 2772.72 | O115: 2772.72 | P115: dal 2020 | Q115: dal 2021 | S115: dal 2021
B116: A3F2 43831 | C116: A3F2 (C1S) 43831 | E116: 2020-01-01 | F116: 2020-12-31 | G116: C1S | H116: A3F2 | I116: =ROUND(L116/12,2) -> 337.31 | J116: =I116 -> 337.31 | K116: =J116 -> 337.31 | L116: =HLOOKUP(H116,'CCNL 2019-2021'!$M$73:$AB$75,'CCNL 2019-2021'!$J$74,FALSE) -> 4047.72 | N116: =ROUND(O116/12,2) -> 337.31 | O116: =O115+P116 -> 4047.72 | P116: =HLOOKUP(H116,$E$270:$T$277,8,FALSE) -> 1275 | Q116: =HLOOKUP(H116,$E$291:$T$298,8,FALSE) -> 1221
B117: A3F2 44197 | C117: A3F2 (C1S) 44197 | E117: 2021-01-01 | F117: 2022-10-31 | G117: C1S | H117: A3F2 | I117: =ROUND(L117/12,2) -> 423.02 | J117: =I117 -> 423.02 | K117: =J117 -> 423.02 | L117: =HLOOKUP(H117,'CCNL 2019-2021'!$M$73:$AB$75,'CCNL 2019-2021'!$J$75,FALSE) -> 5076.24 | N117: =ROUND(O117/12,2) -> 423.02 | O117: =O115+Q116+S117 -> 5076.24 | S117: =ROUND(VLOOKUP(H117,$V$291:$W$306,2,FALSE)*12,2) -> 1082.52
B118: A3F2 44866 | C118: A3F2 (C1S) 44866 | E118: 2022-11-01 | F118: 9999-01-01 | G118: =G117 -> C1S | H118: =H117 -> A3F2 | I118: =ROUND(L118/12,2) -> 386.5 | J118: =I118 -> 386.5 | K118: =J118 -> 386.5 | L118: =VLOOKUP(H118,'CCNL 2019-2021'!$H$79:$I$94,2,FALSE) -> 4638
E119: C2 | F119: A3F3
B120: A3F3 34700 | C120: =CONCATENATE(H120," (",G120,") ",E120) -> A3F3 (C2) 34700 | E120: 1995-01-01 | F120: 1997-06-30 | G120: C2 | H120: A3F3 | I120: 148.22 | J120: 156.49 | K120: 161.13 | L120: =ROUND(I120*12,2) -> 1778.64 | O120: =ROUND(I120*12,2) -> 1778.64
B121: A3F3 35612 | C121: A3F3 (C2) 35612 | E121: 1997-07-01 | F121: 1999-12-31 | G121: C2 | H121: A3F3 | I121: 182.31 | J121: 190.58 | K121: 195.22 | L121: 2187.72 | O121: 2187.72
B122: A3F3 36526 | C122: A3F3 (C2) 36526 | E122: 2000-01-01 | F122: 2000-06-30 | G122: C2 | H122: A3F3 | I122: 194.19 | J122: 202.46 | K122: 207.1 | L122: 2330.28 | O122: 2330.28
B123: A3F3 36708 | C123: A3F3 (C2) 36708 | E123: 2000-07-01 | F123: 2000-12-31 | G123: C2 | H123: A3F3 | I123: 202.45 | J123: 210.72 | K123: 215.36 | L123: 2429.4 | O123: 2429.4
B124: A3F3 36892 | C124: A3F3 (C2) 36892 | E124: 2001-01-01 | F124: 2001-12-31 | G124: C2 | H124: A3F3 | I124: 205.55 | J124: 213.82 | K124: 218.46 | L124: 2466.6 | O124: 2466.6
B125: A3F3 37257 | C125: A3F3 (C2) 37257 | E125: 2002-01-01 | F125: 2002-12-31 | G125: C2 | H125: A3F3 | I125: 224.15 | J125: 232.42 | K125: 237.06 | L125: 2689.8 | O125: 2689.8 | P125: INCREMENTI ANNUI POST 31/12/2019
B126: A3F3 37622 | C126: A3F3 (C2) 37622 | E126: 2003-01-01 | F126: 2007-12-30 | G126: C2 | H126: A3F3 | I126: 225.15 | J126: 233.41 | K126: 238.06 | L126: 2701.8 | O126: 2701.8 | P126: DPCM 23.12.2021 | S126: CCNL 2019 -2021
B127: A3F3 39447 | C127: A3F3 (C2) 39447 | E127: 2007-12-31 | F127: 2019-12-31 | G127: C2 | H127: A3F3 | I127: 259.34 | J127: 259.34 | K127: 259.34 | L127: 3112.08 | O127: 3112.08 | P127: dal 2020 | Q127: dal 2021 | S127: dal 2021
B128: A3F3 43831 | C128: A3F3 (C2) 43831 | E128: 2020-01-01 | F128: 2020-12-31 | G128: C2 | H128: A3F3 | I128: =ROUND(L128/12,2) -> 371.92 | J128: =I128 -> 371.92 | K128: =J128 -> 371.92 | L128: =HLOOKUP(H128,'CCNL 2019-2021'!$M$73:$AB$75,'CCNL 2019-2021'!$J$74,FALSE) -> 4463.04 | N128: =ROUND(O128/12,2) -> 371.92 | O128: =O127+P128 -> 4463.08 | P128: =HLOOKUP(H128,$E$270:$T$277,8,FALSE) -> 1351 | Q128: =HLOOKUP(H128,$E$291:$T$298,8,FALSE) -> 1273
B129: A3F3 44197 | C129: A3F3 (C2) 44197 | E129: 2021-01-01 | F129: 2022-10-31 | G129: C2 | H129: A3F3 | I129: =ROUND(L129/12,2) -> 455.63 | J129: =I129 -> 455.63 | K129: =J129 -> 455.63 | L129: =HLOOKUP(H129,'CCNL 2019-2021'!$M$73:$AB$75,'CCNL 2019-2021'!$J$75,FALSE) -> 5467.56 | N129: =ROUND(O129/12,2) -> 455.63 | O129: =O127+Q128+S129 -> 5467.6 | S129: =ROUND(VLOOKUP(H129,$V$291:$W$306,2,FALSE)*12,2) -> 1082.52
B130: A3F3 44866 | C130: A3F3 (C2) 44866 | E130: 2022-11-01 | F130: 9999-01-01 | G130: =G129 -> C2 | H130: =H129 -> A3F3 | I130: =ROUND(L130/12,2) -> 386.5 | J130: =I130 -> 386.5 | K130: =J130 -> 386.5 | L130: =VLOOKUP(H130,'CCNL 2019-2021'!$H$79:$I$94,2,FALSE) -> 4638
E131: C3 | F131: A3F4
B132: A3F4 34700 | C132: =CONCATENATE(H132," (",G132,") ",E132) -> A3F4 (C3) 34700 | E132: 1995-01-01 | F132: 1997-06-30 | G132: C3 | H132: A3F4 | I132: 158.04 | J132: 167.33 | K132: 171.98 | L132: =ROUND(I132*12,2) -> 1896.48 | O132: =ROUND(I132*12,2) -> 1896.48
B133: A3F4 35612 | C133: A3F4 (C3) 35612 | E133: 1997-07-01 | F133: 1999-12-31 | G133: C3 | H133: A3F4 | I133: 195.74 | J133: 205.03 | K133: 209.68 | L133: 2348.88 | O133: 2348.88
B134: A3F4 36526 | C134: A3F4 (C3) 36526 | E134: 2000-01-01 | F134: 2000-06-30 | G134: C3 | H134: A3F4 | I134: 208.65 | J134: 217.94 | K134: 222.59 | L134: 2503.8 | O134: 2503.8
B135: A3F4 36708 | C135: A3F4 (C3) 36708 | E135: 2000-07-01 | F135: 2000-12-31 | G135: C3 | H135: A3F4 | I135: 217.95 | J135: 227.24 | K135: 231.89 | L135: 2615.4 | O135: 2615.4
B136: A3F4 36892 | C136: A3F4 (C3) 36892 | E136: 2001-01-01 | F136: 2001-12-31 | G136: C3 | H136: A3F4 | I136: 222.08 | J136: 231.37 | K136: 236.02 | L136: 2664.96 | O136: 2664.96
B137: A3F4 37257 | C137: A3F4 (C3) 37257 | E137: 2002-01-01 | F137: 2002-12-31 | G137: C3 | H137: A3F4 | I137: 242.88 | J137: 252.17 | K137: 256.82 | L137: 2914.56 | O137: 2914.56 | P137: INCREMENTI ANNUI POST 31/12/2019
B138: A3F4 37622 | C138: A3F4 (C3) 37622 | E138: 2003-01-01 | F138: 2007-12-30 | G138: C3 | H138: A3F4 | I138: 243.88 | J138: 253.17 | K138: 257.82 | L138: 2926.56 | O138: 2926.56 | P138: DPCM 23.12.2021 | S138: CCNL 2019 -2021
B139: A3F4 39447 | C139: A3F4 (C3) 39447 | E139: 2007-12-31 | F139: 2019-12-31 | G139: C3 | H139: A3F4 | I139: 280.87 | J139: 280.87 | K139: 280.87 | L139: 3370.44 | O139: 3370.44 | P139: dal 2020 | Q139: dal 2021 | S139: dal 2021
B140: A3F4 43831 | C140: A3F4 (C3) 43831 | E140: 2020-01-01 | F140: 2020-12-31 | G140: C3 | H140: A3F4 | I140: =ROUND(L140/12,2) -> 395.12 | J140: =I140 -> 395.12 | K140: =J140 -> 395.12 | L140: =HLOOKUP(H140,'CCNL 2019-2021'!$M$73:$AB$75,'CCNL 2019-2021'!$J$74,FALSE) -> 4741.44 | N140: =ROUND(O140/12,2) -> 395.12 | O140: =O139+P140 -> 4741.44 | P140: =HLOOKUP(H140,$E$270:$T$277,8,FALSE) -> 1371 | Q140: =HLOOKUP(H140,$E$291:$T$298,8,FALSE) -> 1266
B141: A3F4 44197 | C141: A3F4 (C3) 44197 | E141: 2021-01-01 | F141: 2022-10-31 | G141: C3 | H141: A3F4 | I141: =ROUND(L141/12,2) -> 476.58 | J141: =I141 -> 476.58 | K141: =J141 -> 476.58 | L141: =HLOOKUP(H141,'CCNL 2019-2021'!$M$73:$AB$75,'CCNL 2019-2021'!$J$75,FALSE) -> 5718.96 | N141: =ROUND(O141/12,2) -> 476.58 | O141: =O139+Q140+S141 -> 5718.96 | S141: =ROUND(VLOOKUP(H141,$V$291:$W$306,2,FALSE)*12,2) -> 1082.52
B142: A3F4 44866 | C142: A3F4 (C3) 44866 | E142: 2022-11-01 | F142: 9999-01-01 | G142: =G141 -> C3 | H142: =H141 -> A3F4 | I142: =ROUND(L142/12,2) -> 386.5 | J142: =I142 -> 386.5 | K142: =J142 -> 386.5 | L142: =VLOOKUP(H142,'CCNL 2019-2021'!$H$79:$I$94,2,FALSE) -> 4638
E143: C3S | F143: A3F5
B144: A3F5 34700 | C144: =CONCATENATE(H144," (",G144,") ",E144) -> A3F5 (C3S) 34700 | E144: 1995-01-01 | F144: 1997-06-30 | G144: C3S | H144: A3F5 | I144: 158.04 | J144: 167.33 | K144: 171.98 | L144: =ROUND(I144*12,2) -> 1896.48 | O144: =ROUND(I144*12,2) -> 1896.48
B145: A3F5 35612 | C145: A3F5 (C3S) 35612 | E145: 1997-07-01 | F145: 1999-12-31 | G145: C3S | H145: A3F5 | I145: 195.74 | J145: 205.03 | K145: 209.68 | L145: 2348.88 | O145: 2348.88
B146: A3F5 36526 | C146: A3F5 (C3S) 36526 | E146: 2000-01-01 | F146: 2000-06-30 | G146: C3S | H146: A3F5 | I146: 208.65 | J146: 217.94 | K146: 222.59 | L146: 2503.8 | O146: 2503.8
B147: A3F5 36708 | C147: A3F5 (C3S) 36708 | E147: 2000-07-01 | F147: 2000-12-31 | G147: C3S | H147: A3F5 | I147: 217.95 | J147: 227.24 | K147: 231.89 | L147: 2615.4 | O147: 2615.4
B148: =CONCATENATE(H148," ",E148) -> A3F5 36892 | C148: A3F5 (C3S) 36892 | E148: 2001-01-01 | F148: 2001-12-31 | G148: C3S | H148: A3F5 | I148: 222.08 | J148: 231.37 | K148: 236.02 | L148: 2664.96 | O148: 2664.96
B149: A3F5 37257 | C149: A3F5 (C3S) 37257 | E149: 2002-01-01 | F149: 2002-12-31 | G149: C3S | H149: A3F5 | I149: 242.88 | J149: 252.17 | K149: 256.82 | L149: 2914.56 | O149: 2914.56 | P149: INCREMENTI ANNUI POST 31/12/2019
B150: A3F5 37622 | C150: A3F5 (C3S) 37622 | E150: 2003-01-01 | F150: 2007-12-30 | G150: C3S | H150: A3F5 | I150: 243.88 | J150: 253.17 | K150: 257.82 | L150: 2926.56 | O150: 2926.56 | P150: DPCM 23.12.2021 | S150: CCNL 2019 -2021
B151: A3F5 39447 | C151: A3F5 (C3S) 39447 | E151: 2007-12-31 | F151: 2019-12-31 | G151: C3S | H151: A3F5 | I151: 280.87 | J151: 280.87 | K151: 280.87 | L151: 3370.44 | O151: 3370.44 | P151: dal 2020 | Q151: dal 2021 | S151: dal 2021
B152: A3F5 43831 | C152: A3F5 (C3S) 43831 | E152: 2020-01-01 | F152: 2020-12-31 | G152: C3S | H152: A3F5 | I152: =ROUND(L152/12,2) -> 395.12 | J152: =I152 -> 395.12 | K152: =J152 -> 395.12 | L152: =HLOOKUP(H152,'CCNL 2019-2021'!$M$73:$AB$75,'CCNL 2019-2021'!$J$74,FALSE) -> 4741.44 | N152: =ROUND(O152/12,2) -> 395.12 | O152: =O151+P152 -> 4741.44 | P152: =HLOOKUP(H152,$E$270:$T$277,8,FALSE) -> 1371 | Q152: =HLOOKUP(H152,$E$291:$T$298,8,FALSE) -> 1266
B153: A3F5 44197 | C153: A3F5 (C3S) 44197 | E153: 2021-01-01 | F153: 2022-10-31 | G153: C3S | H153: A3F5 | I153: =ROUND(L153/12,2) -> 476.58 | J153: =I153 -> 476.58 | K153: =J153 -> 476.58 | L153: =HLOOKUP(H153,'CCNL 2019-2021'!$M$73:$AB$75,'CCNL 2019-2021'!$J$75,FALSE) -> 5718.96 | N153: =ROUND(O153/12,2) -> 476.58 | O153: =O151+Q152+S153 -> 5718.96 | S153: =ROUND(VLOOKUP(H153,$V$291:$W$306,2,FALSE)*12,2) -> 1082.52
B154: A3F5 44866 | C154: A3F5 (C3S) 44866 | E154: 2022-11-01 | F154: 9999-01-01 | G154: =G153 -> C3S | H154: =H153 -> A3F5 | I154: =ROUND(L154/12,2) -> 386.5 | J154: =I154 -> 386.5 | K154: =J154 -> 386.5 | L154: =VLOOKUP(H154,'CCNL 2019-2021'!$H$79:$I$94,2,FALSE) -> 4638
E155: -------- | F155: A3F6 | P155: INCREMENTI ANNUI POST 31/12/2019
B156: A3F6 34700 | C156: =CONCATENATE($F$155," ",E156) -> A3F6 34700 | E156: 1995-01-01 | F156: 2007-12-30 | G156: -------- | H156: A3F6 | I156: 243.88 | J156: 253.17 | K156: 0 | L156: =ROUND(I156*12,2) -> 2926.56 | O156: =ROUND(I156*12,2) -> 2926.56 | P156: DPCM 23.12.2021 | S156: CCNL 2019 -2021
B157: A3F6 39447 | C157: =CONCATENATE($F$155," ",E157) -> A3F6 39447 | E157: 2007-12-31 | F157: 2019-12-31 | G157: -------- | H157: A3F6 | I157: 280.87 | J157: 280.87 | K157: 280.87 | L157: 3370.44 | O157: =ROUND(I157*12,2) -> 3370.44 | P157: dal 2020 | Q157: dal 2021 | S157: dal 2021
B158: A3F6 43831 | C158: A3F6 43831 | E158: 2020-01-01 | F158: 2020-12-31 | G158: -------- | H158: A3F6 | I158: =ROUND(L158/12,2) -> 395.12 | J158: =I158 -> 395.12 | K158: =J158 -> 395.12 | L158: =HLOOKUP(H158,'CCNL 2019-2021'!$M$73:$AB$75,'CCNL 2019-2021'!$J$74,FALSE) -> 4741.44 | N158: =ROUND(O158/12,2) -> 395.12 | O158: =O157+P158 -> 4741.44 | P158: =HLOOKUP(H158,$E$270:$T$277,8,FALSE) -> 1371 | Q158: =HLOOKUP(H158,$E$291:$T$298,8,FALSE) -> 1266
B159: A3F6 44197 | C159: A3F6 44197 | E159: 2021-01-01 | F159: 2022-10-31 | G159: -------- | H159: A3F6 | I159: =ROUND(L159/12,2) -> 476.58 | J159: =I159 -> 476.58 | K159: =J159 -> 476.58 | L159: =HLOOKUP(H159,'CCNL 2019-2021'!$M$73:$AB$75,'CCNL 2019-2021'!$J$75,FALSE) -> 5718.96 | N159: =ROUND(O159/12,2) -> 476.58 | O159: =O157+Q158+S159 -> 5718.96 | S159: =ROUND(VLOOKUP(H159,$V$291:$W$306,2,FALSE)*12,2) -> 1082.52
B160: A3F6 44866 | C160: =B160 -> A3F6 44866 | E160: 2022-11-01 | F160: 9999-01-01 | G160: =G159 -> -------- | H160: =H159 -> A3F6 | I160: =ROUND(L160/12,2) -> 386.5 | J160: =I160 -> 386.5 | K160: =J160 -> 386.5 | L160: =VLOOKUP(H160,'CCNL 2019-2021'!$H$79:$I$94,2,FALSE) -> 4638
E161: -------- | F161: A3F7 | P161: INCREMENTI ANNUI POST 31/12/2019
B162: A3F7 34700 | C162: =CONCATENATE($F$161," ",E162) -> A3F7 34700 | E162: 1995-01-01 | F162: 2007-12-30 | G162: -------- | H162: A3F7 | I162: 243.88 | J162: 253.17 | K162: 0 | L162: =ROUND(I162*12,2) -> 2926.56 | O162: =ROUND(I162*12,2) -> 2926.56 | P162: DPCM 23.12.2021 | S162: CCNL 2019 -2021
B163: A3F7 39447 | C163: =CONCATENATE($F$161," ",E163) -> A3F7 39447 | E163: 2007-12-31 | F163: 2019-12-31 | G163: -------- | H163: A3F7 | I163: 280.87 | J163: 280.87 | K163: 280.87 | L163: 3370.44 | O163: =ROUND(I163*12,2) -> 3370.44 | P163: dal 2020 | Q163: dal 2021 | S163: dal 2021
B164: A3F7 43831 | C164: A3F7 43831 | E164: 2020-01-01 | F164: 2020-12-31 | G164: -------- | H164: A3F7 | I164: =ROUND(L164/12,2) -> 395.12 | J164: =I164 -> 395.12 | K164: =J164 -> 395.12 | L164: =HLOOKUP(H164,'CCNL 2019-2021'!$M$73:$AB$75,'CCNL 2019-2021'!$J$74,FALSE) -> 4741.44 | N164: =ROUND(O164/12,2) -> 395.12 | O164: =O163+P164 -> 4741.44 | P164: =HLOOKUP(H164,$E$270:$T$277,8,FALSE) -> 1371 | Q164: =HLOOKUP(H164,$E$291:$T$298,8,FALSE) -> 1266
B165: A3F7 44197 | C165: A3F7 44197 | E165: 2021-01-01 | F165: 2022-10-31 | G165: -------- | H165: A3F7 | I165: =ROUND(L165/12,2) -> 476.58 | J165: =I165 -> 476.58 | K165: =J165 -> 476.58 | L165: =HLOOKUP(H165,'CCNL 2019-2021'!$M$73:$AB$75,'CCNL 2019-2021'!$J$75,FALSE) -> 5718.96 | N165: =ROUND(O165/12,2) -> 476.58 | O165: =O163+Q164+S165 -> 5718.96 | S165: =ROUND(VLOOKUP(H165,$V$291:$W$306,2,FALSE)*12,2) -> 1082.52
B166: A3F7 44866 | C166: =B166 -> A3F7 44866 | E166: 2022-11-01 | F166: 9999-01-01 | G166: =G165 -> -------- | H166: =H165 -> A3F7 | I166: =ROUND(L166/12,2) -> 386.5 | J166: =I166 -> 386.5 | K166: =J166 -> 386.5 | L166: =VLOOKUP(H166,'CCNL 2019-2021'!$H$79:$I$94,2,FALSE) -> 4638
A169: 1 | B169: 2 | C169: 3 | D169: 4 | E169: 5 | F169: 6 | G169: 7 | H169: 8 | I169: 9 | J169: 10 | K169: 11 | L169: 12 | M169: 13 | N169: 14 | O169: 15 | P169: 16 | Q169: 17 | R169: 18 | S169: 19 | T169: 20 | U169: 21 | V169: 22 | W169: 23 | X169: 24 | Z169: CNA ESERCITO
B170: SIGLA MISURA | C170: SIGLA AMM.NE | D170: AMMINISTRAZIONE | H170: DECORRENZA | I170: A3F7 | J170: A3F6 | K170: A3F5 | L170: A3F4 | M170: A3F3 | N170: A3F2 | O170: A3F1 | P170: A2F6 | Q170: A2F5 | R170: A2F4 | S170: A2F3 | T170: A2F2 | U170: A2F1 | V170: A1F3 | W170: A1F2 | X170: A1F1 | AA170: A3F7 | AB170: A3F6 | AC170: A3F5 (C3S) | AD170: A3F4 (C3) | AE170: A3F3 (C2) | AF170: A3F2 (C1S) | AG170: A3F1 (C1) | AH170: A2F6 | AI170: A2F5 | AJ170: A2F4 (B3S) | AK170: A2F3 (B3) | AL170: A2F2 (B2) | AM170: A2F1 (B1) | AN170: A1F3 | AO170: A1F2 (A1S) | AP170: A1F1 (A1) | AQ170: A3F7 | AR170: A3F6 | AS170: A3F5 (C3S) | AT170: A3F4 (C3) | AU170: A3F3 (C2) | AV170: A3F2 (C1S) | AW170: A3F1 (C1) | AX170: A2F6 | AY170: A2F5 | AZ170: A2F4 (B3S) | BA170: A2F3 (B3) | BB170: A2F2 (B2) | BC170: A2F1 (B1) | BD170: A1F3 | BE170: A1F2 (A1S) | BF170: A1F1 (A1)
A171: =CONCATENATE(C171," ",H171) -> AGR 39814 | B171: AGR | C171: AGR | G171: =VLOOKUP(C171,$U$4:$AA$33,2,FALSE) -> POLITICHE AGRICOLE, ALIMENTARI E FORESTALI | H171: 2009-01-01 | I171: 3370.44 | J171: 3370.44 | K171: 3370.44 | L171: 3370.44 | M171: 3112.08 | N171: 2772.72 | O171: 2772.72 | P171: 2483.28 | Q171: 2483.28 | R171: 2483.28 | S171: 2483.28 | T171: 2246.4 | U171: 2045.76 | V171: 1834.2 | W171: 1834.2 | X171: 1834.2 | Z171: POLITICHE AGRICOLE, ALIMENTARI, FORESTALI
A172: AGR 43831 | B172: AGR | C172: AGR | H172: 2020-01-01 | I172: =I171+VLOOKUP($B$172,$B$271:$T$285,E267,FALSE) -> 4741.44 | J172: 4741.44 | K172: 4741.44 | L172: 4741.44 | M172: 4463.08 | N172: 4047.72 | O172: 4047.72 | P172: 3486.28 | Q172: 3486.28 | R172: 3486.28 | S172: 3486.28 | T172: 3195.4 | U172: 2996.76 | V172: 2737.2 | W172: 2737.2 | X172: 2737.2 | Z172: ANNUI DAL 01/01/2020 | AA172: 4741.44 | AB172: 4741.44 | AC172: 4741.44 | AD172: 4741.44 | AE172: 4463.08 | AF172: 4047.72 | AG172: 4047.72 | AH172: 3486.28 | AI172: 3486.28 | AJ172: 3486.28 | AK172: 3486.28 | AL172: 3195.4 | AM172: 2996.76 | AN172: 2737.2 | AO172: 2737.2 | AP172: 2737.2 | AQ172: =EXACT(AA172,I172) -> TRUE | AR172: =EXACT(AB172,J172) -> TRUE | AS172: =EXACT(AC172,K172) -> TRUE | AT172: =EXACT(AD172,L172) -> TRUE | AU172: =EXACT(AE172,M172) -> TRUE | AV172: =EXACT(AF172,N172) -> TRUE | AW172: =EXACT(AG172,O172) -> TRUE | AX172: =EXACT(AH172,P172) -> TRUE | AY172: =EXACT(AI172,Q172) -> TRUE | AZ172: =EXACT(AJ172,R172) -> TRUE | BA172: =EXACT(AK172,S172) -> TRUE | BB172: =EXACT(AL172,T172) -> TRUE | BC172: =EXACT(AM172,U172) -> TRUE | BD172: =EXACT(AN172,V172) -> TRUE | BE172: =EXACT(AO172,W172) -> TRUE | BF172: =EXACT(AP172,X172) -> TRUE
A173: AGR 44197 | B173: AGR | C173: AGR | H173: 2021-01-01 | I173: =I171+VLOOKUP($B$173,$B$292:$T$306,E288,FALSE) -> 5819.44 | J173: 5819.44 | K173: 5819.44 | L173: 5819.44 | M173: 5478.08 | N173: 4967.72 | O173: 4967.72 | P173: 4279.28 | Q173: 4279.28 | R173: 4279.28 | S173: 4279.28 | T173: 3922.4 | U173: 3677.76 | V173: 3359.2 | W173: 3359.2 | X173: 3359.2 | Z173: ANNUI DAL 01/01/2021 | AA173: 5819.44 | AB173: 5819.44 | AC173: 5819.44 | AD173: 5819.44 | AE173: 5478.08 | AF173: 4967.72 | AG173: 4967.72 | AH173: 4279.28 | AI173: 4279.28 | AJ173: 4279.28 | AK173: 4279.28 | AL173: 3922.4 | AM173: 3677.76 | AN173: 3359.2 | AO173: 3359.2 | AP173: 3359.2 | AQ173: =EXACT(AA173,I173) -> TRUE | AR173: TRUE | AS173: TRUE | AT173: TRUE | AU173: TRUE | AV173: TRUE | AW173: TRUE | AX173: TRUE | AY173: TRUE | AZ173: TRUE | BA173: TRUE | BB173: TRUE | BC173: TRUE | BD173: TRUE | BE173: TRUE | BF173: TRUE
A174: =CONCATENATE(C174," ",H174) -> AGR 44866 | B174: AGR | C174: AGR | H174: 2022-11-01 | I174: =IF(LEFT(I170,2)="A3",VLOOKUP($B$174,$B$313:$J$332,7,FALSE),IF(LEFT(I170,2)="A2",VLOOKUP($B$174,$B$313:$J$332,8,FALSE),IF(LEFT(I170,2)="A1",VLOOKUP($B$174,$B$313:$J$332,9,FALSE),"????"))) -> 4529.52 | J174: =IF(LEFT(J170,2)="A3",VLOOKUP($B$174,$B$313:$J$332,7,FALSE),IF(LEFT(J170,2)="A2",VLOOKUP($B$174,$B$313:$J$332,8,FALSE),IF(LEFT(J170,2)="A1",VLOOKUP($B$174,$B$313:$J$332,9,FALSE),"????"))) -> 4529.52 | K174: 4529.52 | L174: 4529.52 | M174: 4529.52 | N174: 4529.52 | O174: 4529.52 | P174: 3352.8 | Q174: 3352.8 | R174: 3352.8 | S174: 3352.8 | T174: 3352.8 | U174: 3352.8 | V174: 3040.08 | W174: 3040.08 | X174: 3040.08
A175: AMB 39814 | B175: AMB | C175: AMB | G175: =VLOOKUP(C175,$U$4:$AA$33,2,FALSE) -> TRANSIZIONE ECOLOGICA | H175: 2009-01-01 | I175: 3370.44 | J175: 3370.44 | K175: 3370.44 | L175: 3370.44 | M175: 3112.08 | N175: 2772.72 | O175: 2772.72 | P175: 2483.28 | Q175: 2483.28 | R175: 2483.28 | S175: 2483.28 | T175: 2246.4 | U175: 2045.76 | V175: 1834.2 | W175: 1834.2 | X175: 1834.2 | Z175: TRANSIZIONE ECOLOGICA (Ex Ambiente e Tutela Territorio/mare)
A176: AMB 43831 | B176: AMB | C176: AMB | H176: 2020-01-01 | I176: =I175+VLOOKUP($B$176,$B$271:$T$285,E267,FALSE) -> 4741.44 | J176: 4741.44 | K176: 4741.44 | L176: 4741.44 | M176: 4463.08 | N176: 4047.72 | O176: 4047.72 | P176: 3486.28 | Q176: 3486.28 | R176: 3486.28 | S176: 3486.28 | T176: 3195.4 | U176: 2996.76 | V176: 2737.2 | W176: 2737.2 | X176: 2737.2 | AA176: 4741.44 | AB176: 4741.44 | AC176: 4741.44 | AD176: 4741.44 | AE176: 4463.08 | AF176: 4047.72 | AG176: 4047.72 | AH176: 3486.28 | AI176: 3486.28 | AJ176: 3486.28 | AK176: 3486.28 | AL176: 3195.4 | AM176: 2996.76 | AN176: 2737.2 | AO176: 2737.2 | AP176: 2737.2 | AQ176: =EXACT(AA176,I176) -> TRUE | AR176: =EXACT(AB176,J176) -> TRUE | AS176: =EXACT(AC176,K176) -> TRUE | AT176: =EXACT(AD176,L176) -> TRUE | AU176: =EXACT(AE176,M176) -> TRUE | AV176: =EXACT(AF176,N176) -> TRUE | AW176: =EXACT(AG176,O176) -> TRUE | AX176: =EXACT(AH176,P176) -> TRUE | AY176: =EXACT(AI176,Q176) -> TRUE | AZ176: =EXACT(AJ176,R176) -> TRUE | BA176: =EXACT(AK176,S176) -> TRUE | BB176: =EXACT(AL176,T176) -> TRUE | BC176: =EXACT(AM176,U176) -> TRUE | BD176: =EXACT(AN176,V176) -> TRUE | BE176: =EXACT(AO176,W176) -> TRUE | BF176: =EXACT(AP176,X176) -> TRUE
A177: AMB 44197 | B177: AMB | C177: AMB | H177: 2021-01-01 | I177: =I175+VLOOKUP($B$177,$B$292:$T$306,E288,FALSE) -> 5260.44 | J177: 5260.44 | K177: 5260.44 | L177: 5260.44 | M177: 5063.08 | N177: 4602.72 | O177: 4602.72 | P177: 3974.28 | Q177: 3974.28 | R177: 3974.28 | S177: 3974.28 | T177: 3698.4 | U177: 3425.76 | V177: 3092.2 | W177: 3092.2 | X177: 3092.2 | AA177: 5260.44 | AB177: 5260.44 | AC177: 5260.44 | AD177: 5260.44 | AE177: 5063.08 | AF177: 4602.72 | AG177: 4602.72 | AH177: 3974.28 | AI177: 3974.28 | AJ177: 3974.28 | AK177: 3974.28 | AL177: 3698.4 | AM177: 3425.76 | AN177: 3092.2 | AO177: 3092.2 | AP177: 3092.2 | AQ177: =EXACT(AA177,I177) -> TRUE | AR177: TRUE | AS177: TRUE | AT177: TRUE | AU177: TRUE | AV177: TRUE | AW177: TRUE | AX177: TRUE | AY177: TRUE | AZ177: TRUE | BA177: TRUE | BB177: TRUE | BC177: TRUE | BD177: TRUE | BE177: TRUE | BF177: TRUE
A178: =CONCATENATE(C178," ",H178) -> AMB 44866 | B178: AMB | C178: AMB | H178: 2022-11-01 | I178: =IF(LEFT(I170,2)="A3",VLOOKUP($B$178,$B$313:$J$332,7,FALSE),IF(LEFT(I170,2)="A2",VLOOKUP($B$178,$B$313:$J$332,8,FALSE),IF(LEFT(I170,2)="A1",VLOOKUP($B$178,$B$313:$J$332,9,FALSE),"????"))) -> 4528.68 | J178: =IF(LEFT(J170,2)="A3",VLOOKUP($B$178,$B$313:$J$332,7,FALSE),IF(LEFT(J170,2)="A2",VLOOKUP($B$178,$B$313:$J$332,8,FALSE),IF(LEFT(J170,2)="A1",VLOOKUP($B$178,$B$313:$J$332,9,FALSE),"????"))) -> 4528.68 | K178: 4528.68 | L178: 4528.68 | M178: 4528.68 | N178: 4528.68 | O178: 4528.68 | P178: 3352.68 | Q178: 3352.68 | R178: 3352.68 | S178: 3352.68 | T178: 3352.68 | U178: 3352.68 | V178: 3040.32 | W178: 3040.32 | X178: 3040.32
A179: AVV 39814 | B179: GIU | C179: AVV | G179: =VLOOKUP(C179,$U$4:$AA$33,2,FALSE) -> AVVOCATURA | H179: 2009-01-01 | I179: 6319.8 | J179: 6319.8 | K179: 6319.8 | L179: 6319.8 | M179: 5570.16 | N179: 5192.88 | O179: 5192.88 | P179: 4458.12 | Q179: 4458.12 | R179: 4458.12 | S179: 4458.12 | T179: 4083.24 | U179: 3714.72 | V179: 3697.44 | W179: 3697.44 | X179: 3697.44 | Z179: AVVOCATURA
A180: AVV 43831 | B180: GIU | C180: AVV | H180: 2020-01-01 | I180: =I179+VLOOKUP($B$180,$B$271:$T$285,E267,FALSE) -> 6319.8 | J180: 6319.8 | K180: 6319.8 | L180: 6319.8 | M180: 5570.16 | N180: 5192.88 | O180: 5192.88 | P180: 4458.12 | Q180: 4458.12 | R180: 4458.12 | S180: 4458.12 | T180: 4083.24 | U180: 3714.72 | V180: 3697.44 | W180: 3697.44 | X180: 3697.44 | AA180: 6319.8 | AB180: 6319.8 | AC180: 6319.8 | AD180: 6319.8 | AE180: 5570.16 | AF180: 5192.88 | AG180: 5192.88 | AH180: 4458.12 | AI180: 4458.12 | AJ180: 4458.12 | AK180: 4458.12 | AL180: 4083.24 | AM180: 3714.72 | AN180: 3697.44 | AO180: 3697.44 | AP180: 3697.44 | AQ180: =EXACT(AA180,I180) -> TRUE | AR180: =EXACT(AB180,J180) -> TRUE | AS180: =EXACT(AC180,K180) -> TRUE | AT180: =EXACT(AD180,L180) -> TRUE | AU180: =EXACT(AE180,M180) -> TRUE | AV180: =EXACT(AF180,N180) -> TRUE | AW180: =EXACT(AG180,O180) -> TRUE | AX180: =EXACT(AH180,P180) -> TRUE | AY180: =EXACT(AI180,Q180) -> TRUE | AZ180: =EXACT(AJ180,R180) -> TRUE | BA180: =EXACT(AK180,S180) -> TRUE | BB180: =EXACT(AL180,T180) -> TRUE | BC180: =EXACT(AM180,U180) -> TRUE | BD180: =EXACT(AN180,V180) -> TRUE | BE180: =EXACT(AO180,W180) -> TRUE | BF180: =EXACT(AP180,X180) -> TRUE
A181: AVV 44197 | B181: GIU | C181: AVV | H181: 2021-01-01 | I181: =I179+VLOOKUP($B$181,$B$292:$T$306,E288,FALSE) -> 6737.8 | J181: 6737.8 | K181: 6737.8 | L181: 6737.8 | M181: 5938.16 | N181: 5535.88 | O181: 5535.88 | P181: 4753.12 | Q181: 4753.12 | R181: 4753.12 | S181: 4753.12 | T181: 4353.24 | U181: 3960.72 | V181: 3941.44 | W181: 3941.44 | X181: 3941.44 | AA181: 6319.8 | AB181: 6319.8 | AC181: 6319.8 | AD181: 6319.8 | AE181: 5570.16 | AF181: 5192.88 | AG181: 5192.88 | AH181: 4458.12 | AI181: 4458.12 | AJ181: 4458.12 | AK181: 4458.12 | AL181: 4083.24 | AM181: 3714.72 | AN181: 3697.44 | AO181: 3697.44 | AP181: 3697.44 | AQ181: =EXACT(AA181,I181) -> FALSE | AR181: FALSE | AS181: FALSE | AT181: FALSE | AU181: FALSE | AV181: FALSE | AW181: FALSE | AX181: FALSE | AY181: FALSE | AZ181: FALSE | BA181: FALSE | BB181: FALSE | BC181: FALSE | BD181: FALSE | BE181: FALSE | BF181: FALSE
A182: =CONCATENATE(C182," ",H182) -> AVV 44866 | B182: GIU | C182: AVV | H182: 2022-11-01 | I182: =IF(LEFT(I170,2)="A3",VLOOKUP($B$182,$B$313:$J$332,7,FALSE),IF(LEFT(I170,2)="A2",VLOOKUP($B$182,$B$313:$J$332,8,FALSE),IF(LEFT(I170,2)="A1",VLOOKUP($B$182,$B$313:$J$332,9,FALSE),"????"))) -> 5097.6 | J182: =IF(LEFT(J170,2)="A3",VLOOKUP($B$182,$B$313:$J$332,7,FALSE),IF(LEFT(J170,2)="A2",VLOOKUP($B$182,$B$313:$J$332,8,FALSE),IF(LEFT(J170,2)="A1",VLOOKUP($B$182,$B$313:$J$332,9,FALSE),"????"))) -> 5097.6 | K182: 5097.6 | L182: 5097.6 | M182: 5097.6 | N182: 5097.6 | O182: 5097.6 | P182: 3635.76 | Q182: 3635.76 | R182: 3635.76 | S182: 3635.76 | T182: 3635.76 | U182: 3635.76 | V182: 3622.32 | W182: 3622.32 | X182: 3622.32
A183: CDC 39814 | B183: GIU | C183: CDC | G183: =VLOOKUP(C183,$U$4:$AA$33,2,FALSE) -> CORTE DEI CONTI | H183: 2009-01-01 | I183: 6319.8 | J183: 6319.8 | K183: 6319.8 | L183: 6319.8 | M183: 5570.16 | N183: 5192.88 | O183: 5192.88 | P183: 4458.12 | Q183: 4458.12 | R183: 4458.12 | S183: 4458.12 | T183: 4083.24 | U183: 3714.72 | V183: 3697.44 | W183: 3697.44 | X183: 3697.44 | Z183: CORTE DEI CONTI
A184: CDC 43831 | B184: GIU | C184: CDC | H184: 2020-01-01 | I184: =I183+VLOOKUP($B$184,$B$271:$T$285,E267,FALSE) -> 6319.8 | J184: 6319.8 | K184: 6319.8 | L184: 6319.8 | M184: 5570.16 | N184: 5192.88 | O184: 5192.88 | P184: 4458.12 | Q184: 4458.12 | R184: 4458.12 | S184: 4458.12 | T184: 4083.24 | U184: 3714.72 | V184: 3697.44 | W184: 3697.44 | X184: 3697.44 | AA184: 6319.8 | AB184: 6319.8 | AC184: 6319.8 | AD184: 6319.8 | AE184: 5570.16 | AF184: 5192.88 | AG184: 5192.88 | AH184: 4458.12 | AI184: 4458.12 | AJ184: 4458.12 | AK184: 4458.12 | AL184: 4083.24 | AM184: 3714.72 | AN184: 3697.44 | AO184: 3697.44 | AP184: 3697.44 | AQ184: =EXACT(AA184,I184) -> TRUE | AR184: =EXACT(AB184,J184) -> TRUE | AS184: =EXACT(AC184,K184) -> TRUE | AT184: =EXACT(AD184,L184) -> TRUE | AU184: =EXACT(AE184,M184) -> TRUE | AV184: =EXACT(AF184,N184) -> TRUE | AW184: =EXACT(AG184,O184) -> TRUE | AX184: =EXACT(AH184,P184) -> TRUE | AY184: =EXACT(AI184,Q184) -> TRUE | AZ184: =EXACT(AJ184,R184) -> TRUE | BA184: =EXACT(AK184,S184) -> TRUE | BB184: =EXACT(AL184,T184) -> TRUE | BC184: =EXACT(AM184,U184) -> TRUE | BD184: =EXACT(AN184,V184) -> TRUE | BE184: =EXACT(AO184,W184) -> TRUE | BF184: =EXACT(AP184,X184) -> TRUE
A185: CDC 44197 | B185: GIU | C185: CDC | H185: 2021-01-01 | I185: =I183+VLOOKUP($B$185,$B$292:$T$306,E288,FALSE) -> 6737.8 | J185: 6737.8 | K185: 6737.8 | L185: 6737.8 | M185: 5938.16 | N185: 5535.88 | O185: 5535.88 | P185: 4753.12 | Q185: 4753.12 | R185: 4753.12 | S185: 4753.12 | T185: 4353.24 | U185: 3960.72 | V185: 3941.44 | W185: 3941.44 | X185: 3941.44 | AA185: 6319.8 | AB185: 6319.8 | AC185: 6319.8 | AD185: 6319.8 | AE185: 5570.16 | AF185: 5192.88 | AG185: 5192.88 | AH185: 4458.12 | AI185: 4458.12 | AJ185: 4458.12 | AK185: 4458.12 | AL185: 4083.24 | AM185: 3714.72 | AN185: 3697.44 | AO185: 3697.44 | AP185: 3697.44 | AQ185: =EXACT(AA185,I185) -> FALSE | AR185: FALSE | AS185: FALSE | AT185: FALSE | AU185: FALSE | AV185: FALSE | AW185: FALSE | AX185: FALSE | AY185: FALSE | AZ185: FALSE | BA185: FALSE | BB185: FALSE | BC185: FALSE | BD185: FALSE | BE185: FALSE | BF185: FALSE
A186: =CONCATENATE(C186," ",H186) -> CDC 44866 | B186: GIU | C186: CDC | H186: 2022-11-01 | I186: =IF(LEFT(I170,2)="A3",VLOOKUP($B$186,$B$313:$J$332,7,FALSE),IF(LEFT(I170,2)="A2",VLOOKUP($B$186,$B$313:$J$332,8,FALSE),IF(LEFT(I170,2)="A1",VLOOKUP($B$186,$B$313:$J$332,9,FALSE),"????"))) -> 5097.6 | J186: =IF(LEFT(J170,2)="A3",VLOOKUP($B$186,$B$313:$J$332,7,FALSE),IF(LEFT(J170,2)="A2",VLOOKUP($B$186,$B$313:$J$332,8,FALSE),IF(LEFT(J170,2)="A1",VLOOKUP($B$186,$B$313:$J$332,9,FALSE),"????"))) -> 5097.6 | K186: 5097.6 | L186: 5097.6 | M186: 5097.6 | N186: 5097.6 | O186: 5097.6 | P186: 3635.76 | Q186: 3635.76 | R186: 3635.76 | S186: 3635.76 | T186: 3635.76 | U186: 3635.76 | V186: 3622.32 | W186: 3622.32 | X186: 3622.32
A187: CDS 39814 | B187: GIU | C187: CDS | G187: =VLOOKUP(C187,$U$4:$AA$33,2,FALSE) -> CONSIGLIO DI STATO | H187: 2009-01-01 | I187: 6319.8 | J187: 6319.8 | K187: 6319.8 | L187: 6319.8 | M187: 5570.16 | N187: 5192.88 | O187: 5192.88 | P187: 4458.12 | Q187: 4458.12 | R187: 4458.12 | S187: 4458.12 | T187: 4083.24 | U187: 3714.72 | V187: 3697.44 | W187: 3697.44 | X187: 3697.44 | Z187: CONSIGLIO DI STATO
A188: CDS 43831 | B188: GIU | C188: CDS | H188: 2020-01-01 | I188: =I187+VLOOKUP($B$188,$B$271:$T$285,E267,FALSE) -> 6319.8 | J188: 6319.8 | K188: 6319.8 | L188: 6319.8 | M188: 5570.16 | N188: 5192.88 | O188: 5192.88 | P188: 4458.12 | Q188: 4458.12 | R188: 4458.12 | S188: 4458.12 | T188: 4083.24 | U188: 3714.72 | V188: 3697.44 | W188: 3697.44 | X188: 3697.44 | AA188: 6319.8 | AB188: 6319.8 | AC188: 6319.8 | AD188: 6319.8 | AE188: 5570.16 | AF188: 5192.88 | AG188: 5192.88 | AH188: 4458.12 | AI188: 4458.12 | AJ188: 4458.12 | AK188: 4458.12 | AL188: 4083.24 | AM188: 3714.72 | AN188: 3697.44 | AO188: 3697.44 | AP188: 3697.44 | AQ188: =EXACT(AA188,I188) -> TRUE | AR188: =EXACT(AB188,J188) -> TRUE | AS188: =EXACT(AC188,K188) -> TRUE | AT188: =EXACT(AD188,L188) -> TRUE | AU188: =EXACT(AE188,M188) -> TRUE | AV188: =EXACT(AF188,N188) -> TRUE | AW188: =EXACT(AG188,O188) -> TRUE | AX188: =EXACT(AH188,P188) -> TRUE | AY188: =EXACT(AI188,Q188) -> TRUE | AZ188: =EXACT(AJ188,R188) -> TRUE | BA188: =EXACT(AK188,S188) -> TRUE | BB188: =EXACT(AL188,T188) -> TRUE | BC188: =EXACT(AM188,U188) -> TRUE | BD188: =EXACT(AN188,V188) -> TRUE | BE188: =EXACT(AO188,W188) -> TRUE | BF188: =EXACT(AP188,X188) -> TRUE
A189: CDS 44197 | B189: GIU | C189: CDS | H189: 2021-01-01 | I189: =I187+VLOOKUP($B$189,$B$292:$T$306,E288,FALSE) -> 6737.8 | J189: 6737.8 | K189: 6737.8 | L189: 6737.8 | M189: 5938.16 | N189: 5535.88 | O189: 5535.88 | P189: 4753.12 | Q189: 4753.12 | R189: 4753.12 | S189: 4753.12 | T189: 4353.24 | U189: 3960.72 | V189: 3941.44 | W189: 3941.44 | X189: 3941.44 | AA189: 6319.8 | AB189: 6319.8 | AC189: 6319.8 | AD189: 6319.8 | AE189: 5570.16 | AF189: 5192.88 | AG189: 5192.88 | AH189: 4458.12 | AI189: 4458.12 | AJ189: 4458.12 | AK189: 4458.12 | AL189: 4083.24 | AM189: 3714.72 | AN189: 3697.44 | AO189: 3697.44 | AP189: 3697.44 | AQ189: =EXACT(AA189,I189) -> FALSE | AR189: FALSE | AS189: FALSE | AT189: FALSE | AU189: FALSE | AV189: FALSE | AW189: FALSE | AX189: FALSE | AY189: FALSE | AZ189: FALSE | BA189: FALSE | BB189: FALSE | BC189: FALSE | BD189: FALSE | BE189: FALSE | BF189: FALSE
A190: =CONCATENATE(C190," ",H190) -> CDS 44866 | B190: GIU | C190: CDS | H190: 2022-11-01 | I190: =IF(LEFT(I170,2)="A3",VLOOKUP($B$190,$B$313:$J$332,7,FALSE),IF(LEFT(I170,2)="A2",VLOOKUP($B$190,$B$313:$J$332,8,FALSE),IF(LEFT(I170,2)="A1",VLOOKUP($B$190,$B$313:$J$332,9,FALSE),"????"))) -> 5097.6 | J190: =IF(LEFT(J170,2)="A3",VLOOKUP($B$190,$B$313:$J$332,7,FALSE),IF(LEFT(J170,2)="A2",VLOOKUP($B$190,$B$313:$J$332,8,FALSE),IF(LEFT(J170,2)="A1",VLOOKUP($B$190,$B$313:$J$332,9,FALSE),"????"))) -> 5097.6 | K190: 5097.6 | L190: 5097.6 | M190: 5097.6 | N190: 5097.6 | O190: 5097.6 | P190: 3635.76 | Q190: 3635.76 | R190: 3635.76 | S190: 3635.76 | T190: 3635.76 | U190: 3635.76 | V190: 3622.32 | W190: 3622.32 | X190: 3622.32
A191: CUL 39814 | B191: CUL | C191: CUL | G191: =VLOOKUP(C191,$U$4:$AA$33,2,FALSE) -> CULTURA | H191: 2009-01-01 | I191: 3370.44 | J191: 3370.44 | K191: 3370.44 | L191: 3370.44 | M191: 3112.08 | N191: 2772.72 | O191: 2772.72 | P191: 2483.28 | Q191: 2483.28 | R191: 2483.28 | S191: 2483.28 | T191: 2246.4 | U191: 2045.76 | V191: 1834.2 | W191: 1834.2 | X191: 1834.2 | Z191: CULTURA (Ex Beni e Attività Culturali)
A192: CUL 43831 | B192: CUL | C192: CUL | H192: 2020-01-01 | I192: =I191+VLOOKUP($B$192,$B$271:$T$285,E267,FALSE) -> 3370.44 | J192: 3370.44 | K192: 3370.44 | L192: 3370.44 | M192: 3112.08 | N192: 2772.72 | O192: 2772.72 | P192: 2483.28 | Q192: 2483.28 | R192: 2483.28 | S192: 2483.28 | T192: 2246.4 | U192: 2045.76 | V192: 1834.2 | W192: 1834.2 | X192: 1834.2 | AA192: 3370.44 | AB192: 3370.44 | AC192: 3370.44 | AD192: 3370.44 | AE192: 3112.08 | AF192: 2772.72 | AG192: 2772.72 | AH192: 2483.28 | AI192: 2483.28 | AJ192: 2483.28 | AK192: 2483.28 | AL192: 2246.4 | AM192: 2045.76 | AN192: 1834.2 | AO192: 1834.2 | AP192: 1834.2 | AQ192: =EXACT(AA192,I192) -> TRUE | AR192: =EXACT(AB192,J192) -> TRUE | AS192: =EXACT(AC192,K192) -> TRUE | AT192: =EXACT(AD192,L192) -> TRUE | AU192: =EXACT(AE192,M192) -> TRUE | AV192: =EXACT(AF192,N192) -> TRUE | AW192: =EXACT(AG192,O192) -> TRUE | AX192: =EXACT(AH192,P192) -> TRUE | AY192: =EXACT(AI192,Q192) -> TRUE | AZ192: =EXACT(AJ192,R192) -> TRUE | BA192: =EXACT(AK192,S192) -> TRUE | BB192: =EXACT(AL192,T192) -> TRUE | BC192: =EXACT(AM192,U192) -> TRUE | BD192: =EXACT(AN192,V192) -> TRUE | BE192: =EXACT(AO192,W192) -> TRUE | BF192: =EXACT(AP192,X192) -> TRUE
A193: CUL 44197 | B193: CUL | C193: CUL | H193: 2021-01-01 | I193: =I191+VLOOKUP($B$193,$B$292:$T$306,E288,FALSE) -> 4418.44 | J193: 4418.44 | K193: 4418.44 | L193: 4418.44 | M193: 4099.08 | N193: 3667.72 | O193: 3667.72 | P193: 3254.28 | Q193: 3254.28 | R193: 3254.28 | S193: 3254.28 | T193: 2952.4 | U193: 2707.76 | V193: 2439.2 | W193: 2439.2 | X193: 2439.2 | AA193: 4418.44 | AB193: 4418.44 | AC193: 4418.44 | AD193: 4418.44 | AE193: 4099.08 | AF193: 3667.72 | AG193: 3667.72 | AH193: 3254.28 | AI193: 3254.28 | AJ193: 3254.28 | AK193: 3254.28 | AL193: 2952.4 | AM193: 2707.76 | AN193: 2439.2 | AO193: 2439.2 | AP193: 2439.2 | AQ193: =EXACT(AA193,I193) -> TRUE | AR193: TRUE | AS193: TRUE | AT193: TRUE | AU193: TRUE | AV193: TRUE | AW193: TRUE | AX193: TRUE | AY193: TRUE | AZ193: TRUE | BA193: TRUE | BB193: TRUE | BC193: TRUE | BD193: TRUE | BE193: TRUE | BF193: TRUE
A194: =CONCATENATE(C194," ",H194) -> CUL 44866 | B194: CUL | C194: CUL | H194: 2022-11-01 | I194: =IF(LEFT(I170,2)="A3",VLOOKUP($B$194,$B$313:$J$332,7,FALSE),IF(LEFT(I170,2)="A2",VLOOKUP($B$194,$B$313:$J$332,8,FALSE),IF(LEFT(I170,2)="A1",VLOOKUP($B$194,$B$313:$J$332,9,FALSE),"????"))) -> 4529.28 | J194: =IF(LEFT(J170,2)="A3",VLOOKUP($B$194,$B$313:$J$332,7,FALSE),IF(LEFT(J170,2)="A2",VLOOKUP($B$194,$B$313:$J$332,8,FALSE),IF(LEFT(J170,2)="A1",VLOOKUP($B$194,$B$313:$J$332,9,FALSE),"????"))) -> 4529.28 | K194: 4529.28 | L194: 4529.28 | M194: 4529.28 | N194: 4529.28 | O194: 4529.28 | P194: 3352.08 | Q194: 3352.08 | R194: 3352.08 | S194: 3352.08 | T194: 3352.08 | U194: 3352.08 | V194: 3040.2 | W194: 3040.2 | X194: 3040.2
A195: DEM 39814 | B195: DEM | C195: DEM | G195: =VLOOKUP(C195,$U$4:$AA$33,2,FALSE) -> DEMANIO - AGENZIA | H195: 2009-01-01 | I195: 7949.16 | J195: 7949.16 | K195: 7923.72 | L195: 7603.68 | M195: 6885.72 | N195: 6353.76 | O195: 6061.56 | P195: 5592.72 | Q195: 5564.76 | R195: 5535.48 | S195: 5324.76 | T195: 4606.92 | U195: 4140.36 | V195: 3825.6 | W195: 3825.6 | X195: 3643.8 | Z195: DEMANIO - AGENZIA | AA195: 7949.16 | AB195: 7949.16 | AC195: 7923.72 | AD195: 7603.68 | AE195: 6885.72 | AF195: 6353.76 | AG195: 6061.56 | AH195: 5592.72 | AI195: 5564.76 | AJ195: 5535.48 | AK195: 5324.76 | AL195: 4606.92 | AM195: 4140.36 | AN195: 3825.6 | AO195: 3825.6 | AP195: 3643.8
A196: =CONCATENATE(C196," ",H196) -> DEM 44866 | B196: DEM | C196: DEM | H196: 2022-11-01 | I196: =IF(LEFT(I170,2)="A3",VLOOKUP($B$196,$B$313:$J$332,7,FALSE),IF(LEFT(I170,2)="A2",VLOOKUP($B$196,$B$313:$J$332,8,FALSE),IF(LEFT(I170,2)="A1",VLOOKUP($B$196,$B$313:$J$332,9,FALSE),"????"))) -> 5623.32 | J196: =IF(LEFT(J170,2)="A3",VLOOKUP($B$196,$B$313:$J$332,7,FALSE),IF(LEFT(J170,2)="A2",VLOOKUP($B$196,$B$313:$J$332,8,FALSE),IF(LEFT(J170,2)="A1",VLOOKUP($B$196,$B$313:$J$332,9,FALSE),"????"))) -> 5623.32 | K196: 5623.32 | L196: 5623.32 | M196: 5623.32 | N196: 5623.32 | O196: 5623.32 | P196: 3815.4 | Q196: 3815.4 | R196: 3815.4 | S196: 3815.4 | T196: 3815.4 | U196: 3815.4 | V196: 3324.72 | W196: 3324.72 | X196: 3324.72
A197: DIG 39814 | B197: DIG | C197: DIG | G197: =VLOOKUP(C197,$U$4:$AA$33,2,FALSE) -> DIGITALE ITALIA - AGENZIA | H197: 2009-01-01 | I197: 11820.72 | J197: 11820.72 | K197: 11793.6 | L197: 11473.8 | M197: 9921.96 | N197: 8860.68 | O197: 8566.8 | P197: 7708.56 | Q197: 7678.92 | R197: 7651.56 | S197: 7440.36 | T197: 6634.32 | U197: 6056.04 | V197: 5564.28 | W197: 5564.28 | X197: 5380.08 | Z197: DIGITALE ITALIA - AGENZIA | AA197: 11820.72 | AB197: 11820.72 | AC197: 11793.6 | AD197: 11473.8 | AE197: 9921.96 | AF197: 8860.68 | AG197: 8566.8 | AH197: 7708.56 | AI197: 7678.92 | AJ197: 7651.56 | AK197: 7440.36 | AL197: 6634.32 | AM197: 6056.04 | AN197: 5564.28 | AO197: 5564.28 | AP197: 5380.08
A198: =CONCATENATE(C198," ",H198) -> DIG 44866 | B198: DIG | C198: DIG | H198: 2022-11-01 | I198: =IF(LEFT(I170,2)="A3",VLOOKUP($B$198,$B$313:$J$332,7,FALSE),IF(LEFT(I170,2)="A2",VLOOKUP($B$198,$B$313:$J$332,8,FALSE),IF(LEFT(I170,2)="A1",VLOOKUP($B$198,$B$313:$J$332,9,FALSE),"????"))) -> 8128.56 | J198: =IF(LEFT(J170,2)="A3",VLOOKUP($B$198,$B$313:$J$332,7,FALSE),IF(LEFT(J170,2)="A2",VLOOKUP($B$198,$B$313:$J$332,8,FALSE),IF(LEFT(J170,2)="A1",VLOOKUP($B$198,$B$313:$J$332,9,FALSE),"????"))) -> 8128.56 | K198: 8128.56 | L198: 8128.56 | M198: 8128.56 | N198: 8128.56 | O198: 8128.56 | P198: 5731.08 | Q198: 5731.08 | R198: 5731.08 | S198: 5731.08 | T198: 5731.08 | U198: 5731.08 | V198: 5061 | W198: 5061 | X198: 5061
A199: DOG 39814 | B199: DOG | C199: DOG | G199: =VLOOKUP(C199,$U$4:$AA$33,2,FALSE) -> DOGANE E MONOPOLI- AGENZIA | H199: 2009-01-01 | I199: 11820.72 | J199: 11820.72 | K199: 11793.6 | L199: 11473.8 | M199: 9921.96 | N199: 8860.68 | O199: 8566.8 | P199: 7708.56 | Q199: 7678.92 | R199: 7651.56 | S199: 7440.36 | T199: 6634.32 | U199: 6056.04 | V199: 5564.28 | W199: 5564.28 | X199: 5380.08 | Z199: DOGANE E MONOPOLI- AGENZIA | AA199: 11820.72 | AB199: 11820.72 | AC199: 11793.6 | AD199: 11473.8 | AE199: 9921.96 | AF199: 8860.68 | AG199: 8566.8 | AH199: 7708.56 | AI199: 7678.92 | AJ199: 7651.56 | AK199: 7440.36 | AL199: 6634.32 | AM199: 6056.04 | AN199: 5564.28 | AO199: 5564.28 | AP199: 5380.08
A200: =CONCATENATE(C200," ",H200) -> DOG 44866 | B200: DOG | C200: DOG | H200: 2022-11-01 | I200: =IF(LEFT(I170,2)="A3",VLOOKUP($B$200,$B$313:$J$332,7,FALSE),IF(LEFT(I170,2)="A2",VLOOKUP($B$200,$B$313:$J$332,8,FALSE),IF(LEFT(I170,2)="A1",VLOOKUP($B$200,$B$313:$J$332,9,FALSE),"????"))) -> 8128.56 | J200: =IF(LEFT(J170,2)="A3",VLOOKUP($B$200,$B$313:$J$332,7,FALSE),IF(LEFT(J170,2)="A2",VLOOKUP($B$200,$B$313:$J$332,8,FALSE),IF(LEFT(J170,2)="A1",VLOOKUP($B$200,$B$313:$J$332,9,FALSE),"????"))) -> 8128.56 | K200: 8128.56 | L200: 8128.56 | M200: 8128.56 | N200: 8128.56 | O200: 8128.56 | P200: 5731.08 | Q200: 5731.08 | R200: 5731.08 | S200: 5731.08 | T200: 5731.08 | U200: 5731.08 | V200: 5061 | W200: 5061 | X200: 5061
A201: ENT 39814 | B201: ENT | C201: ENT | G201: =VLOOKUP(C201,$U$4:$AA$33,2,FALSE) -> ENTRATE - AGENZIA | H201: 2009-01-01 | I201: 7949.16 | J201: 7949.16 | K201: 7923.72 | L201: 7603.68 | M201: 6885.72 | N201: 6353.76 | O201: 6061.56 | P201: 5592.72 | Q201: 5564.76 | R201: 5535.48 | S201: 5324.76 | T201: 4606.92 | U201: 4140.36 | V201: 3825.6 | W201: 3825.6 | X201: 3643.8 | Z201: ENTRATE - AGENZIA | AA201: 7949.16 | AB201: 7949.16 | AC201: 7923.72 | AD201: 7603.68 | AE201: 6885.72 | AF201: 6353.76 | AG201: 6061.56 | AH201: 5592.72 | AI201: 5564.76 | AJ201: 5535.48 | AK201: 5324.76 | AL201: 4606.92 | AM201: 4140.36 | AN201: 3825.6 | AO201: 3825.6 | AP201: 3643.8
A202: =CONCATENATE(C202," ",H202) -> ENT 44866 | B202: ENT | C202: ENT | H202: 2022-11-01 | I202: =IF(LEFT(I170,2)="A3",VLOOKUP($B$202,$B$313:$J$332,7,FALSE),IF(LEFT(I170,2)="A2",VLOOKUP($B$202,$B$313:$J$332,8,FALSE),IF(LEFT(I170,2)="A1",VLOOKUP($B$202,$B$313:$J$332,9,FALSE),"????"))) -> 5623.32 | J202: =IF(LEFT(J170,2)="A3",VLOOKUP($B$202,$B$313:$J$332,7,FALSE),IF(LEFT(J170,2)="A2",VLOOKUP($B$202,$B$313:$J$332,8,FALSE),IF(LEFT(J170,2)="A1",VLOOKUP($B$202,$B$313:$J$332,9,FALSE),"????"))) -> 5623.32 | K202: 5623.32 | L202: 5623.32 | M202: 5623.32 | N202: 5623.32 | O202: 5623.32 | P202: 3815.4 | Q202: 3815.4 | R202: 3815.4 | S202: 3815.4 | T202: 3815.4 | U202: 3815.4 | V202: 3324.72 | W202: 3324.72 | X202: 3324.72
A203: GIU 39814 | B203: GIU | C203: GIU | G203: =VLOOKUP(C203,$U$4:$AA$33,2,FALSE) -> GIUSTIZIA | H203: 2009-01-01 | I203: 6319.8 | J203: 6319.8 | K203: 6319.8 | L203: 6319.8 | M203: 5570.16 | N203: 5192.88 | O203: 5192.88 | P203: 4458.12 | Q203: 4458.12 | R203: 4458.12 | S203: 4458.12 | T203: 4083.24 | U203: 3714.72 | V203: 3697.44 | W203: 3697.44 | X203: 3697.44 | Z203: GIUSTIZIA
... 125 more rows

Sheet VACANZA CONTR.LE (hidden)
D2: VACANZA CONTRATTUALE | Y2: IMPORTI MENSILI ESPRESSI IN €URO (LORDO CONTRIBUTIVO/PREVIDENZIALE)
D3: DAL | E3: AL | F3: POS. ECON. | G3: FASCE NELLE AREE | H3: ANNUO LORDO | I3: MENSILE LORDO | J3: ANNUO LORDO | K3: MENSILE LORDO | P3: IVC dal 1° luglio 2010 | T3: TABELLA C | Y3: AREA | Z3: FASCIA | AA3: DAL 1° APRILE 2019 AL 30 GIUGNO 2019 | AB3: DAL 1° LUGLIO 2019 FINO AL RINNOVO CINTRATTUALE
D4: A1 | E4: A1F1 | O4: A3F7 | P4: 229.86 | T4: Indennità di vacanza contrattuale biennio 2010-11 | Y4: I | Z4: F1 | AA4: 6.04 | AB4: 10.07
B5: =CONCATENATE(G5," (",F5,") ",D5) -> A1F1 (A1) 35977 | D5: 1998-07-01 | E5: 1998-10-31 | F5: A1 | G5: A1F1 | H5: 0 | I5: 0 | J5: =H5 -> 0 | K5: =J5 -> 0 | O5: A3F6 | P5: 216.6 | T5: Incrementi mensili della retribuzione tabellare | Y5: I | Z5: F2 | AA5: 6.25 | AB5: 10.42
B6: A1F1 (A1) 36100 | D6: 1998-11-01 | E6: 1999-05-31 | F6: A1 | G6: A1F1 | H6: 0 | I6: 0 | J6: =H6 -> 0 | K6: =J6 -> 0 | O6: A3F5 | P6: 202.81 | T6: Valori in Euro da corrispondere per 13 mensilità | Y6: I | Z6: F3 | AA6: 6.48 | AB6: 10.81
B7: A1F1 (A1) 36312 | D7: 1999-06-01 | E7: 2000-06-30 | F7: A1 | G7: A1F1 | H7: 0 | I7: 0 | J7: 0 | K7: 0 | O7: A3F4 | P7: 190.41 | Y7: II | Z7: F1 | AA7: 6.37 | AB7: 10.62
B8: A1F1 (A1) 36708 | D8: 2000-07-01 | E8: 2000-12-31 | F8: A1 | G8: A1F1 | H8: 0 | I8: 0 | J8: 0 | K8: 0 | O8: A3F3 | P8: 173.34 | T8: Posizione economica | U8: Dal 1.4.2010 | V8: Rideterminato dal 1.7.2010 (1) | Y8: II | Z8: F2 | AA8: 6.7 | AB8: 11.16
B9: A1F1 (A1) 36892 | D9: 2001-01-01 | E9: 2001-12-31 | F9: A1 | G9: A1F1 | H9: 0 | I9: 0 | J9: 0 | K9: 0 | O9: A3F2 | P9: 164.11 | T9: Ispettore generale r.e | U9: 11.84 | V9: 19.73 | Y9: II | Z9: F3 | AA9: 7.13 | AB9: 11.88
B10: A1F1 (A1) 37257 | D10: 2002-01-01 | E10: 2002-12-31 | F10: A1 | G10: A1F1 | H10: 0 | I10: 0 | J10: 0 | K10: 0 | O10: A3F1 | P10: 158.44 | T10: Direttore divisione r.e | U10: 11.00 | V10: 18.33 | Y10: II | Z10: F4 | AA10: 7.56 | AB10: 12.6
B11: A1F1 (A1) 37622 | D11: 2003-01-01 | E11: 2003-12-31 | F11: A1 | G11: A1F1 | H11: 0 | I11: 0 | J11: 0 | K11: 0 | O11: A2F6 | P11: 163.67 | S11: A3F7 | T11: III F 7 | U11: 11.49 | V11: 19.16 | Y11: II | Z11: F5 | AA11: 7.83 | AB11: 13.05
B12: A1F1 (A1) 37987 | D12: 2004-01-01 | E12: 2005-01-31 | F12: A1 | G12: A1F1 | H12: 0 | I12: 0 | J12: 0 | K12: 0 | O12: A2F5 | P12: 159.07 | S12: A3F6 | T12: III F 6 | U12: 10.83 | V12: 18.05 | Y12: II | Z12: F6 | AA12: 8.06 | AB12: 13.43
B13: A1F1 (A1) 38384 | D13: 2005-02-01 | E13: 2005-12-30 | F13: A1 | G13: A1F1 | H13: 0 | I13: 0 | J13: 0 | K13: 0 | O13: A2F4 | P13: 153.88 | S13: A3F5 | T13: III F 5 | U13: 10.14 | V13: 16.9 | Y13: III | Z13: F1 | AA13: 7.8 | AB13: 13
B14: A1F1 (A1) 38717 | D14: 2005-12-31 | E14: 2005-12-31 | F14: A1 | G14: A1F1 | H14: 0 | I14: 0 | J14: 0 | K14: 0 | O14: A2F3 | P14: 145.29 | S14: A3F4 | T14: III F 4 | U14: 9.52 | V14: 15.87 | Y14: III | Z14: F2 | AA14: 8.08 | AB14: 13.46
B15: A1F1 (A1) 38718 | D15: 2006-01-01 | E15: 2006-12-31 | F15: A1 | G15: A1F1 | H15: 0 | I15: 0 | J15: 0 | K15: 0 | O15: A2F2 | P15: 136.48 | S15: A3F3 | T15: III F 3 | U15: 8.67 | V15: 14.45 | Y15: III | Z15: F3 | AA15: 8.52 | AB15: 14.19
B16: A1F1 (A1) 39083 | D16: 2007-01-01 | E16: 2007-01-31 | F16: A1 | G16: A1F1 | H16: 0 | I16: 0 | J16: 0 | K16: 0 | O16: A2F1 | P16: 129.77 | S16: A3F2 | T16: III F 2 | U16: 8.21 | V16: 13.68 | Y16: III | Z16: F4 | AA16: 9.35 | AB16: 15.59
B17: A1F1 (A1) 39114 | D17: 2007-02-01 | E17: 2007-12-31 | F17: A1 | G17: A1F1 | H17: 0 | I17: 0 | J17: 0 | K17: 0 | O17: A1F3 | P17: 132 | S17: A3F1 | T17: III F 1 | U17: 7.92 | V17: 13.2 | Y17: III | Z17: F5 | AA17: 9.96 | AB17: 16.6
B18: A1F1 (A1) 39448 | D18: 2008-01-01 | E18: 2008-12-31 | F18: A1 | G18: A1F1 | H18: 0 | I18: 0 | J18: 0 | K18: 0 | O18: A1F2 | P18: 127.3 | S18: A2F6 | T18: II F 6 | U18: 8.18 | V18: 13.64 | Y18: III | Z18: F6 | AA18: 10.63 | AB18: 17.72
B19: A1F1 (A1) 39814 | D19: 2009-01-01 | E19: 2010-03-31 | F19: A1 | G19: A1F1 | H19: 0 | I19: 0 | J19: 0 | K19: 0 | O19: A1F1 | P19: 122.88 | S19: A2F5 | T19: II F 5 | U19: 7.95 | V19: 13.26 | Y19: III | Z19: F7 | AA19: 11.29 | AB19: 18.81
B20: A1F1 (A1) 40269 | D20: 2010-04-01 | E20: 2010-06-30 | F20: A1 | G20: A1F1 | H20: =ROUND(I20*12,2) -> 73.68 | I20: =K20 -> 6.14 | J20: 73.68 | K20: 6.14 | L20: ind.vacanza contrattuale | S20: A2F4 | T20: II F 4 | U20: 7.69 | V20: 12.82
B21: A1F1 (A1) 40360 | D21: 2010-07-01 | E21: 2018-03-31 | F21: A1 | G21: A1F1 | H21: =ROUND(I21*12,2) -> 122.88 | I21: =K21 -> 10.24 | J21: =VLOOKUP(G21,$O$4:$P$19,2,FALSE) -> 122.88 | K21: 10.24 | S21: A2F3 | T21: II F 3 | U21: 7.26 | V21: 12.11
B22: A1F1 (A1) 43191 | D22: 2018-04-01 | E22: 2019-03-31 | F22: =F21 -> A1 | G22: =G21 -> A1F1 | H22: 0 | I22: 0 | J22: =H22 -> 0 | K22: =EXACT(H21,J21) -> TRUE | S22: A2F2 | T22: II F 2 | U22: 6.82 | V22: 11.37
B23: A1F1 (A1) 44652 | D23: 2022-04-01 | E23: 2022-06-30 | F23: =F22 -> A1 | G23: A1F1 | H23: =VLOOKUP(G23,'CCNL 2019-2021'!$C$32:$J$47,3,FALSE) -> 54.06 | I23: =VLOOKUP(G23,'CCNL 2019-2021'!$C$32:$J$47,6,FALSE) -> 4.51 | J23: =H23 -> 54.06 | S23: A2F1 | T23: II F 1 | U23: 6.49 | V23: 10.81
B24: A1F1 (A1) 44743 | D24: 2022-07-01 | E24: 2023-12-31 | F24: A1 | G24: A1F1 | H24: =VLOOKUP(G23,'CCNL 2019-2021'!$C$32:$J$47,4,FALSE) -> 91.22 | I24: =VLOOKUP(G23,'CCNL 2019-2021'!$C$32:$J$47,7,FALSE) -> 7.6 | J24: 91.22 | S24: A1F3 | T24: I F 3 | U24: 6.6 | V24: 11
B25: A1F1 (A1) 45292 | D25: 2024-01-01 | E25: 9999-01-01 | F25: A1 | G25: A1F1 | H25: =VLOOKUP(G24,'CCNL 2019-2021'!$C$32:$J$47,5,FALSE)+H24 -> 702.26 | I25: =VLOOKUP(G24,'CCNL 2019-2021'!$C$32:$J$47,8,FALSE)+I24 -> 58.52 | J25: 702.26 | S25: A1F2 | T25: I F 2 | U25: 6.36 | V25: 10.61
D26: A1S | E26: A1F2 | S26: A1F1 | T26: I F 1 | U26: 6.14 | V26: 10.24
B27: =CONCATENATE(G27," (",F27,") ",D27) -> A1F2 (A1S) 35977 | D27: 1998-07-01 | E27: 1998-10-31 | F27: A1S | G27: A1F2 | H27: 0 | I27: 0 | J27: =H27 -> 0 | K27: =J27 -> 0
B28: A1F2 (A1S) 36100 | D28: 1998-11-01 | E28: 1999-05-31 | F28: A1S | G28: A1F2 | H28: 0 | I28: 0 | J28: 0 | K28: 0
B29: A1F2 (A1S) 36312 | D29: 1999-06-01 | E29: 2000-06-30 | F29: A1S | G29: A1F2 | H29: 0 | I29: 0 | J29: 0 | K29: 0
B30: A1F2 (A1S) 36708 | D30: 2000-07-01 | E30: 2000-12-31 | F30: A1S | G30: A1F2 | H30: 0 | I30: 0 | J30: 0 | K30: 0
B31: A1F2 (A1S) 36892 | D31: 2001-01-01 | E31: 2001-12-31 | F31: A1S | G31: A1F2 | H31: 0 | I31: 0 | J31: 0 | K31: 0
B32: A1F2 (A1S) 37257 | D32: 2002-01-01 | E32: 2002-12-31 | F32: A1S | G32: A1F2 | H32: 0 | I32: 0 | J32: 0 | K32: 0
B33: A1F2 (A1S) 37622 | D33: 2003-01-01 | E33: 2003-12-31 | F33: A1S | G33: A1F2 | H33: 0 | I33: 0 | J33: 0 | K33: 0
B34: A1F2 (A1S) 37987 | D34: 2004-01-01 | E34: 2005-01-31 | F34: A1S | G34: A1F2 | H34: 0 | I34: 0 | J34: 0 | K34: 0
B35: A1F2 (A1S) 38384 | D35: 2005-02-01 | E35: 2005-12-30 | F35: A1S | G35: A1F2 | H35: 0 | I35: 0 | J35: 0 | K35: 0
B36: A1F2 (A1S) 38717 | D36: 2005-12-31 | E36: 2005-12-31 | F36: A1S | G36: A1F2 | H36: 0 | I36: 0 | J36: 0 | K36: 0
B37: A1F2 (A1S) 38718 | D37: 2006-01-01 | E37: 2006-12-31 | F37: A1S | G37: A1F2 | H37: 0 | I37: 0 | J37: 0 | K37: 0
B38: A1F2 (A1S) 39083 | D38: 2007-01-01 | E38: 2007-01-31 | F38: A1S | G38: A1F2 | H38: 0 | I38: 0 | J38: 0 | K38: 0
B39: A1F2 (A1S) 39114 | D39: 2007-02-01 | E39: 2007-12-31 | F39: A1S | G39: A1F2 | H39: 0 | I39: 0 | J39: 0 | K39: 0
B40: A1F2 (A1S) 39448 | D40: 2008-01-01 | E40: 2008-12-31 | F40: A1S | G40: A1F2 | H40: 0 | I40: 0 | J40: 0 | K40: 0
B41: A1F2 (A1S) 39814 | D41: 2009-01-01 | E41: 2010-03-31 | F41: A1S | G41: A1F2 | H41: 0 | I41: 0 | J41: 0 | K41: 0
B42: A1F2 (A1S) 40269 | D42: 2010-04-01 | E42: 2010-06-30 | F42: A1S | G42: A1F2 | H42: =ROUND(I42*12,2) -> 76.32 | I42: =K42 -> 6.36 | J42: 76.32 | K42: 6.36 | L42: ind.vacanza contrattuale
B43: A1F2 (A1S) 40360 | D43: 2010-07-01 | E43: 2018-03-31 | F43: A1S | G43: A1F2 | H43: =ROUND(I43*12,2) -> 127.32 | I43: =K43 -> 10.61 | J43: =VLOOKUP(G43,$O$4:$P$19,2,FALSE) -> 127.3 | K43: 10.61
B44: A1F2 (A1S) 43191 | D44: 2018-04-01 | E44: 2019-03-31 | F44: =F43 -> A1S | G44: =G43 -> A1F2 | H44: 0 | I44: 0 | J44: =H44 -> 0 | K44: =EXACT(H43,J43) -> FALSE
B45: A1F2 (A1S) 44652 | D45: 2022-04-01 | E45: 2022-06-30 | F45: =F44 -> A1S | G45: A1F2 | H45: =VLOOKUP(G45,'CCNL 2019-2021'!$C$32:$J$47,3,FALSE) -> 55.91 | I45: =VLOOKUP(G45,'CCNL 2019-2021'!$C$32:$J$47,6,FALSE) -> 4.66 | J45: =H45 -> 55.91
B46: A1F2 (A1S) 44743 | D46: 2022-07-01 | E46: 2023-12-31 | F46: A1S | G46: A1F2 | H46: =VLOOKUP(G45,'CCNL 2019-2021'!$C$32:$J$47,4,FALSE) -> 94.32 | I46: =VLOOKUP(G45,'CCNL 2019-2021'!$C$32:$J$47,7,FALSE) -> 7.86 | J46: 94.32
B47: A1F2 (A1S) 45292 | D47: 2024-01-01 | E47: 9999-01-01 | F47: A1S | G47: A1F2 | H47: =VLOOKUP(G46,'CCNL 2019-2021'!$C$32:$J$47,5,FALSE)+H46 -> 726.27 | I47: =VLOOKUP(G46,'CCNL 2019-2021'!$C$32:$J$47,8,FALSE)+I46 -> 60.52 | J47: 726.27
D48: -------- | E48: A1F3
B49: =CONCATENATE(G49," ",D49) -> A1F3 36100 | D49: 1998-11-01 | E49: 2007-12-30 | F49: -------- | G49: A1F3 | H49: 0 | I49: 0 | J49: =H49 -> 0 | K49: =J49 -> 0
B50: A1F3 39447 | D50: 2007-12-31 | E50: 2007-12-31 | F50: -------- | G50: A1F3 | H50: 0 | I50: 0 | J50: 0 | K50: 0
B51: A1F3 39448 | D51: 2008-01-01 | E51: 2008-12-31 | F51: -------- | G51: A1F3 | H51: 0 | I51: 0 | J51: 0 | K51: 0
B52: A1F3 39814 | D52: 2009-01-01 | E52: 2010-03-31 | F52: -------- | G52: A1F3 | H52: 0 | I52: 0 | J52: 0 | K52: 0
B53: A1F3 40269 | D53: 2010-04-01 | E53: 2010-06-30 | F53: -------- | G53: A1F3 | H53: =ROUND(I53*12,2) -> 79.2 | I53: =K53 -> 6.6 | J53: 79.2 | K53: 6.6 | L53: ind.vacanza contrattuale
B54: A1F3 40360 | D54: 2010-07-01 | E54: 2018-03-31 | F54: -------- | G54: A1F3 | H54: =ROUND(I54*12,2) -> 132 | I54: =K54 -> 11 | J54: =VLOOKUP(G54,$O$4:$P$19,2,FALSE) -> 132 | K54: 11
B55: A1F3 43191 | D55: 2018-04-01 | E55: 2019-03-31 | F55: =F54 -> -------- | G55: =G54 -> A1F3 | H55: 0 | I55: 0 | J55: =H55 -> 0 | K55: =EXACT(H54,J54) -> TRUE
B56: A1F3 44652 | D56: 2022-04-01 | E56: 2022-06-30 | F56: =F55 -> -------- | G56: A1F3 | H56: =VLOOKUP(G56,'CCNL 2019-2021'!$C$32:$J$47,3,FALSE) -> 57.95 | I56: =VLOOKUP(G56,'CCNL 2019-2021'!$C$32:$J$47,6,FALSE) -> 4.83 | J56: =H56 -> 57.95
B57: A1F3 44743 | D57: 2022-07-01 | E57: 2023-12-31 | F57: -------- | G57: A1F3 | H57: =VLOOKUP(G56,'CCNL 2019-2021'!$C$32:$J$47,4,FALSE) -> 97.75 | I57: =VLOOKUP(G56,'CCNL 2019-2021'!$C$32:$J$47,7,FALSE) -> 8.15 | J57: 97.75
B58: A1F3 45292 | D58: 2024-01-01 | E58: 9999-01-01 | F58: -------- | G58: A1F3 | H58: =VLOOKUP(G57,'CCNL 2019-2021'!$C$32:$J$47,5,FALSE)+H57 -> 753.01 | I58: =VLOOKUP(G57,'CCNL 2019-2021'!$C$32:$J$47,8,FALSE)+I57 -> 62.76 | J58: 753.01
D59: B1 | E59: A2F1
B60: =CONCATENATE(G60," (",F60,") ",D60) -> A2F1 (B1) 35977 | D60: 1998-07-01 | E60: 1998-10-31 | F60: B1 | G60: A2F1 | H60: 0 | I60: 0 | J60: =H60 -> 0 | K60: =J60 -> 0
B61: A2F1 (B1) 36100 | D61: 1998-11-01 | E61: 1999-05-31 | F61: B1 | G61: A2F1 | H61: 0 | I61: 0 | J61: 0 | K61: 0
B62: A2F1 (B1) 36312 | D62: 1999-06-01 | E62: 2000-06-30 | F62: B1 | G62: A2F1 | H62: 0 | I62: 0 | J62: 0 | K62: 0
B63: A2F1 (B1) 36708 | D63: 2000-07-01 | E63: 2000-12-31 | F63: B1 | G63: A2F1 | H63: 0 | I63: 0 | J63: 0 | K63: 0
B64: A2F1 (B1) 36892 | D64: 2001-01-01 | E64: 2001-12-31 | F64: B1 | G64: A2F1 | H64: 0 | I64: 0 | J64: 0 | K64: 0
B65: A2F1 (B1) 37257 | D65: 2002-01-01 | E65: 2002-12-31 | F65: B1 | G65: A2F1 | H65: 0 | I65: 0 | J65: 0 | K65: 0
B66: A2F1 (B1) 37622 | D66: 2003-01-01 | E66: 2003-12-31 | F66: B1 | G66: A2F1 | H66: 0 | I66: 0 | J66: 0 | K66: 0
B67: A2F1 (B1) 37987 | D67: 2004-01-01 | E67: 2005-01-31 | F67: B1 | G67: A2F1 | H67: 0 | I67: 0 | J67: 0 | K67: 0
B68: A2F1 (B1) 38384 | D68: 2005-02-01 | E68: 2005-12-30 | F68: B1 | G68: A2F1 | H68: 0 | I68: 0 | J68: 0 | K68: 0
B69: A2F1 (B1) 38717 | D69: 2005-12-31 | E69: 2005-12-31 | F69: B1 | G69: A2F1 | H69: 0 | I69: 0 | J69: 0 | K69: 0
B70: A2F1 (B1) 38718 | D70: 2006-01-01 | E70: 2006-12-31 | F70: B1 | G70: A2F1 | H70: 0 | I70: 0 | J70: 0 | K70: 0
B71: A2F1 (B1) 39083 | D71: 2007-01-01 | E71: 2007-01-31 | F71: B1 | G71: A2F1 | H71: 0 | I71: 0 | J71: 0 | K71: 0
B72: A2F1 (B1) 39114 | D72: 2007-02-01 | E72: 2007-12-31 | F72: B1 | G72: A2F1 | H72: 0 | I72: 0 | J72: 0 | K72: 0
B73: A2F1 (B1) 39448 | D73: 2008-01-01 | E73: 2008-12-31 | F73: B1 | G73: A2F1 | H73: 0 | I73: 0 | J73: 0 | K73: 0
B74: A2F1 (B1) 39814 | D74: 2009-01-01 | E74: 2010-03-31 | F74: B1 | G74: A2F1 | H74: 0 | I74: 0 | J74: 0 | K74: 0
B75: A2F1 (B1) 40269 | D75: 2010-04-01 | E75: 2010-06-30 | F75: B1 | G75: A2F1 | H75: =ROUND(I75*12,2) -> 77.88 | I75: =K75 -> 6.49 | J75: 77.88 | K75: 6.49 | L75: ind.vacanza contrattuale
B76: A2F1 (B1) 40360 | D76: 2010-07-01 | E76: 2018-03-31 | F76: B1 | G76: A2F1 | H76: =ROUND(I76*12,2) -> 129.72 | I76: =K76 -> 10.81 | J76: =VLOOKUP(G76,$O$4:$P$19,2,FALSE) -> 129.77 | K76: 10.81
B77: A2F1 (B1) 43191 | D77: 2018-04-01 | E77: 2019-03-31 | F77: =F76 -> B1 | G77: =G76 -> A2F1 | H77: 0 | I77: 0 | J77: =H77 -> 0 | K77: =EXACT(H76,J76) -> FALSE
B78: A2F1 (B1) 44652 | D78: 2022-04-01 | E78: 2022-06-30 | F78: =F77 -> B1 | G78: A2F1 | H78: =VLOOKUP(G78,'CCNL 2019-2021'!$C$32:$J$47,3,FALSE) -> 56.92 | I78: =VLOOKUP(G78,'CCNL 2019-2021'!$C$32:$J$47,6,FALSE) -> 4.74 | J78: =H78 -> 56.92
B79: A2F1 (B1) 44743 | D79: 2022-07-01 | E79: 2023-12-31 | F79: B1 | G79: A2F1 | H79: =VLOOKUP(G78,'CCNL 2019-2021'!$C$32:$J$47,4,FALSE) -> 96.01 | I79: =VLOOKUP(G78,'CCNL 2019-2021'!$C$32:$J$47,7,FALSE) -> 8 | J79: 96.01
B80: A2F1 (B1) 45292 | D80: 2024-01-01 | E80: 9999-01-01 | F80: B1 | G80: A2F1 | H80: =VLOOKUP(G79,'CCNL 2019-2021'!$C$32:$J$47,5,FALSE)+H79 -> 739.21 | I80: =VLOOKUP(G79,'CCNL 2019-2021'!$C$32:$J$47,8,FALSE)+I79 -> 61.6 | J80: 739.21
D81: B2 | E81: A2F2
B82: =CONCATENATE(G82," (",F82,") ",D82) -> A2F2 (B2) 35977 | D82: 1998-07-01 | E82: 1998-10-31 | F82: B2 | G82: A2F2 | H82: 0 | I82: 0 | J82: =H82 -> 0 | K82: =J82 -> 0
B83: A2F2 (B2) 36100 | D83: 1998-11-01 | E83: 1999-05-31 | F83: B2 | G83: A2F2 | H83: 0 | I83: 0 | J83: 0 | K83: 0
B84: A2F2 (B2) 36312 | D84: 1999-06-01 | E84: 2000-06-30 | F84: B2 | G84: A2F2 | H84: 0 | I84: 0 | J84: 0 | K84: 0
B85: A2F2 (B2) 36708 | D85: 2000-07-01 | E85: 2000-12-31 | F85: B2 | G85: A2F2 | H85: 0 | I85: 0 | J85: 0 | K85: 0
B86: A2F2 (B2) 36892 | D86: 2001-01-01 | E86: 2001-12-31 | F86: B2 | G86: A2F2 | H86: 0 | I86: 0 | J86: 0 | K86: 0
B87: A2F2 (B2) 37257 | D87: 2002-01-01 | E87: 2002-12-31 | F87: B2 | G87: A2F2 | H87: 0 | I87: 0 | J87: 0 | K87: 0
B88: A2F2 (B2) 37622 | D88: 2003-01-01 | E88: 2003-12-31 | F88: B2 | G88: A2F2 | H88: 0 | I88: 0 | J88: 0 | K88: 0
B89: A2F2 (B2) 37987 | D89: 2004-01-01 | E89: 2005-01-31 | F89: B2 | G89: A2F2 | H89: 0 | I89: 0 | J89: 0 | K89: 0
B90: A2F2 (B2) 38384 | D90: 2005-02-01 | E90: 2005-12-30 | F90: B2 | G90: A2F2 | H90: 0 | I90: 0 | J90: 0 | K90: 0
B91: A2F2 (B2) 38717 | D91: 2005-12-31 | E91: 2005-12-31 | F91: B2 | G91: A2F2 | H91: 0 | I91: 0 | J91: 0 | K91: 0
B92: A2F2 (B2) 38718 | D92: 2006-01-01 | E92: 2006-12-31 | F92: B2 | G92: A2F2 | H92: 0 | I92: 0 | J92: 0 | K92: 0
B93: A2F2 (B2) 39083 | D93: 2007-01-01 | E93: 2007-01-31 | F93: B2 | G93: A2F2 | H93: 0 | I93: 0 | J93: 0 | K93: 0
B94: A2F2 (B2) 39114 | D94: 2007-02-01 | E94: 2007-12-31 | F94: B2 | G94: A2F2 | H94: 0 | I94: 0 | J94: 0 | K94: 0
B95: A2F2 (B2) 39448 | D95: 2008-01-01 | E95: 2008-12-31 | F95: B2 | G95: A2F2 | H95: 0 | I95: 0 | J95: 0 | K95: 0
B96: A2F2 (B2) 39814 | D96: 2009-01-01 | E96: 2010-03-31 | F96: B2 | G96: A2F2 | H96: 0 | I96: 0 | J96: 0 | K96: 0
B97: A2F2 (B2) 40269 | D97: 2010-04-01 | E97: 2010-06-30 | F97: B2 | G97: A2F2 | H97: =ROUND(I97*12,2) -> 81.84 | I97: =K97 -> 6.82 | J97: 81.84 | K97: 6.82 | L97: ind.vacanza contrattuale
B98: A2F2 (B2) 40360 | D98: 2010-07-01 | E98: 2018-03-31 | F98: B2 | G98: A2F2 | H98: =ROUND(I98*12,2) -> 136.44 | I98: =K98 -> 11.37 | J98: =VLOOKUP(G98,$O$4:$P$19,2,FALSE) -> 136.48 | K98: 11.37
B99: A2F2 (B2) 43191 | D99: 2018-04-01 | E99: 2019-03-31 | F99: =F98 -> B2 | G99: =G98 -> A2F2 | H99: 0 | I99: 0 | J99: =H99 -> 0 | K99: =EXACT(H98,J98) -> FALSE
B100: A2F2 (B2) 44652 | D100: 2022-04-01 | E100: 2022-06-30 | F100: =F99 -> B2 | G100: A2F2 | H100: =VLOOKUP(G100,'CCNL 2019-2021'!$C$32:$J$47,3,FALSE) -> 59.79 | I100: =VLOOKUP(G100,'CCNL 2019-2021'!$C$32:$J$47,6,FALSE) -> 4.98 | J100: =H100 -> 59.79
B101: A2F2 (B2) 44743 | D101: 2022-07-01 | E101: 2023-12-31 | F101: B2 | G101: A2F2 | H101: =VLOOKUP(G100,'CCNL 2019-2021'!$C$32:$J$47,4,FALSE) -> 100.84 | I101: =VLOOKUP(G100,'CCNL 2019-2021'!$C$32:$J$47,7,FALSE) -> 8.4 | J101: 100.84
B102: A2F2 (B2) 45292 | D102: 2024-01-01 | E102: 9999-01-01 | F102: B2 | G102: A2F2 | H102: =VLOOKUP(G101,'CCNL 2019-2021'!$C$32:$J$47,5,FALSE)+H101 -> 776.2 | I102: =VLOOKUP(G101,'CCNL 2019-2021'!$C$32:$J$47,8,FALSE)+I101 -> 64.68 | J102: 776.2
D103: B3 | E103: A2F3
B104: =CONCATENATE(G104," (",F104,") ",D104) -> A2F3 (B3) 35977 | D104: 1998-07-01 | E104: 1998-10-31 | F104: B3 | G104: A2F3 | H104: 0 | I104: 0 | J104: =H104 -> 0 | K104: =J104 -> 0
B105: A2F3 (B3) 36100 | D105: 1998-11-01 | E105: 1999-05-31 | F105: B3 | G105: A2F3 | H105: 0 | I105: 0 | J105: 0 | K105: 0
B106: A2F3 (B3) 36312 | D106: 1999-06-01 | E106: 2000-06-30 | F106: B3 | G106: A2F3 | H106: 0 | I106: 0 | J106: 0 | K106: 0
B107: A2F3 (B3) 36708 | D107: 2000-07-01 | E107: 2000-12-31 | F107: B3 | G107: A2F3 | H107: 0 | I107: 0 | J107: 0 | K107: 0
B108: A2F3 (B3) 36892 | D108: 2001-01-01 | E108: 2001-12-31 | F108: B3 | G108: A2F3 | H108: 0 | I108: 0 | J108: 0 | K108: 0
B109: A2F3 (B3) 37257 | D109: 2002-01-01 | E109: 2002-12-31 | F109: B3 | G109: A2F3 | H109: 0 | I109: 0 | J109: 0 | K109: 0
B110: A2F3 (B3) 37622 | D110: 2003-01-01 | E110: 2003-12-31 | F110: B3 | G110: A2F3 | H110: 0 | I110: 0 | J110: 0 | K110: 0
B111: A2F3 (B3) 37987 | D111: 2004-01-01 | E111: 2005-01-31 | F111: B3 | G111: A2F3 | H111: 0 | I111: 0 | J111: 0 | K111: 0
B112: A2F3 (B3) 38384 | D112: 2005-02-01 | E112: 2005-12-30 | F112: B3 | G112: A2F3 | H112: 0 | I112: 0 | J112: 0 | K112: 0
B113: A2F3 (B3) 38717 | D113: 2005-12-31 | E113: 2005-12-31 | F113: B3 | G113: A2F3 | H113: 0 | I113: 0 | J113: 0 | K113: 0
B114: A2F3 (B3) 38718 | D114: 2006-01-01 | E114: 2006-12-31 | F114: B3 | G114: A2F3 | H114: 0 | I114: 0 | J114: 0 | K114: 0
B115: A2F3 (B3) 39083 | D115: 2007-01-01 | E115: 2007-01-31 | F115: B3 | G115: A2F3 | H115: 0 | I115: 0 | J115: 0 | K115: 0
B116: A2F3 (B3) 39114 | D116: 2007-02-01 | E116: 2007-12-31 | F116: B3 | G116: A2F3 | H116: 0 | I116: 0 | J116: 0 | K116: 0
B117: A2F3 (B3) 39448 | D117: 2008-01-01 | E117: 2008-12-31 | F117: B3 | G117: A2F3 | H117: 0 | I117: 0 | J117: 0 | K117: 0
B118: A2F3 (B3) 39814 | D118: 2009-01-01 | E118: 2010-03-31 | F118: B3 | G118: A2F3 | H118: 0 | I118: 0 | J118: 0 | K118: 0
B119: A2F3 (B3) 40269 | D119: 2010-04-01 | E119: 2010-06-30 | F119: B3 | G119: A2F3 | H119: =ROUND(I119*12,2) -> 87.12 | I119: =K119 -> 7.26 | J119: 87.12 | K119: 7.26 | L119: ind.vacanza contrattuale
B120: A2F3 (B3) 40360 | D120: 2010-07-01 | E120: 2018-03-31 | F120: B3 | G120: A2F3 | H120: =ROUND(I120*12,2) -> 145.32 | I120: =K120 -> 12.11 | J120: =VLOOKUP(G120,$O$4:$P$19,2,FALSE) -> 145.29 | K120: 12.11
B121: A2F3 (B3) 43191 | D121: 2018-04-01 | E121: 2019-03-31 | F121: =F120 -> B3 | G121: =G120 -> A2F3 | H121: 0 | I121: 0 | J121: =H121 -> 0 | K121: =EXACT(H120,J120) -> FALSE
B122: A2F3 (B3) 44652 | D122: 2022-04-01 | E122: 2022-06-30 | F122: =F121 -> B3 | G122: A2F3 | H122: =VLOOKUP(G122,'CCNL 2019-2021'!$C$32:$J$47,3,FALSE) -> 63.6 | I122: =VLOOKUP(G122,'CCNL 2019-2021'!$C$32:$J$47,6,FALSE) -> 5.3 | J122: =H122 -> 63.6
B123: A2F3 (B3) 44743 | D123: 2022-07-01 | E123: 2023-12-31 | F123: B3 | G123: A2F3 | H123: =VLOOKUP(G122,'CCNL 2019-2021'!$C$32:$J$47,4,FALSE) -> 107.25 | I123: =VLOOKUP(G122,'CCNL 2019-2021'!$C$32:$J$47,7,FALSE) -> 8.94 | J123: 107.25
B124: A2F3 (B3) 45292 | D124: 2024-01-01 | E124: 9999-01-01 | F124: B3 | G124: A2F3 | H124: =VLOOKUP(G123,'CCNL 2019-2021'!$C$32:$J$47,5,FALSE)+H123 -> 826.02 | I124: =VLOOKUP(G123,'CCNL 2019-2021'!$C$32:$J$47,8,FALSE)+I123 -> 68.84 | J124: 826.02
D125: B3S | E125: A2F4
B126: =CONCATENATE(G126," (",F126,") ",D126) -> A2F4 (B3S) 35977 | D126: 1998-07-01 | E126: 1998-10-31 | F126: B3S | G126: A2F4 | H126: 0 | I126: 0 | J126: =H126 -> 0 | K126: =J126 -> 0
B127: A2F4 (B3S) 36100 | D127: 1998-11-01 | E127: 1999-05-31 | F127: B3S | G127: A2F4 | H127: 0 | I127: 0 | J127: 0 | K127: 0
B128: A2F4 (B3S) 36312 | D128: 1999-06-01 | E128: 2000-06-30 | F128: B3S | G128: A2F4 | H128: 0 | I128: 0 | J128: 0 | K128: 0
B129: A2F4 (B3S) 36708 | D129: 2000-07-01 | E129: 2000-12-31 | F129: B3S | G129: A2F4 | H129: 0 | I129: 0 | J129: 0 | K129: 0
B130: A2F4 (B3S) 36892 | D130: 2001-01-01 | E130: 2001-12-31 | F130: B3S | G130: A2F4 | H130: 0 | I130: 0 | J130: 0 | K130: 0
B131: A2F4 (B3S) 37257 | D131: 2002-01-01 | E131: 2002-12-31 | F131: B3S | G131: A2F4 | H131: 0 | I131: 0 | J131: 0 | K131: 0
B132: A2F4 (B3S) 37622 | D132: 2003-01-01 | E132: 2003-12-31 | F132: B3S | G132: A2F4 | H132: 0 | I132: 0 | J132: 0 | K132: 0
B133: A2F4 (B3S) 37987 | D133: 2004-01-01 | E133: 2005-01-31 | F133: B3S | G133: A2F4 | H133: 0 | I133: 0 | J133: 0 | K133: 0
B134: A2F4 (B3S) 38384 | D134: 2005-02-01 | E134: 2005-12-30 | F134: B3S | G134: A2F4 | H134: 0 | I134: 0 | J134: 0 | K134: 0
B135: A2F4 (B3S) 38717 | D135: 2005-12-31 | E135: 2005-12-31 | F135: B3S | G135: A2F4 | H135: 0 | I135: 0 | J135: 0 | K135: 0
B136: A2F4 (B3S) 38718 | D136: 2006-01-01 | E136: 2006-12-31 | F136: B3S | G136: A2F4 | H136: 0 | I136: 0 | J136: 0 | K136: 0
B137: A2F4 (B3S) 39083 | D137: 2007-01-01 | E137: 2007-01-31 | F137: B3S | G137: A2F4 | H137: 0 | I137: 0 | J137: 0 | K137: 0
B138: A2F4 (B3S) 39114 | D138: 2007-02-01 | E138: 2007-12-31 | F138: B3S | G138: A2F4 | H138: 0 | I138: 0 | J138: 0 | K138: 0
B139: A2F4 (B3S) 39448 | D139: 2008-01-01 | E139: 2008-12-31 | F139: B3S | G139: A2F4 | H139: 0 | I139: 0 | J139: 0 | K139: 0
B140: A2F4 (B3S) 39814 | D140: 2009-01-01 | E140: 2010-03-31 | F140: B3S | G140: A2F4 | H140: 0 | I140: 0 | J140: 0 | K140: 0
B141: A2F4 (B3S) 40269 | D141: 2010-04-01 | E141: 2010-06-30 | F141: B3S | G141: A2F4 | H141: =ROUND(I141*12,2) -> 92.28 | I141: =K141 -> 7.69 | J141: 92.28 | K141: 7.69 | L141: ind.vacanza contrattuale
B142: A2F4 (B3S) 40360 | D142: 2010-07-01 | E142: 2018-03-31 | F142: B3S | G142: A2F4 | H142: =ROUND(I142*12,2) -> 153.84 | I142: =K142 -> 12.82 | J142: =VLOOKUP(G142,$O$4:$P$19,2,FALSE) -> 153.88 | K142: 12.82
B143: A2F4 (B3S) 43191 | D143: 2018-04-01 | E143: 2019-03-31 | F143: =F142 -> B3S | G143: =G142 -> A2F4 | H143: 0 | I143: 0 | J143: =H143 -> 0 | K143: =EXACT(H142,J142) -> FALSE
B144: A2F4 (B3S) 44652 | D144: 2022-04-01 | E144: 2022-06-30 | F144: =F143 -> B3S | G144: A2F4 | H144: =VLOOKUP(G144,'CCNL 2019-2021'!$C$32:$J$47,3,FALSE) -> 67.56 | I144: =VLOOKUP(G144,'CCNL 2019-2021'!$C$32:$J$47,6,FALSE) -> 5.63 | J144: =H144 -> 67.56
B145: A2F4 (B3S) 44743 | D145: 2022-07-01 | E145: 2023-12-31 | F145: B3S | G145: A2F4 | H145: =VLOOKUP(G144,'CCNL 2019-2021'!$C$32:$J$47,4,FALSE) -> 113.97 | I145: =VLOOKUP(G144,'CCNL 2019-2021'!$C$32:$J$47,7,FALSE) -> 9.5 | J145: 113.97
B146: A2F4 (B3S) 45292 | D146: 2024-01-01 | E146: 9999-01-01 | F146: B3S | G146: A2F4 | H146: =VLOOKUP(G145,'CCNL 2019-2021'!$C$32:$J$47,5,FALSE)+H145 -> 877.77 | I146: =VLOOKUP(G145,'CCNL 2019-2021'!$C$32:$J$47,8,FALSE)+I145 -> 73.15 | J146: 877.77
D147: -------- | E147: A2F5
B148: =CONCATENATE(G148," ",D148) -> A2F5 36100 | D148: 1998-11-01 | E148: 2007-12-30 | F148: -------- | G148: A2F5 | H148: 0 | I148: 0 | J148: =H148 -> 0 | K148: =J148 -> 0
B149: A2F5 39417 | D149: 2007-12-01 | E149: 2007-12-31 | F149: -------- | G149: A2F5 | H149: 0 | I149: 0 | J149: 0 | K149: 0
B150: A2F5 39448 | D150: 2008-01-01 | E150: 2008-12-31 | F150: -------- | G150: A2F5 | H150: 0 | I150: 0 | J150: 0 | K150: 0
B151: A2F5 39814 | D151: 2009-01-01 | E151: 2010-03-31 | F151: -------- | G151: A2F5 | H151: 0 | I151: 0 | J151: 0 | K151: 0
B152: A2F5 40269 | D152: 2010-04-01 | E152: 2010-06-30 | F152: -------- | G152: A2F5 | H152: =ROUND(I152*12,2) -> 95.4 | I152: =K152 -> 7.95 | J152: 95.4 | K152: 7.95 | L152: ind.vacanza contrattuale
B153: A2F5 40360 | D153: 2010-07-01 | E153: 2018-03-31 | F153: -------- | G153: A2F5 | H153: =ROUND(I153*12,2) -> 159.12 | I153: =K153 -> 13.26 | J153: =VLOOKUP(G153,$O$4:$P$19,2,FALSE) -> 159.07 | K153: 13.26
B154: A2F5 43191 | D154: 2018-04-01 | E154: 2019-03-31 | F154: =F153 -> -------- | G154: =G153 -> A2F5 | H154: 0 | I154: 0 | J154: =H154 -> 0 | K154: =EXACT(H153,J153) -> FALSE
B155: A2F5 44652 | D155: 2022-04-01 | E155: 2022-06-30 | F155: =F154 -> -------- | G155: A2F5 | H155: =VLOOKUP(G155,'CCNL 2019-2021'!$C$32:$J$47,3,FALSE) -> 70.16 | I155: =VLOOKUP(G155,'CCNL 2019-2021'!$C$32:$J$47,6,FALSE) -> 5.85 | J155: =H155 -> 70.16
B156: A2F5 44743 | D156: 2022-07-01 | E156: 2023-12-31 | F156: -------- | G156: A2F5 | H156: =VLOOKUP(G155,'CCNL 2019-2021'!$C$32:$J$47,4,FALSE) -> 116.93 | I156: =VLOOKUP(G155,'CCNL 2019-2021'!$C$32:$J$47,7,FALSE) -> 9.74 | J156: 116.93
B157: A2F5 45292 | D157: 2024-01-01 | E157: 9999-01-01 | F157: -------- | G157: A2F5 | H157: =VLOOKUP(G156,'CCNL 2019-2021'!$C$32:$J$47,5,FALSE)+H156 -> 900.02 | I157: =VLOOKUP(G156,'CCNL 2019-2021'!$C$32:$J$47,8,FALSE)+I156 -> 75 | J157: 900.02
D158: -------- | E158: A2F6
B159: =CONCATENATE(G159," ",D159) -> A2F6 36100 | D159: 1998-11-01 | E159: 2007-12-30 | F159: -------- | G159: A2F6 | H159: 0 | I159: 0 | J159: =H159 -> 0 | K159: =J159 -> 0
B160: A2F6 39447 | D160: 2007-12-31 | E160: 2007-12-31 | F160: -------- | G160: A2F6 | H160: 0 | I160: 0 | J160: 0 | K160: 0
B161: A2F6 39448 | D161: 2008-01-01 | E161: 2008-12-31 | F161: -------- | G161: A2F6 | H161: 0 | I161: 0 | J161: 0 | K161: 0
B162: A2F6 39814 | D162: 2009-01-01 | E162: 2010-03-31 | F162: -------- | G162: A2F6 | H162: 0 | I162: 0 | J162: 0 | K162: 0
B163: A2F6 40269 | D163: 2010-04-01 | E163: 2010-06-30 | F163: -------- | G163: A2F6 | H163: =ROUND(I163*12,2) -> 98.16 | I163: =K163 -> 8.18 | J163: 98.16 | K163: 8.18 | L163: ind.vacanza contrattuale
B164: A2F6 40360 | D164: 2010-07-01 | E164: 2018-03-31 | F164: -------- | G164: A2F6 | H164: =ROUND(I164*12,2) -> 163.68 | I164: =K164 -> 13.64 | J164: =VLOOKUP(G164,$O$4:$P$19,2,FALSE) -> 163.67 | K164: 13.64
B165: A2F6 43191 | D165: 2018-04-01 | E165: 2019-03-31 | F165: =F164 -> -------- | G165: =G164 -> A2F6 | H165: 0 | I165: 0 | J165: =H165 -> 0 | K165: =EXACT(H164,J164) -> FALSE
B166: A2F6 44652 | D166: 2022-04-01 | E166: 2022-06-30 | F166: =F165 -> -------- | G166: A2F6 | H166: =VLOOKUP(G166,'CCNL 2019-2021'!$C$32:$J$47,3,FALSE) -> 72.13 | I166: =VLOOKUP(G166,'CCNL 2019-2021'!$C$32:$J$47,6,FALSE) -> 6.01 | J166: =H166 -> 72.13
B167: A2F6 44743 | D167: 2022-07-01 | E167: 2023-12-31 | F167: -------- | G167: A2F6 | H167: =VLOOKUP(G166,'CCNL 2019-2021'!$C$32:$J$47,4,FALSE) -> 120.22 | I167: =VLOOKUP(G166,'CCNL 2019-2021'!$C$32:$J$47,7,FALSE) -> 10.02 | J167: 120.22
B168: A2F6 45292 | D168: 2024-01-01 | E168: 9999-01-01 | F168: -------- | G168: A2F6 | H168: =VLOOKUP(G167,'CCNL 2019-2021'!$C$32:$J$47,5,FALSE)+H167 -> 925.83 | I168: =VLOOKUP(G167,'CCNL 2019-2021'!$C$32:$J$47,8,FALSE)+I167 -> 77.15 | J168: 925.83
D169: C1 | E169: A3F1
B170: =CONCATENATE(G170," (",F170,") ",D170) -> A3F1 (C1) 35977 | D170: 1998-07-01 | E170: 1998-10-31 | F170: C1 | G170: A3F1 | H170: 0 | I170: 0 | J170: =H170 -> 0 | K170: =J170 -> 0
B171: A3F1 (C1) 36100 | D171: 1998-11-01 | E171: 1999-05-31 | F171: C1 | G171: A3F1 | H171: 0 | I171: 0 | J171: 0 | K171: 0
B172: A3F1 (C1) 36312 | D172: 1999-06-01 | E172: 2000-06-30 | F172: C1 | G172: A3F1 | H172: 0 | I172: 0 | J172: 0 | K172: 0
B173: A3F1 (C1) 36708 | D173: 2000-07-01 | E173: 2000-12-31 | F173: C1 | G173: A3F1 | H173: 0 | I173: 0 | J173: 0 | K173: 0
B174: A3F1 (C1) 36892 | D174: 2001-01-01 | E174: 2001-12-31 | F174: C1 | G174: A3F1 | H174: 0 | I174: 0 | J174: 0 | K174: 0
B175: A3F1 (C1) 37257 | D175: 2002-01-01 | E175: 2002-12-31 | F175: C1 | G175: A3F1 | H175: 0 | I175: 0 | J175: 0 | K175: 0
B176: A3F1 (C1) 37622 | D176: 2003-01-01 | E176: 2003-12-31 | F176: C1 | G176: A3F1 | H176: 0 | I176: 0 | J176: 0 | K176: 0
B177: A3F1 (C1) 37987 | D177: 2004-01-01 | E177: 2005-01-31 | F177: C1 | G177: A3F1 | H177: 0 | I177: 0 | J177: 0 | K177: 0
B178: A3F1 (C1) 38384 | D178: 2005-02-01 | E178: 2005-12-30 | F178: C1 | G178: A3F1 | H178: 0 | I178: 0 | J178: 0 | K178: 0
B179: A3F1 (C1) 38717 | D179: 2005-12-31 | E179: 2005-12-31 | F179: C1 | G179: A3F1 | H179: 0 | I179: 0 | J179: 0 | K179: 0
B180: A3F1 (C1) 38718 | D180: 2006-01-01 | E180: 2006-12-31 | F180: C1 | G180: A3F1 | H180: 0 | I180: 0 | J180: 0 | K180: 0
B181: A3F1 (C1) 39083 | D181: 2007-01-01 | E181: 2007-01-31 | F181: C1 | G181: A3F1 | H181: 0 | I181: 0 | J181: 0 | K181: 0
B182: A3F1 (C1) 39114 | D182: 2007-02-01 | E182: 2007-12-31 | F182: C1 | G182: A3F1 | H182: 0 | I182: 0 | J182: 0 | K182: 0
B183: A3F1 (C1) 39448 | D183: 2008-01-01 | E183: 2008-12-31 | F183: C1 | G183: A3F1 | H183: 0 | I183: 0 | J183: 0 | K183: 0
B184: A3F1 (C1) 39814 | D184: 2009-01-01 | E184: 2010-03-31 | F184: C1 | G184: A3F1 | H184: 0 | I184: 0 | J184: 0 | K184: 0
B185: A3F1 (C1) 40269 | D185: 2010-04-01 | E185: 2010-06-30 | F185: C1 | G185: A3F1 | H185: =ROUND(I185*12,2) -> 95.04 | I185: =K185 -> 7.92 | J185: 95.04 | K185: 7.92 | L185: ind.vacanza contrattuale
B186: A3F1 (C1) 40360 | D186: 2010-07-01 | E186: 2018-03-31 | F186: C1 | G186: A3F1 | H186: =ROUND(I186*12,2) -> 158.4 | I186: =K186 -> 13.2 | J186: =VLOOKUP(G186,$O$4:$P$19,2,FALSE) -> 158.44 | K186: 13.2
B187: A3F1 (C1) 43191 | D187: 2018-04-01 | E187: 2019-03-31 | F187: =F186 -> C1 | G187: =G186 -> A3F1 | H187: 0 | I187: 0 | J187: =H187 -> 0 | K187: =EXACT(H186,J186) -> FALSE
B188: A3F1 (C1) 44652 | D188: 2022-04-01 | E188: 2022-06-30 | F188: =F187 -> C1 | G188: A3F1 | H188: =VLOOKUP(G188,'CCNL 2019-2021'!$C$32:$J$47,3,FALSE) -> 69.9 | I188: =VLOOKUP(G188,'CCNL 2019-2021'!$C$32:$J$47,6,FALSE) -> 5.83 | J188: =H188 -> 69.9
B189: A3F1 (C1) 44743 | D189: 2022-07-01 | E189: 2023-12-31 | F189: C1 | G189: A3F1 | H189: =VLOOKUP(G188,'CCNL 2019-2021'!$C$32:$J$47,4,FALSE) -> 116.5 | I189: =VLOOKUP(G188,'CCNL 2019-2021'!$C$32:$J$47,7,FALSE) -> 9.71 | J189: 116.5
B190: A3F1 (C1) 45292 | D190: 2024-01-01 | E190: 9999-01-01 | F190: C1 | G190: A3F1 | H190: =VLOOKUP(G189,'CCNL 2019-2021'!$C$32:$J$47,5,FALSE)+H189 -> 897.18 | I190: =VLOOKUP(G189,'CCNL 2019-2021'!$C$32:$J$47,8,FALSE)+I189 -> 74.77 | J190: 897.18
D191: C1S | E191: A3F2
B192: =CONCATENATE(G192," (",F192,") ",D192) -> A3F2 (C1S) 35977 | D192: 1998-07-01 | E192: 1998-10-31 | F192: C1S | G192: A3F2 | H192: 0 | I192: 0 | J192: =H192 -> 0 | K192: =J192 -> 0
B193: A3F2 (C1S) 36100 | D193: 1998-11-01 | E193: 1999-05-31 | F193: C1S | G193: A3F2 | H193: 0 | I193: 0 | J193: 0 | K193: 0
B194: A3F2 (C1S) 36312 | D194: 1999-06-01 | E194: 2000-06-30 | F194: C1S | G194: A3F2 | H194: 0 | I194: 0 | J194: 0 | K194: 0
B195: A3F2 (C1S) 36708 | D195: 2000-07-01 | E195: 2000-12-31 | F195: C1S | G195: A3F2 | H195: 0 | I195: 0 | J195: 0 | K195: 0
B196: A3F2 (C1S) 36892 | D196: 2001-01-01 | E196: 2001-12-31 | F196: C1S | G196: A3F2 | H196: 0 | I196: 0 | J196: 0 | K196: 0
B197: A3F2 (C1S) 37257 | D197: 2002-01-01 | E197: 2002-12-31 | F197: C1S | G197: A3F2 | H197: 0 | I197: 0 | J197: 0 | K197: 0
B198: A3F2 (C1S) 37622 | D198: 2003-01-01 | E198: 2003-12-31 | F198: C1S | G198: A3F2 | H198: 0 | I198: 0 | J198: 0 | K198: 0
B199: A3F2 (C1S) 37987 | D199: 2004-01-01 | E199: 2005-01-31 | F199: C1S | G199: A3F2 | H199: 0 | I199: 0 | J199: 0 | K199: 0
B200: A3F2 (C1S) 38384 | D200: 2005-02-01 | E200: 2005-12-30 | F200: C1S | G200: A3F2 | H200: 0 | I200: 0 | J200: 0 | K200: 0
B201: A3F2 (C1S) 38717 | D201: 2005-12-31 | E201: 2005-12-31 | F201: C1S | G201: A3F2 | H201: 0 | I201: 0 | J201: 0 | K201: 0
... 99 more rows

Sheet RIFERIMENTI (hidden)
A1: =CONCATENATE(C1," ",D1) -> ENTE UFF/MAND | C1: ENTE | D1: UFF/MAND | F1: ASSUNZIONE/IND. AMM.NE | H1: 0 | I1: ?? | J1: ?? | N1: RICERCA I.A. COM. | Q1: CONTROLLO ERRORI SCHEDA "CALCOLO" | U1: COMPETENZA | V1: SCADENZE | W1: A/F | X1: DECORRENZE | Y1: DATE DOPPIE | Z1: CONTA DOPPIE | AA1: SELEZIONE 1 | AB1: RANGO 1 | AC1: SELEZIONE 1 BIS | AD1: ORDINE 1 | AE1: RISULTATO 1 | AF1: RANGO 2 | AG1: RISULTATO 1 BIS | AH1: ORDINE 2 | AI1: RISULTATO 2 | AJ1: DAL | AK1: AL
A2: =CONCATENATE(UPPER(C2)," (",$D$1,": ",D2,") ") -> AGENZIA INDUSTRIE DIFESA (UFF/MAND: 581/504) | C2: Agenzia Industrie Difesa | D2: 581/504 | F2: =IF(INSERIMENTO!G11<DATE(2009,1,1),DATE(2009,1,1),INSERIMENTO!G11) -> 2009-01-01 | H2: =IF(K2="",I2,CONCATENATE(I2," (",K2,")")) -> A1F1 (A1) | I2: A1F1 | J2: =H3 -> A1F2 (A1S) | K2: A1 | L2: A1F1 | M2: 1998-07-01 | N2: 24 | Q2: =IF(INSERIMENTO!I7="DATO OBBLIGATORIO",1,0) -> 0 | R2: I7 | U2: STIP. | X2: 1998-07-01 | Y2: =COUNTIF($X$2:$X$67,X2) -> 1 | Z2: =COUNTIF($X$2:X2,X2) -> 1 | AA2: =IF(X2<$X$49,DATE(9999,12,31),IF(X2>$X$68,DATE(9999,12,31),IF(Z2>1,DATE(9999,12,31),X2))) -> 9999-12-31 | AB2: =RANK(AA2,$AA$2:$AA$67,1) -> 26 | AC2: =AA2 -> 9999-12-31 | AD2: 1 | AE2: =IF(ISNA(VLOOKUP(AD2,$AB$2:$AC$67,2,FALSE)),DATE(9999,12,31),VLOOKUP(AD2,$AB$2:$AC$67,2,FALSE)) -> 2003-04-01 | AF2: =RANK(AE2,$AE$2:$AE$67,1) -> 1 | AG2: =AE2 -> 2003-04-01 | AH2: 1 | AI2: =IF(ISNA(VLOOKUP(AH2,$AF$2:$AG$67,2,FALSE)),DATE(9999,12,31),VLOOKUP(AH2,$AF$2:$AG$67,2,FALSE)) -> 2003-04-01 | AJ2: =IF(AI2=DATE(9999,12,31),"",AI2) -> 2003-04-01 | AK2: =IF(AI2=DATE(9999,12,31),"",IF(AJ3="",$AI$69,AJ3-1)) -> 2003-12-31
A3: =CONCATENATE(UPPER(C3)," (",$D$1,": ",D3,") ") -> ARMAEREO (UFF/MAND: 123) | C3: Armaereo | D3: 123 | F3: 9999-12-31 | H3: A1F2 (A1S) | I3: A1F2 | J3: =H4 -> A1F3 | K3: A1S | L3: A1F2 | M3: 1998-07-01 | N3: 23 | Q3: =IF(INSERIMENTO!I9="INSERIRE IMPORTO",1,0) -> 0 | R3: I9 | U3: STIP. | X3: 1998-11-01 | Y3: 1 | Z3: =COUNTIF($X$2:X3,X3) -> 1 | AA3: 9999-12-31 | AB3: 26 | AC3: =AA3 -> 9999-12-31 | AD3: =AD2+1 -> 2 | AE3: 2004-01-01 | AF3: 2 | AG3: =AE3 -> 2004-01-01 | AH3: =AH2+1 -> 2 | AI3: 2004-01-01 | AJ3: =IF(AI3=DATE(9999,12,31),"",AI3) -> 2004-01-01 | AK3: 2005-01-31
A4: BILANDIFE (UFF/MAND: 135) | C4: Bilandife | D4: 135 | H4: A1F3 | I4: A1F3 | M4: 2007-12-31 | N4: 22 | Q4: =IF(INSERIMENTO!E10="DATO OBBLIGATORIO",1,IF(INSERIMENTO!E10="ERRORE",1,0)) -> 0 | R4: E10 | U4: STIP. | X4: 1999-06-01 | Y4: 1 | Z4: =COUNTIF($X$2:X4,X4) -> 1 | AA4: 9999-12-31 | AB4: 26 | AC4: 9999-12-31 | AD4: =AD3+1 -> 3 | AE4: 2005-02-01 | AF4: 3 | AG4: 2005-02-01 | AH4: =AH3+1 -> 3 | AI4: 2005-02-01 | AJ4: 2005-02-01 | AK4: 2005-12-30
A5: CAPO CORPO GENIO A.M. (UFF/MAND: 84) | C5: Capo Corpo Genio A.M. | D5: 84 | H5: A2F1 (B1) | I5: A2F1 | J5: =H6 -> A2F2 (B2) | K5: B1 | L5: A2F1 | M5: 1998-07-01 | N5: 21 | Q5: =IF(INSERIMENTO!G10="DATA ?",1,IF(INSERIMENTO!G10="ERRORE",1,0)) -> 0 | R5: G10 | U5: STIP. | X5: 2000-07-01 | Y5: 2 | Z5: =COUNTIF($X$2:X5,X5) -> 1 | AA5: 9999-12-31 | AB5: 26 | AC5: 9999-12-31 | AD5: 4 | AE5: 2005-12-31 | AF5: 4 | AG5: 2005-12-31 | AH5: 4 | AI5: 2005-12-31 | AJ5: 2005-12-31 | AK5: 2005-12-31
A6: CASD (UFF/MAND: 44) | C6: CASD | D6: 44 | H6: A2F2 (B2) | I6: A2F2 | J6: =H7 -> A2F3 (B3) | K6: B2 | L6: A2F2 | M6: 1998-07-01 | N6: 20 | Q6: =IF(INSERIMENTO!N12="ERRORE",1,0) -> 0 | R6: N12 | U6: STIP. | X6: 2001-01-01 | Y6: 2 | Z6: =COUNTIF($X$2:X6,X6) -> 1 | AA6: 9999-12-31 | AB6: 26 | AC6: 9999-12-31 | AD6: 5 | AE6: 2006-01-01 | AF6: 5 | AG6: 2006-01-01 | AH6: 5 | AI6: 2006-01-01 | AJ6: 2006-01-01 | AK6: 2006-12-31
A7: CIRCOLO SOTTUFF. M.M. ROMA (UFF/MAND: 67) | C7: Circolo Sottuff. M.M. Roma | D7: 67 | H7: A2F3 (B3) | I7: A2F3 | J7: =H8 -> A2F4 (B3S) | K7: B3 | L7: A2F3 | M7: 1998-07-01 | N7: 19 | Q7: =IF(INSERIMENTO!E16="DATO OBBLIGATORIO",1,IF(INSERIMENTO!E16="ERRORE",1,0)) -> 0 | R7: E16 | S7: =Q7 -> 0 | U7: STIP. | X7: 2002-01-01 | Y7: 2 | Z7: =COUNTIF($X$2:X7,X7) -> 1 | AA7: 9999-12-31 | AB7: 26 | AC7: 9999-12-31 | AD7: 6 | AE7: 2007-01-01 | AF7: 6 | AG7: 2007-01-01 | AH7: 6 | AI7: 2007-01-01 | AJ7: 2007-01-01 | AK7: 2007-01-31
A8: CIRCOLO UFFIC.CAIO DUILIO M.M. (UFF/MAND: 64) | C8: Circolo Uffic.Caio Duilio M.M. | D8: 64 | H8: A2F4 (B3S) | I8: A2F4 | J8: =H9 -> A2F5 | K8: B3S | L8: A2F4 | M8: 1998-07-01 | N8: 18 | Q8: =IF(INSERIMENTO!E18="DATO OBBLIGATORIO",1,IF(INSERIMENTO!E18="ERRORE",1,0)) -> 0 | R8: E18 | S8: =Q8 -> 0 | U8: STIP. | X8: 2003-01-01 | Y8: 2 | Z8: =COUNTIF($X$2:X8,X8) -> 1 | AA8: 9999-12-31 | AB8: 26 | AC8: 9999-12-31 | AD8: 7 | AE8: 2007-02-01 | AF8: 7 | AG8: 2007-02-01 | AH8: 7 | AI8: 2007-02-01 | AJ8: 2007-02-01 | AK8: 2007-12-30
A9: CNA ESERCITO (EX CUSE) (UFF/MAND: 430) | C9: CNA Esercito (ex CUSE) | D9: 430 | H9: A2F5 | I9: A2F5 | J9: =H10 -> A2F6 | M9: 2007-12-31 | N9: 17 | Q9: =IF(INSERIMENTO!E20="DATO OBBLIGATORIO",1,IF(INSERIMENTO!E20="ERRORE",1,0)) -> 0 | R9: E20 | S9: 0 | U9: STIP. | X9: 2004-01-01 | Y9: 1 | Z9: =COUNTIF($X$2:X9,X9) -> 1 | AA9: 2004-01-01 | AB9: 2 | AC9: 2004-01-01 | AD9: 8 | AE9: 2007-12-31 | AF9: 8 | AG9: 2007-12-31 | AH9: 8 | AI9: 2007-12-31 | AJ9: 2007-12-31 | AK9: 2007-12-31
A10: COLLEGIO MEDICO LEGALE (UFF/MAND: 38) | C10: Collegio Medico Legale | D10: 38 | H10: A2F6 | I10: A2F6 | M10: 2007-12-31 | N10: 16 | Q10: =IF(INSERIMENTO!E22="DATO OBBLIGATORIO",1,IF(INSERIMENTO!E22="ERRORE",1,0)) -> 0 | R10: E22 | S10: 0 | U10: STIP. | X10: 2005-02-01 | Y10: 1 | Z10: =COUNTIF($X$2:X10,X10) -> 1 | AA10: 2005-02-01 | AB10: 3 | AC10: 2005-02-01 | AD10: 9 | AE10: 2008-01-01 | AF10: 9 | AG10: 2008-01-01 | AH10: 9 | AI10: 2008-01-01 | AJ10: 2008-01-01 | AK10: 2008-12-31
A11: COMAER - BANDA MUSICALE PAL. A.M. (UFF/MAND: 82) | C11: Comaer - Banda Musicale Pal. A.M. | D11: 82 | H11: A3F1 (C1) | I11: A3F1 | J11: =H12 -> A3F2 (C1S) | K11: C1 | L11: A3F1 | M11: 1998-07-01 | N11: 15 | Q11: =IF(INSERIMENTO!E24="DATO OBBLIGATORIO",1,IF(INSERIMENTO!E24="ERRORE",1,0)) -> 0 | R11: E24 | S11: 0 | U11: STIP. | X11: 2005-12-31 | Y11: 1 | Z11: =COUNTIF($X$2:X11,X11) -> 1 | AA11: 2005-12-31 | AB11: 4 | AC11: 2005-12-31 | AD11: 10 | AE11: 2009-01-01 | AF11: 10 | AG11: 2009-01-01 | AH11: 10 | AI11: 2009-01-01 | AJ11: 2009-01-01 | AK11: 2009-05-04
A12: COMAER - DIREZIONE DI INTENDENZA PAL. A.M. (UFF/MAND: 82) | C12: Comaer - Direzione di Intendenza Pal. A.M. | D12: 82 | H12: A3F2 (C1S) | I12: A3F2 | J12: A3F3 (C2) | K12: C1S | L12: A3F2 | M12: 1998-07-01 | N12: 14 | Q12: =IF(INSERIMENTO!E26="DATO OBBLIGATORIO",1,IF(INSERIMENTO!E26="ERRORE",1,0)) -> 0 | R12: E26 | S12: 0 | U12: STIP. | X12: 2006-01-01 | Y12: 1 | Z12: =COUNTIF($X$2:X12,X12) -> 1 | AA12: 2006-01-01 | AB12: 5 | AC12: 2006-01-01 | AD12: 11 | AE12: 2009-05-05 | AF12: 11 | AG12: 2009-05-05 | AH12: 11 | AI12: 2009-05-05 | AJ12: 2009-05-05 | AK12: 2010-03-31
A13: COMANDATI ENTI CENTRALI (UFF/MAND: 55) | C13: Comandati Enti Centrali | D13: 55 | H13: A3F3 (C2) | I13: A3F3 | J13: A3F4 (C3) | K13: C2 | L13: A3F3 | M13: 1998-07-01 | N13: 13 | Q13: =IF(INSERIMENTO!G16="DATA ?",1,IF(INSERIMENTO!G16="ERRORE",1,0)) -> 0 | R13: G16 | S13: 0 | U13: STIP. | X13: 2007-01-01 | Y13: 1 | Z13: =COUNTIF($X$2:X13,X13) -> 1 | AA13: 2007-01-01 | AB13: 6 | AC13: 2007-01-01 | AD13: 12 | AE13: 2010-04-01 | AF13: 12 | AG13: 2010-04-01 | AH13: 12 | AI13: 2010-04-01 | AJ13: 2010-04-01 | AK13: 2010-06-30
A14: COMANDO OPERATIVO IN RETE (EX COMANDO C4) (UFF/MAND: 22) | C14: Comando Operativo in Rete (ex Comando C4) | D14: 22 | H14: A3F4 (C3) | I14: A3F4 | J14: A3F5 (C3S) | K14: C3 | L14: A3F4 | M14: 1998-07-01 | N14: 12 | Q14: =IF(INSERIMENTO!G18="DATA ?",1,IF(INSERIMENTO!G18="ERRORE",1,0)) -> 0 | R14: G18 | S14: 0 | U14: STIP. | X14: 2007-02-01 | Y14: 1 | Z14: =COUNTIF($X$2:X14,X14) -> 1 | AA14: 2007-02-01 | AB14: 7 | AC14: 2007-02-01 | AD14: 13 | AE14: 2010-07-01 | AF14: 13 | AG14: 2010-07-01 | AH14: 13 | AI14: 2010-07-01 | AJ14: 2010-07-01 | AK14: 2013-05-04
A15: COMANDO SQUADRA AEREA PALAZZO A.M. (UFF/MAND: 740) | C15: Comando Squadra Aerea Palazzo A.M. | D15: 740 | H15: A3F5 (C3S) | I15: A3F5 | J15: A3F6 | K15: C3S | L15: A3F5 | M15: 1998-07-01 | N15: 11 | Q15: =IF(INSERIMENTO!G20="DATA ?",1,IF(INSERIMENTO!G20="ERRORE",1,0)) -> 0 | R15: G20 | S15: 0 | U15: STIP. | X15: 2007-12-31 | Y15: 3 | Z15: =COUNTIF($X$2:X15,X15) -> 1 | AA15: 2007-12-31 | AB15: 8 | AC15: 2007-12-31 | AD15: 14 | AE15: 2013-05-05 | AF15: 14 | AG15: 2013-05-05 | AH15: 14 | AI15: 2013-05-05 | AJ15: 2013-05-05 | AK15: 2015-12-31
A16: COMLOG A.M. (UFF/MAND: 143) | C16: Comlog A.M. | D16: 143 | H16: A3F6 | I16: A3F6 | J16: A3F7 | M16: 2007-12-31 | N16: 10 | Q16: =IF(INSERIMENTO!G22="DATA ?",1,IF(INSERIMENTO!G22="ERRORE",1,0)) -> 0 | R16: G22 | S16: 0 | U16: STIP. | X16: 2008-01-01 | Y16: 1 | Z16: =COUNTIF($X$2:X16,X16) -> 1 | AA16: 2008-01-01 | AB16: 9 | AC16: 2008-01-01 | AD16: 15 | AE16: 2016-01-01 | AF16: 15 | AG16: 2016-01-01 | AH16: 15 | AI16: 2016-01-01 | AJ16: 2016-01-01 | AK16: 2016-12-31
A17: COMLOG ES (EX ISPELOG) (UFF/MAND: 141) | C17: Comlog ES (ex Ispelog) | D17: 141 | H17: A3F7 | I17: A3F7 | M17: 2007-12-31 | N17: 9 | Q17: =IF(INSERIMENTO!G24="DATA ?",1,IF(INSERIMENTO!G24="ERRORE",1,0)) -> 0 | R17: G24 | S17: 0 | U17: STIP. | X17: 2009-01-01 | Y17: 1 | Z17: =COUNTIF($X$2:X17,X17) -> 1 | AA17: 2009-01-01 | AB17: 10 | AC17: 2009-01-01 | AD17: 16 | AE17: 2017-01-01 | AF17: 16 | AG17: 2017-01-01 | AH17: 16 | AI17: 2017-01-01 | AJ17: 2017-01-01 | AK17: 2018-02-28
A18: COMMISERVIZI A.M. (UFF/MAND: 134) | C18: Commiservizi A.M. | D18: 134 | Q18: =IF(INSERIMENTO!G26="DATA ?",1,IF(INSERIMENTO!G26="ERRORE",1,0)) -> 0 | R18: G26 | S18: 0 | U18: STIP. | X18: 2010-04-01 | Y18: 2 | Z18: =COUNTIF($X$2:X18,X18) -> 1 | AA18: 2010-04-01 | AB18: 12 | AC18: 2010-04-01 | AD18: 17 | AE18: 2018-03-01 | AF18: 17 | AG18: 2018-03-01 | AH18: 17 | AI18: 2018-03-01 | AJ18: 2018-03-01 | AK18: 2018-03-31
A19: COMMISERVIZI E.I. (UFF/MAND: 132) | C19: Commiservizi E.I. | D19: 132 | Q19: =IF(INSERIMENTO!M16="DATA ?",1,IF(INSERIMENTO!M16="AMM.NE ?",1,IF(INSERIMENTO!M16="ERRORE",1,0))) -> 0 | R19: M16 | S19: 0 | U19: STIP. | X19: 2010-07-01 | Y19: 2 | Z19: =COUNTIF($X$2:X19,X19) -> 1 | AA19: 2010-07-01 | AB19: 13 | AC19: 2010-07-01 | AD19: 18 | AE19: 2018-04-01 | AF19: 18 | AG19: 2018-04-01 | AH19: 18 | AI19: 2018-04-01 | AJ19: 2018-04-01 | AK19: 2018-12-31
A20: COMMISERVIZI M.M. (UFF/MAND: 133) | C20: Commiservizi M.M. | D20: 133 | H20: INSERIMENTO | J20: centododici | Q20: =IF(INSERIMENTO!M18="DATA ?",1,IF(INSERIMENTO!M18="AMM.NE ?",1,IF(INSERIMENTO!M18="ERRORE",1,0))) -> 0 | R20: M18 | S20: 0 | U20: STIP. | X20: 2016-01-01 | Y20: 2 | Z20: =COUNTIF($X$2:X20,X20) -> 1 | AA20: 2016-01-01 | AB20: 15 | AC20: 2016-01-01 | AD20: 19 | AE20: 2019-01-01 | AF20: 19 | AG20: 2019-01-01 | AH20: 19 | AI20: 2019-01-01 | AJ20: 2019-01-01 | AK20: 2019-12-31
A21: COMSEV (UFF/MAND: 82) | C21: Comsev | D21: 82 | H21: SVILUPPO | J21: centotredici | Q21: =IF(INSERIMENTO!M20="DATA ?",1,IF(INSERIMENTO!M20="AMM.NE ?",1,IF(INSERIMENTO!M20="ERRORE",1,0))) -> 0 | R21: M20 | S21: 0 | U21: STIP. | X21: 2017-01-01 | Y21: 1 | Z21: =COUNTIF($X$2:X21,X21) -> 1 | AA21: 2017-01-01 | AB21: 16 | AC21: 2017-01-01 | AD21: 20 | AE21: 2020-01-01 | AF21: 20 | AG21: 2020-01-01 | AH21: 20 | AI21: 2020-01-01 | AJ21: 2020-01-01 | AK21: 2020-12-31
A22: CONS. MAG. MIL. (UFF/MAND: 46) | C22: Cons. Mag. Mil. | D22: 46 | H22: STIPENDIO | J22: centoquattordici | Q22: =IF(INSERIMENTO!M22="DATA ?",1,IF(INSERIMENTO!M22="AMM.NE ?",1,IF(INSERIMENTO!M22="ERRORE",1,0))) -> 0 | R22: M22 | S22: 0 | U22: STIP. | X22: 2018-03-01 | Y22: 1 | Z22: =COUNTIF($X$2:X22,X22) -> 1 | AA22: 2018-03-01 | AB22: 17 | AC22: 2018-03-01 | AD22: 21 | AE22: 2021-01-01 | AF22: 21 | AG22: 2021-01-01 | AH22: 21 | AI22: 2021-01-01 | AJ22: 2021-01-01 | AK22: 2022-03-31
A23: CORTE MIL. APPELLO (UFF/MAND: 36) | C23: Corte Mil. Appello | D23: 36 | H23: CCNL 2019-2021 | J23: centoquindici | Q23: =IF(INSERIMENTO!M24="DATA ?",1,IF(INSERIMENTO!M24="AMM.NE ?",1,IF(INSERIMENTO!M24="ERRORE",1,0))) -> 0 | R23: M24 | S23: 0 | U23: STIP. | X23: 2018-04-01 | Y23: 2 | Z23: =COUNTIF($X$2:X23,X23) -> 1 | AA23: 2018-04-01 | AB23: 18 | AC23: 2018-04-01 | AD23: 22 | AE23: 2022-04-01 | AF23: 22 | AG23: 2022-04-01 | AH23: 22 | AI23: 2022-04-01 | AJ23: 2022-04-01 | AK23: 2022-06-30
A24: =CONCATENATE(UPPER(C24)," (",$D$1,": ",D24,") ") -> COVI (COMANDO OPERATIVO DI VERTICE INTERFORZE) (UFF/MAND: 743) | C24: COVI (Comando Operativo di Vertice Interforze) | D24: 743 | H24: IND. INT. SPEC. | J24: centosedici | Q24: =IF(INSERIMENTO!M26="DATA ?",1,IF(INSERIMENTO!M26="AMM.NE ?",1,IF(INSERIMENTO!M26="ERRORE",1,0))) -> 0 | R24: M26 | S24: =Q24 -> 0 | U24: STIP. | X24: 2019-01-01 | Y24: 1 | Z24: =COUNTIF($X$2:X24,X24) -> 1 | AA24: 2019-01-01 | AB24: 19 | AC24: =AA24 -> 2019-01-01 | AD24: 23 | AE24: 2022-07-01 | AF24: 23 | AG24: 2022-07-01 | AH24: 23 | AI24: 2022-07-01 | AJ24: 2022-07-01 | AK24: 2022-10-31
A25: CUFA (CIRCOLO UFFICIALI FORZE ARMATE) (UFF/MAND: 749) | C25: CUFA (Circolo Ufficiali Forze Armate) | D25: 749 | H25: IND. AMM.NE | J25: centodiciassette | Q25: =IF(INSERIMENTO!O16="DATA ?",1,IF(INSERIMENTO!O16="AMM.NE ?",1,IF(INSERIMENTO!O16="ERRORE",1,0))) -> 0 | R25: O16 | S25: 0 | U25: STIP. | X25: 2020-01-01 | Y25: 2 | Z25: =COUNTIF($X$2:X25,X25) -> 1 | AA25: 2020-01-01 | AB25: 20 | AC25: 2020-01-01 | AD25: 24 | AE25: 2022-11-01 | AF25: 24 | AG25: 2022-11-01 | AH25: 24 | AI25: 2022-11-01 | AJ25: 2022-11-01 | AK25: 2023-12-31
A26: DIFEFORM (UFF/MAND: 72) | C26: Difeform | D26: 72 | H26: VAC. CONTR.LE | J26: centodiciotto | Q26: =IF(INSERIMENTO!O18="DATA ?",1,IF(INSERIMENTO!O18="AMM.NE ?",1,IF(INSERIMENTO!O18="ERRORE",1,0))) -> 0 | R26: O18 | S26: 0 | U26: STIP. | X26: 2021-01-01 | Y26: 3 | Z26: =COUNTIF($X$2:X26,X26) -> 1 | AA26: 2021-01-01 | AB26: 21 | AC26: 2021-01-01 | AD26: 25 | AE26: 2024-01-01 | AF26: 25 | AG26: 2024-01-01 | AH26: 25 | AI26: 2024-01-01 | AJ26: 2024-01-01 | AK26: 9999-12-31
A27: GABINETTO ESERCITO (UFF/MAND: 136) | C27: Gabinetto esercito | D27: 136 | H27: RIFERIMENTI | J27: centodiciannove | Q27: =IF(INSERIMENTO!O20="DATA ?",1,IF(INSERIMENTO!O20="AMM.NE ?",1,IF(INSERIMENTO!O20="ERRORE",1,0))) -> 0 | R27: O20 | S27: 0 | U27: STIP. | X27: 2022-07-01 | Y27: 2 | Z27: =COUNTIF($X$2:X27,X27) -> 1 | AA27: 2022-07-01 | AB27: 23 | AC27: 2022-07-01 | AD27: 26 | AE27: 9999-12-31 | AF27: 26 | AG27: 9999-12-31 | AH27: 26 | AI27: 9999-12-31
A28: =CONCATENATE(UPPER(C28)," (",$D$1,": ",D28,") ") -> GENIODIFE (UFF/MAND: 127) | C28: Geniodife | D28: 127 | Q28: =IF(INSERIMENTO!O22="DATA ?",1,IF(INSERIMENTO!O22="AMM.NE ?",1,IF(INSERIMENTO!O22="ERRORE",1,0))) -> 0 | R28: O22 | S28: =Q28 -> 0 | U28: STIP. | X28: 2022-11-01 | Y28: 3 | Z28: =COUNTIF($X$2:X28,X28) -> 1 | AA28: 2022-11-01 | AB28: 24 | AC28: =AA28 -> 2022-11-01 | AD28: 27 | AE28: 9999-12-31 | AF28: 26 | AG28: =AE28 -> 9999-12-31 | AH28: 27 | AI28: 9999-12-31 | AJ28: =IF(AI28=DATE(9999,12,31),"",AI28) -> 
A29: IMAS (ISTITUTO MEDICINA AEROSPAZIALE A.M.) (UFF/MAND: 88) | C29: Imas (Istituto Medicina Aerospaziale A.M.) | D29: 88 | Q29: =IF(INSERIMENTO!O24="DATA ?",1,IF(INSERIMENTO!O24="AMM.NE ?",1,IF(INSERIMENTO!O24="ERRORE",1,0))) -> 0 | R29: O24 | S29: =Q29 -> 0 | U29: I.I.S. | X29: 1991-11-01 | Y29: 1 | Z29: =COUNTIF($X$2:X29,X29) -> 1 | AA29: 9999-12-31 | AB29: 26 | AC29: 9999-12-31 | AD29: 28 | AE29: 9999-12-31 | AF29: 26 | AG29: 9999-12-31 | AH29: 28 | AI29: 9999-12-31
A30: ISPEDIFE (UFF/MAND: 21) | C30: Ispedife | D30: 21 | H30: CARTELLE | J30: centoventi | Q30: =IF(INSERIMENTO!O26="DATA ?",1,IF(INSERIMENTO!O26="AMM.NE ?",1,IF(INSERIMENTO!O26="ERRORE",1,0))) -> 0 | R30: O26 | S30: =Q30 -> 0 | U30: I.I.S. | X30: 2007-12-31 | Y30: 3 | Z30: =COUNTIF($X$2:X30,X30) -> 2 | AA30: 9999-12-31 | AB30: 26 | AC30: 9999-12-31 | AD30: 29 | AE30: 9999-12-31 | AF30: 26 | AG30: 9999-12-31 | AH30: 29 | AI30: 9999-12-31
A31: MARICAPITALE (COMANDO MARITTIMO CENTRO E CAPITALE) (UFF/MAND: 69) | C31: Maricapitale (Comando Marittimo Centro e Capitale) | D31: 69 | Q31: =SUM(Q2:Q29) -> 0 | R31: TOT. | S31: =SUM(S7:S29) -> 0 | U31: I.I.S. | X31: 2022-11-01 | Y31: 3 | Z31: =COUNTIF($X$2:X31,X31) -> 2 | AA31: 9999-12-31 | AB31: 26 | AC31: 9999-12-31 | AD31: 30 | AE31: 9999-12-31 | AF31: 26 | AG31: 9999-12-31 | AH31: 30 | AI31: 9999-12-31
A32: MARICRYPTO (UFF/MAND: 68) | C32: Maricrypto | D32: 68 | U32: V. C. | X32: 2010-04-01 | Y32: 2 | Z32: =COUNTIF($X$2:X32,X32) -> 2 | AA32: 9999-12-31 | AB32: 26 | AC32: 9999-12-31 | AD32: 31 | AE32: 9999-12-31 | AF32: 26 | AG32: 9999-12-31 | AH32: 31 | AI32: 9999-12-31
A33: MARIGEMINIL ROMA (UFF/MAND: 71) | C33: Marigeminil Roma | D33: 71 | H33: MACRO | J33: centoventuno | U33: V. C. | X33: 2010-07-01 | Y33: 2 | Z33: =COUNTIF($X$2:X33,X33) -> 2 | AA33: 9999-12-31 | AB33: 26 | AC33: 9999-12-31 | AD33: 32 | AE33: 9999-12-31 | AF33: 26 | AG33: 9999-12-31 | AH33: 32 | AI33: 9999-12-31
A34: MARINFERM ROMA (EX MARIDIST ROMA) (UFF/MAND: 63) | C34: Marinferm Roma (ex Maridist Roma) | D34: 63 | U34: V. C. | X34: 2018-04-01 | Y34: =COUNTIF($X$2:$X$67,X34) -> 2 | Z34: =COUNTIF($X$2:X34,X34) -> 2 | AA34: =IF(X34<$X$49,DATE(9999,12,31),IF(X34>$X$68,DATE(9999,12,31),IF(Z34>1,DATE(9999,12,31),X34))) -> 9999-12-31 | AB34: =RANK(AA34,$AA$2:$AA$67,1) -> 26 | AC34: 9999-12-31 | AD34: 33 | AE34: =IF(ISNA(VLOOKUP(AD34,$AB$2:$AC$67,2,FALSE)),DATE(9999,12,31),VLOOKUP(AD34,$AB$2:$AC$67,2,FALSE)) -> 9999-12-31 | AF34: =RANK(AE34,$AE$2:$AE$67,1) -> 26 | AG34: 9999-12-31 | AH34: 33 | AI34: =IF(ISNA(VLOOKUP(AH34,$AF$2:$AG$67,2,FALSE)),DATE(9999,12,31),VLOOKUP(AH34,$AF$2:$AG$67,2,FALSE)) -> 9999-12-31
A35: MARINTENDENZA ROMA (EX MARICOMMI ROMA) (UFF/MAND: 73) | C35: Marintendenza Roma (ex Maricommi Roma) | D35: 73 | U35: V. C. | X35: 2022-04-01 | Y35: 1 | Z35: =COUNTIF($X$2:X35,X35) -> 1 | AA35: 2022-04-01 | AB35: 22 | AC35: 2022-04-01 | AD35: 34 | AE35: 9999-12-31 | AF35: 26 | AG35: 9999-12-31 | AH35: 34 | AI35: 9999-12-31
A36: MARIREMO SABAUDIA (UFF/MAND: 58) | C36: Mariremo Sabaudia | D36: 58 | U36: V. C. | X36: 2022-07-01 | Y36: 2 | Z36: =COUNTIF($X$2:X36,X36) -> 2 | AA36: 9999-12-31 | AB36: 26 | AC36: 9999-12-31 | AD36: 35 | AE36: 9999-12-31 | AF36: 26 | AG36: 9999-12-31 | AH36: 35 | AI36: 9999-12-31 | AK36: =IF(AI36=DATE(9999,12,31),"",IF(AJ38="",$AI$69,AJ38-1)) -> 
A37: =CONCATENATE(UPPER(C37)," (",$D$1,": ",D37,") ") -> MARITELE ROMA (UFF/MAND: 74) | C37: Maritele Roma | D37: 74 | U37: V. C. | X37: 2024-01-01 | Y37: 1 | Z37: =COUNTIF($X$2:X37,X37) -> 1 | AA37: 2024-01-01 | AB37: 25 | AC37: 2024-01-01 | AD37: 36 | AE37: 9999-12-31 | AF37: 26 | AG37: 9999-12-31 | AH37: 36 | AI37: 9999-12-31 | AJ37: =IF(AI37=DATE(9999,12,31),"",AI37) ->  | AK37: =IF(AI37=DATE(9999,12,31),"",IF(AJ39="",$AI$69,AJ39-1)) -> 
A38: MINISTRO E SOTTOSEGRETARI (UFF/MAND: 1) | C38: Ministro e Sottosegretari | D38: 1 | U38: I.A. | X38: 1995-01-01 | Y38: 1 | Z38: =COUNTIF($X$2:X38,X38) -> 1 | AA38: 9999-12-31 | AB38: 26 | AC38: 9999-12-31 | AD38: 37 | AE38: 9999-12-31 | AF38: 26 | AG38: 9999-12-31 | AH38: 37 | AI38: 9999-12-31 | AK38: =IF(AI38=DATE(9999,12,31),"",IF(AJ39="",$AI$69,AJ39-1)) -> 
A39: NAVARM (UFF/MAND: 122) | C39: Navarm | D39: 122 | U39: I.A. | X39: 1997-07-01 | Y39: 1 | Z39: =COUNTIF($X$2:X39,X39) -> 1 | AA39: 9999-12-31 | AB39: 26 | AC39: 9999-12-31 | AD39: 38 | AE39: 9999-12-31 | AF39: 26 | AG39: 9999-12-31 | AH39: 38 | AI39: 9999-12-31
A40: ONORCADUTI (UFF/MAND: 429) | C40: Onorcaduti | D40: 429 | U40: I.A. | X40: 2000-01-01 | Y40: 1 | Z40: =COUNTIF($X$2:X40,X40) -> 1 | AA40: 9999-12-31 | AB40: 26 | AC40: 9999-12-31 | AD40: 39 | AE40: 9999-12-31 | AF40: 26 | AG40: 9999-12-31 | AH40: 39 | AI40: 9999-12-31
A41: ORDINARIATO MILITARE (UFF/MAND: 34) | C41: Ordinariato Militare | D41: 34 | U41: I.A. | X41: 2000-07-01 | Y41: 2 | Z41: =COUNTIF($X$2:X41,X41) -> 2 | AA41: 9999-12-31 | AB41: 26 | AC41: 9999-12-31 | AD41: 40 | AE41: 9999-12-31 | AF41: 26 | AG41: 9999-12-31 | AH41: 40 | AI41: 9999-12-31
A42: PERIFERIA AERONAUTICA (UFF/MAND: 742/501) | C42: Periferia Aeronautica | D42: 742/501 | U42: I.A. | X42: 2001-01-01 | Y42: 2 | Z42: =COUNTIF($X$2:X42,X42) -> 2 | AA42: 9999-12-31 | AB42: 26 | AC42: 9999-12-31 | AD42: 41 | AE42: 9999-12-31 | AF42: 26 | AG42: 9999-12-31 | AH42: 41 | AI42: 9999-12-31
